Workbook

Sheet Status issues (2)
A1: =IF(COUNTIF(BR23:BR48,">0"),AVERAGE(BR23:BR48),"") ->  | B1: =#REF! ->  | C1: =#REF! ->  | AC1: CIN# : | AE1: Date: | AF1: =B3 ->  | BO1: =AD1 -> 0
A2: =IF(COUNTIF(BS23:BS48,">0"),AVERAGE(BS23:BS48),"") -> 0.8393640351 | B2: =#REF! ->  | AC2: Teacher: | AD2: Status Issues | BO2: =AD2 -> Status Issues
B3: =#REF! ->  | AC3: Class: | AD3: Grammar | AF3: =AD5 -> 3 | BO3: =AD3 -> Grammar
AC4: Students: | AD4: =AU4-AV4 -> 25 | AU4: =COUNTA(AI23:AI48) -> 25 | AV4: =COUNTIF(AM23:AM48, AE9) -> 0
O5: =SUM('GrM1'!A14+'GrM2'!A14+'Status issues (2)'!A14+#REF!+GrM5A!A14+GrM5B!A14+GrMT!A14+[1]GrMCP!A14) ->  | AC5: Level: | AD5: 3 | BO5: =AD5 -> 3
B6: New | C6: End | D6: Cont. | AC6: Time: | AD6: 09:00:00 | BO6: =AD6 -> 0.375
B7: =SUMIF(B9:B10,">0",B9:B10) -> 0 | C7: =SUMIF(C9:C10,">0",C9:C10) -> 0 | AC7: Day: | AD7: M-Th | BO7: =AD7 -> M-Th
AC8: Room: | AD8: 1 | BO8: =AD8 -> 1
B9: =COUNTIF(AM23:AM48,$AD$9) -> 0 | C9: =COUNTIF(AN23:AN48,$AD$9) -> 0 | D9: =AD9 ->  | AC9: Block: | AD9: =(B1) ->  | AE9: =IF(AK7="SAT",C2,C1) ->  | BO9: =AD9 -> 
B10: =COUNTIF(AM23:AM48,$AE$9) -> 0 | C10: =COUNTIF(AN23:AN48,$AE$9) -> 0 | D10: =AE9 ->  | BQ10: =AL10 -> 0
AR11: Block Attendance
A12: Alliance | C12: Gateway | AR12: 1 | AT12: 2 | AV12: 3 | AX12: 4 | AZ12: 5 | BB12: 6 | BD12: 7 | BF12: 8
A13: Start | B13: End | C13: Start | D13: End | E13: Start | F13: End | AA13: Re-Enrolling | AB13: Hold
A14: =SUM(E$66:E$90) -> 0 | B14: =SUM(Q$66:Q$90) -> 0 | C14: =SUM(F$66:F$90) -> 0 | D14: =SUM(R$66:R$90) -> 0 | E14: New | F14: Finished | AA14: New | AB14: Finished
A15: =SUM($G66:$G90) -> 0 | B15: =SUM(S$66:S$90) -> 0 | C15: =SUM(H$66:H$90) -> 0 | D15: =SUM(T$66:T$90) -> 0 | E15: Add\Drop | F15: Transfer Out | AA15: Add\Drop | AB15: Transfer Out
A16: =SUM($I66:$I90) -> 0 | B16: =SUM(U$66:U$90) -> 0 | C16: =SUM(J$66:J$90) -> 0 | D16: =SUM(V$66:V$90) -> 0 | E16: Transfer In | F16: Vacation | AA16: Transfer In | AB16: Vacation
A17: =SUM($K66:$K90) -> 0 | B17: =SUM(W$66:W$90) -> 0 | C17: =SUM(L$66:L$90) -> 0 | D17: =SUM(X$66:X$90) -> 0 | E17: CoS | F17: Lost | AA17: CoS | AB17: Lost
A18: =SUM($M66:$M90) -> 0 | B18: =SUM(Y$66:Y$90) -> 0 | C18: =SUM(N$66:N$90) -> 24 | D18: =SUM(Z$66:Z$90) -> 0 | E18: Continuing | F18: Break | AA18: Continuing | AB18: Break
A19: =SUM($O66:$O90) -> 0 | C19: =SUM(P$66:P$90) -> 0 | E19: Found | AA19: Found
A20: Alliance | C20: Gateway | AR20: 1 | AT20: 2 | AV20: 3 | AX20: 4 | AZ20: 5 | BB20: 6 | BD20: 7 | BF20: 8
A21: =COUNTIF(AL23:AL48,"All") -> 0 | C21: =COUNTIF(AL23:AL48, "Gate") -> 24 | AR21: 1 | AT21: 2 | AV21: 3 | AX21: 4 | AZ21: 5 | BB21: 6 | BD21: 7 | BF21: 8
B22: SDate | C22: EDate | D22: Lev End | AA22: Start | AB22: End Reason | AC22: Notes | AD22: I-20 Expires | AE22: F1 Agreement | AF22: Country | AH22: Birthday | AI22: Last Name | AJ22: First Name | AK22: Phone # | AL22: PRG | AM22: LB | AN22: ED | AO22: LE | AP22: NOTES | AR22: A | AS22: T | AT22: A | AU22: T | AV22: A | AW22: T | AX22: A | AY22: T | AZ22: A | BA22: T | BB22: A | BC22: T | BD22: A | BE22: T | BF22: A | BG22: T | BH22: 1 | BI22: 2 | BJ22: 3 | BK22: 4 | BL22: 5 | BM22: 6 | BN22: 7 | BO22: 8 | BR22: All | BS22: Gate
B23: 2008-01-21 | C23: 2008-05-08 | D23: 2008-05-08 | AA23: Continuing | AC23: IS 5A | AD23: 2008-02-28 | AE23: Yes | AF23: Mali | AH23: 2008-01-05 | AI23: Fofana | AJ23: Kadiatou | AK23: 735-2453 | AL23: Gate | AM23: W2 | AN23: S1 | AO23: S1 | AV23: 5 | AW23: 0 | AX23: 2 | AY23: 0 | AZ23: 1 | BA23: 0 | BD23: 2 | BE23: 0 | BI23: F | BJ23: F | BK23: B- | BL23: B+ | BM23: D- | BN23: F | BP23: 64 | BQ23: 0.84375 | BS23: 0.84375
B24: 2008-02-04 | C24: 2008-05-22 | D24: 2008-05-22 | AA24: Continuing | AC24: IS 5A | AD24: 2008-12-07 | AE24: Yes | AF24: Ukraine | AH24: 2008-01-09 | AI24: Pokhylko | AJ24: Dasha | AL24: Gate | AM24: W3 | AN24: S2 | AO24: S2 | AX24: 3 | AY24: 0 | BD24: 2 | BE24: 0 | BN24: F | BP24: 64 | BQ24: 0.921875 | BS24: 0.921875
B25: 2008-01-21 | C25: 2008-05-08 | D25: 2008-05-08 | AA25: Continuing | AC25: Novels 5A | AD25: 2008-02-28 | AE25: Yes | AF25: Mali | AH25: 2008-01-05 | AI25: Fofana | AJ25: Kadiatou | AK25: 735-2453 | AL25: Gate | AM25: W2 | AN25: S1 | AO25: S1 | AV25: 3 | AW25: 0 | AX25: 3 | AY25: 0 | AZ25: 4 | BA25: 0 | BD25: 1 | BE25: 0 | BK25: F | BN25: F | BP25: 64 | BQ25: 0.828125 | BS25: 0.828125
B26: 2008-01-07 | C26: 2008-04-25 | D26: 2008-04-25 | AA26: Continuing | AC26: Novels 5A | AD26: 2008-04-24 | AE26: No | AF26: Peru | AH26: 2008-10-22 | AI26: Palma | AJ26: Lucero | AL26: Gate | AM26: W1 | AN26: W8 | AO26: W8 | AV26: 1 | AW26: 0 | AX26: 0 | AY26: 0 | AZ26: 1 | BA26: 0 | BD26: 3 | BE26: 0 | BH26: A | BK26: A | BL26: B | BM26: B- | BN26: C | BP26: 64
B27: 2008-02-04 | C27: 2008-05-22 | D27: 2008-05-22 | AA27: Continuing | AC27: Novels 5A | AD27: 2008-12-07 | AE27: Yes | AF27: Ukraine | AH27: 2008-01-09 | AI27: Pokhylko | AJ27: Dasha | AL27: Gate | AM27: W3 | AN27: S2 | AO27: S2 | AX27: 3 | AY27: 0 | AZ27: 0 | BA27: 0 | BD27: 0 | BE27: 0 | BK27: F | BN27: C- | BP27: 64 | BQ27: 0.953125 | BS27: 0.953125
B28: 2008-01-21 | C28: 2008-05-08 | D28: 2008-06-05 | AA28: Continuing | AC28: GR 5B | AD28: 2008-01-29 | AE28: Yes | AF28: Mexico | AH28: 2008-08-13 | AI28: Cupido | AJ28: Marcela | AL28: Gate | AM28: W2 | AN28: S1 | AO28: S3 | AV28: 0 | AW28: 1 | AX28: 0 | AY28: 1 | AZ28: 2 | BA28: 2 | BB28: 0 | BC28: 0 | BD28: 2 | BE28: 2 | BH28: A | BI28: A | BJ28: A- | BK28: A | BM28: B- | BN28: D- | BP28: 64 | BQ28: 0.90625 | BS28: 0.90625
B29: 2008-01-07 | C29: 2008-04-24 | D29: 2008-04-24 | AA29: Continuing | AC29: GR 5B | AD29: 2008-04-24 | AE29: Yes | AF29: Mexico | AH29: 2008-11-27 | AI29: Del Valle | AJ29: Cinthya | AK29: (735) 356-3427 | AL29: Gate | AM29: W1 | AN29: W8 | AO29: W8 | AT29: 1 | AU29: 0 | AV29: 1 | AW29: 1 | AX29: 3 | AY29: 2 | AZ29: 2 | BA29: 2 | BB29: 0 | BC29: 2 | BD29: 0 | BE29: 1 | BK29: C- | BM29: D- | BN29: F | BP29: 64
B30: 2008-02-04 | C30: 2008-05-22 | D30: 2008-05-22 | AA30: Continuing | AC30: GR 5B | AI30: Olano | AJ30: Mariela NR | AL30: Gate | AM30: W3 | AN30: S2 | AO30: S2 | AX30: 6 | AY30: 0 | AZ30: 8 | BA30: 0 | BB30: 4 | BC30: 0 | BD30: 8 | BE30: 0 | BK30: F | BM30: F | BP30: 64 | BQ30: 0.59375 | BS30: 0.59375
B31: 2008-02-18 | C31: 2008-06-05 | D31: 2008-06-05 | AA31: Continuing | AC31: GR 5B | AD31: 2008-05-22 | AE31: Yes | AF31: Mexico | AH31: 2008-01-02 | AI31: Palomares | AJ31: Pamela | AK31: 623-6126 | AL31: Gate | AM31: W4 | AN31: S3 | AO31: S3 | AX31: 2 | AY31: 0 | AZ31: 2 | BA31: 0 | BB31: 1 | BC31: 1 | BD31: 2 | BE31: 0 | BM31: B+ | BN31: D- | BP31: 64 | BQ31: 0.8854166667 | BS31: 0.8854166667
B32: 2008-03-18 | C32: 2008-07-03 | D32: 2008-07-03 | AA32: Continuing | AC32: GR 5B | AD32: 2008-04-30 | AE32: Yes | AF32: Chile | AG32: Chile | AH32: 2008-06-19 | AI32: Wilhelm | AJ32: Daniela | AK32: 687-5260 | AL32: Gate | AM32: W6 | AN32: S5 | AO32: S5 | BD32: 4 | BE32: 0 | BM32: F | BN32: F | BP32: 64 | BQ32: 0.9375 | BS32: 0.9375
B33: 2008-01-21 | C33: 2008-05-08 | D33: 2008-06-05 | AA33: Continuing | AC33: Novels 5B | AD33: 2008-01-29 | AE33: Yes | AF33: Mexico | AH33: 2008-08-13 | AI33: Cupido | AJ33: Marcela | AL33: Gate | AM33: W2 | AN33: S1 | AO33: S3 | AV33: 0 | AW33: 0 | AX33: 1 | AY33: 0 | AZ33: 0 | BA33: 0 | BB33: 0 | BC33: 0 | BD33: 1 | BE33: 0 | BJ33: A- | BK33: C | BL33: A | BM33: B- | BN33: F | BP33: 64 | BQ33: 1 | BS33: 1
B34: 2008-01-07 | C34: 2008-04-24 | D34: 2008-04-24 | AA34: Continuing | AC34: Novels 5B | AD34: 2008-04-24 | AE34: Yes | AF34: Mexico | AH34: 2008-11-27 | AI34: Del Valle | AJ34: Cinthya | AK34: (735) 356-3427 | AL34: Gate | AM34: W1 | AN34: W8 | AO34: W8 | AT34: 0 | AU34: 0 | AV34: 1 | AW34: 0 | AX34: 1 | AY34: 0 | AZ34: 0 | BA34: 0 | BB34: 1 | BC34: 0 | BD34: 0 | BE34: 0 | BI34: A | BK34: C | BL34: A | BM34: B+ | BN34: D- | BP34: 64 | BQ34: 0.953125 | BS34: 0.953125
B35: 2008-01-07 | C35: 2008-04-24 | D35: 2008-04-24 | AA35: Continuing | AC35: Novels 5B | AD35: 2008-04-25 | AE35: No | AF35: Mexico | AG35: Mexico | AH35: 2008-10-23 | AI35: Del Valle | AJ35: Francisco | AL35: Gate | AM35: W1 | AN35: W8 | AO35: W8 | AT35: 0 | AU35: 0 | AV35: 0 | AW35: 0 | AX35: 0 | AY35: 0 | AZ35: 0 | BA35: 0 | BB35: 0 | BC35: 0 | BI35: A | BK35: A | BL35: A | BM35: B+ | BN35: F | BP35: 64
B36: 2008-03-31 | C36: 2008-07-18 | D36: 2008-07-18 | AA36: Continuing | AC36: Novels 5B | AD36: 2008-07-18 | AE36: Yes | AF36: Guatemala | AH36: 2008-04-13 | AI36: Lemus | AJ36: Kenny | AL36: Gate | AM36: W7 | AN36: S6 | AO36: S6 | BD36: 1 | BE36: 0 | BN36: D+ | BP36: 64 | BQ36: 0.984375 | BS36: 0.984375
B37: 2008-02-04 | C37: 2008-05-22 | D37: 2008-05-22 | AA37: Continuing | AC37: Novels 5B | AI37: Olano | AJ37: Mariela | AL37: Gate | AM37: W3 | AN37: S2 | AO37: S2 | AX37: 4 | AY37: 0 | AZ37: 4 | BA37: 0 | BB37: 4 | BC37: 0 | BD37: 4 | BE37: 0 | BK37: F | BL37: F | BM37: F | BN37: F | BP37: 64 | BQ37: 0.75 | BS37: 0.75
B38: 2008-02-18 | C38: 2008-06-05 | D38: 2008-06-05 | AA38: Continuing | AC38: Novels 5B | AD38: 2008-05-22 | AE38: Yes | AF38: Mexico | AH38: 2008-01-02 | AI38: Palomares | AJ38: Pamela | AK38: 623-6126 | AL38: Gate | AM38: W4 | AN38: S3 | AO38: S3 | AX38: 0 | AY38: 0 | AZ38: 1 | BA38: 0 | BB38: 0 | BC38: 0 | BD38: 1 | BE38: 0 | BK38: A | BL38: B- | BM38: B+ | BN38: F | BP38: 64 | BQ38: 0.96875 | BS38: 0.96875
B39: 2008-03-18 | C39: 2008-07-03 | D39: 2008-07-03 | AA39: Continuing | AC39: Novels 5B | AD39: 2008-04-30 | AE39: Yes | AF39: Chile | AG39: Chile | AH39: 2008-06-19 | AI39: Wilhelm | AJ39: Daniela | AK39: 687-5260 | AL39: Gate | AM39: W6 | AN39: S5 | AO39: S5 | AZ39: 0 | BA39: 0 | BB39: 3 | BC39: 0 | BD39: 3 | BE39: 0 | BL39: A | BM39: F | BN39: F | BP39: 64 | BQ39: 0.90625 | BS39: 0.90625
B40: 2008-01-07 | C40: 2008-04-24 | D40: 2008-04-24 | AA40: Continuing | AC40: IS 5B | AD40: 2008-04-25 | AE40: No | AF40: Mexico | AG40: Mexico | AH40: 2008-10-23 | AI40: Del Valle | AJ40: Francisco | AL40: Gate | AM40: W1 | AN40: W8 | AO40: W8 | AT40: 1 | AU40: 0 | AV40: 0 | AW40: 2 | AX40: 0 | AY40: 0 | AZ40: 2 | BA40: 0 | BB40: 0 | BC40: 0 | BI40: A | BK40: A | BL40: B- | BM40: C- | BN40: F | BP40: 64
B41: 2008-02-04 | C41: 2008-05-22 | D41: 2008-05-22 | AA41: Continuing | AC41: IS 5B | AI41: Olano | AJ41: Mariela | AL41: Gate | AM41: W3 | AN41: S2 | AO41: S2 | AV41: 1 | AW41: 0 | AX41: 5 | AY41: 0 | AZ41: 8 | BA41: 0 | BB41: 8 | BC41: 0 | BD41: 8 | BE41: 0 | BK41: F | BL41: F | BM41: F | BN41: F | BP41: 64 | BQ41: 0.53125 | BS41: 0.53125
B42: 2008-01-07 | C42: 2008-04-25 | D42: 2008-04-25 | AA42: Continuing | AC42: GR T | AI42: Cedillo | AJ42: Angelica | AL42: Gate | AM42: W1 | AN42: W8 | AO42: W8 | AV42: 2 | AW42: 6 | AX42: 2 | AY42: 4 | AZ42: 5 | BA42: 3 | BB42: 1 | BC42: 2 | BD42: 3 | BE42: 1 | BH42: B- | BI42: B- | BJ42: C- | BK42: C+ | BL42: F | BM42: B+ | BN42: F | BP42: 64 | BQ42: 0.7135416667 | BS42: 0.7135416667
B43: 2008-01-21 | C43: 2008-05-08 | D43: 2008-05-08 | AA43: Continuing | AC43: GR T | AD43: 2007-08-30 | AF43: Ecuador | AH43: 2008-11-24 | AI43: Fuentes | AJ43: Benjamin | AK43: 687-9965 | AL43: Gate | AM43: W2 | AN43: S1 | AO43: S1 | AT43: 3 | AU43: 0 | AV43: 4 | AW43: 1 | AX43: 2 | AY43: 1 | AZ43: 7 | BA43: 0 | BB43: 3 | BC43: 0 | BD43: 5 | BE43: 1 | BI43: D | BJ43: C | BK43: C+ | BL43: D | BM43: C- | BN43: D- | BP43: 64 | BQ43: 0.609375 | BS43: 0.609375
B44: 2008-01-07 | C44: 2008-04-25 | D44: 2008-04-25 | AA44: Continuing | AC44: GR T | AG44: 00:00:00 | AI44: Kim | AJ44: Hong Young (Terry) | AL44: Gate | AM44: W1 | AN44: W8 | AO44: W8 | AV44: 3 | AW44: 4 | AX44: 3 | AY44: 2 | AZ44: 4 | BA44: 3 | BB44: 0 | BC44: 1 | BD44: 6 | BE44: 1 | BH44: F | BI44: C+ | BJ44: B | BK44: B- | BL44: B | BM44: B | BN44: F | BP44: 64 | BQ44: 0.6927083333 | BS44: 0.6927083333
AA45: Continuing | AC45: GR T | AI45: Lee | AJ45: Youn Chan | BB45: 1 | BC45: 0 | BD45: 4 | BE45: 0 | BM45: B+ | BN45: C-
B46: 2008-01-21 | C46: 2008-05-08 | D46: 2008-05-08 | AA46: Continuing | AC46: American History | AD46: 2007-08-31 | AE46: Yes | AF46: South Korea | AH46: 2008-09-12 | AI46: Shin | AJ46: Junghwa | AK46: 378-4983 | AL46: Gate | AM46: W2 | AN46: S1 | AO46: S1 | AT46: 0 | AU46: 0 | AV46: 0 | AW46: 0 | AX46: 0 | AY46: 0 | AZ46: 1 | BA46: 0 | BB46: 0 | BC46: 0 | BD46: 1 | BE46: 0 | BI46: A | BJ46: A | BK46: A | BL46: B+ | BM46: A | BN46: D+ | BP46: =IF(AL46="All",32,IF(AL46="Gate",64,"")) -> 64 | BQ46: =IF(BP46="","",(BP46-BG88)/BP46) -> 0.96875 | BR46: =IF(AL46="All",BQ46,"") ->  | BS46: =IF(AL46="Gate",BQ46,"") -> 0.96875
B47: 2008-02-04 | C47: 2008-05-23 | D47: 2008-05-23 | AA47: Continuing | AC47: American History | AF47: Peru | AI47: Torres | AJ47: David | AL47: Gate | AM47: W3 | AN47: S2 | AO47: S2 | AV47: 3 | AW47: 3 | AX47: 3 | AY47: 0 | AZ47: 4 | BA47: 0 | BB47: 0 | BC47: 0 | BD47: 2 | BE47: 0 | BJ47: F | BK47: F | BL47: F | BM47: A | BN47: D- | BP47: =IF(AK47="All",32,IF(AK47="Gate",64,"")) ->  | BQ47: =IF(BP47="","",(BP47-BG89)/BP47) ->  | BR47: =IF(AK47="All",BQ47,"") ->  | BS47: =IF(AK47="Gate",BQ47,"") -> 
BP48: =IF(AL48="All",32,IF(AL48="Gate",64,"")) ->  | BQ48: =IF(BP48="","",(BP48-BG90)/BP48) ->  | BR48: =IF(AL48="All",BQ48,"") ->  | BS48: =IF(AL48="Gate",BQ48,"") -> 
B53: Country count
B54: =Reports!#REF! ->  | C54: =COUNTIF($AG$23:$AG$48,Reports!#REF!) -> 0 | D54: =COUNTIF($AF$23:$AF$48,Reports!#REF!) -> 0 | AI54: CIN# : | AL54: =IF(AD1=0,"",AD1) -> 
B55: =Reports!I64 -> 0 | C55: =COUNTIF($AG$23:$AG$48,Reports!I64) -> 1 | D55: =COUNTIF($AF$23:$AF$48,Reports!I64) -> 0 | AI55: Teacher: | AL55: =IF(AD2=0,"",AD2) -> Status Issues
B56: =Reports!J35 -> Africa | C56: =COUNTIF($AG$23:$AG$48,Reports!J35) -> 0 | D56: =COUNTIF($AF$23:$AF$48,Reports!J35) -> 0 | AI56: Class: | AL56: =IF(AD3=0,"",AD3) -> Grammar | AT56: =AL58 -> 3
B57: =Reports!J36 -> Argentina | C57: =COUNTIF($AG$23:$AG$48,Reports!J36) -> 0 | D57: =COUNTIF($AF$23:$AF$48,Reports!J36) -> 0 | AI57: Students: | AL57: =COUNTA(AI23:AI48) -> 25
B58: =Reports!J39 -> Cape Verde | C58: =COUNTIF($AG$23:$AG$48,Reports!J37) -> 0 | D58: =COUNTIF($AF$23:$AF$48,Reports!J37) -> 0 | AI58: Level: | AL58: =IF(AD5=0,"",AD5) -> 3
B59: =Reports!J37 -> Bolivia | C59: =COUNTIF($AG$23:$AG$48,Reports!J38) -> 0 | D59: =COUNTIF($AF$23:$AF$48,Reports!J38) -> 0 | AI59: Time: | AL59: =IF(AD6=0,"",AD6) -> 09:00:00 | BF59: Legend
B60: =Reports!J38 -> Brazil | C60: =COUNTIF($AG$23:$AG$48,Reports!J39) -> 0 | D60: =COUNTIF($AF$23:$AF$48,Reports!J39) -> 0 | AI60: Day: | AL60: =IF(AD7=0,"",AD7) -> M-Th | BF60: Present | BI60: Absent | BL60: Tardy | BY60: Time: | BZ60: =AD6 -> 09:00:00
B61: =Reports!J40 -> Chile | C61: =COUNTIF($AG$23:$AG$48,Reports!J40) -> 2 | D61: =COUNTIF($AF$23:$AF$48,Reports!J40) -> 2 | AI61: Room: | AL61: =IF(AD8=0,"",AD8) -> 1 | BR61: Block: | BS61: =AD9 ->  | BT61: Date: | BV61: =AF1 ->  | CF61: Grade Report
B62: =Reports!J41 -> China | C62: =COUNTIF($AG$23:$AG$48,Reports!J41) -> 0 | D62: =COUNTIF($AF$23:$AF$48,Reports!J41) -> 0 | AI62: Block: | AL62: =IF(AD9=0,"",AD9) ->  | AN62: Date: | AR62: =IF(AF1=0,"",AF1) ->  | BR62: Class: | BS62: =AD3 -> Grammar | BT62: Level: | BV62: =AF3 -> 3 | BW62: Teacher: | BY62: =AD2 -> Status Issues | CB62: Points | CC62: Homework Assignments/pts possible | CM62: Points | CT62: Points | CW62: Points | CX62: GRADE
B63: =Reports!J42 -> Columbia | C63: =COUNTIF($AG$23:$AG$48,Reports!J42) -> 0 | D63: =COUNTIF($AF$23:$AF$48,Reports!J42) -> 0 | BT63: Attendance | CN63: QUIZ | CO63: QUIZ | CP63: QUIZ | CQ63: QUIZ | CR63: QUIZ | CS63: QUIZ | CU63: Vocab | CV63: Test
B64: =Reports!J43 -> Costa Rica | C64: =COUNTIF($AG$23:$AG$48,Reports!J43) -> 0 | D64: =COUNTIF($AF$23:$AF$48,Reports!J43) -> 0 | E64: =AA14 -> New | G64: =AA15 -> Add\Drop | I64: =AA16 -> Transfer In | K64: =AA17 -> CoS | M64: =AA18 -> Continuing | O64: =AA19 -> Found | Q64: =AB14 -> Finished | S64: =AB15 -> Transfer Out | U64: =AB16 -> Vacation | W64: =AB17 -> Lost | Y64: =AB18 -> Break | AO64: =AR62 ->  | AQ64: =AO64+1 ->  | AS64: =AQ64+1 ->  | AU64: =AS64+1 ->  | AW64: =AR62+7 ->  | AY64: =AW64+1 ->  | BA64: =AY64+1 ->  | BC64: =BA64+1 ->  | BE64: Attendance | BH64: Block Grades | BT64: M | BU64: T | BV64: W | BW64: TH | BX64: M | BY64: T | BZ64: W | CA64: TH
B65: =Reports!J44 -> Dominican Republic | C65: =COUNTIF($AG$23:$AG$48,Reports!J44) -> 0 | D65: =COUNTIF($AF$23:$AF$48,Reports!J44) -> 0 | E65: All | F65: Gate | G65: All | H65: Gate | I65: All | J65: Gate | K65: All | L65: Gate | M65: All | N65: Gate | O65: All | P65: Gate | Q65: All | R65: Gate | S65: All | T65: Gate | U65: All | V65: Gate | W65: All | X65: Gate | Y65: All | Z65: Gate | AH65: Notes | AI65: =AI22 -> Last Name | AJ65: =AJ22 -> First Name | AK65: =AK22 -> Phone # | AL65: PRG | AM65: LB | AN65: LE | AO65: =IF($AL$60="SAT",1,"M") -> M | AQ65: =IF($AL$60="SAT",2,"TU") -> TU | AS65: =IF($AL$60="SAT",3,"W") -> W | AU65: =IF($AL$60="SAT",4,"TH") -> TH | AW65: =IF($AL$60="SAT",5,"M") -> M | AY65: =IF($AL$60="SAT",6,"TU") -> TU | BA65: =IF($AL$60="SAT",7,"W") -> W | BC65: =IF($AL$60="SAT",8,"TH") -> TH | BE65: A | BF65: T | BG65: Att. | BH65: 1 | BI65: 2 | BJ65: 3 | BK65: 4 | BL65: 5 | BM65: 6 | BN65: 7 | BO65: 8 | BP65: GPA | BQ65: GRD | BR65: Student | BS65: Points Possible? | CB65: =SUM(BT65:CA65) -> 0 | CM65: =SUM(CC65:CL65) -> 0 | CT65: =SUM(CN65:CS65) -> 0 | CW65: =SUM(CU65:CV65) -> 0 | CY65: Grading Scale
B66: =Reports!J45 -> Ecuador | C66: =COUNTIF($AG$23:$AG$48,Reports!J45) -> 0 | D66: =COUNTIF($AF$23:$AF$48,Reports!J45) -> 1 | E66: =IF($AA23="","",IF($AL23=E$65,COUNTIF($AA23,$AA$14),"")) ->  | F66: 0 | G66: =IF($AA23="","",IF($AL23=G$65,COUNTIF($AA23,$AA$15),"")) ->  | H66: 0 | I66: =IF($AA23="","",IF($AL23=I$65,COUNTIF($AA23,$AA$16),"")) ->  | J66: 0 | K66: =IF($AA23="","",IF($AL23=K$65,COUNTIF($AA23,$AA$17),"")) ->  | L66: 0 | M66: =IF($AA23="","",IF($AL23=M$65,COUNTIF($AA23,$AA$18),"")) ->  | N66: 1 | O66: =IF($AA23="","",IF($AL23=O$65,COUNTIF($AA23,$AA$19),"")) ->  | P66: 0 | Q66: =IF($AB23="","",IF($AL23=Q$65,COUNTIF($AB23,$AB$14),"")) ->  | S66: =IF($AB23="","",IF($AL23=S$65,COUNTIF($AB23,$AB$15),"")) ->  | U66: =IF($AB23="","",IF($AL23=U$65,COUNTIF($AB23,$AB$16),"")) ->  | W66: =IF($AB23="","",IF($AL23=W$65,COUNTIF($AB23,$AB$17),"")) ->  | Y66: =IF($AB23="","",IF($AL23=Y$65,COUNTIF($AB23,$AB$18),"")) ->  | AH66: GR5B | AI66: =IF(AI23=0,"",AI23) -> Fofana | AJ66: Kadiatou | AK66: 735-2453 | AL66: Gate | AM66: W2 | AN66: =IF(AO23=0,"",AO23) -> S1 | AO66: =IF($AM66=$AE$9,1,IF($D23>0,IF($AL$60="T,TH",1,IF($AL66="All",1,"")),"")) ->  | AQ66: =IF($D23>0,IF($AM66=$AE$9,1,IF($AL$60="M,W",1,IF($AL$56="Grammar","",1))),"") ->  | AS66: =IF($D23>0,IF($AM66=$AE$9,1,IF($AL$60="T,TH",1,IF($AL$56="Grammar","",1))),"") ->  | AU66: =AQ66 ->  | AW66: =AO66 ->  | AY66: =AQ66 ->  | BA66: =AS66 ->  | BC66: =AU66 ->  | BE66: =IF($B23>0,(AR23+AT23+AV23+AX23+AZ23+BB23+BD23+BF23),"") -> 10 | BF66: =IF($B23>0,(AS23+AU23+AW23+AY23+BA23+BC23+BE23+BG23),"") -> 0 | BG66: =IF(B23>0,(BF66/3)+BE66,"") -> 10 | BH66: =IF(BH23=0,"",BH23) ->  | BI66: F | BJ66: F | BK66: B- | BL66: B+ | BM66: D- | BN66: F | BP66: =IF(SUM(AI95:AR95)=0,"",AVERAGE(AI95:AR95)) -> 1.138333333 | BQ66: =CONCATENATE(" ",BC94,BD94,BE94,BF94,BG94,BH94,BI94,BJ94,BK94,BL94,BM94,BN94) -> D+ | BR66: =IF(AI23="","",AI23) -> Fofana | BS66: =IF(AJ23="","",AJ23) -> Kadiatou | CB66: =IF(BT66="","",SUM(BT66:CA66)) ->  | CM66: =IF(CC66="","",SUM(CC66:CL66)) ->  | CT66: =IF(CN66="","",SUM(CN66:CS66)) ->  | CW66: =IF(CU66="","",SUM(CU66:CV66)) ->  | CX66: =IF(BR66="","",IF(BT66="","",(((CB66/CB$65)*0.25)+((CM66/CM$65)*0.25)+((CT66/CT$65)*0.25)+((CW66/CW$65)*0.25))*100)) ->  | CY66: A = 93%+
B67: =Reports!J46 -> El Salvador | C67: =COUNTIF($AG$23:$AG$48,Reports!J46) -> 0 | D67: =COUNTIF($AF$23:$AF$48,Reports!J46) -> 0 | F67: 0 | H67: 0 | J67: 0 | L67: 0 | N67: 1 | P67: 0 | AH67: GR5B | AI67: Pokhylko | AJ67: Dasha | AL67: Gate | AM67: W3 | AN67: S2 | BE67: 5 | BF67: 0 | BG67: 5 | BN67: F | BP67: 0.01 | BQ67: F | BR67: Pokhylko | BS67: Dasha | CY67: A- = 90-92%
B68: =Reports!J47 -> France | C68: =COUNTIF($AG$23:$AG$48,Reports!J47) -> 0 | D68: =COUNTIF($AF$23:$AF$48,Reports!J47) -> 0 | F68: 0 | H68: 0 | J68: 0 | L68: 0 | N68: 1 | P68: 0 | AH68: GR5B | AI68: Fofana | AJ68: Kadiatou | AK68: 735-2453 | AL68: Gate | AM68: W2 | AN68: S1 | BE68: 11 | BF68: 0 | BG68: 11 | BK68: F | BN68: F | BP68: 0.01 | BQ68: F | BR68: Fofana | BS68: Kadiatou | CY68: B+ = 87-89%
B69: =Reports!J48 -> Guatemala | C69: =COUNTIF($AG$23:$AG$48,Reports!J48) -> 0 | D69: =COUNTIF($AF$23:$AF$48,Reports!J48) -> 1 | F69: 0 | H69: 0 | J69: 0 | L69: 0 | N69: 1 | P69: 0 | AH69: GR5B | AI69: Palma | AJ69: Lucero | AL69: Gate | AM69: W1 | AN69: W8 | BE69: 5 | BF69: 0 | BG69: 5 | BH69: A | BK69: A | BL69: B | BM69: B- | BN69: C | BP69: 3.14 | BQ69: B+ | BR69: Palma | BS69: Lucero | CY69: B = 83-86%
B70: =Reports!J49 -> Honoduras | C70: =COUNTIF($AG$23:$AG$48,Reports!J49) -> 0 | D70: =COUNTIF($AF$23:$AF$48,Reports!J49) -> 0 | F70: 0 | H70: 0 | J70: 0 | L70: 0 | N70: 1 | P70: 0 | AH70: IS5B | AI70: Pokhylko | AJ70: Dasha | AL70: Gate | AM70: W3 | AN70: S2 | BE70: 3 | BF70: 0 | BG70: 3 | BK70: F | BN70: C- | BP70: 0.855 | BQ70: D | BR70: Pokhylko | BS70: Dasha | CY70: B- = 80-82%
B71: =Reports!J50 -> Italy | C71: =COUNTIF($AG$23:$AG$48,Reports!J50) -> 0 | D71: =COUNTIF($AF$23:$AF$48,Reports!J50) -> 0 | F71: 0 | H71: 0 | J71: 0 | L71: 0 | N71: 1 | P71: 0 | AH71: Novels 5B | AI71: Cupido | AJ71: Marcela | AL71: Gate | AM71: W2 | AN71: S3 | BE71: 4 | BF71: 6 | BG71: 6 | BH71: A | BI71: A | BJ71: A- | BK71: A | BM71: B- | BN71: D- | BP71: 3.183333333 | BQ71: B+ | BR71: Cupido | BS71: Marcela | CY71: C+ = 77-79%
B72: =Reports!J51 -> Japan | C72: =COUNTIF($AG$23:$AG$48,Reports!J51) -> 0 | D72: =COUNTIF($AF$23:$AF$48,Reports!J51) -> 0 | F72: 0 | H72: 0 | J72: 0 | L72: 0 | N72: 1 | P72: 0 | AH72: Novels 5B | AI72: Del Valle | AJ72: Cinthya | AK72: (735) 356-3427 | AL72: Gate | AM72: W1 | AN72: W8 | BE72: 7 | BF72: 8 | BG72: 9.666666667 | BK72: C- | BM72: D- | BN72: F | BP72: 0.8033333333 | BQ72: D | BR72: Del Valle | BS72: Cinthya | CY72: C = 73-76%
B73: =Reports!J52 -> Korea | C73: =COUNTIF($AG$23:$AG$48,Reports!J52) -> 0 | D73: =COUNTIF($AF$23:$AF$48,Reports!J52) -> 0 | F73: 0 | H73: 0 | J73: 0 | L73: 0 | N73: 1 | P73: 0 | AH73: Novels 5B | AI73: Olano | AJ73: Mariela NR | AL73: Gate | AM73: W3 | AN73: S2 | BE73: 26 | BF73: 0 | BG73: 26 | BK73: F | BM73: F | BP73: 0.01 | BQ73: F | BR73: Olano | BS73: Mariela NR | CY73: C- = 70-72%
B74: =Reports!J53 -> Madagascar | C74: =COUNTIF($AG$23:$AG$48,Reports!J53) -> 0 | D74: =COUNTIF($AF$23:$AF$48,Reports!J53) -> 0 | F74: 0 | H74: 0 | J74: 0 | L74: 0 | N74: 1 | P74: 0 | AH74: GR TOEFL | AI74: Palomares | AJ74: Pamela | AK74: 623-6126 | AL74: Gate | AM74: W4 | AN74: S3 | BE74: 7 | BF74: 1 | BG74: 7.333333333 | BM74: B+ | BN74: D- | BP74: 2.05 | BQ74: C+ | BR74: Palomares | BS74: Pamela | CY74: D+ = 67-69%
B75: =Reports!J54 -> Mexico | C75: =COUNTIF($AG$23:$AG$48,Reports!J54) -> 2 | D75: =COUNTIF($AF$23:$AF$48,Reports!J54) -> 8 | F75: 0 | H75: 0 | J75: 0 | L75: 0 | N75: 1 | P75: 0 | AH75: GR TOEFL | AI75: Wilhelm | AJ75: Daniela | AK75: 687-5260 | AL75: Gate | AM75: W6 | AN75: S5 | BE75: 4 | BF75: 0 | BG75: 4 | BM75: F | BN75: F | BP75: 0.01 | BQ75: F | BR75: Wilhelm | BS75: Daniela | CY75: D = 63-66%
B76: =Reports!J55 -> Mongolia | C76: =COUNTIF($AG$23:$AG$48,Reports!J55) -> 0 | D76: =COUNTIF($AF$23:$AF$48,Reports!J55) -> 0 | F76: 0 | H76: 0 | J76: 0 | L76: 0 | N76: 1 | P76: 0 | AH76: GR TOEFL | AI76: Cupido | AJ76: Marcela | AL76: Gate | AM76: W2 | AN76: S3 | BE76: 2 | BF76: 0 | BG76: 2 | BH76: =IF(BH33=0,"",BH33) ->  | BJ76: A- | BK76: C | BL76: A | BM76: B- | BN76: F | BP76: 2.482 | BQ76: B– | BR76: Cupido | BS76: Marcela | CY76: D- = 60-62%
B77: =Reports!J56 -> Peru | C77: =COUNTIF($AG$23:$AG$48,Reports!J56) -> 0 | D77: =COUNTIF($AF$23:$AF$48,Reports!J56) -> 2 | F77: 0 | H77: 0 | J77: 0 | L77: 0 | N77: 1 | P77: 0 | AH77: IS TOEFL | AI77: Del Valle | AJ77: Cinthya | AK77: (735) 356-3427 | AL77: Gate | AM77: W1 | AN77: W8 | BE77: 3 | BF77: 0 | BG77: 3 | BI77: A | BK77: C | BL77: A | BM77: B+ | BN77: D- | BP77: 2.82 | BQ77: B | BR77: Del Valle | BS77: Cinthya | CY77: F = 0-59%
B78: =Reports!J57 -> Puerto Rico | C78: =COUNTIF($AG$23:$AG$48,Reports!J57) -> 0 | D78: =COUNTIF($AF$23:$AF$48,Reports!J57) -> 0 | F78: 0 | H78: 0 | J78: 0 | L78: 0 | N78: 1 | P78: 0 | AH78: IS TOEFL | AM78: =IF(AM35=0,"",AM35) -> W1 | AN78: W8 | BE78: 0 | BF78: 0 | BG78: 0 | BI78: A | BK78: A | BL78: A | BM78: B+ | BN78: F | BP78: 3.082 | BQ78: B+ | BR78: Del Valle | BS78: Francisco
B79: =Reports!J58 -> Rusia | C79: =COUNTIF($AG$23:$AG$48,Reports!J58) -> 0 | D79: =COUNTIF($AF$23:$AF$48,Reports!J58) -> 0 | F79: 0 | H79: 0 | J79: 0 | L79: 0 | N79: 1 | P79: 0 | AH79: IS Novels | AI79: =IF(AI36=0,"",AI36) -> Lemus | AJ79: Kenny | AL79: Gate | AM79: W7 | AN79: S6 | BE79: 1 | BF79: 0 | BG79: 1 | BN79: D+ | BP79: 1.4 | BQ79: D+ | BR79: Lemus | BS79: Kenny
B80: =Reports!J59 -> Spain | C80: =COUNTIF($AG$23:$AG$48,Reports!J59) -> 0 | D80: =COUNTIF($AF$23:$AF$48,Reports!J59) -> 0 | F80: 0 | H80: 0 | J80: 0 | L80: 0 | N80: 1 | P80: 0 | AH80: GR CP | AI80: Olano | AJ80: Mariela | AL80: Gate | AM80: W3 | AN80: S2 | BE80: 16 | BF80: 0 | BG80: 16 | BK80: F | BL80: F | BM80: F | BN80: F | BP80: 0.01 | BQ80: F | BR80: Olano | BS80: Mariela
B81: =Reports!J60 -> Tahiti | C81: =COUNTIF($AG$23:$AG$48,Reports!J60) -> 0 | D81: =COUNTIF($AF$23:$AF$48,Reports!J60) -> 0 | F81: 0 | H81: 0 | J81: 0 | L81: 0 | N81: 1 | P81: 0 | AH81: GR CP | AI81: Palomares | AJ81: Pamela | AK81: 623-6126 | AL81: Gate | AM81: W4 | AN81: S3 | BE81: 2 | BF81: 0 | BG81: 2 | BK81: A | BL81: B- | BM81: B+ | BN81: F | BP81: 2.5275 | BQ81: B– | BR81: Palomares | BS81: Pamela
B82: =Reports!J61 -> Taiwan | C82: =COUNTIF($AG$23:$AG$48,Reports!J61) -> 0 | D82: =COUNTIF($AF$23:$AF$48,Reports!J61) -> 0 | F82: 0 | H82: 0 | J82: 0 | L82: 0 | N82: 1 | P82: 0 | AH82: IS CP | AI82: Wilhelm | AJ82: Daniela | AK82: 687-5260 | AL82: Gate | AM82: W6 | AN82: S5 | BE82: 6 | BF82: 0 | BG82: 6 | BL82: A | BM82: F | BN82: F | BP82: 1.34 | BQ82: D+ | BR82: Wilhelm | BS82: Daniela
B83: =Reports!J63 -> Venezuela | C83: =COUNTIF($AG$23:$AG$48,Reports!J63) -> 0 | D83: =COUNTIF($AF$23:$AF$48,Reports!J63) -> 0 | F83: 0 | H83: 0 | J83: 0 | L83: 0 | N83: 1 | P83: 0 | AH83: IS CP | AI83: Del Valle | AJ83: Francisco | AL83: Gate | AM83: W1 | AN83: W8 | BE83: 3 | BF83: 2 | BG83: 3.666666667 | BI83: A | BK83: A | BL83: B- | BM83: C- | BN83: F | BP83: 2.482 | BQ83: B– | BR83: Del Valle | BS83: Francisco
B84: =Reports!J62 -> Uruguay | C84: =COUNTIF($AG$23:$AG$48,Reports!J62) -> 0 | D84: =COUNTIF($AF$23:$AF$48,Reports!J62) -> 0 | F84: 0 | H84: 0 | J84: 0 | L84: 0 | N84: 1 | P84: 0 | AH84: IS CP | AI84: Olano | AJ84: Mariela | AL84: Gate | AM84: W3 | AN84: S2 | BE84: 30 | BF84: 0 | BG84: 30 | BK84: F | BL84: F | BM84: F | BN84: F | BP84: 0.01 | BQ84: F | BR84: Olano | BS84: Mariela
F85: 0 | H85: 0 | J85: 0 | L85: 0 | N85: 1 | P85: 0 | AH85: IS CP | AI85: Cedillo | AJ85: Angelica | AL85: Gate | AM85: W1 | AN85: W8 | BE85: 13 | BF85: 16 | BG85: 18.33333333 | BH85: B- | BI85: B- | BJ85: C- | BK85: C+ | BL85: F | BM85: B+ | BN85: F | BP85: 1.845714286 | BQ85: C | BR85: Cedillo | BS85: Angelica
F86: 0 | H86: 0 | J86: 0 | L86: 0 | N86: 1 | P86: 0 | AH86: IS CP | AI86: Fuentes | AJ86: Benjamin | AK86: 687-9965 | AL86: Gate | AM86: W2 | AN86: S1 | BE86: 24 | BF86: 3 | BG86: 25 | BH86: =IF(BH43=0,"",BH43) ->  | BI86: D | BJ86: C | BK86: C+ | BL86: D | BM86: C- | BN86: D- | BP86: 1.466666667 | BQ86: C– | BR86: Fuentes | BS86: Benjamin
F87: 0 | H87: 0 | J87: 0 | L87: 0 | N87: 1 | P87: 0 | AH87: Pronunciation | AI87: Kim | AJ87: Hong Young (Terry) | AL87: Gate | AM87: W1 | AN87: W8 | BE87: 16 | BF87: 11 | BG87: 19.66666667 | BH87: F | BI87: C+ | BJ87: B | BK87: B- | BL87: B | BM87: B | BN87: F | BP87: 2.017142857 | BQ87: C+ | BR87: Kim | BS87: Hong Young (Terry)
E88: =IF($AA46="","",IF($AL46=E$65,COUNTIF($AA46,$AA$14),"")) ->  | F88: 0 | G88: =IF($AA46="","",IF($AL46=G$65,COUNTIF($AA46,$AA$15),"")) ->  | H88: 0 | I88: =IF($AA46="","",IF($AL46=I$65,COUNTIF($AA46,$AA$16),"")) ->  | J88: 0 | K88: =IF($AA46="","",IF($AL46=K$65,COUNTIF($AA46,$AA$17),"")) ->  | L88: 0 | M88: =IF($AA46="","",IF($AL46=M$65,COUNTIF($AA46,$AA$18),"")) ->  | N88: 1 | O88: =IF($AA46="","",IF($AL46=O$65,COUNTIF($AA46,$AA$19),"")) ->  | P88: 0 | Q88: =IF($AB46="","",IF($AL46=Q$65,COUNTIF($AB46,$AB$14),"")) ->  | S88: =IF($AB46="","",IF($AL46=S$65,COUNTIF($AB46,$AB$15),"")) ->  | U88: =IF($AB46="","",IF($AL46=U$65,COUNTIF($AB46,$AB$16),"")) ->  | W88: =IF($AB46="","",IF($AL46=W$65,COUNTIF($AB46,$AB$17),"")) ->  | Y88: =IF($AB46="","",IF($AL46=Y$65,COUNTIF($AB46,$AB$18),"")) ->  | AH88: Idioms | AI88: =IF(AI46=0,"",AI46) -> Shin | AJ88: Junghwa | AK88: 378-4983 | AL88: Gate | AM88: W2 | AN88: =IF(AO46=0,"",AO46) -> S1 | AO88: =IF($AM88=$AE$9,1,IF($D46>0,IF($AL$60="T,TH",1,IF($AL88="All",1,"")),"")) ->  | AQ88: =IF($D46>0,IF($AM88=$AE$9,1,IF($AL$60="M,W",1,IF($AL$56="Grammar","",1))),"") ->  | AS88: =IF($D46>0,IF($AM88=$AE$9,1,IF($AL$60="T,TH",1,IF($AL$56="Grammar","",1))),"") ->  | BE88: =IF($B46>0,(AR46+AT46+AV46+AX46+AZ46+BB46+BD46+BF46),"") -> 2 | BF88: 0 | BG88: =IF(B46>0,(BF88/3)+BE88,"") -> 2 | BH88: =IF(BH46=0,"",BH46) ->  | BI88: A | BJ88: A | BK88: A | BL88: B+ | BM88: A | BN88: D+ | BP88: 3.466666667 | BQ88: A– | BR88: Lee | BS88: Youn Chan
F89: 0 | H89: 0 | J89: 0 | L89: 0 | N89: 1 | P89: 0 | AI89: Torres | AJ89: David | AL89: Gate | AM89: W3 | AN89: =IF(AO47=0,"",AO47) -> S2 | AO89: =IF($AM89=$AE$9,1,IF($D47>0,IF($AL$60="T,TH",1,IF($AL89="All",1,"")),"")) ->  | AQ89: =IF($D47>0,IF($AM89=$AE$9,1,IF($AL$60="M,W",1,IF($AL$56="Grammar","",1))),"") ->  | AS89: =IF($D47>0,IF($AM89=$AE$9,1,IF($AL$60="T,TH",1,IF($AL$56="Grammar","",1))),"") ->  | BE89: 12 | BF89: 3 | BG89: =IF(B47>0,(BF89/3)+BE89,"") -> 13 | BJ89: F | BK89: F | BL89: F | BM89: A | BN89: D- | BP89: 0.946 | BQ89: D | BR89: Shin | BS89: Junghwa
AN90: =IF(AO48=0,"",AO48) ->  | AO90: =IF($AM90=$AE$9,1,IF($D48>0,IF($AL$60="T,TH",1,IF($AL90="All",1,"")),"")) ->  | AQ90: =IF($D48>0,IF($AM90=$AE$9,1,IF($AL$60="M,W",1,IF($AL$56="Grammar","",1))),"") ->  | AS90: =IF($D48>0,IF($AM90=$AE$9,1,IF($AL$60="T,TH",1,IF($AL$56="Grammar","",1))),"") ->  | BG90: =IF(B48>0,(BF90/3)+BE90,"") ->  | BR90: Torres | BS90: David
AI92: B GPA | BC92: A | BD92: A– | BE92: B+ | BF92: B | BG92: B– | BH92: C+ | BI92: C | BJ92: C– | BK92: D+ | BL92: D | BM92: D– | BN92: F
BC93: 4 | BD93: 3.7 | BE93: 3.4 | BF93: 3 | BG93: 2.7 | BH93: 2.4 | BI93: 2 | BJ93: 1.7 | BK93: 1.4 | BL93: 1 | BM93: 0.7 | BN93: 0.01
AI94: S1 | AL94: S2 | AM94: S3 | AN94: S4 | AO94: S5 | AP94: S6 | AQ94: S7 | AR94: S8 | AW94: A | AX94: 4 | AZ94: 4 | BA94: A | BC94: =IF($BP66<=BC$93,IF($BP66>BD$93,BC$92,""),"") ->  | BK94: D+ | BN94: =IF($BP66<=BN$93,IF($BP66>DY$64,BN$92,""),"") -> 
AB95: =IF(AI23="","",AI23) -> Fofana | AI95: =IF(BH23=0,"",VLOOKUP(BH23,$AW$94:$AX$105,2)) ->  | AL95: =IF(BI23=0,"",VLOOKUP(BI23,$AW$94:$AX$105,2)) -> 0.01 | AM95: =IF(BJ23=0,"",VLOOKUP(BJ23,$AW$94:$AX$105,2)) -> 0.01 | AN95: =IF(BK23=0,"",VLOOKUP(BK23,$AW$94:$AX$105,2)) -> 2.7 | AO95: =IF(BL23=0,"",VLOOKUP(BL23,$AW$94:$AX$105,2)) -> 3.4 | AP95: =IF(BM23=0,"",VLOOKUP(BM23,$AW$94:$AX$105,2)) -> 0.7 | AQ95: =IF(BN23=0,"",VLOOKUP(BN23,$AW$94:$AX$105,2)) -> 0.01 | AR95: =IF(BO23=0,"",VLOOKUP(BO23,$AW$94:$AX$105,2)) ->  | AW95: A- | AX95: 3.7 | AZ95: 3.7 | BA95: A- | BC95: =IF($BP67<=BC$93,IF($BP67>BD$93,BC$92,""),"") ->  | BN95: F
AB96: Pokhylko | AQ96: 0.01 | AW96: B | AX96: 3 | AZ96: 3.4 | BA96: B+ | BC96: =IF($BP68<=BC$93,IF($BP68>BD$93,BC$92,""),"") ->  | BN96: F
AB97: Fofana | AN97: 0.01 | AQ97: 0.01 | AW97: B- | AX97: 2.7 | AZ97: 3 | BA97: B | BC97: =IF($BP69<=BC$93,IF($BP69>BD$93,BC$92,""),"") ->  | BE97: B+
AB98: Palma | AI98: 4 | AN98: 4 | AO98: 3 | AP98: 2.7 | AQ98: 2 | AW98: B+ | AX98: 3.4 | AZ98: 2.7 | BA98: B- | BC98: =IF($BP70<=BC$93,IF($BP70>BD$93,BC$92,""),"") ->  | BL98: D
AB99: Pokhylko | AN99: 0.01 | AQ99: 1.7 | AW99: C | AX99: 2 | AZ99: 2.4 | BA99: C+ | BC99: =IF($BP71<=BC$93,IF($BP71>BD$93,BC$92,""),"") ->  | BE99: B+
AB100: Cupido | AI100: 4 | AL100: 4 | AM100: 3.7 | AN100: 4 | AP100: 2.7 | AQ100: 0.7 | AW100: C- | AX100: 1.7 | AZ100: 2 | BA100: C | BC100: =IF($BP72<=BC$93,IF($BP72>BD$93,BC$92,""),"") ->  | BL100: D
AB101: Del Valle | AN101: 1.7 | AP101: 0.7 | AQ101: 0.01 | AW101: C+ | AX101: 2.4 | AZ101: 1.7 | BA101: C- | BC101: =IF($BP73<=BC$93,IF($BP73>BD$93,BC$92,""),"") ->  | BN101: F
AB102: Olano | AN102: 0.01 | AP102: 0.01 | AW102: D | AX102: 1 | AZ102: 1.3 | BA102: D+ | BC102: =IF($BP74<=BC$93,IF($BP74>BD$93,BC$92,""),"") ->  | BH102: C+
AB103: Palomares | AP103: 3.4 | AQ103: 0.7 | AW103: D- | AX103: 0.7 | AZ103: 1 | BA103: D | BC103: =IF($BP75<=BC$93,IF($BP75>BD$93,BC$92,""),"") ->  | BN103: F
AB104: Wilhelm | AP104: 0.01 | AQ104: 0.01 | AW104: D+ | AX104: 1.4 | AZ104: 0.7 | BA104: D- | BC104: =IF($BP76<=BC$93,IF($BP76>BD$93,BC$92,""),"") ->  | BG104: B–
AB105: Cupido | AM105: 3.7 | AN105: 2 | AO105: 4 | AP105: 2.7 | AQ105: 0.01 | AW105: F | AX105: 0.01 | AZ105: 0.01 | BA105: F | BC105: =IF($BP77<=BC$93,IF($BP77>BD$93,BC$92,""),"") ->  | BF105: B
AB106: Del Valle | AL106: 4 | AN106: 2 | AO106: 4 | AP106: 3.4 | AQ106: 0.7 | BC106: =IF($BP78<=BC$93,IF($BP78>BD$93,BC$92,""),"") ->  | BE106: B+
AB107: Del Valle | AL107: 4 | AN107: 4 | AO107: 4 | AP107: 3.4 | AQ107: 0.01 | BC107: =IF($BP79<=BC$93,IF($BP79>BD$93,BC$92,""),"") ->  | BK107: D+
AB108: Lemus | AQ108: 1.4 | BC108: =IF($BP80<=BC$93,IF($BP80>BD$93,BC$92,""),"") ->  | BN108: F
AB109: Olano | AN109: 0.01 | AO109: 0.01 | AP109: 0.01 | AQ109: 0.01 | BC109: =IF($BP81<=BC$93,IF($BP81>BD$93,BC$92,""),"") ->  | BG109: B–
AB110: Palomares | AN110: 4 | AO110: 2.7 | AP110: 3.4 | AQ110: 0.01 | BC110: =IF($BP82<=BC$93,IF($BP82>BD$93,BC$92,""),"") ->  | BK110: D+
AB111: Wilhelm | AO111: 4 | AP111: 0.01 | AQ111: 0.01 | BC111: =IF($BP83<=BC$93,IF($BP83>BD$93,BC$92,""),"") ->  | BG111: B–
AB112: Del Valle | AL112: 4 | AN112: 4 | AO112: 2.7 | AP112: 1.7 | AQ112: 0.01 | BC112: =IF($BP84<=BC$93,IF($BP84>BD$93,BC$92,""),"") ->  | BN112: F
AB113: Olano | AN113: 0.01 | AO113: 0.01 | AP113: 0.01 | AQ113: 0.01 | BC113: =IF($BP85<=BC$93,IF($BP85>BD$93,BC$92,""),"") ->  | BI113: C
AB114: Cedillo | AI114: 2.7 | AL114: 2.7 | AM114: 1.7 | AN114: 2.4 | AO114: 0.01 | AP114: 3.4 | AQ114: 0.01 | BC114: =IF($BP86<=BC$93,IF($BP86>BD$93,BC$92,""),"") ->  | BJ114: C–
AB115: Fuentes | AL115: 1 | AM115: 2 | AN115: 2.4 | AO115: 1 | AP115: 1.7 | AQ115: 0.7 | BC115: =IF($BP87<=BC$93,IF($BP87>BD$93,BC$92,""),"") ->  | BH115: C+
AB116: Kim | AI116: 0.01 | AL116: 2.4 | AM116: 3 | AN116: 2.7 | AO116: 3 | AP116: 3 | AQ116: 0.01 | BC116: =IF($BP88<=BC$93,IF($BP88>BD$93,BC$92,""),"") ->  | BD116: A–
AB117: =IF(AI46="","",AI46) -> Shin | AI117: =IF(BH46=0,"",VLOOKUP(BH46,$AW$94:$AX$105,2)) ->  | AL117: =IF(BI46=0,"",VLOOKUP(BI46,$AW$94:$AX$105,2)) -> 4 | AM117: 4 | AN117: 4 | AO117: 3.4 | AP117: 4 | AQ117: 1.4 | BC117: =IF($BP89<=BC$93,IF($BP89>BD$93,BC$92,""),"") ->  | BL117: D
AB118: Torres | AM118: 0.01 | AN118: 0.01 | AO118: 0.01 | AP118: 4 | AQ118: 0.7 | BC118: =IF($BP90<=BC$93,IF($BP90>BD$93,BC$92,""),"") -> 
BC119: =IF($BP91<=BC$93,IF($BP91>BD$93,BC$92,""),"") -> 
BC120: =IF($BP92<=BC$93,IF($BP92>BD$93,BC$92,""),"") -> 
BC121: =IF($BP93<=BC$93,IF($BP93>BD$93,BC$92,""),"") -> 
BC122: =IF($BP94<=BC$93,IF($BP94>BD$93,BC$92,""),"") -> 

Sheet Status issues (3)
A1: =IF(COUNTIF(BR23:BR48,">0"),AVERAGE(BR23:BR48),"") ->  | B1: =#REF! ->  | C1: =#REF! ->  | AC1: CIN# : | AE1: Date: | AF1: =B3 ->  | BO1: =AD1 -> 0
A2: =IF(COUNTIF(BS23:BS48,">0"),AVERAGE(BS23:BS48),"") -> 0.8901515152 | B2: =#REF! ->  | AC2: Teacher: | AD2: Status issues | BO2: =AD2 -> Status issues
B3: =#REF! ->  | AC3: Class: | AD3: Grammar | AF3: =AD5 -> 3 | BO3: =AD3 -> Grammar
AC4: Students: | AD4: =AU4-AV4 -> 25 | AU4: =COUNTA(AI23:AI48) -> 25 | AV4: =COUNTIF(AM23:AM48, AE9) -> 0
O5: =SUM('GrM1'!A14+'GrM2'!A14+'Status issues (3)'!A14+#REF!+GrM5A!A14+GrM5B!A14+GrMT!A14+[1]GrMCP!A14) ->  | AC5: Level: | AD5: 3 | BO5: =AD5 -> 3
B6: New | C6: End | D6: Cont. | AC6: Time: | AD6: 09:00:00 | BO6: =AD6 -> 0.375
B7: =SUMIF(B9:B10,">0",B9:B10) -> 0 | C7: =SUMIF(C9:C10,">0",C9:C10) -> 0 | AC7: Day: | AD7: M-Th | BO7: =AD7 -> M-Th
AC8: Room: | AD8: 1 | BO8: =AD8 -> 1
B9: =COUNTIF(AM23:AM48,$AD$9) -> 0 | C9: =COUNTIF(AN23:AN48,$AD$9) -> 0 | D9: =AD9 ->  | AC9: Block: | AD9: =(B1) ->  | AE9: =IF(AK7="SAT",C2,C1) ->  | BO9: =AD9 -> 
B10: =COUNTIF(AM23:AM48,$AE$9) -> 0 | C10: =COUNTIF(AN23:AN48,$AE$9) -> 0 | D10: =AE9 ->  | BQ10: =AL10 -> 0
AR11: Block Attendance
A12: Alliance | C12: Gateway | AR12: 1 | AT12: 2 | AV12: 3 | AX12: 4 | AZ12: 5 | BB12: 6 | BD12: 7 | BF12: 8
A13: Start | B13: End | C13: Start | D13: End | E13: Start | F13: End | AA13: Re-Enrolling | AB13: Hold
A14: =SUM(E$66:E$90) -> 0 | B14: =SUM(Q$66:Q$90) -> 0 | C14: =SUM(F$66:F$90) -> 0 | D14: =SUM(R$66:R$90) -> 0 | E14: New | F14: Finished | AA14: New | AB14: Finished
A15: =SUM($G66:$G90) -> 0 | B15: =SUM(S$66:S$90) -> 0 | C15: =SUM(H$66:H$90) -> 0 | D15: =SUM(T$66:T$90) -> 1 | E15: Add\Drop | F15: Transfer Out | AA15: Add\Drop | AB15: Transfer Out
A16: =SUM($I66:$I90) -> 0 | B16: =SUM(U$66:U$90) -> 0 | C16: =SUM(J$66:J$90) -> 0 | D16: =SUM(V$66:V$90) -> 0 | E16: Transfer In | F16: Vacation | AA16: Transfer In | AB16: Vacation
A17: =SUM($K66:$K90) -> 0 | B17: =SUM(W$66:W$90) -> 0 | C17: =SUM(L$66:L$90) -> 0 | D17: =SUM(X$66:X$90) -> 0 | E17: CoS | F17: Lost | AA17: CoS | AB17: Lost
A18: =SUM($M66:$M90) -> 0 | B18: =SUM(Y$66:Y$90) -> 0 | C18: =SUM(N$66:N$90) -> 22 | D18: =SUM(Z$66:Z$90) -> 0 | E18: Continuing | F18: Break | AA18: Continuing | AB18: Break
A19: =SUM($O66:$O90) -> 0 | C19: =SUM(P$66:P$90) -> 0 | E19: Found | AA19: Found
A20: Alliance | C20: Gateway | AR20: 1 | AT20: 2 | AV20: 3 | AX20: 4 | AZ20: 5 | BB20: 6 | BD20: 7 | BF20: 8
A21: =COUNTIF(AL23:AL48,"All") -> 0 | C21: =COUNTIF(AL23:AL48, "Gate") -> 23 | AR21: 1 | AT21: 2 | AV21: 3 | AX21: 4 | AZ21: 5 | BB21: 6 | BD21: 7 | BF21: 8
B22: SDate | C22: EDate | D22: Lev End | AA22: Start | AB22: End Reason | AC22: Notes | AD22: I-20 Expires | AE22: F1 Agreement | AF22: Country | AH22: Birthday | AI22: Last Name | AJ22: First Name | AK22: Phone # | AL22: PRG | AM22: LB | AN22: ED | AO22: LE | AP22: NOTES | AR22: A | AS22: T | AT22: A | AU22: T | AV22: A | AW22: T | AX22: A | AY22: T | AZ22: A | BA22: T | BB22: A | BC22: T | BD22: A | BE22: T | BF22: A | BG22: T | BH22: 1 | BI22: 2 | BJ22: 3 | BK22: 4 | BL22: 5 | BM22: 6 | BN22: 7 | BO22: 8 | BR22: All | BS22: Gate
B23: 2008-01-07 | C23: 2008-04-25 | D23: 2008-04-25 | AA23: Continuing | AC23: IS T | AI23: Cedillo | AJ23: Angelica | AL23: Gate | AM23: W1 | AN23: W8 | AO23: W8 | AV23: 1 | AW23: 0 | AX23: 0 | AY23: 0 | AZ23: 4 | BA23: 0 | BD23: 3 | BE23: 0 | BH23: B- | BI23: B- | BJ23: C+ | BK23: B- | BL23: D- | BM23: C- | BN23: F | BP23: 64 | BQ23: 0.875 | BS23: 0.875
B24: 2008-01-21 | C24: 2008-05-08 | D24: 2008-05-08 | AA24: Continuing | AC24: IS T | AD24: 2007-08-30 | AF24: Ecuador | AH24: 2008-11-24 | AI24: Fuentes | AJ24: Benjamin | AK24: 687-9965 | AL24: Gate | AM24: W2 | AN24: S1 | AO24: S1 | AT24: 3 | AU24: 0 | AV24: 3 | AW24: 0 | AX24: 0 | AY24: 1 | AZ24: 5 | BA24: 0 | BD24: 3 | BE24: 0 | BI24: D+ | BJ24: C | BK24: C | BL24: D | BM24: F | BN24: D- | BP24: 64 | BQ24: 0.7760416667 | BS24: 0.7760416667
B25: 2008-01-07 | C25: 2008-04-25 | D25: 2008-04-25 | AA25: Continuing | AC25: IS T | AG25: 00:00:00 | AI25: Kim | AJ25: Hong Young (Terry) | AL25: Gate | AM25: W1 | AN25: W8 | AO25: W8 | AV25: 1 | AW25: 0 | AX25: 1 | AY25: 1 | AZ25: 1 | BA25: 1 | BD25: 5 | BE25: 0 | BH25: B- | BI25: C- | BJ25: A- | BK25: C+ | BL25: B | BM25: C- | BN25: D- | BP25: 64 | BQ25: 0.8645833333 | BS25: 0.8645833333
B26: 2008-02-18 | C26: 2008-06-05 | D26: 2008-06-05 | AA26: Continuing | AC26: IS T | AI26: Laurent | AJ26: Patrice | AL26: Gate | AM26: W4 | AN26: S3 | AO26: S3 | AZ26: 3 | BA26: 0 | BD26: 1 | BE26: 1 | BM26: C- | BN26: C | BP26: 64 | BQ26: 0.9322916667 | BS26: 0.9322916667
AA27: Continuing | AC27: IS T | AI27: Lee | AJ27: Youn Chan | BD27: 1 | BE27: 0 | BM27: B | BN27: C-
B28: 2008-01-07 | C28: 2008-04-25 | D28: 2008-04-25 | AA28: Continuing | AB28: Transfer Out | AC28: IS T | AI28: Pena | AJ28: Lot | AL28: Gate | AM28: W1 | AN28: W8 | AO28: W8 | AV28: 0 | AW28: 0 | AX28: 3 | AY28: 0 | AZ28: 1 | BA28: 0 | BD28: 6 | BE28: 0 | BI28: B- | BJ28: B+ | BK28: D | BL28: C | BM28: C- | BP28: 64 | BQ28: 0.84375 | BS28: 0.84375
B29: 2008-01-07 | C29: 2008-04-25 | D29: 2008-04-25 | AA29: Continuing | AC29: Novels T | AI29: Cedillo | AJ29: Angelica | AL29: Gate | AM29: W1 | AN29: W8 | AO29: W8 | AX29: 0 | AY29: 0 | AZ29: 1 | BA29: 0 | BD29: 1 | BE29: 1 | BH29: B- | BI29: B- | BJ29: C+ | BK29: B- | BL29: D- | BM29: C- | BN29: F | BP29: 64 | BQ29: 0.9635416667 | BS29: 0.9635416667
B30: 2008-01-21 | C30: 2008-05-08 | D30: 2008-05-08 | AA30: Continuing | AC30: Novels T | AD30: 2007-08-30 | AF30: Ecuador | AH30: 2008-11-24 | AI30: Fuentes | AJ30: Benjamin | AK30: 687-9965 | AL30: Gate | AM30: W2 | AN30: S1 | AO30: S1 | AT30: 3 | AU30: 0 | AX30: 1 | AY30: 0 | AZ30: 1 | BA30: 0 | BD30: 0 | BE30: 0 | BJ30: C | BK30: C | BL30: D | BM30: F | BN30: D- | BP30: 64 | BQ30: 0.921875 | BS30: 0.921875
B31: 2008-01-07 | C31: 2008-04-25 | D31: 2008-04-25 | AA31: Continuing | AC31: Novels T | AG31: 00:00:00 | AI31: Kim | AJ31: Hong Young (Terry) | AL31: Gate | AM31: W1 | AN31: W8 | AO31: W8 | AX31: 1 | AY31: 0 | AZ31: 1 | BA31: 0 | BD31: 1 | BE31: 0 | BH31: B- | BI31: C- | BJ31: A- | BK31: C+ | BL31: B | BM31: C- | BN31: D- | BP31: 64 | BQ31: 0.953125 | BS31: 0.953125
B32: 2008-01-07 | C32: 2008-04-24 | D32: 2008-04-24 | AA32: Continuing | AC32: GR CP | AD32: 2008-04-25 | AE32: Yes | AF32: Spain | AH32: 2008-04-18 | AI32: Bermudez | AJ32: Monica | AK32: 687-6099 | AL32: Gate | AM32: W1 | AN32: W8 | AO32: W8 | AR32: 0 | AS32: 2 | AT32: 2 | AU32: 2 | AV32: 1 | AW32: 5 | AX32: 4 | AY32: 1 | AZ32: 2 | BA32: 2 | BB32: 1 | BC32: 4 | BD32: 2 | BE32: 1 | BH32: A- | BI32: A- | BK32: B- | BL32: C- | BM32: A | BN32: B | BP32: 64 | BQ32: 0.7239583333 | BS32: 0.7239583333
B33: 2008-01-07 | C33: 2008-04-25 | D33: 2008-04-25 | AA33: Continuing | AC33: GR CP | AD33: 2007-04-30 | AE33: Yes | AF33: Japan | AH33: 2008-11-05 | AI33: Matsushita | AJ33: Takahiro | AL33: Gate | AM33: W1 | AN33: W8 | AO33: W8 | AV33: 4 | AW33: 1 | AX33: 0 | AY33: 4 | AZ33: 3 | BA33: 1 | BB33: 5 | BC33: 3 | BD33: 6 | BE33: 0 | BH33: B | BI33: B | BK33: A | BL33: B+ | BM33: F | BN33: F | BP33: 64
B34: 2008-01-07 | C34: 2008-04-24 | D34: 2008-04-24 | AA34: Continuing | AC34: IS CP | AD34: 2008-04-25 | AE34: Yes | AF34: Spain | AH34: 2008-04-18 | AI34: Bermudez | AJ34: Monica | AK34: 687-6099 | AL34: Gate | AM34: W1 | AN34: W8 | AO34: W8 | AR34: 1 | AS34: 0 | AT34: 1 | AU34: 0 | AX34: 1 | AY34: 1 | AZ34: 2 | BA34: 0 | BB34: 0 | BC34: 0 | BD34: 2 | BE34: 0 | BH34: D | BI34: A | BJ34: D- | BK34: F | BL34: A | BM34: A | BN34: F | BP34: 64 | BQ34: 0.8854166667 | BS34: 0.8854166667
B35: 2008-01-21 | C35: 2008-05-08 | D35: 2008-05-08 | AA35: Continuing | AC35: IS CP | AD35: 2007-12-07 | AE35: Yes | AF35: Mexico | AH35: 2008-03-22 | AI35: Hernandez | AJ35: Armando | AK35: 400-8811 | AL35: Gate | AM35: W2 | AN35: S1 | AO35: S1 | AX35: 1 | AY35: 1 | AZ35: 0 | BA35: 0 | BB35: 0 | BC35: 0 | BD35: 1 | BE35: 3 | BJ35: A | BK35: F | BM35: A | BN35: D | BP35: 64 | BQ35: 0.9479166667 | BS35: 0.9479166667
B36: 2008-01-07 | C36: 2008-04-25 | D36: 2008-04-25 | AA36: Continuing | AC36: IS CP | AE36: Yes | AF36: Ecuador | AH36: 2008-04-03 | AI36: Jefferson | AJ36: Ramon | AK36: 775-378-4979 | AL36: Gate | AM36: W1 | AN36: W8 | AO36: W8 | AV36: 2 | AW36: 0 | AX36: 3 | AY36: 1 | AZ36: 6 | BA36: 0 | BB36: 0 | BC36: 1 | BD36: 2 | BE36: 3 | BH36: F | BI36: C | BK36: F | BM36: A- | BN36: F | BP36: 64 | BQ36: 0.7708333333 | BS36: 0.7708333333
B37: 2008-01-08 | C37: 2008-04-24 | D37: 2008-04-24 | AA37: Continuing | AC37: IS CP | AF37: Peru | AG37: Peru | AH37: 2008-07-14 | AI37: Ochoa | AJ37: Victor | AK37: 623-3585 | AL37: Gate | AM37: W1 | AN37: W8 | AO37: W8 | AZ37: 2 | BA37: 1 | BB37: 0 | BC37: 0 | BD37: 3 | BE37: 1 | BL37: C+ | BM37: A- | BN37: F | BP37: 64 | BQ37: 0.9114583333 | BS37: 0.9114583333
B38: 2008-02-04 | AA38: Continuing | AC38: Pronunciation | AE38: Yes | AF38: Haiti | AI38: Dupuy | AJ38: Rob | AK38: 636-4524 | AL38: Gate | AM38: W3 | AN38: S2 | AO38: S2 | AV38: 0 | AW38: 0 | AX38: 1 | AY38: 0 | AZ38: 3 | BA38: 0 | BD38: 2 | BE38: 0 | BI38: B- | BJ38: B- | BK38: D+ | BL38: D | BN38: C+ | BP38: 64 | BQ38: 0.90625 | BS38: 0.90625
B39: 2008-01-21 | C39: 2008-05-09 | D39: 2008-05-09 | AA39: Continuing | AC39: Pronunciation | AF39: Ecuador | AI39: Fuentes | AJ39: Benjamin | AK39: 687-9965 | AL39: Gate | AM39: W2 | AN39: S1 | AO39: S1 | AT39: 3 | AU39: 0 | AX39: 0 | AY39: 0 | AZ39: 2 | BA39: 0 | BD39: 2 | BE39: 1 | BK39: D | BL39: D+ | BM39: C+ | BN39: D | BP39: 64 | BQ39: 0.8854166667 | BS39: 0.8854166667
B40: 2008-02-18 | AA40: Continuing | AC40: Pronunciation | AE40: Yes | AF40: Mexico | AH40: 2008-01-02 | AI40: Palomares | AJ40: Pamela | AK40: 623-6126 | AL40: Gate | AM40: W4 | AN40: S3 | AO40: S3 | AX40: 1 | AY40: 0 | AZ40: 2 | BA40: 0 | BD40: 3 | BE40: 0 | BJ40: B- | BK40: B- | BL40: C- | BM40: A | BN40: D | BP40: 64 | BQ40: 0.90625 | BS40: 0.90625
B41: 2008-02-05 | C41: 2008-05-22 | D41: 2008-05-22 | AA41: Continuing | AC41: Idioms | AD41: 2008-05-23 | AE41: Yes | AF41: Mexico | AH41: 2008-06-11 | AI41: Cabrera | AJ41: Maria Luisa | AK41: 427-4956 | AL41: Gate | AM41: W3 | AN41: S2 | AO41: S2 | AV41: 0 | AW41: 0 | AX41: 1 | AY41: 0 | AZ41: 0 | BA41: 0 | BB41: 1 | BC41: 0 | BD41: 2 | BE41: 0 | BJ41: A | BK41: B | BL41: C | BM41: A | BN41: D | BP41: 64 | BQ41: 0.953125 | BS41: 0.953125
B42: 2008-02-18 | C42: 2008-06-05 | D42: 2008-06-05 | AA42: Continuing | AC42: Idioms | AD42: 2008-06-06 | AE42: Yes | AF42: Mexico | AH42: 2008-08-20 | AI42: Cedillo | AJ42: Karina | AK42: 687-4476 | AL42: Gate | AM42: W4 | AN42: S3 | AO42: S3 | AX42: 0 | AY42: 0 | AZ42: 0 | BA42: 0 | BB42: 1 | BC42: 0 | BD42: 2 | BE42: 0 | BK42: B | BL42: A | BM42: A- | BN42: F | BP42: 64 | BQ42: 0.984375 | BS42: 0.984375
B43: 2007-02-18 | C43: 2008-06-05 | D43: 2008-06-05 | AA43: Continuing | AC43: Idioms | AD43: 2008-04-18 | AE43: Yes | AF43: Haiti | AH43: 2008-01-30 | AI43: Doreme | AJ43: Smith | AK43: 687-0065 | AL43: Gate | AM43: W4 | AN43: S3 | AO43: S3 | AZ43: 0 | BA43: 0 | BB43: 4 | BC43: 0 | BD43: 4 | BE43: 0 | BP43: 64 | BQ43: 1 | BS43: 1
B44: 2008-02-19 | C44: 2008-06-05 | D44: 2008-06-05 | AA44: Continuing | AC44: Idioms | AE44: Yes | AF44: Peru | AH44: 2008-05-23 | AI44: Peralta | AJ44: Ana | AK44: 770-361-0179 | AL44: Gate | AM44: W4 | AN44: S3 | AO44: S3 | AX44: 1 | AY44: 0 | AZ44: 1 | BA44: 0 | BB44: 1 | BC44: 0 | BD44: 1 | BE44: 0 | BK44: B- | BL44: C | BM44: A- | BN44: D- | BP44: 64 | BQ44: 0.875 | BS44: 0.875
B45: 2008-01-07 | C45: 2008-04-24 | D45: 2008-04-24 | AA45: Continuing | AC45: ESP | AD45: 2008-04-25 | AE45: No | AF45: Mexico | AG45: Mexico | AH45: 2008-10-23 | AI45: Del Valle | AJ45: Francisco | AL45: Gate | AM45: W1 | AN45: W8 | AO45: W8 | AV45: 4 | AW45: 0 | AX45: 0 | AY45: 0 | AZ45: 2 | BA45: 0 | BB45: 1 | BC45: 0 | BD45: 3 | BE45: 0 | BL45: C- | BM45: C- | BN45: D | BP45: 64 | BQ45: 0.84375 | BS45: 0.84375
AC46: ESP | AI46: Lee | AJ46: Youn Chan | BB46: 0 | BC46: 0 | BD46: 1 | BE46: 0 | BN46: D
B47: 2008-01-07 | C47: 2008-04-25 | D47: 2008-04-25 | AA47: Continuing | AC47: ESP | AD47: 2007-04-30 | AE47: Yes | AF47: Japan | AH47: 2008-11-05 | AI47: Matsushita | AJ47: Takahiro | AL47: Gate | AM47: W1 | AN47: W8 | AO47: W8 | AV47: 1 | AW47: 0 | AZ47: 1 | BA47: 0 | BB47: 4 | BC47: 0 | BD47: 3 | BE47: 0 | BL47: C | BM47: C | BN47: B | BP47: 64 | BQ47: 0.859375 | BS47: 0.859375
BP48: =IF(AL48="All",32,IF(AL48="Gate",64,"")) ->  | BQ48: =IF(BP48="","",(BP48-BG90)/BP48) ->  | BR48: =IF(AL48="All",BQ48,"") ->  | BS48: =IF(AL48="Gate",BQ48,"") -> 
B53: Country count
B54: =Reports!#REF! ->  | C54: =COUNTIF($AG$23:$AG$48,Reports!#REF!) -> 0 | D54: =COUNTIF($AF$23:$AF$48,Reports!#REF!) -> 0 | AI54: CIN# : | AL54: =IF(AD1=0,"",AD1) -> 
B55: =Reports!I64 -> 0 | C55: =COUNTIF($AG$23:$AG$48,Reports!I64) -> 2 | D55: =COUNTIF($AF$23:$AF$48,Reports!I64) -> 0 | AI55: Teacher: | AL55: =IF(AD2=0,"",AD2) -> Status issues
B56: =Reports!J35 -> Africa | C56: =COUNTIF($AG$23:$AG$48,Reports!J35) -> 0 | D56: =COUNTIF($AF$23:$AF$48,Reports!J35) -> 0 | AI56: Class: | AL56: =IF(AD3=0,"",AD3) -> Grammar | AT56: =AL58 -> 3
B57: =Reports!J36 -> Argentina | C57: =COUNTIF($AG$23:$AG$48,Reports!J36) -> 0 | D57: =COUNTIF($AF$23:$AF$48,Reports!J36) -> 0 | AI57: Students: | AL57: =COUNTA(AI23:AI48) -> 25
B58: =Reports!J39 -> Cape Verde | C58: =COUNTIF($AG$23:$AG$48,Reports!J37) -> 0 | D58: =COUNTIF($AF$23:$AF$48,Reports!J37) -> 0 | AI58: Level: | AL58: =IF(AD5=0,"",AD5) -> 3
B59: =Reports!J37 -> Bolivia | C59: =COUNTIF($AG$23:$AG$48,Reports!J38) -> 0 | D59: =COUNTIF($AF$23:$AF$48,Reports!J38) -> 0 | AI59: Time: | AL59: =IF(AD6=0,"",AD6) -> 09:00:00 | BF59: Legend
B60: =Reports!J38 -> Brazil | C60: =COUNTIF($AG$23:$AG$48,Reports!J39) -> 0 | D60: =COUNTIF($AF$23:$AF$48,Reports!J39) -> 0 | AI60: Day: | AL60: =IF(AD7=0,"",AD7) -> M-Th | BF60: Present | BI60: Absent | BL60: Tardy | BY60: Time: | BZ60: =AD6 -> 09:00:00
B61: =Reports!J40 -> Chile | C61: =COUNTIF($AG$23:$AG$48,Reports!J40) -> 0 | D61: =COUNTIF($AF$23:$AF$48,Reports!J40) -> 0 | AI61: Room: | AL61: =IF(AD8=0,"",AD8) -> 1 | BR61: Block: | BS61: =AD9 ->  | BT61: Date: | BV61: =AF1 ->  | CF61: Grade Report
B62: =Reports!J41 -> China | C62: =COUNTIF($AG$23:$AG$48,Reports!J41) -> 0 | D62: =COUNTIF($AF$23:$AF$48,Reports!J41) -> 0 | AI62: Block: | AL62: =IF(AD9=0,"",AD9) ->  | AN62: Date: | AR62: =IF(AF1=0,"",AF1) ->  | BR62: Class: | BS62: =AD3 -> Grammar | BT62: Level: | BV62: =AF3 -> 3 | BW62: Teacher: | BY62: =AD2 -> Status issues | CB62: Points | CC62: Homework Assignments/pts possible | CM62: Points | CT62: Points | CW62: Points | CX62: GRADE
B63: =Reports!J42 -> Columbia | C63: =COUNTIF($AG$23:$AG$48,Reports!J42) -> 0 | D63: =COUNTIF($AF$23:$AF$48,Reports!J42) -> 0 | BT63: Attendance | CN63: QUIZ | CO63: QUIZ | CP63: QUIZ | CQ63: QUIZ | CR63: QUIZ | CS63: QUIZ | CU63: Vocab | CV63: Test
B64: =Reports!J43 -> Costa Rica | C64: =COUNTIF($AG$23:$AG$48,Reports!J43) -> 0 | D64: =COUNTIF($AF$23:$AF$48,Reports!J43) -> 0 | E64: =AA14 -> New | G64: =AA15 -> Add\Drop | I64: =AA16 -> Transfer In | K64: =AA17 -> CoS | M64: =AA18 -> Continuing | O64: =AA19 -> Found | Q64: =AB14 -> Finished | S64: =AB15 -> Transfer Out | U64: =AB16 -> Vacation | W64: =AB17 -> Lost | Y64: =AB18 -> Break | AO64: =AR62 ->  | AQ64: =AO64+1 ->  | AS64: =AQ64+1 ->  | AU64: =AS64+1 ->  | AW64: =AR62+7 ->  | AY64: =AW64+1 ->  | BA64: =AY64+1 ->  | BC64: =BA64+1 ->  | BE64: Attendance | BH64: Block Grades | BT64: M | BU64: T | BV64: W | BW64: TH | BX64: M | BY64: T | BZ64: W | CA64: TH
B65: =Reports!J44 -> Dominican Republic | C65: =COUNTIF($AG$23:$AG$48,Reports!J44) -> 0 | D65: =COUNTIF($AF$23:$AF$48,Reports!J44) -> 0 | E65: All | F65: Gate | G65: All | H65: Gate | I65: All | J65: Gate | K65: All | L65: Gate | M65: All | N65: Gate | O65: All | P65: Gate | Q65: All | R65: Gate | S65: All | T65: Gate | U65: All | V65: Gate | W65: All | X65: Gate | Y65: All | Z65: Gate | AH65: Notes | AI65: =AI22 -> Last Name | AJ65: =AJ22 -> First Name | AK65: =AK22 -> Phone # | AL65: PRG | AM65: LB | AN65: LE | AO65: =IF($AL$60="SAT",1,"M") -> M | AQ65: =IF($AL$60="SAT",2,"TU") -> TU | AS65: =IF($AL$60="SAT",3,"W") -> W | AU65: =IF($AL$60="SAT",4,"TH") -> TH | AW65: =IF($AL$60="SAT",5,"M") -> M | AY65: =IF($AL$60="SAT",6,"TU") -> TU | BA65: =IF($AL$60="SAT",7,"W") -> W | BC65: =IF($AL$60="SAT",8,"TH") -> TH | BE65: A | BF65: T | BG65: Att. | BH65: 1 | BI65: 2 | BJ65: 3 | BK65: 4 | BL65: 5 | BM65: 6 | BN65: 7 | BO65: 8 | BP65: GPA | BQ65: GRD | BR65: Student | BS65: Points Possible? | CB65: =SUM(BT65:CA65) -> 0 | CM65: =SUM(CC65:CL65) -> 0 | CT65: =SUM(CN65:CS65) -> 0 | CW65: =SUM(CU65:CV65) -> 0 | CY65: Grading Scale
B66: =Reports!J45 -> Ecuador | C66: =COUNTIF($AG$23:$AG$48,Reports!J45) -> 0 | D66: =COUNTIF($AF$23:$AF$48,Reports!J45) -> 4 | E66: =IF($AA23="","",IF($AL23=E$65,COUNTIF($AA23,$AA$14),"")) ->  | F66: 0 | G66: =IF($AA23="","",IF($AL23=G$65,COUNTIF($AA23,$AA$15),"")) ->  | H66: 0 | I66: =IF($AA23="","",IF($AL23=I$65,COUNTIF($AA23,$AA$16),"")) ->  | J66: 0 | K66: =IF($AA23="","",IF($AL23=K$65,COUNTIF($AA23,$AA$17),"")) ->  | L66: 0 | M66: =IF($AA23="","",IF($AL23=M$65,COUNTIF($AA23,$AA$18),"")) ->  | N66: 1 | O66: =IF($AA23="","",IF($AL23=O$65,COUNTIF($AA23,$AA$19),"")) ->  | P66: 0 | Q66: =IF($AB23="","",IF($AL23=Q$65,COUNTIF($AB23,$AB$14),"")) ->  | S66: =IF($AB23="","",IF($AL23=S$65,COUNTIF($AB23,$AB$15),"")) ->  | U66: =IF($AB23="","",IF($AL23=U$65,COUNTIF($AB23,$AB$16),"")) ->  | W66: =IF($AB23="","",IF($AL23=W$65,COUNTIF($AB23,$AB$17),"")) ->  | Y66: =IF($AB23="","",IF($AL23=Y$65,COUNTIF($AB23,$AB$18),"")) ->  | AH66: ESP | AI66: =IF(AI23=0,"",AI23) -> Cedillo | AJ66: Angelica | AL66: Gate | AM66: W1 | AN66: =IF(AO23=0,"",AO23) -> W8 | AO66: =IF($AM66=$AE$9,1,IF($D23>0,IF($AL$60="T,TH",1,IF($AL66="All",1,"")),"")) ->  | AQ66: =IF($D23>0,IF($AM66=$AE$9,1,IF($AL$60="M,W",1,IF($AL$56="Grammar","",1))),"") ->  | AS66: =IF($D23>0,IF($AM66=$AE$9,1,IF($AL$60="T,TH",1,IF($AL$56="Grammar","",1))),"") ->  | AU66: =AQ66 ->  | AW66: =AO66 ->  | AY66: =AQ66 ->  | BA66: =AS66 ->  | BC66: =AU66 ->  | BE66: =IF($B23>0,(AR23+AT23+AV23+AX23+AZ23+BB23+BD23+BF23),"") -> 8 | BF66: =IF($B23>0,(AS23+AU23+AW23+AY23+BA23+BC23+BE23+BG23),"") -> 0 | BG66: =IF(B23>0,(BF66/3)+BE66,"") -> 8 | BH66: =IF(BH23=0,"",BH23) -> B- | BI66: B- | BJ66: C+ | BK66: B- | BL66: D- | BM66: C- | BN66: F | BP66: =IF(SUM(AI95:AR95)=0,"",AVERAGE(AI95:AR95)) -> 1.844285714 | BQ66: =CONCATENATE(" ",BC94,BD94,BE94,BF94,BG94,BH94,BI94,BJ94,BK94,BL94,BM94,BN94) -> C | BR66: =IF(AI23="","",AI23) -> Cedillo | BS66: =IF(AJ23="","",AJ23) -> Angelica | CB66: =IF(BT66="","",SUM(BT66:CA66)) ->  | CM66: =IF(CC66="","",SUM(CC66:CL66)) ->  | CT66: =IF(CN66="","",SUM(CN66:CS66)) ->  | CW66: =IF(CU66="","",SUM(CU66:CV66)) ->  | CX66: =IF(BR66="","",IF(BT66="","",(((CB66/CB$65)*0.25)+((CM66/CM$65)*0.25)+((CT66/CT$65)*0.25)+((CW66/CW$65)*0.25))*100)) ->  | CY66: A = 93%+
B67: =Reports!J46 -> El Salvador | C67: =COUNTIF($AG$23:$AG$48,Reports!J46) -> 0 | D67: =COUNTIF($AF$23:$AF$48,Reports!J46) -> 0 | F67: 0 | H67: 0 | J67: 0 | L67: 0 | N67: 1 | P67: 0 | AH67: ESP | AI67: Fuentes | AJ67: Benjamin | AK67: 687-9965 | AL67: Gate | AM67: W2 | AN67: S1 | BE67: 14 | BF67: 1 | BG67: 14.33333333 | BI67: D+ | BJ67: C | BK67: C | BL67: D | BM67: F | BN67: D- | BP67: 1.185 | BQ67: D+ | BR67: Fuentes | BS67: Benjamin | CY67: A- = 90-92%
B68: =Reports!J47 -> France | C68: =COUNTIF($AG$23:$AG$48,Reports!J47) -> 0 | D68: =COUNTIF($AF$23:$AF$48,Reports!J47) -> 0 | F68: 0 | H68: 0 | J68: 0 | L68: 0 | N68: 1 | P68: 0 | AH68: ESP | AI68: Kim | AJ68: Hong Young (Terry) | AL68: Gate | AM68: W1 | AN68: W8 | BE68: 8 | BF68: 2 | BG68: 8.666666667 | BH68: B- | BI68: C- | BJ68: A- | BK68: C+ | BL68: B | BM68: C- | BN68: D- | BP68: 2.271428571 | BQ68: C+ | BR68: Kim | BS68: Hong Young (Terry) | CY68: B+ = 87-89%
B69: =Reports!J48 -> Guatemala | C69: =COUNTIF($AG$23:$AG$48,Reports!J48) -> 0 | D69: =COUNTIF($AF$23:$AF$48,Reports!J48) -> 0 | F69: 0 | H69: 0 | J69: 0 | L69: 0 | N69: 1 | P69: 0 | AH69: ESP | AI69: Laurent | AJ69: Patrice | AL69: Gate | AM69: W4 | AN69: S3 | BE69: 4 | BF69: 1 | BG69: 4.333333333 | BM69: C- | BN69: C | BP69: 1.85 | BQ69: C | BR69: Laurent | BS69: Patrice | CY69: B = 83-86%
B70: =Reports!J49 -> Honoduras | C70: =COUNTIF($AG$23:$AG$48,Reports!J49) -> 0 | D70: =COUNTIF($AF$23:$AF$48,Reports!J49) -> 0 | AH70: ESP | AI70: Lee | AJ70: Youn Chan | BM70: B | BN70: C- | BP70: 2.35 | BQ70: C+ | BR70: Lee | BS70: Youn Chan | CY70: B- = 80-82%
B71: =Reports!J50 -> Italy | C71: =COUNTIF($AG$23:$AG$48,Reports!J50) -> 0 | D71: =COUNTIF($AF$23:$AF$48,Reports!J50) -> 0 | F71: 0 | H71: 0 | J71: 0 | L71: 0 | N71: 1 | P71: 0 | R71: 0 | T71: 1 | V71: 0 | X71: 0 | Z71: 0 | AH71: American His | AI71: Pena | AJ71: Lot | AL71: Gate | AM71: W1 | AN71: W8 | BE71: 10 | BF71: 0 | BG71: 10 | BI71: B- | BJ71: B+ | BK71: D | BL71: C | BM71: C- | BP71: 2.16 | BQ71: C+ | BR71: Pena | BS71: Lot | CY71: C+ = 77-79%
B72: =Reports!J51 -> Japan | C72: =COUNTIF($AG$23:$AG$48,Reports!J51) -> 0 | D72: =COUNTIF($AF$23:$AF$48,Reports!J51) -> 2 | F72: 0 | H72: 0 | J72: 0 | L72: 0 | N72: 1 | P72: 0 | AH72: American His | AI72: Cedillo | AJ72: Angelica | AL72: Gate | AM72: W1 | AN72: W8 | BE72: 2 | BF72: 1 | BG72: 2.333333333 | BH72: B- | BI72: B- | BJ72: C+ | BK72: B- | BL72: D- | BM72: C- | BN72: F | BP72: 1.844285714 | BQ72: C | BR72: Cedillo | BS72: Angelica | CY72: C = 73-76%
B73: =Reports!J52 -> Korea | C73: =COUNTIF($AG$23:$AG$48,Reports!J52) -> 0 | D73: =COUNTIF($AF$23:$AF$48,Reports!J52) -> 0 | F73: 0 | H73: 0 | J73: 0 | L73: 0 | N73: 1 | P73: 0 | AI73: Fuentes | AJ73: Benjamin | AK73: 687-9965 | AL73: Gate | AM73: W2 | AN73: S1 | BE73: 5 | BF73: 0 | BG73: 5 | BJ73: C | BK73: C | BL73: D | BM73: F | BN73: D- | BP73: 1.142 | BQ73: D+ | BR73: Fuentes | BS73: Benjamin | CY73: C- = 70-72%
B74: =Reports!J53 -> Madagascar | C74: =COUNTIF($AG$23:$AG$48,Reports!J53) -> 0 | D74: =COUNTIF($AF$23:$AF$48,Reports!J53) -> 0 | F74: 0 | H74: 0 | J74: 0 | L74: 0 | N74: 1 | P74: 0 | AI74: Kim | AJ74: Hong Young (Terry) | AL74: Gate | AM74: W1 | AN74: W8 | BE74: 3 | BF74: 0 | BG74: 3 | BH74: B- | BI74: C- | BJ74: A- | BK74: C+ | BL74: B | BM74: C- | BN74: D- | BP74: 2.271428571 | BQ74: C+ | BR74: Kim | BS74: Hong Young (Terry) | CY74: D+ = 67-69%
B75: =Reports!J54 -> Mexico | C75: =COUNTIF($AG$23:$AG$48,Reports!J54) -> 1 | D75: =COUNTIF($AF$23:$AF$48,Reports!J54) -> 5 | F75: 0 | H75: 0 | J75: 0 | L75: 0 | N75: 1 | P75: 0 | AI75: Bermudez | AJ75: Monica | AK75: 687-6099 | AL75: Gate | AM75: W1 | AN75: W8 | BE75: 12 | BF75: 17 | BG75: 17.66666667 | BH75: A- | BI75: A- | BK75: B- | BL75: C- | BM75: A | BN75: B | BP75: 3.133333333 | BQ75: B+ | BR75: Bermudez | BS75: Monica | CY75: D = 63-66%
B76: =Reports!J55 -> Mongolia | C76: =COUNTIF($AG$23:$AG$48,Reports!J55) -> 0 | D76: =COUNTIF($AF$23:$AF$48,Reports!J55) -> 0 | F76: 0 | H76: 0 | J76: 0 | L76: 0 | N76: 1 | P76: 0 | AI76: Matsushita | AJ76: Takahiro | AL76: Gate | AM76: W1 | AN76: W8 | BE76: 18 | BF76: 9 | BG76: 21 | BH76: =IF(BH33=0,"",BH33) -> B | BI76: B | BK76: A | BL76: B+ | BM76: F | BN76: F | BP76: 2.236666667 | BQ76: C+ | BR76: Matsushita | BS76: Takahiro | CY76: D- = 60-62%
B77: =Reports!J56 -> Peru | C77: =COUNTIF($AG$23:$AG$48,Reports!J56) -> 1 | D77: =COUNTIF($AF$23:$AF$48,Reports!J56) -> 2 | F77: 0 | H77: 0 | J77: 0 | L77: 0 | N77: 1 | P77: 0 | AI77: Bermudez | AJ77: Monica | AK77: 687-6099 | AL77: Gate | AM77: W1 | AN77: W8 | BE77: 7 | BF77: 1 | BG77: 7.333333333 | BH77: D | BI77: A | BJ77: D- | BK77: F | BL77: A | BM77: A | BN77: F | BP77: 1.96 | BQ77: C | BR77: Bermudez | BS77: Monica | CY77: F = 0-59%
B78: =Reports!J57 -> Puerto Rico | C78: =COUNTIF($AG$23:$AG$48,Reports!J57) -> 0 | D78: =COUNTIF($AF$23:$AF$48,Reports!J57) -> 0 | F78: 0 | H78: 0 | J78: 0 | L78: 0 | N78: 1 | P78: 0 | AM78: =IF(AM35=0,"",AM35) -> W2 | AN78: S1 | BE78: 2 | BF78: 4 | BG78: 3.333333333 | BJ78: A | BK78: F | BM78: A | BN78: D | BP78: 2.2525 | BQ78: C+ | BR78: Hernandez | BS78: Armando
B79: =Reports!J58 -> Rusia | C79: =COUNTIF($AG$23:$AG$48,Reports!J58) -> 0 | D79: =COUNTIF($AF$23:$AF$48,Reports!J58) -> 0 | F79: 0 | H79: 0 | J79: 0 | L79: 0 | N79: 1 | P79: 0 | AI79: =IF(AI36=0,"",AI36) -> Jefferson | AJ79: Ramon | AK79: 775-378-4979 | AL79: Gate | AM79: W1 | AN79: W8 | BE79: 13 | BF79: 5 | BG79: 14.66666667 | BH79: F | BI79: C | BK79: F | BM79: A- | BN79: F | BP79: 1.146 | BQ79: D+ | BR79: Jefferson | BS79: Ramon
B80: =Reports!J59 -> Spain | C80: =COUNTIF($AG$23:$AG$48,Reports!J59) -> 0 | D80: =COUNTIF($AF$23:$AF$48,Reports!J59) -> 2 | F80: 0 | H80: 0 | J80: 0 | L80: 0 | N80: 1 | P80: 0 | AI80: Ochoa | AJ80: Victor | AK80: 623-3585 | AL80: Gate | AM80: W1 | AN80: W8 | BE80: 5 | BF80: 2 | BG80: 5.666666667 | BL80: C+ | BM80: A- | BN80: F | BP80: 2.036666667 | BQ80: C+ | BR80: Ochoa | BS80: Victor
B81: =Reports!J60 -> Tahiti | C81: =COUNTIF($AG$23:$AG$48,Reports!J60) -> 0 | D81: =COUNTIF($AF$23:$AF$48,Reports!J60) -> 0 | F81: 0 | H81: 0 | J81: 0 | L81: 0 | N81: 1 | P81: 0 | AI81: Dupuy | AJ81: Rob | AK81: 636-4524 | AL81: Gate | AM81: W3 | AN81: S2 | BE81: 6 | BF81: 0 | BG81: 6 | BI81: B- | BJ81: B- | BK81: D+ | BL81: D | BN81: C+ | BP81: 2.04 | BQ81: C+ | BR81: Dupuy | BS81: Rob
B82: =Reports!J61 -> Taiwan | C82: =COUNTIF($AG$23:$AG$48,Reports!J61) -> 0 | D82: =COUNTIF($AF$23:$AF$48,Reports!J61) -> 0 | F82: 0 | H82: 0 | J82: 0 | L82: 0 | N82: 1 | P82: 0 | AI82: Fuentes | AJ82: Benjamin | AK82: 687-9965 | AL82: Gate | AM82: W2 | AN82: S1 | BE82: 7 | BF82: 1 | BG82: 7.333333333 | BK82: D | BL82: D+ | BM82: C+ | BN82: D | BP82: 1.45 | BQ82: C– | BR82: Fuentes | BS82: Benjamin
B83: =Reports!J63 -> Venezuela | C83: =COUNTIF($AG$23:$AG$48,Reports!J63) -> 0 | D83: =COUNTIF($AF$23:$AF$48,Reports!J63) -> 0 | F83: 0 | H83: 0 | J83: 0 | L83: 0 | N83: 1 | P83: 0 | AI83: Palomares | AJ83: Pamela | AK83: 623-6126 | AL83: Gate | AM83: W4 | AN83: S3 | BE83: 6 | BF83: 0 | BG83: 6 | BJ83: B- | BK83: B- | BL83: C- | BM83: A | BN83: D | BP83: 2.42 | BQ83: B– | BR83: Palomares | BS83: Pamela
B84: =Reports!J62 -> Uruguay | C84: =COUNTIF($AG$23:$AG$48,Reports!J62) -> 0 | D84: =COUNTIF($AF$23:$AF$48,Reports!J62) -> 0 | F84: 0 | H84: 0 | J84: 0 | L84: 0 | N84: 1 | P84: 0 | AI84: Cabrera | AJ84: Maria Luisa | AK84: 427-4956 | AL84: Gate | AM84: W3 | AN84: S2 | BE84: 4 | BF84: 0 | BG84: 4 | BJ84: A | BK84: B | BL84: C | BM84: A | BN84: D | BP84: 2.8 | BQ84: B | BR84: Cabrera | BS84: Maria Luisa
F85: 0 | H85: 0 | J85: 0 | L85: 0 | N85: 1 | P85: 0 | AI85: Cedillo | AJ85: Karina | AK85: 687-4476 | AL85: Gate | AM85: W4 | AN85: S3 | BE85: 3 | BF85: 0 | BG85: 3 | BK85: B | BL85: A | BM85: A- | BN85: F | BP85: 2.6775 | BQ85: B– | BR85: Cedillo | BS85: Karina
F86: 0 | H86: 0 | J86: 0 | L86: 0 | N86: 1 | P86: 0 | AI86: Doreme | AJ86: Smith | AK86: 687-0065 | AL86: Gate | AM86: W4 | AN86: S3 | BE86: 8 | BF86: 0 | BG86: 8 | BH86: =IF(BH43=0,"",BH43) ->  | BR86: Doreme | BS86: Smith
F87: 0 | H87: 0 | J87: 0 | L87: 0 | N87: 1 | P87: 0 | AI87: Peralta | AJ87: Ana | AK87: 770-361-0179 | AL87: Gate | AM87: W4 | AN87: S3 | BE87: 4 | BF87: 0 | BG87: 4 | BK87: B- | BL87: C | BM87: A- | BN87: D- | BP87: 2.275 | BQ87: C+ | BR87: Peralta | BS87: Ana
E88: =IF($AA46="","",IF($AL46=E$65,COUNTIF($AA46,$AA$14),"")) ->  | G88: =IF($AA46="","",IF($AL46=G$65,COUNTIF($AA46,$AA$15),"")) ->  | I88: =IF($AA46="","",IF($AL46=I$65,COUNTIF($AA46,$AA$16),"")) ->  | K88: =IF($AA46="","",IF($AL46=K$65,COUNTIF($AA46,$AA$17),"")) ->  | M88: =IF($AA46="","",IF($AL46=M$65,COUNTIF($AA46,$AA$18),"")) ->  | O88: =IF($AA46="","",IF($AL46=O$65,COUNTIF($AA46,$AA$19),"")) ->  | Q88: =IF($AB46="","",IF($AL46=Q$65,COUNTIF($AB46,$AB$14),"")) ->  | S88: =IF($AB46="","",IF($AL46=S$65,COUNTIF($AB46,$AB$15),"")) ->  | U88: =IF($AB46="","",IF($AL46=U$65,COUNTIF($AB46,$AB$16),"")) ->  | W88: =IF($AB46="","",IF($AL46=W$65,COUNTIF($AB46,$AB$17),"")) ->  | Y88: =IF($AB46="","",IF($AL46=Y$65,COUNTIF($AB46,$AB$18),"")) ->  | AI88: =IF(AI46=0,"",AI46) -> Lee | AJ88: Youn Chan | AN88: =IF(AO46=0,"",AO46) ->  | AO88: =IF($AM88=$AE$9,1,IF($D46>0,IF($AL$60="T,TH",1,IF($AL88="All",1,"")),"")) ->  | AQ88: =IF($D46>0,IF($AM88=$AE$9,1,IF($AL$60="M,W",1,IF($AL$56="Grammar","",1))),"") ->  | AS88: =IF($D46>0,IF($AM88=$AE$9,1,IF($AL$60="T,TH",1,IF($AL$56="Grammar","",1))),"") ->  | BE88: =IF($B46>0,(AR46+AT46+AV46+AX46+AZ46+BB46+BD46+BF46),"") ->  | BG88: =IF(B46>0,(BF88/3)+BE88,"") ->  | BH88: =IF(BH46=0,"",BH46) ->  | BN88: D | BP88: 1 | BQ88: D | BR88: Del Valle | BS88: Francisco
F89: 0 | H89: 0 | J89: 0 | L89: 0 | N89: 1 | P89: 0 | AI89: Matsushita | AJ89: Takahiro | AL89: Gate | AM89: W1 | AN89: =IF(AO47=0,"",AO47) -> W8 | AO89: =IF($AM89=$AE$9,1,IF($D47>0,IF($AL$60="T,TH",1,IF($AL89="All",1,"")),"")) ->  | AQ89: =IF($D47>0,IF($AM89=$AE$9,1,IF($AL$60="M,W",1,IF($AL$56="Grammar","",1))),"") ->  | AS89: =IF($D47>0,IF($AM89=$AE$9,1,IF($AL$60="T,TH",1,IF($AL$56="Grammar","",1))),"") ->  | BE89: 9 | BF89: 0 | BG89: =IF(B47>0,(BF89/3)+BE89,"") -> 9 | BL89: C | BM89: C | BN89: B | BP89: 2.333333333 | BQ89: C+ | BR89: Lee | BS89: Youn Chan
AN90: =IF(AO48=0,"",AO48) ->  | AO90: =IF($AM90=$AE$9,1,IF($D48>0,IF($AL$60="T,TH",1,IF($AL90="All",1,"")),"")) ->  | AQ90: =IF($D48>0,IF($AM90=$AE$9,1,IF($AL$60="M,W",1,IF($AL$56="Grammar","",1))),"") ->  | AS90: =IF($D48>0,IF($AM90=$AE$9,1,IF($AL$60="T,TH",1,IF($AL$56="Grammar","",1))),"") ->  | BG90: =IF(B48>0,(BF90/3)+BE90,"") ->  | BR90: Matsushita | BS90: Takahiro
AI92: B GPA | BC92: A | BD92: A– | BE92: B+ | BF92: B | BG92: B– | BH92: C+ | BI92: C | BJ92: C– | BK92: D+ | BL92: D | BM92: D– | BN92: F
BC93: 4 | BD93: 3.7 | BE93: 3.4 | BF93: 3 | BG93: 2.7 | BH93: 2.4 | BI93: 2 | BJ93: 1.7 | BK93: 1.4 | BL93: 1 | BM93: 0.7 | BN93: 0.01
AI94: S1 | AL94: S2 | AM94: S3 | AN94: S4 | AO94: S5 | AP94: S6 | AQ94: S7 | AR94: S8 | AW94: A | AX94: 4 | AZ94: 4 | BA94: A | BC94: =IF($BP66<=BC$93,IF($BP66>BD$93,BC$92,""),"") ->  | BI94: C | BN94: =IF($BP66<=BN$93,IF($BP66>DY$64,BN$92,""),"") -> 
AB95: =IF(AI23="","",AI23) -> Cedillo | AI95: =IF(BH23=0,"",VLOOKUP(BH23,$AW$94:$AX$105,2)) -> 2.7 | AL95: =IF(BI23=0,"",VLOOKUP(BI23,$AW$94:$AX$105,2)) -> 2.7 | AM95: =IF(BJ23=0,"",VLOOKUP(BJ23,$AW$94:$AX$105,2)) -> 2.4 | AN95: =IF(BK23=0,"",VLOOKUP(BK23,$AW$94:$AX$105,2)) -> 2.7 | AO95: =IF(BL23=0,"",VLOOKUP(BL23,$AW$94:$AX$105,2)) -> 0.7 | AP95: =IF(BM23=0,"",VLOOKUP(BM23,$AW$94:$AX$105,2)) -> 1.7 | AQ95: =IF(BN23=0,"",VLOOKUP(BN23,$AW$94:$AX$105,2)) -> 0.01 | AR95: =IF(BO23=0,"",VLOOKUP(BO23,$AW$94:$AX$105,2)) ->  | AW95: A- | AX95: 3.7 | AZ95: 3.7 | BA95: A- | BC95: =IF($BP67<=BC$93,IF($BP67>BD$93,BC$92,""),"") ->  | BK95: D+
AB96: Fuentes | AL96: 1.4 | AM96: 2 | AN96: 2 | AO96: 1 | AP96: 0.01 | AQ96: 0.7 | AW96: B | AX96: 3 | AZ96: 3.4 | BA96: B+ | BC96: =IF($BP68<=BC$93,IF($BP68>BD$93,BC$92,""),"") ->  | BH96: C+
AB97: Kim | AI97: 2.7 | AL97: 1.7 | AM97: 3.7 | AN97: 2.4 | AO97: 3 | AP97: 1.7 | AQ97: 0.7 | AW97: B- | AX97: 2.7 | AZ97: 3 | BA97: B | BC97: =IF($BP69<=BC$93,IF($BP69>BD$93,BC$92,""),"") ->  | BI97: C
AB98: Laurent | AP98: 1.7 | AQ98: 2 | AW98: B+ | AX98: 3.4 | AZ98: 2.7 | BA98: B- | BC98: =IF($BP70<=BC$93,IF($BP70>BD$93,BC$92,""),"") ->  | BH98: C+
AB99: Lee | AP99: 3 | AQ99: 1.7 | AW99: C | AX99: 2 | AZ99: 2.4 | BA99: C+ | BC99: =IF($BP71<=BC$93,IF($BP71>BD$93,BC$92,""),"") ->  | BH99: C+
AB100: Pena | AL100: 2.7 | AM100: 3.4 | AN100: 1 | AO100: 2 | AP100: 1.7 | AW100: C- | AX100: 1.7 | AZ100: 2 | BA100: C | BC100: =IF($BP72<=BC$93,IF($BP72>BD$93,BC$92,""),"") ->  | BI100: C
AB101: Cedillo | AI101: 2.7 | AL101: 2.7 | AM101: 2.4 | AN101: 2.7 | AO101: 0.7 | AP101: 1.7 | AQ101: 0.01 | AW101: C+ | AX101: 2.4 | AZ101: 1.7 | BA101: C- | BC101: =IF($BP73<=BC$93,IF($BP73>BD$93,BC$92,""),"") ->  | BK101: D+
AB102: Fuentes | AM102: 2 | AN102: 2 | AO102: 1 | AP102: 0.01 | AQ102: 0.7 | AW102: D | AX102: 1 | AZ102: 1.3 | BA102: D+ | BC102: =IF($BP74<=BC$93,IF($BP74>BD$93,BC$92,""),"") ->  | BH102: C+
AB103: Kim | AI103: 2.7 | AL103: 1.7 | AM103: 3.7 | AN103: 2.4 | AO103: 3 | AP103: 1.7 | AQ103: 0.7 | AW103: D- | AX103: 0.7 | AZ103: 1 | BA103: D | BC103: =IF($BP75<=BC$93,IF($BP75>BD$93,BC$92,""),"") ->  | BE103: B+
AB104: Bermudez | AI104: 3.7 | AL104: 3.7 | AN104: 2.7 | AO104: 1.7 | AP104: 4 | AQ104: 3 | AW104: D+ | AX104: 1.4 | AZ104: 0.7 | BA104: D- | BC104: =IF($BP76<=BC$93,IF($BP76>BD$93,BC$92,""),"") ->  | BH104: C+
AB105: Matsushita | AI105: 3 | AL105: 3 | AN105: 4 | AO105: 3.4 | AP105: 0.01 | AQ105: 0.01 | AW105: F | AX105: 0.01 | AZ105: 0.01 | BA105: F | BC105: =IF($BP77<=BC$93,IF($BP77>BD$93,BC$92,""),"") ->  | BI105: C
AB106: Bermudez | AI106: 1 | AL106: 4 | AM106: 0.7 | AN106: 0.01 | AO106: 4 | AP106: 4 | AQ106: 0.01 | BC106: =IF($BP78<=BC$93,IF($BP78>BD$93,BC$92,""),"") ->  | BH106: C+
AB107: Hernandez | AM107: 4 | AN107: 0.01 | AP107: 4 | AQ107: 1 | BC107: =IF($BP79<=BC$93,IF($BP79>BD$93,BC$92,""),"") ->  | BK107: D+
AB108: Jefferson | AI108: 0.01 | AL108: 2 | AN108: 0.01 | AP108: 3.7 | AQ108: 0.01 | BC108: =IF($BP80<=BC$93,IF($BP80>BD$93,BC$92,""),"") ->  | BH108: C+
AB109: Ochoa | AO109: 2.4 | AP109: 3.7 | AQ109: 0.01 | BC109: =IF($BP81<=BC$93,IF($BP81>BD$93,BC$92,""),"") ->  | BH109: C+
AB110: Dupuy | AL110: 2.7 | AM110: 2.7 | AN110: 1.4 | AO110: 1 | AQ110: 2.4 | BC110: =IF($BP82<=BC$93,IF($BP82>BD$93,BC$92,""),"") ->  | BJ110: C–
AB111: Fuentes | AN111: 1 | AO111: 1.4 | AP111: 2.4 | AQ111: 1 | BC111: =IF($BP83<=BC$93,IF($BP83>BD$93,BC$92,""),"") ->  | BG111: B–
AB112: Palomares | AM112: 2.7 | AN112: 2.7 | AO112: 1.7 | AP112: 4 | AQ112: 1 | BC112: =IF($BP84<=BC$93,IF($BP84>BD$93,BC$92,""),"") ->  | BF112: B
AB113: Cabrera | AM113: 4 | AN113: 3 | AO113: 2 | AP113: 4 | AQ113: 1 | BC113: =IF($BP85<=BC$93,IF($BP85>BD$93,BC$92,""),"") ->  | BG113: B–
AB114: Cedillo | AN114: 3 | AO114: 4 | AP114: 3.7 | AQ114: 0.01 | BC114: =IF($BP86<=BC$93,IF($BP86>BD$93,BC$92,""),"") -> 
AB115: Doreme | BC115: =IF($BP87<=BC$93,IF($BP87>BD$93,BC$92,""),"") ->  | BH115: C+
AB116: Peralta | AN116: 2.7 | AO116: 2 | AP116: 3.7 | AQ116: 0.7 | BC116: =IF($BP88<=BC$93,IF($BP88>BD$93,BC$92,""),"") ->  | BL116: D
AB117: =IF(AI46="","",AI46) -> Lee | AI117: =IF(BH46=0,"",VLOOKUP(BH46,$AW$94:$AX$105,2)) ->  | AL117: =IF(BI46=0,"",VLOOKUP(BI46,$AW$94:$AX$105,2)) ->  | AQ117: 1 | BC117: =IF($BP89<=BC$93,IF($BP89>BD$93,BC$92,""),"") ->  | BH117: C+
AB118: Matsushita | AO118: 2 | AP118: 2 | AQ118: 3 | BC118: =IF($BP90<=BC$93,IF($BP90>BD$93,BC$92,""),"") -> 
BC119: =IF($BP91<=BC$93,IF($BP91>BD$93,BC$92,""),"") -> 
BC120: =IF($BP92<=BC$93,IF($BP92>BD$93,BC$92,""),"") -> 
BC121: =IF($BP93<=BC$93,IF($BP93>BD$93,BC$92,""),"") -> 
BC122: =IF($BP94<=BC$93,IF($BP94>BD$93,BC$92,""),"") -> 

Sheet Status night
A1: =IF(COUNTIF(BR23:BR48,">0"),AVERAGE(BR23:BR48),"") ->  | B1: =#REF! ->  | C1: =#REF! ->  | AC1: CIN# : | AE1: Date: | AF1: =B3 ->  | BO1: =AD1 -> 0
A2: =IF(COUNTIF(BS23:BS48,">0"),AVERAGE(BS23:BS48),"") ->  | B2: =#REF! ->  | AC2: Teacher: | AD2: Status Issues | BO2: =AD2 -> Status Issues
B3: =#REF! ->  | AC3: Class: | AD3: Grammar | AF3: =AD5 -> 3 | BO3: =AD3 -> Grammar
AC4: Students: | AD4: =AU4-AV4 -> 5 | AU4: =COUNTA(AI23:AI48) -> 5 | AV4: =COUNTIF(AM23:AM48, AE9) -> 0
O5: =SUM('GrM1'!A14+'GrM2'!A14+'Status night'!A14+#REF!+GrM5A!A14+GrM5B!A14+GrMT!A14+[1]GrMCP!A14) ->  | AC5: Level: | AD5: 3 | BO5: =AD5 -> 3
B6: New | C6: End | D6: Cont. | AC6: Time: | AD6: 09:00:00 | BO6: =AD6 -> 0.375
B7: =SUMIF(B9:B10,">0",B9:B10) -> 0 | C7: =SUMIF(C9:C10,">0",C9:C10) -> 0 | AC7: Day: | AD7: M-Th | BO7: =AD7 -> M-Th
AC8: Room: | AD8: 1 | BO8: =AD8 -> 1
B9: =COUNTIF(AM23:AM48,$AD$9) -> 0 | C9: =COUNTIF(AN23:AN48,$AD$9) -> 0 | D9: =AD9 ->  | AC9: Block: | AD9: =(B1) ->  | AE9: =IF(AK7="SAT",C2,C1) ->  | BO9: =AD9 -> 
B10: =COUNTIF(AM23:AM48,$AE$9) -> 0 | C10: =COUNTIF(AN23:AN48,$AE$9) -> 0 | D10: =AE9 ->  | BQ10: =AL10 -> 0
AR11: Block Attendance
A12: Alliance | C12: Gateway | AR12: 1 | AT12: 2 | AV12: 3 | AX12: 4 | AZ12: 5 | BB12: 6 | BD12: 7 | BF12: 8
A13: Start | B13: End | C13: Start | D13: End | E13: Start | F13: End | AA13: Re-Enrolling | AB13: Hold
A14: =SUM(E$66:E$90) -> 0 | B14: =SUM(Q$66:Q$90) -> 0 | C14: =SUM(F$66:F$90) -> 1 | D14: =SUM(R$66:R$90) -> 0 | E14: New | F14: Finished | AA14: New | AB14: Finished
A15: =SUM($G66:$G90) -> 0 | B15: =SUM(S$66:S$90) -> 0 | C15: =SUM(H$66:H$90) -> 0 | D15: =SUM(T$66:T$90) -> 0 | E15: Add\Drop | F15: Transfer Out | AA15: Add\Drop | AB15: Transfer Out
A16: =SUM($I66:$I90) -> 0 | B16: =SUM(U$66:U$90) -> 0 | C16: =SUM(J$66:J$90) -> 0 | D16: =SUM(V$66:V$90) -> 0 | E16: Transfer In | F16: Vacation | AA16: Transfer In | AB16: Vacation
A17: =SUM($K66:$K90) -> 0 | B17: =SUM(W$66:W$90) -> 0 | C17: =SUM(L$66:L$90) -> 0 | D17: =SUM(X$66:X$90) -> 0 | E17: CoS | F17: Lost | AA17: CoS | AB17: Lost
A18: =SUM($M66:$M90) -> 0 | B18: =SUM(Y$66:Y$90) -> 0 | C18: =SUM(N$66:N$90) -> 2 | D18: =SUM(Z$66:Z$90) -> 0 | E18: Continuing | F18: Break | AA18: Continuing | AB18: Break
A19: =SUM($O66:$O90) -> 0 | C19: =SUM(P$66:P$90) -> 0 | E19: Found | AA19: Found
A20: Alliance | C20: Gateway | AR20: 1 | AT20: 2 | AV20: 3 | AX20: 4 | AZ20: 5 | BB20: 6 | BD20: 7 | BF20: 8
A21: =COUNTIF(AL23:AL48,"All") -> 0 | C21: =COUNTIF(AL23:AL48, "Gate") -> 3 | AR21: 1 | AT21: 2 | AV21: 3 | AX21: 4 | AZ21: 5 | BB21: 6 | BD21: 7 | BF21: 8
B22: SDate | C22: EDate | D22: Lev End | AA22: Start | AB22: End Reason | AC22: Notes | AD22: I-20 Expires | AE22: F1 Agreement | AF22: Country | AH22: Birthday | AI22: Last Name | AJ22: First Name | AK22: Phone # | AL22: PRG | AM22: LB | AN22: ED | AO22: LE | AP22: NOTES | AR22: A | AS22: T | AT22: A | AU22: T | AV22: A | AW22: T | AX22: A | AY22: T | AZ22: A | BA22: T | BB22: A | BC22: T | BD22: A | BE22: T | BF22: A | BG22: T | BH22: 1 | BI22: 2 | BJ22: 3 | BK22: 4 | BL22: 5 | BM22: 6 | BN22: 7 | BO22: 8 | BR22: All | BS22: Gate
AC23: Pronunciation | AI23: Mata | AJ23: Kalbert | AV23: 1 | AW23: 3 | BB23: 3 | BC23: 1 | BD23: 3 | BE23: 1 | BJ23: D+ | BM23: F | BN23: F
C24: 2008-03-31 | D24: 2008-07-17 | AA24: New | AC24: Pronunciation | AD24: 2008-08-15 | AE24: Yes | AF24: Peru | AH24: 2008-10-14 | AI24: Mendoza | AJ24: Ayme | AK24: 494-4792 | AL24: Gate | AM24: W7 | AN24: S6 | AO24: S6 | BD24: 1 | BE24: 0 | BN24: F | BP24: 64
B25: 2008-01-21 | C25: 2008-05-08 | D25: 2008-05-08 | AA25: Continuing | AC25: Pronunciation | AD25: 2007-12-13 | AE25: Yes | AF25: Mexico | AH25: 2008-11-02 | AI25: Rivas | AJ25: Rocio | AK25: 473-7186 | AL25: Gate | AM25: W2 | AN25: S1 | AO25: S1 | AT25: 2 | AU25: 0 | AV25: 2 | AW25: 2 | AX25: 1 | AY25: 3 | AZ25: 1 | BA25: 2 | BB25: 1 | BC25: 3 | BD25: 2 | BE25: 2 | BI25: F | BJ25: B- | BK25: A- | BL25: C+ | BM25: D | BN25: F | BP25: 64 | BQ25: 0.796875 | BS25: 0.796875
B26: 2008-02-04 | C26: 2008-05-22 | D26: 2008-05-22 | AA26: Continuing | AC26: GR 2 | AF26: Mexico | AG26: =IF(AL26:AL51="gate",AF26,"") -> Mexico | AH26: 2008-08-20 | AI26: Trejo | AJ26: Noe | AK26: 473-6642 | AL26: Gate | AM26: W3 | AN26: S2 | AO26: S2 | AV26: 0 | AW26: 1 | AX26: 0 | AY26: 0 | BB26: 1 | BC26: 2 | BD26: 2 | BE26: 1 | BH26: F | BJ26: A | BK26: A | BL26: B- | BM26: B- | BN26: D+ | BP26: =IF(AL26="All",32,IF(AL26="Gate",64,"")) -> 64 | BQ26: =IF(BP26="","",(BP26-BG68)/BP26) -> 0.796875 | BR26: =IF(AL26="All",BQ26,"") ->  | BS26: =IF(AL26="Gate",BQ26,"") -> 0.796875
AC27: IS T | AF27: Venezuela | AI27: Mata | AJ27: Kalbert | AV27: 2 | AW27: 0 | AX27: 0 | AY27: 1 | AZ27: 5 | BA27: 0 | BD27: 6 | BE27: 1 | BJ27: B- | BK27: A- | BL27: F | BN27: F | BP27: =IF(AL27="All",32,IF(AL27="Gate",64,"")) ->  | BQ27: =IF(BP27="","",(BP27-BG69)/BP27) ->  | BR27: =IF(AL27="All",BQ27,"") ->  | BS27: =IF(AL27="Gate",BQ27,"") -> 
BP47: =IF(AL47="All",32,IF(AL47="Gate",64,"")) ->  | BQ47: =IF(BP47="","",(BP47-BG89)/BP47) ->  | BR47: =IF(AL47="All",BQ47,"") ->  | BS47: =IF(AL47="Gate",BQ47,"") -> 
BP48: =IF(AL48="All",32,IF(AL48="Gate",64,"")) ->  | BQ48: =IF(BP48="","",(BP48-BG90)/BP48) ->  | BR48: =IF(AL48="All",BQ48,"") ->  | BS48: =IF(AL48="Gate",BQ48,"") -> 
B53: Country count
B54: =Reports!#REF! ->  | C54: =COUNTIF($AG$23:$AG$48,Reports!#REF!) -> 0 | D54: =COUNTIF($AF$23:$AF$48,Reports!#REF!) -> 0 | AI54: CIN# : | AL54: =IF(AD1=0,"",AD1) -> 
B55: =Reports!I64 -> 0 | C55: =COUNTIF($AG$23:$AG$48,Reports!I64) -> 0 | D55: =COUNTIF($AF$23:$AF$48,Reports!I64) -> 0 | AI55: Teacher: | AL55: =IF(AD2=0,"",AD2) -> Status Issues
B56: =Reports!J35 -> Africa | C56: =COUNTIF($AG$23:$AG$48,Reports!J35) -> 0 | D56: =COUNTIF($AF$23:$AF$48,Reports!J35) -> 0 | AI56: Class: | AL56: =IF(AD3=0,"",AD3) -> Grammar | AT56: =AL58 -> 3
B57: =Reports!J36 -> Argentina | C57: =COUNTIF($AG$23:$AG$48,Reports!J36) -> 0 | D57: =COUNTIF($AF$23:$AF$48,Reports!J36) -> 0 | AI57: Students: | AL57: =COUNTA(AI23:AI48) -> 5
B58: =Reports!J39 -> Cape Verde | C58: =COUNTIF($AG$23:$AG$48,Reports!J37) -> 0 | D58: =COUNTIF($AF$23:$AF$48,Reports!J37) -> 0 | AI58: Level: | AL58: =IF(AD5=0,"",AD5) -> 3
B59: =Reports!J37 -> Bolivia | C59: =COUNTIF($AG$23:$AG$48,Reports!J38) -> 0 | D59: =COUNTIF($AF$23:$AF$48,Reports!J38) -> 0 | AI59: Time: | AL59: =IF(AD6=0,"",AD6) -> 09:00:00 | BF59: Legend
B60: =Reports!J38 -> Brazil | C60: =COUNTIF($AG$23:$AG$48,Reports!J39) -> 0 | D60: =COUNTIF($AF$23:$AF$48,Reports!J39) -> 0 | AI60: Day: | AL60: =IF(AD7=0,"",AD7) -> M-Th | BF60: Present | BI60: Absent | BL60: Tardy | BY60: Time: | BZ60: =AD6 -> 09:00:00
B61: =Reports!J40 -> Chile | C61: =COUNTIF($AG$23:$AG$48,Reports!J40) -> 0 | D61: =COUNTIF($AF$23:$AF$48,Reports!J40) -> 0 | AI61: Room: | AL61: =IF(AD8=0,"",AD8) -> 1 | BR61: Block: | BS61: =AD9 ->  | BT61: Date: | BV61: =AF1 ->  | CF61: Grade Report
B62: =Reports!J41 -> China | C62: =COUNTIF($AG$23:$AG$48,Reports!J41) -> 0 | D62: =COUNTIF($AF$23:$AF$48,Reports!J41) -> 0 | AI62: Block: | AL62: =IF(AD9=0,"",AD9) ->  | AN62: Date: | AR62: =IF(AF1=0,"",AF1) ->  | BR62: Class: | BS62: =AD3 -> Grammar | BT62: Level: | BV62: =AF3 -> 3 | BW62: Teacher: | BY62: =AD2 -> Status Issues | CB62: Points | CC62: Homework Assignments/pts possible | CM62: Points | CT62: Points | CW62: Points | CX62: GRADE
B63: =Reports!J42 -> Columbia | C63: =COUNTIF($AG$23:$AG$48,Reports!J42) -> 0 | D63: =COUNTIF($AF$23:$AF$48,Reports!J42) -> 0 | BT63: Attendance | CN63: QUIZ | CO63: QUIZ | CP63: QUIZ | CQ63: QUIZ | CR63: QUIZ | CS63: QUIZ | CU63: Vocab | CV63: Test
B64: =Reports!J43 -> Costa Rica | C64: =COUNTIF($AG$23:$AG$48,Reports!J43) -> 0 | D64: =COUNTIF($AF$23:$AF$48,Reports!J43) -> 0 | E64: =AA14 -> New | G64: =AA15 -> Add\Drop | I64: =AA16 -> Transfer In | K64: =AA17 -> CoS | M64: =AA18 -> Continuing | O64: =AA19 -> Found | Q64: =AB14 -> Finished | S64: =AB15 -> Transfer Out | U64: =AB16 -> Vacation | W64: =AB17 -> Lost | Y64: =AB18 -> Break | AO64: =AR62 ->  | AQ64: =AO64+1 ->  | AS64: =AQ64+1 ->  | AU64: =AS64+1 ->  | AW64: =AR62+7 ->  | AY64: =AW64+1 ->  | BA64: =AY64+1 ->  | BC64: =BA64+1 ->  | BE64: Attendance | BH64: Block Grades | BT64: M | BU64: T | BV64: W | BW64: TH | BX64: M | BY64: T | BZ64: W | CA64: TH
B65: =Reports!J44 -> Dominican Republic | C65: =COUNTIF($AG$23:$AG$48,Reports!J44) -> 0 | D65: =COUNTIF($AF$23:$AF$48,Reports!J44) -> 0 | E65: All | F65: Gate | G65: All | H65: Gate | I65: All | J65: Gate | K65: All | L65: Gate | M65: All | N65: Gate | O65: All | P65: Gate | Q65: All | R65: Gate | S65: All | T65: Gate | U65: All | V65: Gate | W65: All | X65: Gate | Y65: All | Z65: Gate | AH65: Notes | AI65: =AI22 -> Last Name | AJ65: =AJ22 -> First Name | AK65: =AK22 -> Phone # | AL65: PRG | AM65: LB | AN65: LE | AO65: =IF($AL$60="SAT",1,"M") -> M | AQ65: =IF($AL$60="SAT",2,"TU") -> TU | AS65: =IF($AL$60="SAT",3,"W") -> W | AU65: =IF($AL$60="SAT",4,"TH") -> TH | AW65: =IF($AL$60="SAT",5,"M") -> M | AY65: =IF($AL$60="SAT",6,"TU") -> TU | BA65: =IF($AL$60="SAT",7,"W") -> W | BC65: =IF($AL$60="SAT",8,"TH") -> TH | BE65: A | BF65: T | BG65: Att. | BH65: 1 | BI65: 2 | BJ65: 3 | BK65: 4 | BL65: 5 | BM65: 6 | BN65: 7 | BO65: 8 | BP65: GPA | BQ65: GRD | BR65: Student | BS65: Points Possible? | CB65: =SUM(BT65:CA65) -> 0 | CM65: =SUM(CC65:CL65) -> 0 | CT65: =SUM(CN65:CS65) -> 0 | CW65: =SUM(CU65:CV65) -> 0 | CY65: Grading Scale
B66: =Reports!J45 -> Ecuador | C66: =COUNTIF($AG$23:$AG$48,Reports!J45) -> 0 | D66: =COUNTIF($AF$23:$AF$48,Reports!J45) -> 0 | E66: =IF($AA23="","",IF($AL23=E$65,COUNTIF($AA23,$AA$14),"")) ->  | G66: =IF($AA23="","",IF($AL23=G$65,COUNTIF($AA23,$AA$15),"")) ->  | I66: =IF($AA23="","",IF($AL23=I$65,COUNTIF($AA23,$AA$16),"")) ->  | K66: =IF($AA23="","",IF($AL23=K$65,COUNTIF($AA23,$AA$17),"")) ->  | M66: =IF($AA23="","",IF($AL23=M$65,COUNTIF($AA23,$AA$18),"")) ->  | O66: =IF($AA23="","",IF($AL23=O$65,COUNTIF($AA23,$AA$19),"")) ->  | Q66: =IF($AB23="","",IF($AL23=Q$65,COUNTIF($AB23,$AB$14),"")) ->  | S66: =IF($AB23="","",IF($AL23=S$65,COUNTIF($AB23,$AB$15),"")) ->  | U66: =IF($AB23="","",IF($AL23=U$65,COUNTIF($AB23,$AB$16),"")) ->  | W66: =IF($AB23="","",IF($AL23=W$65,COUNTIF($AB23,$AB$17),"")) ->  | Y66: =IF($AB23="","",IF($AL23=Y$65,COUNTIF($AB23,$AB$18),"")) ->  | AH66: GR 5 | AI66: =IF(AI23=0,"",AI23) -> Mata | AJ66: Kalbert | AN66: =IF(AO23=0,"",AO23) ->  | AO66: =IF($AM66=$AE$9,1,IF($D23>0,IF($AL$60="T,TH",1,IF($AL66="All",1,"")),"")) ->  | AQ66: =IF($D23>0,IF($AM66=$AE$9,1,IF($AL$60="M,W",1,IF($AL$56="Grammar","",1))),"") ->  | AS66: =IF($D23>0,IF($AM66=$AE$9,1,IF($AL$60="T,TH",1,IF($AL$56="Grammar","",1))),"") ->  | AU66: =AQ66 ->  | AW66: =AO66 ->  | AY66: =AQ66 ->  | BA66: =AS66 ->  | BC66: =AU66 ->  | BE66: =IF($B23>0,(AR23+AT23+AV23+AX23+AZ23+BB23+BD23+BF23),"") ->  | BF66: =IF($B23>0,(AS23+AU23+AW23+AY23+BA23+BC23+BE23+BG23),"") ->  | BG66: =IF(B23>0,(BF66/3)+BE66,"") ->  | BH66: =IF(BH23=0,"",BH23) ->  | BJ66: D+ | BM66: F | BN66: F | BP66: =IF(SUM(AI95:AR95)=0,"",AVERAGE(AI95:AR95)) -> 0.4733333333 | BQ66: =CONCATENATE(" ",BC94,BD94,BE94,BF94,BG94,BH94,BI94,BJ94,BK94,BL94,BM94,BN94) -> D– | BR66: =IF(AI23="","",AI23) -> Mata | BS66: =IF(AJ23="","",AJ23) -> Kalbert | CB66: =IF(BT66="","",SUM(BT66:CA66)) ->  | CM66: =IF(CC66="","",SUM(CC66:CL66)) ->  | CT66: =IF(CN66="","",SUM(CN66:CS66)) ->  | CW66: =IF(CU66="","",SUM(CU66:CV66)) ->  | CX66: =IF(BR66="","",IF(BT66="","",(((CB66/CB$65)*0.25)+((CM66/CM$65)*0.25)+((CT66/CT$65)*0.25)+((CW66/CW$65)*0.25))*100)) ->  | CY66: A = 93%+
B67: =Reports!J46 -> El Salvador | C67: =COUNTIF($AG$23:$AG$48,Reports!J46) -> 0 | D67: =COUNTIF($AF$23:$AF$48,Reports!J46) -> 0 | F67: 1 | H67: 0 | J67: 0 | L67: 0 | N67: 0 | P67: 0 | AH67: Pronunciation | AI67: Mendoza | AJ67: Ayme | AK67: 494-4792 | AL67: Gate | AM67: W7 | AN67: S6 | BN67: F | BP67: 0.01 | BQ67: F | BR67: Mendoza | BS67: Ayme | CY67: A- = 90-92%
B68: =Reports!J47 -> France | C68: =COUNTIF($AG$23:$AG$48,Reports!J47) -> 0 | D68: =COUNTIF($AF$23:$AF$48,Reports!J47) -> 0 | F68: 0 | H68: 0 | J68: 0 | L68: 0 | N68: 1 | P68: 0 | AH68: Pronunciation | AI68: Rivas | AJ68: Rocio | AK68: 473-7186 | AL68: Gate | AM68: W2 | AN68: S1 | BE68: 9 | BF68: 12 | BG68: 13 | BI68: F | BJ68: B- | BK68: A- | BL68: C+ | BM68: D | BN68: F | BP68: 1.636666667 | BQ68: C– | BR68: Rivas | BS68: Rocio | CY68: B+ = 87-89%
B69: =Reports!J48 -> Guatemala | C69: =COUNTIF($AG$23:$AG$48,Reports!J48) -> 0 | D69: =COUNTIF($AF$23:$AF$48,Reports!J48) -> 0 | F69: 0 | H69: 0 | J69: 0 | L69: 0 | N69: 1 | P69: 0 | AI69: Trejo | AJ69: Noe | AK69: 473-6642 | AL69: Gate | AM69: W3 | AN69: S2 | BE69: 3 | BF69: 4 | BG69: 4.333333333 | BH69: F | BJ69: A | BK69: A | BL69: B- | BM69: B- | BN69: D+ | BP69: 2.468333333 | BQ69: B– | BR69: Trejo | BS69: Noe | CY69: B = 83-86%
B70: =Reports!J49 -> Honoduras | C70: =COUNTIF($AG$23:$AG$48,Reports!J49) -> 0 | D70: =COUNTIF($AF$23:$AF$48,Reports!J49) -> 0 | AI70: Mata | AJ70: Kalbert | BJ70: B- | BK70: A- | BL70: F | BN70: F | BP70: 1.605 | BQ70: C– | BR70: Mata | BS70: Kalbert | CY70: B- = 80-82%
B71: =Reports!J50 -> Italy | C71: =COUNTIF($AG$23:$AG$48,Reports!J50) -> 0 | D71: =COUNTIF($AF$23:$AF$48,Reports!J50) -> 0 | CY71: C+ = 77-79%
B72: =Reports!J51 -> Japan | C72: =COUNTIF($AG$23:$AG$48,Reports!J51) -> 0 | D72: =COUNTIF($AF$23:$AF$48,Reports!J51) -> 0 | CY72: C = 73-76%
B73: =Reports!J52 -> Korea | C73: =COUNTIF($AG$23:$AG$48,Reports!J52) -> 0 | D73: =COUNTIF($AF$23:$AF$48,Reports!J52) -> 0 | CY73: C- = 70-72%
B74: =Reports!J53 -> Madagascar | C74: =COUNTIF($AG$23:$AG$48,Reports!J53) -> 0 | D74: =COUNTIF($AF$23:$AF$48,Reports!J53) -> 0 | CY74: D+ = 67-69%
B75: =Reports!J54 -> Mexico | C75: =COUNTIF($AG$23:$AG$48,Reports!J54) -> 1 | D75: =COUNTIF($AF$23:$AF$48,Reports!J54) -> 2 | CY75: D = 63-66%
B76: =Reports!J55 -> Mongolia | C76: =COUNTIF($AG$23:$AG$48,Reports!J55) -> 0 | D76: =COUNTIF($AF$23:$AF$48,Reports!J55) -> 0 | BH76: =IF(BH33=0,"",BH33) ->  | CY76: D- = 60-62%
B77: =Reports!J56 -> Peru | C77: =COUNTIF($AG$23:$AG$48,Reports!J56) -> 0 | D77: =COUNTIF($AF$23:$AF$48,Reports!J56) -> 1 | CY77: F = 0-59%
B78: =Reports!J57 -> Puerto Rico | C78: =COUNTIF($AG$23:$AG$48,Reports!J57) -> 0 | D78: =COUNTIF($AF$23:$AF$48,Reports!J57) -> 0 | AM78: =IF(AM35=0,"",AM35) -> 
B79: =Reports!J58 -> Rusia | C79: =COUNTIF($AG$23:$AG$48,Reports!J58) -> 0 | D79: =COUNTIF($AF$23:$AF$48,Reports!J58) -> 0 | AI79: =IF(AI36=0,"",AI36) -> 
B80: =Reports!J59 -> Spain | C80: =COUNTIF($AG$23:$AG$48,Reports!J59) -> 0 | D80: =COUNTIF($AF$23:$AF$48,Reports!J59) -> 0
B81: =Reports!J60 -> Tahiti | C81: =COUNTIF($AG$23:$AG$48,Reports!J60) -> 0 | D81: =COUNTIF($AF$23:$AF$48,Reports!J60) -> 0
B82: =Reports!J61 -> Taiwan | C82: =COUNTIF($AG$23:$AG$48,Reports!J61) -> 0 | D82: =COUNTIF($AF$23:$AF$48,Reports!J61) -> 0
B83: =Reports!J63 -> Venezuela | C83: =COUNTIF($AG$23:$AG$48,Reports!J63) -> 0 | D83: =COUNTIF($AF$23:$AF$48,Reports!J63) -> 1
B84: =Reports!J62 -> Uruguay | C84: =COUNTIF($AG$23:$AG$48,Reports!J62) -> 0 | D84: =COUNTIF($AF$23:$AF$48,Reports!J62) -> 0
BH86: =IF(BH43=0,"",BH43) -> 
E88: =IF($AA46="","",IF($AL46=E$65,COUNTIF($AA46,$AA$14),"")) ->  | G88: =IF($AA46="","",IF($AL46=G$65,COUNTIF($AA46,$AA$15),"")) ->  | I88: =IF($AA46="","",IF($AL46=I$65,COUNTIF($AA46,$AA$16),"")) ->  | K88: =IF($AA46="","",IF($AL46=K$65,COUNTIF($AA46,$AA$17),"")) ->  | M88: =IF($AA46="","",IF($AL46=M$65,COUNTIF($AA46,$AA$18),"")) ->  | O88: =IF($AA46="","",IF($AL46=O$65,COUNTIF($AA46,$AA$19),"")) ->  | Q88: =IF($AB46="","",IF($AL46=Q$65,COUNTIF($AB46,$AB$14),"")) ->  | S88: =IF($AB46="","",IF($AL46=S$65,COUNTIF($AB46,$AB$15),"")) ->  | U88: =IF($AB46="","",IF($AL46=U$65,COUNTIF($AB46,$AB$16),"")) ->  | W88: =IF($AB46="","",IF($AL46=W$65,COUNTIF($AB46,$AB$17),"")) ->  | Y88: =IF($AB46="","",IF($AL46=Y$65,COUNTIF($AB46,$AB$18),"")) ->  | AI88: =IF(AI46=0,"",AI46) ->  | AN88: =IF(AO46=0,"",AO46) ->  | AO88: =IF($AM88=$AE$9,1,IF($D46>0,IF($AL$60="T,TH",1,IF($AL88="All",1,"")),"")) ->  | AQ88: =IF($D46>0,IF($AM88=$AE$9,1,IF($AL$60="M,W",1,IF($AL$56="Grammar","",1))),"") ->  | AS88: =IF($D46>0,IF($AM88=$AE$9,1,IF($AL$60="T,TH",1,IF($AL$56="Grammar","",1))),"") ->  | BE88: =IF($B46>0,(AR46+AT46+AV46+AX46+AZ46+BB46+BD46+BF46),"") ->  | BG88: =IF(B46>0,(BF88/3)+BE88,"") ->  | BH88: =IF(BH46=0,"",BH46) -> 
AN89: =IF(AO47=0,"",AO47) ->  | AO89: =IF($AM89=$AE$9,1,IF($D47>0,IF($AL$60="T,TH",1,IF($AL89="All",1,"")),"")) ->  | AQ89: =IF($D47>0,IF($AM89=$AE$9,1,IF($AL$60="M,W",1,IF($AL$56="Grammar","",1))),"") ->  | AS89: =IF($D47>0,IF($AM89=$AE$9,1,IF($AL$60="T,TH",1,IF($AL$56="Grammar","",1))),"") ->  | BG89: =IF(B47>0,(BF89/3)+BE89,"") -> 
AN90: =IF(AO48=0,"",AO48) ->  | AO90: =IF($AM90=$AE$9,1,IF($D48>0,IF($AL$60="T,TH",1,IF($AL90="All",1,"")),"")) ->  | AQ90: =IF($D48>0,IF($AM90=$AE$9,1,IF($AL$60="M,W",1,IF($AL$56="Grammar","",1))),"") ->  | AS90: =IF($D48>0,IF($AM90=$AE$9,1,IF($AL$60="T,TH",1,IF($AL$56="Grammar","",1))),"") ->  | BG90: =IF(B48>0,(BF90/3)+BE90,"") -> 
AI92: B GPA | BC92: A | BD92: A– | BE92: B+ | BF92: B | BG92: B– | BH92: C+ | BI92: C | BJ92: C– | BK92: D+ | BL92: D | BM92: D– | BN92: F
BC93: 4 | BD93: 3.7 | BE93: 3.4 | BF93: 3 | BG93: 2.7 | BH93: 2.4 | BI93: 2 | BJ93: 1.7 | BK93: 1.4 | BL93: 1 | BM93: 0.7 | BN93: 0.01
AI94: S1 | AL94: S2 | AM94: S3 | AN94: S4 | AO94: S5 | AP94: S6 | AQ94: S7 | AR94: S8 | AW94: A | AX94: 4 | AZ94: 4 | BA94: A | BC94: =IF($BP66<=BC$93,IF($BP66>BD$93,BC$92,""),"") ->  | BM94: D– | BN94: =IF($BP66<=BN$93,IF($BP66>DY$64,BN$92,""),"") -> 
AB95: =IF(AI23="","",AI23) -> Mata | AI95: =IF(BH23=0,"",VLOOKUP(BH23,$AW$94:$AX$105,2)) ->  | AL95: =IF(BI23=0,"",VLOOKUP(BI23,$AW$94:$AX$105,2)) ->  | AM95: =IF(BJ23=0,"",VLOOKUP(BJ23,$AW$94:$AX$105,2)) -> 1.4 | AN95: =IF(BK23=0,"",VLOOKUP(BK23,$AW$94:$AX$105,2)) ->  | AO95: =IF(BL23=0,"",VLOOKUP(BL23,$AW$94:$AX$105,2)) ->  | AP95: =IF(BM23=0,"",VLOOKUP(BM23,$AW$94:$AX$105,2)) -> 0.01 | AQ95: =IF(BN23=0,"",VLOOKUP(BN23,$AW$94:$AX$105,2)) -> 0.01 | AR95: =IF(BO23=0,"",VLOOKUP(BO23,$AW$94:$AX$105,2)) ->  | AW95: A- | AX95: 3.7 | AZ95: 3.7 | BA95: A- | BC95: =IF($BP67<=BC$93,IF($BP67>BD$93,BC$92,""),"") ->  | BN95: F
AB96: Mendoza | AQ96: 0.01 | AW96: B | AX96: 3 | AZ96: 3.4 | BA96: B+ | BC96: =IF($BP68<=BC$93,IF($BP68>BD$93,BC$92,""),"") ->  | BJ96: C–
AB97: Rivas | AL97: 0.01 | AM97: 2.7 | AN97: 3.7 | AO97: 2.4 | AP97: 1 | AQ97: 0.01 | AW97: B- | AX97: 2.7 | AZ97: 3 | BA97: B | BC97: =IF($BP69<=BC$93,IF($BP69>BD$93,BC$92,""),"") ->  | BG97: B–
AB98: Trejo | AI98: 0.01 | AM98: 4 | AN98: 4 | AO98: 2.7 | AP98: 2.7 | AQ98: 1.4 | AW98: B+ | AX98: 3.4 | AZ98: 2.7 | BA98: B- | BC98: =IF($BP70<=BC$93,IF($BP70>BD$93,BC$92,""),"") ->  | BJ98: C–
AB99: Mata | AM99: 2.7 | AN99: 3.7 | AO99: 0.01 | AQ99: 0.01 | AW99: C | AX99: 2 | AZ99: 2.4 | BA99: C+ | BC99: =IF($BP71<=BC$93,IF($BP71>BD$93,BC$92,""),"") -> 
AW100: C- | AX100: 1.7 | AZ100: 2 | BA100: C | BC100: =IF($BP72<=BC$93,IF($BP72>BD$93,BC$92,""),"") -> 
AW101: C+ | AX101: 2.4 | AZ101: 1.7 | BA101: C- | BC101: =IF($BP73<=BC$93,IF($BP73>BD$93,BC$92,""),"") -> 
AW102: D | AX102: 1 | AZ102: 1.3 | BA102: D+ | BC102: =IF($BP74<=BC$93,IF($BP74>BD$93,BC$92,""),"") -> 
AW103: D- | AX103: 0.7 | AZ103: 1 | BA103: D | BC103: =IF($BP75<=BC$93,IF($BP75>BD$93,BC$92,""),"") -> 
AW104: D+ | AX104: 1.4 | AZ104: 0.7 | BA104: D- | BC104: =IF($BP76<=BC$93,IF($BP76>BD$93,BC$92,""),"") -> 
AW105: F | AX105: 0.01 | AZ105: 0.01 | BA105: F | BC105: =IF($BP77<=BC$93,IF($BP77>BD$93,BC$92,""),"") -> 
BC106: =IF($BP78<=BC$93,IF($BP78>BD$93,BC$92,""),"") -> 
BC107: =IF($BP79<=BC$93,IF($BP79>BD$93,BC$92,""),"") -> 
BC108: =IF($BP80<=BC$93,IF($BP80>BD$93,BC$92,""),"") -> 
BC109: =IF($BP81<=BC$93,IF($BP81>BD$93,BC$92,""),"") -> 
BC110: =IF($BP82<=BC$93,IF($BP82>BD$93,BC$92,""),"") -> 
BC111: =IF($BP83<=BC$93,IF($BP83>BD$93,BC$92,""),"") -> 
BC112: =IF($BP84<=BC$93,IF($BP84>BD$93,BC$92,""),"") -> 
BC113: =IF($BP85<=BC$93,IF($BP85>BD$93,BC$92,""),"") -> 
BC114: =IF($BP86<=BC$93,IF($BP86>BD$93,BC$92,""),"") -> 
BC115: =IF($BP87<=BC$93,IF($BP87>BD$93,BC$92,""),"") -> 
BC116: =IF($BP88<=BC$93,IF($BP88>BD$93,BC$92,""),"") -> 
AB117: =IF(AI46="","",AI46) ->  | AI117: =IF(BH46=0,"",VLOOKUP(BH46,$AW$94:$AX$105,2)) ->  | AL117: =IF(BI46=0,"",VLOOKUP(BI46,$AW$94:$AX$105,2)) ->  | BC117: =IF($BP89<=BC$93,IF($BP89>BD$93,BC$92,""),"") -> 
BC118: =IF($BP90<=BC$93,IF($BP90>BD$93,BC$92,""),"") -> 
BC119: =IF($BP91<=BC$93,IF($BP91>BD$93,BC$92,""),"") -> 
BC120: =IF($BP92<=BC$93,IF($BP92>BD$93,BC$92,""),"") -> 
BC121: =IF($BP93<=BC$93,IF($BP93>BD$93,BC$92,""),"") -> 
BC122: =IF($BP94<=BC$93,IF($BP94>BD$93,BC$92,""),"") -> 

Sheet Status issues
A1: =IF(COUNTIF(BR23:BR48,">0"),AVERAGE(BR23:BR48),"") ->  | B1: =#REF! ->  | C1: =#REF! ->  | AC1: CIN# : | AE1: Date: | AF1: =B3 ->  | BO1: =AD1 -> 0
A2: =IF(COUNTIF(BS23:BS48,">0"),AVERAGE(BS23:BS48),"") ->  | B2: =#REF! ->  | AC2: Teacher: | AD2: status issues | BO2: =AD2 -> status issues
B3: =#REF! ->  | AC3: Class: | BO3: =AD3 -> 0
AC4: Students: | AU4: =COUNTA(AI23:AI48) -> 25 | AV4: =COUNTIF(AM23:AM48, AE9) -> 0
O5: =SUM('GrM1'!A14+'GrM2'!A14+'Status issues'!A14+#REF!+GrM5A!A14+GrM5B!A14+GrMT!A14+[1]GrMCP!A14) ->  | AC5: Level: | BO5: =AD5 -> 0
B6: New | C6: End | D6: Cont. | AC6: Time: | BO6: =AD6 -> 0
B7: =SUMIF(B9:B10,">0",B9:B10) -> 2 | C7: =SUMIF(C9:C10,">0",C9:C10) -> 0 | AC7: Day: | BO7: =AD7 -> 0
AC8: Room: | BO8: =AD8 -> 0
B9: =COUNTIF(AM23:AM48,$AD$9) -> 2 | C9: =COUNTIF(AN23:AN48,$AD$9) -> 0 | D9: =AD9 -> W7 | AC9: Block: | AD9: W7 | AE9: =IF(AK7="SAT",C2,C1) ->  | BO9: =AD9 -> W7
B10: =COUNTIF(AM23:AM48,$AE$9) -> 0 | C10: =COUNTIF(AN23:AN48,$AE$9) -> 0 | D10: =AE9 ->  | BQ10: =AL10 -> 0
AR11: Block Attendance
A12: Alliance | C12: Gateway | AR12: 1 | AT12: 2 | AV12: 3 | AX12: 4 | AZ12: 5 | BB12: 6 | BD12: 7 | BF12: 8
A13: Start | B13: End | C13: Start | D13: End | E13: Start | F13: End | AA13: Re-Enrolling | AB13: Hold
A14: =SUM(E$66:E$90) -> 0 | B14: =SUM(Q$66:Q$90) -> 0 | C14: =SUM(F$66:F$90) -> 0 | D14: =SUM(R$66:R$90) -> 0 | E14: New | F14: Finished | AA14: New | AB14: Finished
A15: =SUM($G66:$G90) -> 0 | B15: =SUM(S$66:S$90) -> 0 | C15: =SUM(H$66:H$90) -> 0 | D15: =SUM(T$66:T$90) -> 0 | E15: Add\Drop | F15: Transfer Out | AA15: Add\Drop | AB15: Transfer Out
A16: =SUM($I66:$I90) -> 0 | B16: =SUM(U$66:U$90) -> 0 | C16: =SUM(J$66:J$90) -> 0 | D16: =SUM(V$66:V$90) -> 0 | E16: Transfer In | F16: Vacation | AA16: Transfer In | AB16: Vacation
A17: =SUM($K66:$K90) -> 0 | B17: =SUM(W$66:W$90) -> 0 | C17: =SUM(L$66:L$90) -> 0 | D17: =SUM(X$66:X$90) -> 0 | E17: CoS | F17: Lost | AA17: CoS | AB17: Lost
A18: =SUM($M66:$M90) -> 0 | B18: =SUM(Y$66:Y$90) -> 0 | C18: =SUM(N$66:N$90) -> 24 | D18: =SUM(Z$66:Z$90) -> 0 | E18: Continuing | F18: Break | AA18: Continuing | AB18: Break
A19: =SUM($O66:$O90) -> 0 | C19: =SUM(P$66:P$90) -> 0 | E19: Found | AA19: Found
A20: Alliance | C20: Gateway | AR20: 1 | AT20: 2 | AV20: 3 | AX20: 4 | AZ20: 5 | BB20: 6 | BD20: 7 | BF20: 8
A21: =COUNTIF(AL23:AL48,"All") -> 0 | C21: =COUNTIF(AL23:AL48, "Gate") -> 25 | AR21: 1 | AT21: 2 | AV21: 3 | AX21: 4 | AZ21: 5 | BB21: 6 | BD21: 7 | BF21: 8
B22: SDate | C22: EDate | D22: Lev End | AA22: Start | AB22: End Reason | AC22: Notes | AD22: I-20 Expires | AE22: F1 Agreement | AF22: Country | AH22: Birthday | AI22: Last Name | AJ22: First Name | AK22: Phone # | AL22: PRG | AM22: LB | AN22: ED | AO22: LE | AP22: NOTES | AR22: A | AS22: T | AT22: A | AU22: T | AV22: A | AW22: T | AX22: A | AY22: T | AZ22: A | BA22: T | BB22: A | BC22: T | BD22: A | BE22: T | BF22: A | BG22: T | BH22: 1 | BI22: 2 | BJ22: 3 | BK22: 4 | BL22: 5 | BM22: 6 | BN22: 7 | BO22: 8 | BR22: All | BS22: Gate
B23: 2008-03-03 | C23: 2008-06-19 | D23: 2008-06-19 | AA23: Continuing | AC23: Teacher Assistant GR 1 | AI23: Ramirez | AJ23: Hugo | AL23: Gate | AM23: W5 | AN23: S4 | AO23: S4 | BD23: 7 | BE23: 0 | BH23: F | BM23: F | BN23: F | BP23: =IF(AL23="All",32,IF(AL23="Gate",64,"")) -> 64 | BQ23: =IF(BP23="","",(BP23-BG65)/BP23) ->  | BR23: =IF(AL23="All",BQ23,"") ->  | BS23: =IF(AL23="Gate",BQ23,"") -> 
B24: 2008-03-03 | C24: 2008-06-19 | D24: 2008-06-19 | AA24: Continuing | AC24: Teacher Assistant IS | AI24: Ramirez | AJ24: Hugo | AL24: Gate | AM24: W5 | AN24: S4 | AO24: S4 | BD24: 6 | BE24: 0 | BN24: F | BP24: 64 | BQ24: =IF(BP24="","",(BP24-BG66)/BP24) -> 0.890625 | BS24: 0.890625
B25: 2008-03-31 | C25: 2008-07-17 | D25: 2008-07-17 | AA25: Continuing | AC25: GR 2 | AD25: 2008-10-24 | AE25: Yes | AF25: Bolivia | AH25: 2008-05-02 | AI25: Montecinos | AJ25: Carolina | AL25: Gate | AM25: W7 | AN25: S6 | AO25: S6 | BD25: 2 | BE25: 0 | BN25: F | BP25: 64 | BQ25: =IF(BP25="","",(BP25-BG67)/BP25) -> 0.90625 | BS25: 0.90625
B26: 2008-04-01 | C26: 2008-05-02 | D26: 2008-07-17 | AA26: Continuing | AC26: IS 2 | AE26: Yes | AF26: Mexico | AH26: 2008-07-15 | AI26: Pais | AJ26: Primo | AK26: 756-8854 | AL26: Gate | AM26: W7 | AN26: S1 | AO26: S6 | BD26: 0 | BE26: 0 | BN26: D- | BP26: 64 | BQ26: =IF(BP26="","",(BP26-BG68)/BP26) -> 0.96875 | BS26: 0.96875
B27: 2008-01-21 | C27: 2008-05-08 | D27: 2008-05-08 | AA27: Continuing | AC27: GR 3 | AD27: 2008-04-30 | AE27: Yes | AF27: Japan | AH27: 2008-10-25 | AI27: Nishime | AJ27: Mazaki | AK27: 691-6469 | AL27: Gate | AM27: W2 | AN27: S1 | AO27: S1 | AT27: 2 | AU27: 2 | AV27: 3 | AW27: 2 | AX27: 5 | AY27: 2 | AZ27: 1 | BA27: 2 | BB27: 2 | BC27: 1 | BD27: 2 | BE27: 1 | BI27: F | BJ27: F | BK27: F | BL27: C+ | BM27: F | BN27: B- | BP27: 64 | BQ27: =IF(BP27="","",(BP27-BG70)/BP27) -> 0.7135416667 | BS27: 0.7135416667
B28: 2008-01-07 | C28: 2008-04-24 | D28: 2008-04-24 | AA28: Continuing | AC28: GR 3 | AD28: 2008-04-24 | AE28: Yes | AF28: S. Korea | AH28: 2008-09-10 | AI28: Kim | AJ28: Su Jung | AK28: (801) 787-1522 | AL28: Gate | AM28: W1 | AN28: W8 | AO28: W8 | AT28: 0 | AU28: 0 | AV28: 2 | AW28: 0 | AX28: 1 | AY28: 0 | AZ28: 1 | BA28: 0 | BB28: 1 | BC28: 1 | BD28: 1 | BE28: 0 | BI28: A | BJ28: C- | BK28: C | BL28: C+ | BM28: B+ | BN28: D+ | BP28: 64 | BQ28: =IF(BP28="","",(BP28-BG71)/BP28) -> 0.9010416667 | BS28: 0.9010416667
B29: 2008-01-07 | C29: 2008-04-24 | D29: 2008-04-24 | AA29: Continuing | AC29: IS 3 | AD29: 2008-04-24 | AE29: Yes | AF29: Korean | AH29: 2008-07-20 | AI29: Kim | AJ29: Hanjun | AK29: 717-6642 | AL29: Gate | AM29: W1 | AN29: W8 | AO29: W8 | AR29: 1 | AS29: 0 | AT29: 1 | AU29: 0 | AV29: 0 | AW29: 0 | AX29: 0 | AY29: 0 | AZ29: 0 | BA29: 0 | BB29: 0 | BC29: 0 | BD29: 1 | BE29: 0 | BI29: A | BJ29: A | BK29: A | BL29: A- | BM29: F | BN29: D | BP29: 64 | BQ29: =IF(BP29="","",(BP29-BG72)/BP29) -> 0.953125 | BS29: 0.953125
B30: 2008-02-05 | C30: 2008-05-22 | D30: 2008-05-22 | AA30: Continuing | AC30: Novels 3M | AD30: 2008-05-23 | AE30: Yes | AF30: Mexico | AH30: 2008-06-11 | AI30: Cabrera | AJ30: Maria Luisa | AK30: 427-4956 | AL30: Gate | AM30: W3 | AN30: S2 | AO30: S2 | AX30: 0 | AY30: 0 | AZ30: 1 | BA30: 0 | BB30: 0 | BC30: 0 | BD30: 1 | BE30: 0 | BJ30: A | BK30: A | BL30: F | BM30: C | BN30: F | BP30: 64 | BQ30: 0.953125 | BS30: 0.953125
B31: 2008-02-18 | C31: 2008-06-05 | D31: 2008-06-05 | AA31: Continuing | AC31: Novels 3M | AD31: 2008-06-06 | AE31: Yes | AF31: Mexico | AH31: 2008-08-20 | AI31: Cedillo | AJ31: Karina | AK31: 687-4476 | AL31: Gate | AM31: W4 | AN31: S3 | AO31: S3 | AX31: 0 | AY31: 0 | AZ31: 1 | BA31: 0 | BB31: 0 | BC31: 0 | BD31: 2 | BE31: 0 | BK31: A | BL31: D | BM31: A | BN31: F | BP31: 64 | BQ31: 0.953125 | BS31: 0.953125
B32: 2007-02-18 | C32: 2008-06-05 | D32: 2008-06-05 | AA32: Continuing | AC32: Novels 3M | AD32: 2008-04-18 | AE32: Yes | AF32: Haiti | AH32: 2008-01-30 | AI32: Doreme | AJ32: Smith | AK32: 687-0065 | AL32: Gate | AM32: W4 | AN32: S3 | AO32: S3 | AX32: 0 | AY32: 0 | AZ32: 2 | BA32: 0 | BB32: 0 | BC32: 0 | BD32: 1 | BE32: 0 | BK32: A | BL32: F | BM32: B+ | BN32: C- | BP32: 64 | BQ32: 0.953125 | BS32: 0.953125
B33: 2008-01-07 | C33: 2008-04-24 | D33: 2008-04-24 | AA33: Continuing | AC33: Novels 3M | AD33: 2008-04-24 | AE33: Yes | AF33: Korean | AH33: 2008-07-20 | AI33: Kim | AJ33: Hanjun | AK33: 717-6642 | AL33: Gate | AM33: W1 | AN33: W8 | AO33: W8 | AR33: 1 | AS33: 0 | AT33: 1 | AU33: 0 | AX33: 0 | AY33: 0 | AZ33: 0 | BA33: 0 | BB33: 0 | BC33: 0 | BD33: 2 | BE33: 0 | BI33: A- | BJ33: A | BK33: A | BL33: A | BM33: D | BN33: F | BP33: 64 | BQ33: 0.953125 | BS33: 0.953125
B34: 2008-01-07 | C34: 2008-04-24 | D34: 2008-04-24 | AA34: Continuing | AC34: Novels 3M | AD34: 2008-04-24 | AE34: Yes | AF34: S. Korea | AH34: 2008-09-10 | AI34: Kim | AJ34: Su Jung | AK34: (801) 787-1522 | AL34: Gate | AM34: W1 | AN34: W8 | AO34: W8 | AT34: 0 | AU34: 0 | AX34: 1 | AY34: 0 | AZ34: 0 | BA34: 0 | BB34: 0 | BC34: 0 | BD34: 2 | BE34: 0 | BI34: A | BJ34: A | BK34: B | BL34: B- | BM34: C | BN34: D- | BP34: 64 | BQ34: 0.96875 | BS34: 0.96875
B35: 2008-01-21 | C35: 2008-05-08 | D35: 2008-05-08 | AA35: Continuing | AC35: Novels 3M | AD35: 2008-04-30 | AE35: Yes | AF35: Japan | AH35: 2008-10-25 | AI35: Nishime | AJ35: Mazaki | AK35: 691-6469 | AL35: Gate | AM35: W2 | AN35: S1 | AO35: S1 | AT35: 0 | AU35: 0 | AX35: 0 | AY35: 0 | AZ35: 1 | BA35: 0 | BB35: 0 | BC35: 0 | BD35: 1 | BE35: 0 | BI35: A | BJ35: C | BK35: A | BL35: F | BM35: A- | BN35: F | BP35: 64 | BQ35: 0.9375 | BS35: 0.9375
B36: 2008-02-19 | C36: 2008-06-05 | D36: 2008-06-05 | AA36: Continuing | AC36: Novels 3M | AE36: Yes | AF36: Peru | AH36: 2008-05-23 | AI36: Peralta | AJ36: Ana | AK36: 770-361-0179 | AL36: Gate | AM36: W4 | AN36: S3 | AO36: S3 | AX36: 0 | AY36: 0 | AZ36: 1 | BA36: 0 | BB36: 1 | BC36: 0 | BD36: 2 | BE36: 0 | BK36: A | BL36: F | BM36: C | BN36: D- | BP36: 64 | BQ36: 1 | BS36: 1
B37: 2008-02-04 | C37: 2008-05-22 | D37: 2008-05-22 | AA37: Continuing | AC37: GR 4A | AD37: 2008-02-17 | AE37: No | AF37: Peru | AH37: 2008-11-15 | AI37: Virrueta | AJ37: Rodrigo | AL37: Gate | AM37: W3 | AN37: S2 | AO37: S2 | AV37: 0 | AW37: 3 | AX37: 5 | AY37: 0 | BB37: 3 | BC37: 1 | BD37: 2 | BE37: 1 | BJ37: C | BK37: F | BM37: B+ | BN37: C | BP37: =IF(AL37="All",32,IF(AL37="Gate",64,"")) -> 64 | BQ37: =IF(BP37="","",(BP37-BG73)/BP37) -> 0.96875 | BR37: =IF(AL37="All",BQ37,"") ->  | BS37: =IF(AL37="Gate",BQ37,"") -> 0.96875
B38: 2008-02-18 | C38: 2008-04-11 | D38: 2008-04-11 | AA38: Continuing | AC38: Novels 4A | AE38: No | AF38: France | AH38: 2008-03-31 | AI38: Bamy | AJ38: Clement | AL38: Gate | AM38: W4 | AN38: S3 | AO38: S3 | AX38: 1 | AY38: 0 | AZ38: 0 | BA38: 0 | BB38: 0 | BC38: 0 | BD38: 2 | BE38: 0 | BK38: F | BL38: A | BM38: C | BN38: F | BP38: =IF(AL38="All",32,IF(AL38="Gate",64,"")) -> 64 | BQ38: =IF(BP38="","",(BP38-BG80)/BP38) -> 0.8177083333 | BR38: =IF(AL38="All",BQ38,"") ->  | BS38: =IF(AL38="Gate",BQ38,"") -> 0.8177083333
B39: 2008-01-08 | C39: 2008-04-24 | D39: 2008-04-24 | AA39: Continuing | AC39: GR 4B | AD39: 2007-12-13 | AE39: Yes | AF39: Mexico | AH39: 2008-04-01 | AI39: Arredondo | AJ39: Carlos | AL39: Gate | AM39: W1 | AN39: W8 | AO39: W8 | AZ39: 1 | BA39: 2 | BB39: 1 | BC39: 0 | BD39: 4 | BE39: 2 | BK39: F | BL39: F | BM39: D+ | BN39: F | BP39: 64 | BQ39: 0.8854166667 | BS39: 0.8854166667
B40: 2008-02-18 | C40: 2008-06-05 | D40: 2008-06-05 | AA40: Continuing | AC40: GR 4B | AD40: 2008-06-06 | AE40: Yes | AF40: Mexico | AH40: 2008-10-02 | AI40: Garza | AJ40: Erika Natalia | AK40: 5527-6430 | AL40: Gate | AM40: W4 | AN40: S3 | AO40: S3 | AZ40: 5 | BA40: 1 | BB40: 0 | BC40: 3 | BD40: 2 | BE40: 5 | BK40: B- | BL40: F | BM40: C- | BN40: D | BP40: 64 | BQ40: 0.84375 | BS40: 0.84375
B41: 2008-01-08 | C41: 2008-04-24 | D41: 2008-04-24 | AA41: Continuing | AC41: GR 4B | AD41: 2008-08-16 | AE41: Yes | AF41: Mexico | AH41: 2008-04-01 | AI41: Hernandez | AJ41: Doris | AL41: Gate | AM41: W1 | AN41: W8 | AO41: W8 | AR41: 1 | AS41: 1 | AT41: 2 | AU41: 4 | AV41: 2 | AW41: 2 | AZ41: 1 | BA41: 4 | BB41: 2 | BC41: 3 | BD41: 3 | BE41: 4 | BH41: C+ | BJ41: D- | BK41: F | BL41: F | BM41: D- | BN41: F | BP41: 64 | BQ41: 0.734375 | BS41: 0.734375
B42: 2008-01-08 | C42: 2008-04-24 | D42: 2008-04-24 | AA42: Continuing | AC42: IS 4B | AD42: 2007-12-13 | AE42: Yes | AF42: Mexico | AH42: 2008-04-01 | AI42: Arredondo | AJ42: Carlos | AL42: Gate | AM42: W1 | AN42: W8 | AO42: W8 | AZ42: 3 | BA42: 0 | BB42: 0 | BC42: 0 | BD42: 1 | BE42: 0 | BK42: B+ | BL42: C | BM42: A- | BN42: D | BP42: =IF(AL42="All",32,IF(AL42="Gate",64,"")) -> 64 | BQ42: =IF(BP42="","",(BP42-BG84)/BP42) -> 0.734375 | BR42: =IF(AL42="All",BQ42,"") ->  | BS42: =IF(AL42="Gate",BQ42,"") -> 0.734375
B43: 2008-02-04 | C43: 2008-05-22 | D43: 2008-05-22 | AA43: Continuing | AC43: GR 5A | AD43: 2008-01-31 | AE43: Yes | AF43: Haiti | AH43: 2008-11-07 | AI43: Dupuy | AJ43: Rob | AK43: 636-4524 | AL43: Gate | AM43: W3 | AN43: S2 | AO43: S2 | AT43: 0 | AU43: 1 | AV43: 5 | AW43: 0 | AX43: 3 | AY43: 1 | AZ43: 2 | BA43: 0 | BB43: 6 | BC43: 0 | BD43: 4 | BE43: 1 | BI43: B- | BK43: C | BM43: F | BN43: C+ | BP43: 64 | BQ43: 0.671875 | BS43: 0.671875
B44: 2008-01-21 | C44: 2008-05-08 | D44: 2008-05-08 | AA44: Continuing | AC44: GR 5A | AD44: 2008-02-28 | AE44: Yes | AF44: Mali | AH44: 2008-01-05 | AI44: Fofana | AJ44: Kadiatou | AK44: 735-2453 | AL44: Gate | AM44: W2 | AN44: S1 | AO44: S1 | AT44: 2 | AU44: 0 | AV44: 5 | AW44: 0 | AX44: 4 | AY44: 0 | AZ44: 1 | BA44: 0 | BB44: 1 | BC44: 0 | BD44: 4 | BE44: 0 | BI44: F | BK44: B- | BM44: F | BN44: F | BP44: 64 | BQ44: 0.734375 | BS44: 0.734375
B45: 2008-01-07 | C45: 2008-04-25 | D45: 2008-04-25 | AA45: Continuing | AC45: GR 5A | AD45: 2008-04-24 | AE45: No | AF45: Peru | AH45: 2008-10-22 | AI45: Palma | AJ45: Lucero | AL45: Gate | AM45: W1 | AN45: W8 | AO45: W8 | AT45: 3 | AU45: 0 | AV45: 0 | AW45: 0 | AX45: 0 | AY45: 1 | AZ45: 0 | BA45: 0 | BB45: 1 | BC45: 0 | BD45: 4 | BE45: 2 | BI45: B+ | BK45: B | BM45: B | BN45: D+ | BP45: 64
B46: 2008-02-04 | C46: 2008-05-22 | D46: 2008-05-22 | AA46: Continuing | AC46: GR 5A | AD46: 2008-12-07 | AE46: Yes | AF46: Ukraine | AH46: 2008-01-09 | AI46: Pokhylko | AJ46: Dasha | AL46: Gate | AM46: W3 | AN46: S2 | AO46: S2 | BD46: 4 | BE46: 0 | BK46: F | BN46: F | BP46: 64 | BQ46: 0.9375 | BS46: 0.9375
B47: 2008-02-04 | C47: 2008-05-22 | D47: 2008-05-22 | AA47: Continuing | AC47: GR 5A | AD47: 2008-05-23 | AE47: Yes | AF47: Chile | AH47: 2008-09-05 | AI47: Wilhelm | AJ47: Constanza | AK47: 801-687-5602 | AL47: Gate | AM47: W3 | AN47: S2 | AO47: S2 | AV47: 1 | AW47: 0 | AX47: 1 | AY47: 0 | AZ47: 0 | BA47: 1 | BB47: 0 | BC47: 1 | BD47: 4 | BE47: 2 | BK47: A- | BM47: A- | BN47: F | BP47: 64 | BQ47: 0.8854166667 | BS47: 0.8854166667
BP48: =IF(AL48="All",32,IF(AL48="Gate",64,"")) ->  | BQ48: =IF(BP48="","",(BP48-BG90)/BP48) ->  | BR48: =IF(AL48="All",BQ48,"") ->  | BS48: =IF(AL48="Gate",BQ48,"") -> 
B53: Country count
B54: =Reports!#REF! ->  | C54: =COUNTIF($AG$23:$AG$48,Reports!#REF!) -> 0 | D54: =COUNTIF($AF$23:$AF$48,Reports!#REF!) -> 0 | AI54: CIN# : | AL54: =IF(AD1=0,"",AD1) -> 
B55: =Reports!I64 -> 0 | C55: =COUNTIF($AG$23:$AG$48,Reports!I64) -> 0 | D55: =COUNTIF($AF$23:$AF$48,Reports!I64) -> 0 | AI55: Teacher: | AL55: =IF(AD2=0,"",AD2) -> status issues
B56: =Reports!J35 -> Africa | C56: =COUNTIF($AG$23:$AG$48,Reports!J35) -> 0 | D56: =COUNTIF($AF$23:$AF$48,Reports!J35) -> 0 | AI56: Class: | AL56: =IF(AD3=0,"",AD3) ->  | AT56: =AL58 -> 
B57: =Reports!J36 -> Argentina | C57: =COUNTIF($AG$23:$AG$48,Reports!J36) -> 0 | D57: =COUNTIF($AF$23:$AF$48,Reports!J36) -> 0 | AI57: Students: | AL57: =COUNTA(AI23:AI48) -> 25
B58: =Reports!J39 -> Cape Verde | C58: =COUNTIF($AG$23:$AG$48,Reports!J37) -> 0 | D58: =COUNTIF($AF$23:$AF$48,Reports!J37) -> 1 | AI58: Level: | AL58: =IF(AD5=0,"",AD5) -> 
B59: =Reports!J37 -> Bolivia | C59: =COUNTIF($AG$23:$AG$48,Reports!J38) -> 0 | D59: =COUNTIF($AF$23:$AF$48,Reports!J38) -> 0 | AI59: Time: | AL59: =IF(AD6=0,"",AD6) ->  | BF59: Legend
B60: =Reports!J38 -> Brazil | C60: =COUNTIF($AG$23:$AG$48,Reports!J39) -> 0 | D60: =COUNTIF($AF$23:$AF$48,Reports!J39) -> 0 | AI60: Day: | AL60: =IF(AD7=0,"",AD7) ->  | BF60: Present | BI60: Absent | BL60: Tardy | BY60: Time: | BZ60: =AD6 -> 00:00:00
B61: =Reports!J40 -> Chile | C61: =COUNTIF($AG$23:$AG$48,Reports!J40) -> 0 | D61: =COUNTIF($AF$23:$AF$48,Reports!J40) -> 1 | AI61: Room: | AL61: =IF(AD8=0,"",AD8) ->  | BR61: Block: | BS61: =AD9 -> W7 | BT61: Date: | BV61: =AF1 ->  | CF61: Grade Report
B62: =Reports!J41 -> China | C62: =COUNTIF($AG$23:$AG$48,Reports!J41) -> 0 | D62: =COUNTIF($AF$23:$AF$48,Reports!J41) -> 0 | AI62: Block: | AL62: =IF(AD9=0,"",AD9) -> W7 | AN62: Date: | AR62: =IF(AF1=0,"",AF1) ->  | BR62: Class: | BS62: =AD3 -> 0 | BT62: Level: | BV62: =AF3 -> 0 | BW62: Teacher: | BY62: =AD2 -> status issues | CB62: Points | CC62: Homework Assignments/pts possible | CM62: Points | CT62: Points | CW62: Points | CX62: GRADE
B63: =Reports!J42 -> Columbia | C63: =COUNTIF($AG$23:$AG$48,Reports!J42) -> 0 | D63: =COUNTIF($AF$23:$AF$48,Reports!J42) -> 0 | BT63: Attendance | CN63: QUIZ | CO63: QUIZ | CP63: QUIZ | CQ63: QUIZ | CR63: QUIZ | CS63: QUIZ | CU63: Vocab | CV63: Test
B64: =Reports!J43 -> Costa Rica | C64: =COUNTIF($AG$23:$AG$48,Reports!J43) -> 0 | D64: =COUNTIF($AF$23:$AF$48,Reports!J43) -> 0 | E64: =AA14 -> New | G64: =AA15 -> Add\Drop | I64: =AA16 -> Transfer In | K64: =AA17 -> CoS | M64: =AA18 -> Continuing | O64: =AA19 -> Found | Q64: =AB14 -> Finished | S64: =AB15 -> Transfer Out | U64: =AB16 -> Vacation | W64: =AB17 -> Lost | Y64: =AB18 -> Break | AO64: =AR62 ->  | AQ64: =AO64+1 ->  | AS64: =AQ64+1 ->  | AU64: =AS64+1 ->  | AW64: =AR62+7 ->  | AY64: =AW64+1 ->  | BA64: =AY64+1 ->  | BC64: =BA64+1 ->  | BE64: Attendance | BH64: Block Grades | BT64: M | BU64: T | BV64: W | BW64: TH | BX64: M | BY64: T | BZ64: W | CA64: TH
B65: =Reports!J44 -> Dominican Republic | C65: =COUNTIF($AG$23:$AG$48,Reports!J44) -> 0 | D65: =COUNTIF($AF$23:$AF$48,Reports!J44) -> 0 | E65: All | F65: Gate | G65: All | H65: Gate | I65: All | J65: Gate | K65: All | L65: Gate | M65: All | N65: Gate | O65: All | P65: Gate | Q65: All | R65: Gate | S65: All | T65: Gate | U65: All | V65: Gate | W65: All | X65: Gate | Y65: All | Z65: Gate | AH65: Notes | AI65: =AI22 -> Last Name | AJ65: =AJ22 -> First Name | AK65: =AK22 -> Phone # | AL65: PRG | AM65: LB | AN65: LE | AO65: =IF($AL$60="SAT",1,"M") -> M | AQ65: =IF($AL$60="SAT",2,"TU") -> TU | AS65: =IF($AL$60="SAT",3,"W") -> W | AU65: =IF($AL$60="SAT",4,"TH") -> TH | AW65: =IF($AL$60="SAT",5,"M") -> M | AY65: =IF($AL$60="SAT",6,"TU") -> TU | BA65: =IF($AL$60="SAT",7,"W") -> W | BC65: =IF($AL$60="SAT",8,"TH") -> TH | BE65: A | BF65: T | BG65: Att. | BH65: 1 | BI65: 2 | BJ65: 3 | BK65: 4 | BL65: 5 | BM65: 6 | BN65: 7 | BO65: 8 | BP65: GPA | BQ65: GRD | BR65: Student | BS65: Points Possible? | CB65: =SUM(BT65:CA65) -> 0 | CM65: =SUM(CC65:CL65) -> 0 | CT65: =SUM(CN65:CS65) -> 0 | CW65: =SUM(CU65:CV65) -> 0 | CY65: Grading Scale
B66: =Reports!J45 -> Ecuador | C66: =COUNTIF($AG$23:$AG$48,Reports!J45) -> 0 | D66: =COUNTIF($AF$23:$AF$48,Reports!J45) -> 0 | E66: =IF($AA23="","",IF($AL23=E$65,COUNTIF($AA23,$AA$14),"")) ->  | F66: 0 | G66: =IF($AA23="","",IF($AL23=G$65,COUNTIF($AA23,$AA$15),"")) ->  | H66: 0 | I66: =IF($AA23="","",IF($AL23=I$65,COUNTIF($AA23,$AA$16),"")) ->  | J66: 0 | K66: =IF($AA23="","",IF($AL23=K$65,COUNTIF($AA23,$AA$17),"")) ->  | L66: 0 | M66: =IF($AA23="","",IF($AL23=M$65,COUNTIF($AA23,$AA$18),"")) ->  | N66: 1 | O66: =IF($AA23="","",IF($AL23=O$65,COUNTIF($AA23,$AA$19),"")) ->  | P66: 0 | Q66: =IF($AB23="","",IF($AL23=Q$65,COUNTIF($AB23,$AB$14),"")) ->  | S66: =IF($AB23="","",IF($AL23=S$65,COUNTIF($AB23,$AB$15),"")) ->  | U66: =IF($AB23="","",IF($AL23=U$65,COUNTIF($AB23,$AB$16),"")) ->  | W66: =IF($AB23="","",IF($AL23=W$65,COUNTIF($AB23,$AB$17),"")) ->  | Y66: =IF($AB23="","",IF($AL23=Y$65,COUNTIF($AB23,$AB$18),"")) ->  | AH66: GR 3 M | AI66: =IF(AI23=0,"",AI23) -> Ramirez | AJ66: Hugo | AL66: Gate | AM66: W5 | AN66: =IF(AO23=0,"",AO23) -> S4 | AO66: =IF($AM66=$AE$9,1,IF($D23>0,IF($AL$60="T,TH",1,IF($AL66="All",1,"")),"")) ->  | AQ66: =IF($D23>0,IF($AM66=$AE$9,1,IF($AL$60="M,W",1,IF($AL$56="Grammar","",1))),"") ->  | AS66: =IF($D23>0,IF($AM66=$AE$9,1,IF($AL$60="T,TH",1,IF($AL$56="Grammar","",1))),"") ->  | AU66: =AQ66 ->  | AW66: =AO66 ->  | AY66: =AQ66 ->  | BA66: =AS66 ->  | BC66: =AU66 ->  | BE66: =IF($B23>0,(AR23+AT23+AV23+AX23+AZ23+BB23+BD23+BF23),"") -> 7 | BF66: =IF($B23>0,(AS23+AU23+AW23+AY23+BA23+BC23+BE23+BG23),"") -> 0 | BG66: =IF(B23>0,(BF66/3)+BE66,"") -> 7 | BH66: =IF(BH23=0,"",BH23) -> F | BM66: F | BN66: F | BP66: =IF(SUM(AI95:AR95)=0,"",AVERAGE(AI95:AR95)) -> 0.01 | BQ66: =CONCATENATE(" ",BC94,BD94,BE94,BF94,BG94,BH94,BI94,BJ94,BK94,BL94,BM94,BN94) -> F | BR66: =IF(AI23="","",AI23) -> Ramirez | BS66: =IF(AJ23="","",AJ23) -> Hugo | CB66: =IF(BT66="","",SUM(BT66:CA66)) ->  | CM66: =IF(CC66="","",SUM(CC66:CL66)) ->  | CT66: =IF(CN66="","",SUM(CN66:CS66)) ->  | CW66: =IF(CU66="","",SUM(CU66:CV66)) ->  | CX66: =IF(BR66="","",IF(BT66="","",(((CB66/CB$65)*0.25)+((CM66/CM$65)*0.25)+((CT66/CT$65)*0.25)+((CW66/CW$65)*0.25))*100)) ->  | CY66: A = 93%+
B67: =Reports!J46 -> El Salvador | C67: =COUNTIF($AG$23:$AG$48,Reports!J46) -> 0 | D67: =COUNTIF($AF$23:$AF$48,Reports!J46) -> 0 | F67: 0 | H67: 0 | J67: 0 | L67: 0 | N67: 1 | P67: 0 | AH67: GR 3 M | AI67: Ramirez | AJ67: Hugo | AL67: Gate | AM67: W5 | AN67: S4 | BE67: 6 | BF67: 0 | BG67: 6 | BN67: F | BP67: 0.01 | BQ67: F | BR67: Ramirez | BS67: Hugo | CY67: A- = 90-92%
B68: =Reports!J47 -> France | C68: =COUNTIF($AG$23:$AG$48,Reports!J47) -> 0 | D68: =COUNTIF($AF$23:$AF$48,Reports!J47) -> 1 | F68: 0 | H68: 0 | J68: 0 | L68: 0 | N68: 1 | P68: 0 | AH68: GR 3 M | AI68: Montecinos | AJ68: Carolina | AL68: Gate | AM68: W7 | AN68: S6 | BE68: 2 | BF68: 0 | BG68: 2 | BN68: F | BP68: 0.01 | BQ68: F | BR68: Montecinos | BS68: Carolina | CY68: B+ = 87-89%
B69: =Reports!J48 -> Guatemala | C69: =COUNTIF($AG$23:$AG$48,Reports!J48) -> 0 | D69: =COUNTIF($AF$23:$AF$48,Reports!J48) -> 0 | F69: 0 | H69: 0 | J69: 0 | L69: 0 | N69: 1 | P69: 0 | AH69: GR 3 M | AI69: Pais | AJ69: Primo | AK69: 756-8854 | AL69: Gate | AM69: W7 | AN69: S6 | BE69: 0 | BF69: 0 | BG69: 0 | BN69: D- | BP69: 0.7 | BQ69: D– | BR69: Pais | BS69: Primo | CY69: B = 83-86%
B70: =Reports!J49 -> Honoduras | C70: =COUNTIF($AG$23:$AG$48,Reports!J49) -> 0 | D70: =COUNTIF($AF$23:$AF$48,Reports!J49) -> 0 | F70: 0 | H70: 0 | J70: 0 | L70: 0 | N70: 1 | P70: 0 | AH70: IS 3 | AI70: Nishime | AJ70: Mazaki | AK70: 691-6469 | AL70: Gate | AM70: W2 | AN70: S1 | BE70: 15 | BF70: 10 | BG70: 18.33333333 | BI70: F | BJ70: F | BK70: F | BL70: C+ | BM70: F | BN70: B- | BP70: 0.8566666667 | BQ70: D | BR70: Nishime | BS70: Mazaki | CY70: B- = 80-82%
B71: =Reports!J50 -> Italy | C71: =COUNTIF($AG$23:$AG$48,Reports!J50) -> 0 | D71: =COUNTIF($AF$23:$AF$48,Reports!J50) -> 0 | F71: 0 | H71: 0 | J71: 0 | L71: 0 | N71: 1 | P71: 0 | AH71: IS 3 | AI71: Kim | AJ71: Su Jung | AK71: (801) 787-1522 | AL71: Gate | AM71: W1 | AN71: W8 | BE71: 6 | BF71: 1 | BG71: 6.333333333 | BI71: A | BJ71: C- | BK71: C | BL71: C+ | BM71: B+ | BN71: D+ | BP71: 2.483333333 | BQ71: B– | BR71: Kim | BS71: Su Jung | CY71: C+ = 77-79%
B72: =Reports!J51 -> Japan | C72: =COUNTIF($AG$23:$AG$48,Reports!J51) -> 0 | D72: =COUNTIF($AF$23:$AF$48,Reports!J51) -> 2 | F72: 0 | H72: 0 | J72: 0 | L72: 0 | N72: 1 | P72: 0 | AH72: Novels 3 M | AI72: Kim | AJ72: Hanjun | AK72: 717-6642 | AL72: Gate | AM72: W1 | AN72: W8 | BE72: 3 | BF72: 0 | BG72: 3 | BI72: A | BJ72: A | BK72: A | BL72: A- | BM72: F | BN72: D | BP72: 2.785 | BQ72: B | BR72: Kim | BS72: Hanjun | CY72: C = 73-76%
B73: =Reports!J52 -> Korea | C73: =COUNTIF($AG$23:$AG$48,Reports!J52) -> 0 | D73: =COUNTIF($AF$23:$AF$48,Reports!J52) -> 0 | F73: 0 | H73: 0 | J73: 0 | L73: 0 | N73: 1 | P73: 0 | AH73: Novels 3 M | AI73: Cabrera | AJ73: Maria Luisa | AK73: 427-4956 | AL73: Gate | AM73: W3 | AN73: S2 | BE73: 2 | BF73: 0 | BG73: 2 | BJ73: A | BK73: A | BL73: F | BM73: C | BN73: F | BP73: 2.004 | BQ73: C+ | BR73: Cabrera | BS73: Maria Luisa | CY73: C- = 70-72%
B74: =Reports!J53 -> Madagascar | C74: =COUNTIF($AG$23:$AG$48,Reports!J53) -> 0 | D74: =COUNTIF($AF$23:$AF$48,Reports!J53) -> 0 | F74: 0 | H74: 0 | J74: 0 | L74: 0 | N74: 1 | P74: 0 | AH74: Novels 3 M | AI74: Cedillo | AJ74: Karina | AK74: 687-4476 | AL74: Gate | AM74: W4 | AN74: S3 | BE74: 3 | BF74: 0 | BG74: 3 | BK74: A | BL74: D | BM74: A | BN74: F | BP74: 2.2525 | BQ74: C+ | BR74: Cedillo | BS74: Karina | CY74: D+ = 67-69%
B75: =Reports!J54 -> Mexico | C75: =COUNTIF($AG$23:$AG$48,Reports!J54) -> 0 | D75: =COUNTIF($AF$23:$AF$48,Reports!J54) -> 7 | F75: 0 | H75: 0 | J75: 0 | L75: 0 | N75: 1 | P75: 0 | AH75: Novels 3 M | AI75: Doreme | AJ75: Smith | AK75: 687-0065 | AL75: Gate | AM75: W4 | AN75: S3 | BE75: 3 | BF75: 0 | BG75: 3 | BK75: A | BL75: F | BM75: B+ | BN75: C- | BP75: 2.2775 | BQ75: C+ | BR75: Doreme | BS75: Smith | CY75: D = 63-66%
B76: =Reports!J55 -> Mongolia | C76: =COUNTIF($AG$23:$AG$48,Reports!J55) -> 0 | D76: =COUNTIF($AF$23:$AF$48,Reports!J55) -> 0 | F76: 0 | H76: 0 | J76: 0 | L76: 0 | N76: 1 | P76: 0 | AH76: Novels 3 M | AI76: Kim | AJ76: Hanjun | AK76: 717-6642 | AL76: Gate | AM76: W1 | AN76: W8 | BE76: 4 | BF76: 0 | BG76: 4 | BH76: =IF(BH33=0,"",BH33) ->  | BI76: A- | BJ76: A | BK76: A | BL76: A | BM76: D | BN76: F | BP76: 2.785 | BQ76: B | BR76: Kim | BS76: Hanjun | CY76: D- = 60-62%
B77: =Reports!J56 -> Peru | C77: =COUNTIF($AG$23:$AG$48,Reports!J56) -> 0 | D77: =COUNTIF($AF$23:$AF$48,Reports!J56) -> 3 | F77: 0 | H77: 0 | J77: 0 | L77: 0 | N77: 1 | P77: 0 | AH77: GR 4A | AI77: Kim | AJ77: Su Jung | AK77: (801) 787-1522 | AL77: Gate | AM77: W1 | AN77: W8 | BE77: 3 | BF77: 0 | BG77: 3 | BI77: A | BJ77: A | BK77: B | BL77: B- | BM77: C | BN77: D- | BP77: 2.733333333 | BQ77: B | BR77: Kim | BS77: Su Jung | CY77: F = 0-59%
B78: =Reports!J57 -> Puerto Rico | C78: =COUNTIF($AG$23:$AG$48,Reports!J57) -> 0 | D78: =COUNTIF($AF$23:$AF$48,Reports!J57) -> 0 | F78: 0 | H78: 0 | J78: 0 | L78: 0 | N78: 1 | P78: 0 | AH78: IS 4A | AM78: =IF(AM35=0,"",AM35) -> W2 | AN78: S1 | BE78: 2 | BF78: 0 | BG78: 2 | BI78: A | BJ78: C | BK78: A | BL78: F | BM78: A- | BN78: F | BP78: 2.286666667 | BQ78: C+ | BR78: Nishime | BS78: Mazaki
B79: =Reports!J58 -> Rusia | C79: =COUNTIF($AG$23:$AG$48,Reports!J58) -> 0 | D79: =COUNTIF($AF$23:$AF$48,Reports!J58) -> 0 | F79: 0 | H79: 0 | J79: 0 | L79: 0 | N79: 1 | P79: 0 | AH79: Novels 4A | AI79: =IF(AI36=0,"",AI36) -> Peralta | AJ79: Ana | AK79: 770-361-0179 | AL79: Gate | AM79: W4 | AN79: S3 | BE79: 4 | BF79: 0 | BG79: 4 | BK79: A | BL79: F | BM79: C | BN79: D- | BP79: 1.6775 | BQ79: C– | BR79: Peralta | BS79: Ana
B80: =Reports!J59 -> Spain | C80: =COUNTIF($AG$23:$AG$48,Reports!J59) -> 0 | D80: =COUNTIF($AF$23:$AF$48,Reports!J59) -> 0 | F80: 0 | H80: 0 | J80: 0 | L80: 0 | N80: 1 | P80: 0 | AH80: Novels 4A | AI80: Virrueta | AJ80: Rodrigo | AL80: Gate | AM80: W3 | AN80: S2 | BE80: 10 | BF80: 5 | BG80: 11.66666667 | BJ80: C | BK80: F | BM80: B+ | BN80: C | BP80: 1.8525 | BQ80: C | BR80: Virrueta | BS80: Rodrigo
B81: =Reports!J60 -> Tahiti | C81: =COUNTIF($AG$23:$AG$48,Reports!J60) -> 0 | D81: =COUNTIF($AF$23:$AF$48,Reports!J60) -> 0 | F81: 0 | H81: 0 | J81: 0 | L81: 0 | N81: 1 | P81: 0 | AH81: GR 4B | AI81: Bamy | AJ81: Clement | AL81: Gate | AM81: W4 | AN81: S3 | BE81: 3 | BF81: 0 | BG81: 3 | BK81: F | BL81: A | BM81: C | BN81: F | BP81: 1.505 | BQ81: C– | BR81: Bamy | BS81: Clement
B82: =Reports!J61 -> Taiwan | C82: =COUNTIF($AG$23:$AG$48,Reports!J61) -> 0 | D82: =COUNTIF($AF$23:$AF$48,Reports!J61) -> 0 | F82: 0 | H82: 0 | J82: 0 | L82: 0 | N82: 1 | P82: 0 | AH82: GR 4B | AI82: Arredondo | AJ82: Carlos | AL82: Gate | AM82: W1 | AN82: W8 | BE82: 6 | BF82: 4 | BG82: 7.333333333 | BK82: F | BL82: F | BM82: D+ | BN82: F | BP82: 0.3575 | BQ82: D– | BR82: Arredondo | BS82: Carlos
B83: =Reports!J63 -> Venezuela | C83: =COUNTIF($AG$23:$AG$48,Reports!J63) -> 0 | D83: =COUNTIF($AF$23:$AF$48,Reports!J63) -> 0 | F83: 0 | H83: 0 | J83: 0 | L83: 0 | N83: 1 | P83: 0 | AH83: GR 4B | AI83: Garza | AJ83: Erika Natalia | AK83: 5527-6430 | AL83: Gate | AM83: W4 | AN83: S3 | BE83: 7 | BF83: 9 | BG83: 10 | BK83: B- | BL83: F | BM83: C- | BN83: D | BP83: 1.3525 | BQ83: D+ | BR83: Garza | BS83: Erika Natalia
B84: =Reports!J62 -> Uruguay | C84: =COUNTIF($AG$23:$AG$48,Reports!J62) -> 0 | D84: =COUNTIF($AF$23:$AF$48,Reports!J62) -> 0 | F84: 0 | H84: 0 | J84: 0 | L84: 0 | N84: 1 | P84: 0 | AH84: IS 4B | AI84: Hernandez | AJ84: Doris | AL84: Gate | AM84: W1 | AN84: W8 | BE84: 11 | BF84: 18 | BG84: 17 | BH84: C+ | BJ84: D- | BK84: F | BL84: F | BM84: D- | BN84: F | BP84: 0.6383333333 | BQ84: D– | BR84: Hernandez | BS84: Doris
F85: 0 | H85: 0 | J85: 0 | L85: 0 | N85: 1 | P85: 0 | AH85: Novels 4B | AI85: Arredondo | AJ85: Carlos | AL85: Gate | AM85: W1 | AN85: W8 | BE85: 4 | BF85: 0 | BG85: 4 | BK85: B+ | BL85: C | BM85: A- | BN85: D | BP85: 2.525 | BQ85: B– | BR85: Arredondo | BS85: Carlos
F86: 0 | H86: 0 | J86: 0 | L86: 0 | N86: 1 | P86: 0 | AH86: GR 5A | AI86: Dupuy | AJ86: Rob | AK86: 636-4524 | AL86: Gate | AM86: W3 | AN86: S2 | BE86: 20 | BF86: 3 | BG86: 21 | BH86: =IF(BH43=0,"",BH43) ->  | BI86: B- | BK86: C | BM86: F | BN86: C+ | BP86: 1.7775 | BQ86: C | BR86: Dupuy | BS86: Rob
F87: 0 | H87: 0 | J87: 0 | L87: 0 | N87: 1 | P87: 0 | AH87: IS 5A | AI87: Fofana | AJ87: Kadiatou | AK87: 735-2453 | AL87: Gate | AM87: W2 | AN87: S1 | BE87: 17 | BF87: 0 | BG87: 17 | BI87: F | BK87: B- | BM87: F | BN87: F | BP87: 0.6825 | BQ87: D– | BR87: Fofana | BS87: Kadiatou
E88: =IF($AA46="","",IF($AL46=E$65,COUNTIF($AA46,$AA$14),"")) ->  | F88: 0 | G88: =IF($AA46="","",IF($AL46=G$65,COUNTIF($AA46,$AA$15),"")) ->  | H88: 0 | I88: =IF($AA46="","",IF($AL46=I$65,COUNTIF($AA46,$AA$16),"")) ->  | J88: 0 | K88: =IF($AA46="","",IF($AL46=K$65,COUNTIF($AA46,$AA$17),"")) ->  | L88: 0 | M88: =IF($AA46="","",IF($AL46=M$65,COUNTIF($AA46,$AA$18),"")) ->  | N88: 1 | O88: =IF($AA46="","",IF($AL46=O$65,COUNTIF($AA46,$AA$19),"")) ->  | P88: 0 | Q88: =IF($AB46="","",IF($AL46=Q$65,COUNTIF($AB46,$AB$14),"")) ->  | S88: =IF($AB46="","",IF($AL46=S$65,COUNTIF($AB46,$AB$15),"")) ->  | U88: =IF($AB46="","",IF($AL46=U$65,COUNTIF($AB46,$AB$16),"")) ->  | W88: =IF($AB46="","",IF($AL46=W$65,COUNTIF($AB46,$AB$17),"")) ->  | Y88: =IF($AB46="","",IF($AL46=Y$65,COUNTIF($AB46,$AB$18),"")) ->  | AH88: IS 5A | AI88: =IF(AI46=0,"",AI46) -> Pokhylko | AJ88: Dasha | AL88: Gate | AM88: W3 | AN88: =IF(AO46=0,"",AO46) -> S2 | AO88: =IF($AM88=$AE$9,1,IF($D46>0,IF($AL$60="T,TH",1,IF($AL88="All",1,"")),"")) ->  | AQ88: =IF($D46>0,IF($AM88=$AE$9,1,IF($AL$60="M,W",1,IF($AL$56="Grammar","",1))),"") ->  | AS88: =IF($D46>0,IF($AM88=$AE$9,1,IF($AL$60="T,TH",1,IF($AL$56="Grammar","",1))),"") ->  | BE88: =IF($B46>0,(AR46+AT46+AV46+AX46+AZ46+BB46+BD46+BF46),"") -> 4 | BF88: 0 | BG88: =IF(B46>0,(BF88/3)+BE88,"") -> 4 | BH88: =IF(BH46=0,"",BH46) ->  | BK88: F | BN88: F | BP88: 0.01 | BQ88: F | BR88: Palma | BS88: Lucero
F89: 0 | H89: 0 | J89: 0 | L89: 0 | N89: 1 | P89: 0 | AH89: Novels 5A | AI89: Wilhelm | AJ89: Constanza | AK89: 801-687-5602 | AL89: Gate | AM89: W3 | AN89: =IF(AO47=0,"",AO47) -> S2 | AO89: =IF($AM89=$AE$9,1,IF($D47>0,IF($AL$60="T,TH",1,IF($AL89="All",1,"")),"")) ->  | AQ89: =IF($D47>0,IF($AM89=$AE$9,1,IF($AL$60="M,W",1,IF($AL$56="Grammar","",1))),"") ->  | AS89: =IF($D47>0,IF($AM89=$AE$9,1,IF($AL$60="T,TH",1,IF($AL$56="Grammar","",1))),"") ->  | BE89: 6 | BF89: 4 | BG89: =IF(B47>0,(BF89/3)+BE89,"") -> 7.333333333 | BK89: A- | BM89: A- | BN89: F | BP89: 2.47 | BQ89: B– | BR89: Pokhylko | BS89: Dasha
AN90: =IF(AO48=0,"",AO48) ->  | AO90: =IF($AM90=$AE$9,1,IF($D48>0,IF($AL$60="T,TH",1,IF($AL90="All",1,"")),"")) ->  | AQ90: =IF($D48>0,IF($AM90=$AE$9,1,IF($AL$60="M,W",1,IF($AL$56="Grammar","",1))),"") ->  | AS90: =IF($D48>0,IF($AM90=$AE$9,1,IF($AL$60="T,TH",1,IF($AL$56="Grammar","",1))),"") ->  | BG90: =IF(B48>0,(BF90/3)+BE90,"") ->  | BR90: Wilhelm | BS90: Constanza
AI92: B GPA | BC92: A | BD92: A– | BE92: B+ | BF92: B | BG92: B– | BH92: C+ | BI92: C | BJ92: C– | BK92: D+ | BL92: D | BM92: D– | BN92: F
BC93: 4 | BD93: 3.7 | BE93: 3.4 | BF93: 3 | BG93: 2.7 | BH93: 2.4 | BI93: 2 | BJ93: 1.7 | BK93: 1.4 | BL93: 1 | BM93: 0.7 | BN93: 0.01
AI94: S1 | AL94: S2 | AM94: S3 | AN94: S4 | AO94: S5 | AP94: S6 | AQ94: S7 | AR94: S8 | AW94: A | AX94: 4 | AZ94: 4 | BA94: A | BC94: =IF($BP66<=BC$93,IF($BP66>BD$93,BC$92,""),"") ->  | BN94: =IF($BP66<=BN$93,IF($BP66>DY$64,BN$92,""),"") -> F
AB95: =IF(AI23="","",AI23) -> Ramirez | AI95: =IF(BH23=0,"",VLOOKUP(BH23,$AW$94:$AX$105,2)) -> 0.01 | AL95: =IF(BI23=0,"",VLOOKUP(BI23,$AW$94:$AX$105,2)) ->  | AM95: =IF(BJ23=0,"",VLOOKUP(BJ23,$AW$94:$AX$105,2)) ->  | AN95: =IF(BK23=0,"",VLOOKUP(BK23,$AW$94:$AX$105,2)) ->  | AO95: =IF(BL23=0,"",VLOOKUP(BL23,$AW$94:$AX$105,2)) ->  | AP95: =IF(BM23=0,"",VLOOKUP(BM23,$AW$94:$AX$105,2)) -> 0.01 | AQ95: =IF(BN23=0,"",VLOOKUP(BN23,$AW$94:$AX$105,2)) -> 0.01 | AR95: =IF(BO23=0,"",VLOOKUP(BO23,$AW$94:$AX$105,2)) ->  | AW95: A- | AX95: 3.7 | AZ95: 3.7 | BA95: A- | BC95: =IF($BP67<=BC$93,IF($BP67>BD$93,BC$92,""),"") ->  | BN95: F
AB96: Ramirez | AQ96: 0.01 | AW96: B | AX96: 3 | AZ96: 3.4 | BA96: B+ | BC96: =IF($BP68<=BC$93,IF($BP68>BD$93,BC$92,""),"") ->  | BN96: F
AB97: Montecinos | AQ97: 0.01 | AW97: B- | AX97: 2.7 | AZ97: 3 | BA97: B | BC97: =IF($BP69<=BC$93,IF($BP69>BD$93,BC$92,""),"") ->  | BM97: D–
AB98: Pais | AQ98: 0.7 | AW98: B+ | AX98: 3.4 | AZ98: 2.7 | BA98: B- | BC98: =IF($BP70<=BC$93,IF($BP70>BD$93,BC$92,""),"") ->  | BL98: D
AB99: Nishime | AL99: 0.01 | AM99: 0.01 | AN99: 0.01 | AO99: 2.4 | AP99: 0.01 | AQ99: 2.7 | AW99: C | AX99: 2 | AZ99: 2.4 | BA99: C+ | BC99: =IF($BP71<=BC$93,IF($BP71>BD$93,BC$92,""),"") ->  | BG99: B–
AB100: Kim | AL100: 4 | AM100: 1.7 | AN100: 2 | AO100: 2.4 | AP100: 3.4 | AQ100: 1.4 | AW100: C- | AX100: 1.7 | AZ100: 2 | BA100: C | BC100: =IF($BP72<=BC$93,IF($BP72>BD$93,BC$92,""),"") ->  | BF100: B
AB101: Kim | AL101: 4 | AM101: 4 | AN101: 4 | AO101: 3.7 | AP101: 0.01 | AQ101: 1 | AW101: C+ | AX101: 2.4 | AZ101: 1.7 | BA101: C- | BC101: =IF($BP73<=BC$93,IF($BP73>BD$93,BC$92,""),"") ->  | BH101: C+
AB102: Cabrera | AM102: 4 | AN102: 4 | AO102: 0.01 | AP102: 2 | AQ102: 0.01 | AW102: D | AX102: 1 | AZ102: 1.3 | BA102: D+ | BC102: =IF($BP74<=BC$93,IF($BP74>BD$93,BC$92,""),"") ->  | BH102: C+
AB103: Cedillo | AN103: 4 | AO103: 1 | AP103: 4 | AQ103: 0.01 | AW103: D- | AX103: 0.7 | AZ103: 1 | BA103: D | BC103: =IF($BP75<=BC$93,IF($BP75>BD$93,BC$92,""),"") ->  | BH103: C+
AB104: Doreme | AN104: 4 | AO104: 0.01 | AP104: 3.4 | AQ104: 1.7 | AW104: D+ | AX104: 1.4 | AZ104: 0.7 | BA104: D- | BC104: =IF($BP76<=BC$93,IF($BP76>BD$93,BC$92,""),"") ->  | BF104: B
AB105: Kim | AL105: 3.7 | AM105: 4 | AN105: 4 | AO105: 4 | AP105: 1 | AQ105: 0.01 | AW105: F | AX105: 0.01 | AZ105: 0.01 | BA105: F | BC105: =IF($BP77<=BC$93,IF($BP77>BD$93,BC$92,""),"") ->  | BF105: B
AB106: Kim | AL106: 4 | AM106: 4 | AN106: 3 | AO106: 2.7 | AP106: 2 | AQ106: 0.7 | BC106: =IF($BP78<=BC$93,IF($BP78>BD$93,BC$92,""),"") ->  | BH106: C+
AB107: Nishime | AL107: 4 | AM107: 2 | AN107: 4 | AO107: 0.01 | AP107: 3.7 | AQ107: 0.01 | BC107: =IF($BP79<=BC$93,IF($BP79>BD$93,BC$92,""),"") ->  | BJ107: C–
AB108: Peralta | AN108: 4 | AO108: 0.01 | AP108: 2 | AQ108: 0.7 | BC108: =IF($BP80<=BC$93,IF($BP80>BD$93,BC$92,""),"") ->  | BI108: C
AB109: Virrueta | AM109: 2 | AN109: 0.01 | AP109: 3.4 | AQ109: 2 | BC109: =IF($BP81<=BC$93,IF($BP81>BD$93,BC$92,""),"") ->  | BJ109: C–
AB110: Bamy | AN110: 0.01 | AO110: 4 | AP110: 2 | AQ110: 0.01 | BC110: =IF($BP82<=BC$93,IF($BP82>BD$93,BC$92,""),"") ->  | BM110: D–
AB111: Arredondo | AN111: 0.01 | AO111: 0.01 | AP111: 1.4 | AQ111: 0.01 | BC111: =IF($BP83<=BC$93,IF($BP83>BD$93,BC$92,""),"") ->  | BK111: D+
AB112: Garza | AN112: 2.7 | AO112: 0.01 | AP112: 1.7 | AQ112: 1 | BC112: =IF($BP84<=BC$93,IF($BP84>BD$93,BC$92,""),"") ->  | BM112: D–
AB113: Hernandez | AI113: 2.4 | AM113: 0.7 | AN113: 0.01 | AO113: 0.01 | AP113: 0.7 | AQ113: 0.01 | BC113: =IF($BP85<=BC$93,IF($BP85>BD$93,BC$92,""),"") ->  | BG113: B–
AB114: Arredondo | AN114: 3.4 | AO114: 2 | AP114: 3.7 | AQ114: 1 | BC114: =IF($BP86<=BC$93,IF($BP86>BD$93,BC$92,""),"") ->  | BI114: C
AB115: Dupuy | AL115: 2.7 | AN115: 2 | AP115: 0.01 | AQ115: 2.4 | BC115: =IF($BP87<=BC$93,IF($BP87>BD$93,BC$92,""),"") ->  | BM115: D–
AB116: Fofana | AL116: 0.01 | AN116: 2.7 | AP116: 0.01 | AQ116: 0.01 | BC116: =IF($BP88<=BC$93,IF($BP88>BD$93,BC$92,""),"") ->  | BN116: F
AB117: =IF(AI46="","",AI46) -> Pokhylko | AI117: =IF(BH46=0,"",VLOOKUP(BH46,$AW$94:$AX$105,2)) ->  | AL117: =IF(BI46=0,"",VLOOKUP(BI46,$AW$94:$AX$105,2)) ->  | AN117: 0.01 | AQ117: 0.01 | BC117: =IF($BP89<=BC$93,IF($BP89>BD$93,BC$92,""),"") ->  | BG117: B–
AB118: Wilhelm | AN118: 3.7 | AP118: 3.7 | AQ118: 0.01 | BC118: =IF($BP90<=BC$93,IF($BP90>BD$93,BC$92,""),"") -> 
BC119: =IF($BP91<=BC$93,IF($BP91>BD$93,BC$92,""),"") -> 
BC120: =IF($BP92<=BC$93,IF($BP92>BD$93,BC$92,""),"") -> 
BC121: =IF($BP93<=BC$93,IF($BP93>BD$93,BC$92,""),"") -> 
BC122: =IF($BP94<=BC$93,IF($BP94>BD$93,BC$92,""),"") -> 

Sheet Sheet1
E1: Last Name | F1: First Name | G1: Level | H1: Section | I1: Class | J1: Day/Night | K1: Hours/Wk | M1: Teacher | N1: 1 | O1: 2 | P1: 3 | Q1: 4 | R1: 5 | S1: 6 | T1: Total Hrs
A2: Bay | C2: =CONCATENATE(E2& " "&D2) -> Bay 1 | D2: 1 | E2: Bay | F2: Nicole | G2: CP | H2: a | I2: IS | J2: Day | K2: 8 | M2: Bay | N2: =IF(ISNA(VLOOKUP($A2& " " &N$1,$C$2:$K$43,9,FALSE)),"",VLOOKUP($A2& " " &N$1,$C$2:$K$43,9,FALSE)) -> 8 | O2: 2 | T2: =SUM(N2:S2) -> 10
A3: Christiansen | C3: Bay 2 | D3: 2 | E3: Bay | F3: Nicole | G3: CP | H3: a | I3: Novels | J3: Day | K3: 2 | M3: Christiansen | N3: 6 | O3: 8 | P3: 2 | Q3: 2 | R3: 4.5 | S3: 6 | T3: 28.5
A4: Dietrich | C4: Christiansen 2 | D4: 2 | E4: Christiansen | F4: Valai | G4: 1 | H4: a | I4: IS | J4: Day | K4: 8 | M4: Dietrich | N4: 6 | O4: 8 | P4: 2 | Q4: 3.5 | R4: 8 | T4: 27.5
A5: Hadley | C5: Christiansen 3 | D5: 3 | E5: Christiansen | F5: Valai | G5: 1 | H5: a | I5: Novels | J5: Day | K5: 2 | M5: Hadley | N5: 6 | O5: 8 | P5: 2 | Q5: 2 | T5: 18
A6: Jarvis | C6: Christiansen 6 | D6: 6 | E6: Christiansen | F6: Valai | G6: 1 | H6: c | I6: Int Skills | J6: Night | K6: 6 | M6: Jarvis | N6: 6 | O6: 8 | P6: 2 | Q6: 2 | T6: 18
A7: Malaman | C7: Christiansen 1 | D7: 1 | E7: Christiansen | F7: Valai | G7: 3 | H7: a | I7: Grammar | J7: Day | K7: 6 | M7: Malaman | N7: 6 | O7: 8 | P7: 2 | Q7: 2 | R7: 4.5 | S7: 6 | T7: 28.5
A8: McAfee | C8: Christiansen 5 | D8: 5 | E8: Christiansen | F8: Valai | G8: 3 | H8: c | I8: Grammar | J8: Night | K8: 4.5 | M8: McAfee | N8: 6 | O8: 8 | P8: 2 | Q8: 2 | T8: 18
A9: Montes | C9: Christiansen 4 | D9: 4 | E9: Christiansen | F9: Valai | G9: 3&4 | H9: c | I9: Pronunciation | J9: Night | K9: 2 | M9: Montes | N9: 6 | T9: 6
A10: Sagers | C10: Dietrich 4 | D10: 4 | E10: Dietrich | F10: Andrea | G10: 4 | H10: c | I10: Grammar | J10: Night | K10: 3.5 | M10: Sagers | N10: 6 | O10: 8 | P10: 2 | Q10: 2 | T10: 18
A11: Roberts | C11: Dietrich 1 | D11: 1 | E11: Dietrich | F11: Andrea | G11: 5 | H11: b | I11: Grammar | J11: Day | K11: 6 | M11: Roberts | N11: 6 | T11: 6
A12: unfilled 1 | C12: Dietrich 2 | D12: 2 | E12: Dietrich | F12: Andrea | G12: T | H12: a | I12: Int Skills | J12: Day | K12: 8 | M12: unfilled 1 | N12: 2 | O12: 8 | P12: 6 | T12: 16
A13: unfilled 2 | C13: Dietrich 3 | D13: 3 | E13: Dietrich | F13: Andrea | G13: T | H13: a | I13: Novels | J13: Day | K13: 2 | M13: unfilled 2 | N13: 4.5 | O13: 6 | T13: 10.5
C14: Dietrich 5 | D14: 5 | E14: Dietrich | F14: Andrea | G14: T | H14: c | I14: Int Skills | J14: Night | K14: 8
C15: Hadley 2 | D15: 2 | E15: Hadley | F15: Paco | G15: 2 | H15: a | I15: Int Skills | J15: Day | K15: 8
C16: Hadley 3 | D16: 3 | E16: Hadley | F16: Paco | G16: 2 | H16: a | I16: Novels | J16: Day | K16: 2
C17: Hadley 1 | D17: 1 | E17: Hadley | F17: Paco | G17: 5 | H17: b | I17: Grammar | J17: Day | K17: 6
C18: Hadley 4 | D18: 4 | E18: Hadley | F18: Paco | G18: 1&2 | H18: a | I18: Improvisation | J18: Day | K18: 2
C19: Jarvis 2 | D19: 2 | E19: Jarvis | F19: SusAnn | G19: 5 | H19: a | I19: Int Skills | J19: Day | K19: 8
C20: Jarvis 3 | D20: 3 | E20: Jarvis | F20: SusAnn | G20: 5 | H20: a | I20: Novels | J20: Day | K20: 2
C21: Jarvis 4 | D21: 4 | E21: Jarvis | F21: SusAnn | G21: 4+ | H21: a | I21: Pronunciation | J21: Day | K21: 2
C22: Jarvis 1 | D22: 1 | E22: Jarvis | F22: SusAnn | G22: T | H22: a | I22: Grammar | J22: Day | K22: 6
C23: Malaman 1 | D23: 1 | E23: Malaman | F23: Amanda | G23: 1 | H23: a | I23: Grammar | J23: Day | K23: 6
C24: Malaman 5 | D24: 5 | E24: Malaman | F24: Amanda | G24: 2 | H24: c | I24: Grammar | J24: Night | K24: 4.5
C25: Malaman 2 | D25: 2 | E25: Malaman | F25: Amanda | G25: 3 | H25: a | I25: Int Skills | J25: Day | K25: 8
C26: Malaman 3 | D26: 3 | E26: Malaman | F26: Amanda | G26: 3 | H26: a | I26: Novels | J26: Day | K26: 2
C27: Malaman 6 | D27: 6 | E27: Malaman | F27: Amanda | G27: 3 | H27: c | I27: Int Skills | J27: Night | K27: 6
C28: Malaman 4 | D28: 4 | E28: Malaman | F28: Amanda | G28: 5+ | H28: a | I28: ESP | J28: Day | K28: 2
C29: McAfee 1 | D29: 1 | E29: McAfee | F29: Phyllis | G29: 2 | H29: a | I29: Grammar | J29: Day | K29: 6
C30: McAfee 2 | D30: 2 | E30: McAfee | F30: Phyllis | G30: 4 | H30: a | I30: Int Skills | J30: Day | K30: 8
C31: McAfee 3 | D31: 3 | E31: McAfee | F31: Phyllis | G31: 4 | H31: a | I31: Novels | J31: Day | K31: 2
C32: McAfee 4 | D32: 4 | E32: McAfee | F32: Phyllis | G32: 3&4 | H32: a | I32: I & I | J32: Day | K32: 2
C33: Montes 1 | D33: 1 | E33: Montes | F33: Charlene | G33: 3 | H33: a | I33: Int Skills | J33: Night | K33: 6
C34: Roberts 1 | D34: 1 | E34: Roberts | F34: Jason | G34: 4 | H34: a | I34: Grammar | J34: Day | K34: 6
C35: Sagers 2 | D35: 2 | E35: Sagers | F35: Lowell | G35: 5 | H35: b | I35: Int Skills | J35: Day | K35: 8
C36: Sagers 3 | D36: 3 | E36: Sagers | F36: Lowell | G36: 5 | H36: b | I36: Novels | J36: Day | K36: 2
C37: Sagers 4 | D37: 4 | E37: Sagers | F37: Lowell | G37: 5+ | H37: a | I37: American H&C | J37: Day | K37: 2
C38: Sagers 1 | D38: 1 | E38: Sagers | F38: Lowell | G38: CP | H38: a | I38: Grammar | J38: Day | K38: 6
C39: unfilled 1 2 | D39: 2 | E39: unfilled 1 | F39: unfilled 1 | G39: 4 | H39: c | I39: Int Skills | J39: Night | K39: 8
C40: unfilled 1 3 | D40: 3 | E40: unfilled 1 | F40: unfilled 1 | G40: 5 | H40: c | I40: Grammar | J40: Night | K40: 6
C41: unfilled 1 1 | D41: 1 | E41: unfilled 1 | F41: unfilled 1 | G41: 1…6 | H41: c | I41: Novels | J41: Night | K41: 2
C42: unfilled 2 1 | D42: 1 | E42: unfilled 2 | F42: unfilled 2 | G42: 2 | H42: c | I42: Grammar | J42: Night | K42: 4.5
C43: unfilled 2 2 | D43: 2 | E43: unfilled 2 | F43: unfilled 2 | G43: 5 | H43: c | I43: Int Skills | J43: Night | K43: 6

Sheet For Clarke's Report
B1: W2 | D1: Current Block | F1: W2 | G1: Grammar | I1: Grammar Night
D2: Saturday Block | F2: 2 | G2: Integrated Skills | I2: Integrated Skills Night
D3: Start Date | F3: 2008-01-21 | G3: Novels | I3: Vacation
G4: Electives
A10: Level: | B10: =IF('GrM1'!AA22=0,"",'GrM1'!AA22) -> Start | C10: =IF('GrM1'!AB22=0,"",'GrM1'!AB22) -> End Reason | D10: =IF('GrM1'!B22=0,"",'GrM1'!B22) -> SDate | E10: =IF('GrM1'!C22=0,"",'GrM1'!C22) -> EDate | F10: =IF('GrM1'!D22=0,"",'GrM1'!D22) -> Lev End | G10: =IF('GrM1'!AI22=0,"",'GrM1'!AI22) -> Last Name | H10: =IF('GrM1'!AJ22=0,"",'GrM1'!AJ22) -> First Name | I10: =IF('GrM1'!AL22=0,"",'GrM1'!AL22) -> PRG | J10: =IF('GrM1'!AM22=0,"",'GrM1'!AM22) -> LB | K10: =IF('GrM1'!AO22=0,"",'GrM1'!AO22) -> LE | L10: =IF('GrM1'!AN22=0,"",'GrM1'!AN22) -> ED | M10: =IF('GrM1'!AF22=0,"",'GrM1'!AF22) -> Country | N10: =IF('GrM1'!AK22=0,"",'GrM1'!AK22) -> Phone # | O10: Teacher: | P10: Class: | Q10: Time: | R10: Day: | S10: Room: | T10: =IF('GrM1'!AD22=0,"",'GrM1'!AD22) -> I-20 Expires | U10: =IF('GrM1'!AE22=0,"",'GrM1'!AE22) -> F1 Agreement | V10: =IF('GrM1'!AH22=0,"",'GrM1'!AH22) -> Birthday
A11: =IF('GrM1'!$AD$5=0,"",'GrM1'!$AD$5) -> 1 | B11: =IF('GrM1'!$AA$23=0,"",'GrM1'!$AA$23) -> New | C11: =IF('GrM1'!$AB$23=0,"",'GrM1'!$AB$23) ->  | D11: =IF(Hold!$B$23=0,"",Hold!$B$23) -> 2007-10-30 | E11: =IF(Hold!$C$23=0,"",Hold!$C$23) -> 2008-04-24 | F11: =IF(Hold!$D$23=0,"",Hold!$D$23) -> 2008-04-24 | G11: =IF(Hold!$AH$23=0,"",Hold!$AH$23) -> 2007-03-08 | H11: =IF(Hold!$AI$23=0,"",Hold!$AI$23) -> Acosta | I11: =IF(Hold!$AK$23=0,"",Hold!$AK$23) -> 494-3730 | J11: =IF(Hold!$AL$23=0,"",Hold!$AL$23) -> All | K11: =IF(Hold!$AM$23=0,"",Hold!$AM$23) -> F6 | L11: =IF(Hold!$AN$23=0,"",Hold!$AN$23) -> W8 | M11: =IF(Hold!$AF$23=0,"",Hold!$AF$23) -> El Salvador | N11: =IF(Hold!$AJ$23=0,"",Hold!$AJ$23) -> Luis | O11: =IF(Hold!$AD$2=0,"",Hold!$AD$2) ->  | P11: =IF(Hold!$AD$3=0,"",Hold!$AD$3) -> Hold | Q11: =IF(Hold!$AD$6=0,"",Hold!$AD$6) ->  | R11: =IF(Hold!$AD$7=0,"",Hold!$AD$7) ->  | S11: =IF(Hold!$AD$8=0,"",Hold!$AD$8) ->  | T11: =IF(Hold!$AD$23=0,"",Hold!$AD$23) ->  | U11: =IF(Hold!$AE$23=0,"",Hold!$AE$23) ->  | V11: =IF(Hold!$AG$23=0,"",Hold!$AG$23) -> 
A12: =IF('GrM1'!$AD$5=0,"",'GrM1'!$AD$5) -> 1 | B12: =IF('GrM1'!$AA$24=0,"",'GrM1'!$AA$24) -> New | C12: =IF('GrM1'!$AB$24=0,"",'GrM1'!$AB$24) ->  | D12: =IF('GrM1'!$B$32=0,"",'GrM1'!$B$32) -> 2008-07-14 | E12: =IF('GrM1'!$C$32=0,"",'GrM1'!$C$32) -> 2008-10-30 | F12: =IF('GrM1'!$D$32=0,"",'GrM1'!$D$32) -> 2008-10-30 | G12: =IF('GrM1'!$AI$32=0,"",'GrM1'!$AI$32) -> Melo | H12: =IF('GrM1'!$AJ$32=0,"",'GrM1'!$AJ$32) -> Mellothi | I12: =IF('GrM1'!$AL$32=0,"",'GrM1'!$AL$32) -> Gate | J12: =IF('GrM1'!$AM$32=0,"",'GrM1'!$AM$32) -> S6 | K12: =IF('GrM1'!$AN$32=0,"",'GrM1'!$AN$32) -> F5 | L12: =IF('GrM1'!$AO$32=0,"",'GrM1'!$AO$32) -> F5 | M12: =IF('GrM1'!$AF$32=0,"",'GrM1'!$AF$32) -> Brazil | N12: =IF('GrM1'!$AK$32=0,"",'GrM1'!$AK$32) -> 590-3750 | O12: =IF('GrM1'!$AD$2=0,"",'GrM1'!$AD$2) -> Paco | P12: =IF('GrM1'!$AD$3=0,"",'GrM1'!$AD$3) -> Grammar | Q12: =IF('GrM1'!$AD$6=0,"",'GrM1'!$AD$6) -> 09:00:00 | R12: =IF('GrM1'!$AD$7=0,"",'GrM1'!$AD$7) -> M-TH | S12: =IF('GrM1'!$AD$8=0,"",'GrM1'!$AD$8) -> 5 | T12: =IF('GrM1'!$AD$32=0,"",'GrM1'!$AD$32) -> 2008-10-24 | U12: =IF('GrM1'!$AE$32=0,"",'GrM1'!$AE$32) ->  | V12: =IF('GrM1'!$AH$32=0,"",'GrM1'!$AH$32) -> 2008-07-07
A13: =IF('GrM1'!$AD$5=0,"",'GrM1'!$AD$5) -> 1 | B13: =IF('GrM1'!$AA$25=0,"",'GrM1'!$AA$25) -> New | C13: =IF('GrM1'!$AB$25=0,"",'GrM1'!$AB$25) ->  | D13: =IF('GrM1'!$B$33=0,"",'GrM1'!$B$33) ->  | E13: =IF('GrM1'!$C$33=0,"",'GrM1'!$C$33) ->  | F13: =IF('GrM1'!$D$33=0,"",'GrM1'!$D$33) ->  | G13: =IF('GrM1'!$AI$33=0,"",'GrM1'!$AI$33) ->  | H13: =IF('GrM1'!$AJ$33=0,"",'GrM1'!$AJ$33) ->  | I13: =IF('GrM1'!$AL$33=0,"",'GrM1'!$AL$33) ->  | J13: =IF('GrM1'!$AM$33=0,"",'GrM1'!$AM$33) ->  | K13: =IF('GrM1'!$AN$33=0,"",'GrM1'!$AN$33) ->  | L13: =IF('GrM1'!$AO$33=0,"",'GrM1'!$AO$33) ->  | M13: =IF('GrM1'!$AF$33=0,"",'GrM1'!$AF$33) ->  | N13: =IF('GrM1'!$AK$33=0,"",'GrM1'!$AK$33) ->  | O13: =IF('GrM1'!$AD$2=0,"",'GrM1'!$AD$2) -> Paco | P13: =IF('GrM1'!$AD$3=0,"",'GrM1'!$AD$3) -> Grammar | Q13: =IF('GrM1'!$AD$6=0,"",'GrM1'!$AD$6) -> 09:00:00 | R13: =IF('GrM1'!$AD$7=0,"",'GrM1'!$AD$7) -> M-TH | S13: =IF('GrM1'!$AD$8=0,"",'GrM1'!$AD$8) -> 5 | T13: =IF('GrM1'!$AD$33=0,"",'GrM1'!$AD$33) ->  | U13: =IF('GrM1'!$AE$33=0,"",'GrM1'!$AE$33) ->  | V13: =IF('GrM1'!$AH$33=0,"",'GrM1'!$AH$33) -> 
A14: =IF('GrM1'!$AD$5=0,"",'GrM1'!$AD$5) -> 1 | B14: =IF('GrM1'!$AA$26=0,"",'GrM1'!$AA$26) -> New | C14: =IF('GrM1'!$AB$26=0,"",'GrM1'!$AB$26) ->  | D14: =IF('GrM1'!$B$34=0,"",'GrM1'!$B$34) ->  | E14: =IF('GrM1'!$C$34=0,"",'GrM1'!$C$34) ->  | F14: =IF('GrM1'!$D$34=0,"",'GrM1'!$D$34) ->  | G14: =IF('GrM1'!$AI$34=0,"",'GrM1'!$AI$34) ->  | H14: =IF('GrM1'!$AJ$34=0,"",'GrM1'!$AJ$34) ->  | I14: =IF('GrM1'!$AL$34=0,"",'GrM1'!$AL$34) ->  | J14: =IF('GrM1'!$AM$34=0,"",'GrM1'!$AM$34) ->  | K14: =IF('GrM1'!$AN$34=0,"",'GrM1'!$AN$34) ->  | L14: =IF('GrM1'!$AO$34=0,"",'GrM1'!$AO$34) ->  | M14: =IF('GrM1'!$AF$34=0,"",'GrM1'!$AF$34) ->  | N14: =IF('GrM1'!$AK$34=0,"",'GrM1'!$AK$34) ->  | O14: =IF('GrM1'!$AD$2=0,"",'GrM1'!$AD$2) -> Paco | P14: =IF('GrM1'!$AD$3=0,"",'GrM1'!$AD$3) -> Grammar | Q14: =IF('GrM1'!$AD$6=0,"",'GrM1'!$AD$6) -> 09:00:00 | R14: =IF('GrM1'!$AD$7=0,"",'GrM1'!$AD$7) -> M-TH | S14: =IF('GrM1'!$AD$8=0,"",'GrM1'!$AD$8) -> 5 | T14: =IF('GrM1'!$AD$34=0,"",'GrM1'!$AD$34) ->  | U14: =IF('GrM1'!$AE$34=0,"",'GrM1'!$AE$34) ->  | V14: =IF('GrM1'!$AH$34=0,"",'GrM1'!$AH$34) -> 
A15: =IF('GrM1'!$AD$5=0,"",'GrM1'!$AD$5) -> 1 | B15: =IF('GrM1'!$AA$27=0,"",'GrM1'!$AA$27) -> New | C15: =IF('GrM1'!$AB$27=0,"",'GrM1'!$AB$27) ->  | D15: =IF('GrM1'!$B$35=0,"",'GrM1'!$B$35) ->  | E15: =IF('GrM1'!$C$35=0,"",'GrM1'!$C$35) ->  | F15: =IF('GrM1'!$D$35=0,"",'GrM1'!$D$35) ->  | G15: =IF('GrM1'!$AI$35=0,"",'GrM1'!$AI$35) ->  | H15: =IF('GrM1'!$AJ$35=0,"",'GrM1'!$AJ$35) ->  | I15: =IF('GrM1'!$AL$35=0,"",'GrM1'!$AL$35) ->  | J15: =IF('GrM1'!$AM$35=0,"",'GrM1'!$AM$35) ->  | K15: =IF('GrM1'!$AN$35=0,"",'GrM1'!$AN$35) ->  | L15: =IF('GrM1'!$AO$35=0,"",'GrM1'!$AO$35) ->  | M15: =IF('GrM1'!$AF$35=0,"",'GrM1'!$AF$35) ->  | N15: =IF('GrM1'!$AK$35=0,"",'GrM1'!$AK$35) ->  | O15: =IF('GrM1'!$AD$2=0,"",'GrM1'!$AD$2) -> Paco | P15: =IF('GrM1'!$AD$3=0,"",'GrM1'!$AD$3) -> Grammar | Q15: =IF('GrM1'!$AD$6=0,"",'GrM1'!$AD$6) -> 09:00:00 | R15: =IF('GrM1'!$AD$7=0,"",'GrM1'!$AD$7) -> M-TH | S15: =IF('GrM1'!$AD$8=0,"",'GrM1'!$AD$8) -> 5 | T15: =IF('GrM1'!$AD$35=0,"",'GrM1'!$AD$35) ->  | U15: =IF('GrM1'!$AE$35=0,"",'GrM1'!$AE$35) ->  | V15: =IF('GrM1'!$AH$35=0,"",'GrM1'!$AH$35) -> 
A16: =IF('GrM1'!$AD$5=0,"",'GrM1'!$AD$5) -> 1 | B16: =IF('GrM1'!$AA$28=0,"",'GrM1'!$AA$28) -> New | C16: =IF('GrM1'!$AB$28=0,"",'GrM1'!$AB$28) ->  | D16: =IF('GrM1'!$B$36=0,"",'GrM1'!$B$36) ->  | E16: =IF('GrM1'!$C$36=0,"",'GrM1'!$C$36) ->  | F16: =IF('GrM1'!$D$36=0,"",'GrM1'!$D$36) ->  | G16: =IF('GrM1'!$AI$36=0,"",'GrM1'!$AI$36) ->  | H16: =IF('GrM1'!$AJ$36=0,"",'GrM1'!$AJ$36) ->  | I16: =IF('GrM1'!$AL$36=0,"",'GrM1'!$AL$36) ->  | J16: =IF('GrM1'!$AM$36=0,"",'GrM1'!$AM$36) ->  | K16: =IF('GrM1'!$AN$36=0,"",'GrM1'!$AN$36) ->  | L16: =IF('GrM1'!$AO$36=0,"",'GrM1'!$AO$36) ->  | M16: =IF('GrM1'!$AF$36=0,"",'GrM1'!$AF$36) ->  | N16: =IF('GrM1'!$AK$36=0,"",'GrM1'!$AK$36) ->  | O16: =IF('GrM1'!$AD$2=0,"",'GrM1'!$AD$2) -> Paco | P16: =IF('GrM1'!$AD$3=0,"",'GrM1'!$AD$3) -> Grammar | Q16: =IF('GrM1'!$AD$6=0,"",'GrM1'!$AD$6) -> 09:00:00 | R16: =IF('GrM1'!$AD$7=0,"",'GrM1'!$AD$7) -> M-TH | S16: =IF('GrM1'!$AD$8=0,"",'GrM1'!$AD$8) -> 5 | T16: =IF('GrM1'!$AD$36=0,"",'GrM1'!$AD$36) ->  | U16: =IF('GrM1'!$AE$36=0,"",'GrM1'!$AE$36) ->  | V16: =IF('GrM1'!$AH$36=0,"",'GrM1'!$AH$36) -> 
A17: =IF('GrM1'!$AD$5=0,"",'GrM1'!$AD$5) -> 1 | B17: =IF('GrM1'!$AA$32=0,"",'GrM1'!$AA$32) -> New | C17: =IF('GrM1'!$AB$29=0,"",'GrM1'!$AB$29) ->  | D17: =IF('GrM1'!$B$37=0,"",'GrM1'!$B$37) ->  | E17: =IF('GrM1'!$C$37=0,"",'GrM1'!$C$37) ->  | F17: =IF('GrM1'!$D$37=0,"",'GrM1'!$D$37) ->  | G17: =IF('GrM1'!$AI$37=0,"",'GrM1'!$AI$37) ->  | H17: =IF('GrM1'!$AJ$37=0,"",'GrM1'!$AJ$37) ->  | I17: =IF('GrM1'!$AL$37=0,"",'GrM1'!$AL$37) ->  | J17: =IF('GrM1'!$AM$37=0,"",'GrM1'!$AM$37) ->  | K17: =IF('GrM1'!$AN$37=0,"",'GrM1'!$AN$37) ->  | L17: =IF('GrM1'!$AO$37=0,"",'GrM1'!$AO$37) ->  | M17: =IF('GrM1'!$AF$37=0,"",'GrM1'!$AF$37) ->  | N17: =IF('GrM1'!$AK$37=0,"",'GrM1'!$AK$37) ->  | O17: =IF('GrM1'!$AD$2=0,"",'GrM1'!$AD$2) -> Paco | P17: =IF('GrM1'!$AD$3=0,"",'GrM1'!$AD$3) -> Grammar | Q17: =IF('GrM1'!$AD$6=0,"",'GrM1'!$AD$6) -> 09:00:00 | R17: =IF('GrM1'!$AD$7=0,"",'GrM1'!$AD$7) -> M-TH | S17: =IF('GrM1'!$AD$8=0,"",'GrM1'!$AD$8) -> 5 | T17: =IF('GrM1'!$AD$37=0,"",'GrM1'!$AD$37) ->  | U17: =IF('GrM1'!$AE$37=0,"",'GrM1'!$AE$37) ->  | V17: =IF('GrM1'!$AH$37=0,"",'GrM1'!$AH$37) -> 
A18: =IF('GrM1'!$AD$5=0,"",'GrM1'!$AD$5) -> 1 | B18: =IF('GrM1'!$AA$32=0,"",'GrM1'!$AA$32) -> New | C18: =IF('GrM1'!#REF!=0,"",'GrM1'!#REF!) ->  | D18: =IF('GrM1'!$B$38=0,"",'GrM1'!$B$38) ->  | E18: =IF('GrM1'!$C$38=0,"",'GrM1'!$C$38) ->  | F18: =IF('GrM1'!$D$38=0,"",'GrM1'!$D$38) ->  | G18: =IF('GrM1'!$AI$38=0,"",'GrM1'!$AI$38) ->  | H18: =IF('GrM1'!$AJ$38=0,"",'GrM1'!$AJ$38) ->  | I18: =IF('GrM1'!$AL$38=0,"",'GrM1'!$AL$38) ->  | J18: =IF('GrM1'!$AM$38=0,"",'GrM1'!$AM$38) ->  | K18: =IF('GrM1'!$AN$38=0,"",'GrM1'!$AN$38) ->  | L18: =IF('GrM1'!$AO$38=0,"",'GrM1'!$AO$38) ->  | M18: =IF('GrM1'!$AF$38=0,"",'GrM1'!$AF$38) ->  | N18: =IF('GrM1'!$AK$38=0,"",'GrM1'!$AK$38) ->  | O18: =IF('GrM1'!$AD$2=0,"",'GrM1'!$AD$2) -> Paco | P18: =IF('GrM1'!$AD$3=0,"",'GrM1'!$AD$3) -> Grammar | Q18: =IF('GrM1'!$AD$6=0,"",'GrM1'!$AD$6) -> 09:00:00 | R18: =IF('GrM1'!$AD$7=0,"",'GrM1'!$AD$7) -> M-TH | S18: =IF('GrM1'!$AD$8=0,"",'GrM1'!$AD$8) -> 5 | T18: =IF('GrM1'!$AD$38=0,"",'GrM1'!$AD$38) ->  | U18: =IF('GrM1'!$AE$38=0,"",'GrM1'!$AE$38) ->  | V18: =IF('GrM1'!$AH$38=0,"",'GrM1'!$AH$38) -> 
A19: =IF('GrM1'!$AD$5=0,"",'GrM1'!$AD$5) -> 1 | B19: =IF('GrM1'!$AA$32=0,"",'GrM1'!$AA$32) -> New | C19: =IF('GrM1'!$AB$31=0,"",'GrM1'!$AB$31) ->  | D19: =IF('GrM1'!$B$39=0,"",'GrM1'!$B$39) ->  | E19: =IF('GrM1'!$C$39=0,"",'GrM1'!$C$39) ->  | F19: =IF('GrM1'!$D$39=0,"",'GrM1'!$D$39) ->  | G19: =IF('GrM1'!$AI$39=0,"",'GrM1'!$AI$39) ->  | H19: =IF('GrM1'!$AJ$39=0,"",'GrM1'!$AJ$39) ->  | I19: =IF('GrM1'!$AL$39=0,"",'GrM1'!$AL$39) ->  | J19: =IF('GrM1'!$AM$39=0,"",'GrM1'!$AM$39) ->  | K19: =IF('GrM1'!$AN$39=0,"",'GrM1'!$AN$39) ->  | L19: =IF('GrM1'!$AO$39=0,"",'GrM1'!$AO$39) ->  | M19: =IF('GrM1'!$AF$39=0,"",'GrM1'!$AF$39) ->  | N19: =IF('GrM1'!$AK$39=0,"",'GrM1'!$AK$39) ->  | O19: =IF('GrM1'!$AD$2=0,"",'GrM1'!$AD$2) -> Paco | P19: =IF('GrM1'!$AD$3=0,"",'GrM1'!$AD$3) -> Grammar | Q19: =IF('GrM1'!$AD$6=0,"",'GrM1'!$AD$6) -> 09:00:00 | R19: =IF('GrM1'!$AD$7=0,"",'GrM1'!$AD$7) -> M-TH | S19: =IF('GrM1'!$AD$8=0,"",'GrM1'!$AD$8) -> 5 | T19: =IF('GrM1'!$AD$39=0,"",'GrM1'!$AD$39) ->  | U19: =IF('GrM1'!$AE$39=0,"",'GrM1'!$AE$39) ->  | V19: =IF('GrM1'!$AH$39=0,"",'GrM1'!$AH$39) -> 
A20: =IF('GrM1'!$AD$5=0,"",'GrM1'!$AD$5) -> 1 | B20: =IF('GrM1'!$AA$32=0,"",'GrM1'!$AA$32) -> New | C20: =IF('GrM1'!$AB$32=0,"",'GrM1'!$AB$32) ->  | D20: =IF('GrM1'!$B$40=0,"",'GrM1'!$B$40) ->  | E20: =IF('GrM1'!$C$40=0,"",'GrM1'!$C$40) ->  | F20: =IF('GrM1'!$D$40=0,"",'GrM1'!$D$40) ->  | G20: =IF('GrM1'!$AI$40=0,"",'GrM1'!$AI$40) ->  | H20: =IF('GrM1'!$AJ$40=0,"",'GrM1'!$AJ$40) ->  | I20: =IF('GrM1'!$AL$40=0,"",'GrM1'!$AL$40) ->  | J20: =IF('GrM1'!$AM$40=0,"",'GrM1'!$AM$40) ->  | K20: =IF('GrM1'!$AN$40=0,"",'GrM1'!$AN$40) ->  | L20: =IF('GrM1'!$AO$40=0,"",'GrM1'!$AO$40) ->  | M20: =IF('GrM1'!$AF$40=0,"",'GrM1'!$AF$40) ->  | N20: =IF('GrM1'!$AK$40=0,"",'GrM1'!$AK$40) ->  | O20: =IF('GrM1'!$AD$2=0,"",'GrM1'!$AD$2) -> Paco | P20: =IF('GrM1'!$AD$3=0,"",'GrM1'!$AD$3) -> Grammar | Q20: =IF('GrM1'!$AD$6=0,"",'GrM1'!$AD$6) -> 09:00:00 | R20: =IF('GrM1'!$AD$7=0,"",'GrM1'!$AD$7) -> M-TH | S20: =IF('GrM1'!$AD$8=0,"",'GrM1'!$AD$8) -> 5 | T20: =IF('GrM1'!$AD$40=0,"",'GrM1'!$AD$40) ->  | U20: =IF('GrM1'!$AE$40=0,"",'GrM1'!$AE$40) ->  | V20: =IF('GrM1'!$AH$40=0,"",'GrM1'!$AH$40) -> 
A21: =IF('GrM1'!$AD$5=0,"",'GrM1'!$AD$5) -> 1 | B21: =IF('GrM1'!$AA$33=0,"",'GrM1'!$AA$33) ->  | C21: =IF('GrM1'!$AB$33=0,"",'GrM1'!$AB$33) ->  | D21: =IF('GrM1'!$B$41=0,"",'GrM1'!$B$41) ->  | E21: =IF('GrM1'!$C$41=0,"",'GrM1'!$C$41) ->  | F21: =IF('GrM1'!$D$41=0,"",'GrM1'!$D$41) ->  | G21: =IF('GrM1'!$AI$41=0,"",'GrM1'!$AI$41) ->  | H21: =IF('GrM1'!$AJ$41=0,"",'GrM1'!$AJ$41) ->  | I21: =IF('GrM1'!$AL$41=0,"",'GrM1'!$AL$41) ->  | J21: =IF('GrM1'!$AM$41=0,"",'GrM1'!$AM$41) ->  | K21: =IF('GrM1'!$AN$41=0,"",'GrM1'!$AN$41) ->  | L21: =IF('GrM1'!$AO$41=0,"",'GrM1'!$AO$41) ->  | M21: =IF('GrM1'!$AF$41=0,"",'GrM1'!$AF$41) ->  | N21: =IF('GrM1'!$AK$41=0,"",'GrM1'!$AK$41) ->  | O21: =IF('GrM1'!$AD$2=0,"",'GrM1'!$AD$2) -> Paco | P21: =IF('GrM1'!$AD$3=0,"",'GrM1'!$AD$3) -> Grammar | Q21: =IF('GrM1'!$AD$6=0,"",'GrM1'!$AD$6) -> 09:00:00 | R21: =IF('GrM1'!$AD$7=0,"",'GrM1'!$AD$7) -> M-TH | S21: =IF('GrM1'!$AD$8=0,"",'GrM1'!$AD$8) -> 5 | T21: =IF('GrM1'!$AD$41=0,"",'GrM1'!$AD$41) ->  | U21: =IF('GrM1'!$AE$41=0,"",'GrM1'!$AE$41) ->  | V21: =IF('GrM1'!$AH$41=0,"",'GrM1'!$AH$41) -> 
A22: =IF('GrM1'!$AD$5=0,"",'GrM1'!$AD$5) -> 1 | B22: =IF('GrM1'!$AA$34=0,"",'GrM1'!$AA$34) ->  | C22: =IF('GrM1'!$AB$34=0,"",'GrM1'!$AB$34) ->  | D22: =IF('GrM1'!$B$42=0,"",'GrM1'!$B$42) ->  | E22: =IF('GrM1'!$C$42=0,"",'GrM1'!$C$42) ->  | F22: =IF('GrM1'!$D$42=0,"",'GrM1'!$D$42) ->  | G22: =IF('GrM1'!$AI$42=0,"",'GrM1'!$AI$42) ->  | H22: =IF('GrM1'!$AJ$42=0,"",'GrM1'!$AJ$42) ->  | I22: =IF('GrM1'!$AL$42=0,"",'GrM1'!$AL$42) ->  | J22: =IF('GrM1'!$AM$42=0,"",'GrM1'!$AM$42) ->  | K22: =IF('GrM1'!$AN$42=0,"",'GrM1'!$AN$42) ->  | L22: =IF('GrM1'!$AO$42=0,"",'GrM1'!$AO$42) ->  | M22: =IF('GrM1'!$AF$42=0,"",'GrM1'!$AF$42) ->  | N22: =IF('GrM1'!$AK$42=0,"",'GrM1'!$AK$42) ->  | O22: =IF('GrM1'!$AD$2=0,"",'GrM1'!$AD$2) -> Paco | P22: =IF('GrM1'!$AD$3=0,"",'GrM1'!$AD$3) -> Grammar | Q22: =IF('GrM1'!$AD$6=0,"",'GrM1'!$AD$6) -> 09:00:00 | R22: =IF('GrM1'!$AD$7=0,"",'GrM1'!$AD$7) -> M-TH | S22: =IF('GrM1'!$AD$8=0,"",'GrM1'!$AD$8) -> 5 | T22: =IF('GrM1'!$AD$42=0,"",'GrM1'!$AD$42) ->  | U22: =IF('GrM1'!$AE$42=0,"",'GrM1'!$AE$42) ->  | V22: =IF('GrM1'!$AH$42=0,"",'GrM1'!$AH$42) -> 
A23: =IF('GrM1'!$AD$5=0,"",'GrM1'!$AD$5) -> 1 | B23: =IF('GrM1'!$AA$35=0,"",'GrM1'!$AA$35) ->  | C23: =IF('GrM1'!$AB$35=0,"",'GrM1'!$AB$35) ->  | D23: =IF('GrM1'!$B$47=0,"",'GrM1'!$B$47) ->  | E23: =IF('GrM1'!$C$47=0,"",'GrM1'!$C$47) ->  | F23: =IF('GrM1'!$D$47=0,"",'GrM1'!$D$47) ->  | G23: =IF('GrM1'!$AI$47=0,"",'GrM1'!$AI$47) ->  | H23: =IF('GrM1'!$AJ$47=0,"",'GrM1'!$AJ$47) ->  | I23: =IF('GrM1'!$AL$47=0,"",'GrM1'!$AL$47) ->  | J23: =IF('GrM1'!$AM$47=0,"",'GrM1'!$AM$47) ->  | K23: =IF('GrM1'!$AN$47=0,"",'GrM1'!$AN$47) ->  | L23: =IF('GrM1'!$AO$47=0,"",'GrM1'!$AO$47) ->  | M23: =IF('GrM1'!$AF$47=0,"",'GrM1'!$AF$47) ->  | N23: =IF('GrM1'!$AK$47=0,"",'GrM1'!$AK$47) ->  | O23: =IF('GrM1'!$AD$2=0,"",'GrM1'!$AD$2) -> Paco | P23: =IF('GrM1'!$AD$3=0,"",'GrM1'!$AD$3) -> Grammar | Q23: =IF('GrM1'!$AD$6=0,"",'GrM1'!$AD$6) -> 09:00:00 | R23: =IF('GrM1'!$AD$7=0,"",'GrM1'!$AD$7) -> M-TH | S23: =IF('GrM1'!$AD$8=0,"",'GrM1'!$AD$8) -> 5 | T23: =IF('GrM1'!$AD$47=0,"",'GrM1'!$AD$47) ->  | U23: =IF('GrM1'!$AE$47=0,"",'GrM1'!$AE$47) ->  | V23: =IF('GrM1'!$AH$47=0,"",'GrM1'!$AH$47) -> 
A24: =IF('GrM1'!$AD$5=0,"",'GrM1'!$AD$5) -> 1 | B24: =IF('GrM1'!$AA$36=0,"",'GrM1'!$AA$36) ->  | C24: =IF('GrM1'!$AB$36=0,"",'GrM1'!$AB$36) ->  | D24: =IF('GrM1'!$B$48=0,"",'GrM1'!$B$48) ->  | E24: =IF('GrM1'!$C$48=0,"",'GrM1'!$C$48) ->  | F24: =IF('GrM1'!$D$48=0,"",'GrM1'!$D$48) ->  | G24: =IF('GrM1'!$AI$48=0,"",'GrM1'!$AI$48) ->  | H24: =IF('GrM1'!$AJ$48=0,"",'GrM1'!$AJ$48) ->  | I24: =IF('GrM1'!$AL$48=0,"",'GrM1'!$AL$48) ->  | J24: =IF('GrM1'!$AM$48=0,"",'GrM1'!$AM$48) ->  | K24: =IF('GrM1'!$AN$48=0,"",'GrM1'!$AN$48) ->  | L24: =IF('GrM1'!$AO$48=0,"",'GrM1'!$AO$48) ->  | M24: =IF('GrM1'!$AF$48=0,"",'GrM1'!$AF$48) ->  | N24: =IF('GrM1'!$AK$48=0,"",'GrM1'!$AK$48) ->  | O24: =IF('GrM1'!$AD$2=0,"",'GrM1'!$AD$2) -> Paco | P24: =IF('GrM1'!$AD$3=0,"",'GrM1'!$AD$3) -> Grammar | Q24: =IF('GrM1'!$AD$6=0,"",'GrM1'!$AD$6) -> 09:00:00 | R24: =IF('GrM1'!$AD$7=0,"",'GrM1'!$AD$7) -> M-TH | S24: =IF('GrM1'!$AD$8=0,"",'GrM1'!$AD$8) -> 5 | T24: =IF('GrM1'!$AD$48=0,"",'GrM1'!$AD$48) ->  | U24: =IF('GrM1'!$AE$48=0,"",'GrM1'!$AE$48) ->  | V24: =IF('GrM1'!$AH$48=0,"",'GrM1'!$AH$48) -> 
A25: =IF('GrM1'!$AD$5=0,"",'GrM1'!$AD$5) -> 1 | B25: =IF('GrM1'!$AA$37=0,"",'GrM1'!$AA$37) ->  | C25: =IF('GrM1'!$AB$37=0,"",'GrM1'!$AB$37) ->  | D25: =IF('GrM1'!$B$49=0,"",'GrM1'!$B$49) ->  | E25: =IF('GrM1'!$C$49=0,"",'GrM1'!$C$49) ->  | F25: =IF('GrM1'!$D$49=0,"",'GrM1'!$D$49) ->  | G25: =IF('GrM1'!$AI$49=0,"",'GrM1'!$AI$49) ->  | H25: =IF('GrM1'!$AJ$49=0,"",'GrM1'!$AJ$49) ->  | I25: =IF('GrM1'!$AL$49=0,"",'GrM1'!$AL$49) ->  | J25: =IF('GrM1'!$AM$49=0,"",'GrM1'!$AM$49) ->  | K25: =IF('GrM1'!$AN$49=0,"",'GrM1'!$AN$49) ->  | L25: =IF('GrM1'!$AO$49=0,"",'GrM1'!$AO$49) ->  | M25: =IF('GrM1'!$AF$49=0,"",'GrM1'!$AF$49) ->  | N25: =IF('GrM1'!$AK$49=0,"",'GrM1'!$AK$49) ->  | O25: =IF('GrM1'!$AD$2=0,"",'GrM1'!$AD$2) -> Paco | P25: =IF('GrM1'!$AD$3=0,"",'GrM1'!$AD$3) -> Grammar | Q25: =IF('GrM1'!$AD$6=0,"",'GrM1'!$AD$6) -> 09:00:00 | R25: =IF('GrM1'!$AD$7=0,"",'GrM1'!$AD$7) -> M-TH | S25: =IF('GrM1'!$AD$8=0,"",'GrM1'!$AD$8) -> 5 | T25: =IF('GrM1'!$AD$49=0,"",'GrM1'!$AD$49) ->  | U25: =IF('GrM1'!$AE$49=0,"",'GrM1'!$AE$49) ->  | V25: =IF('GrM1'!$AH$49=0,"",'GrM1'!$AH$49) -> 
A26: =IF('GrM1'!$AD$5=0,"",'GrM1'!$AD$5) -> 1 | B26: =IF('GrM1'!$AA$38=0,"",'GrM1'!$AA$38) ->  | C26: =IF('GrM1'!$AB$38=0,"",'GrM1'!$AB$38) ->  | D26: =IF('GrM1'!$B$50=0,"",'GrM1'!$B$50) ->  | E26: =IF('GrM1'!$C$50=0,"",'GrM1'!$C$50) ->  | F26: =IF('GrM1'!$D$50=0,"",'GrM1'!$D$50) ->  | G26: =IF('GrM1'!$AI$50=0,"",'GrM1'!$AI$50) ->  | H26: =IF('GrM1'!$AJ$50=0,"",'GrM1'!$AJ$50) ->  | I26: =IF('GrM1'!$AL$50=0,"",'GrM1'!$AL$50) ->  | J26: =IF('GrM1'!$AM$50=0,"",'GrM1'!$AM$50) ->  | K26: =IF('GrM1'!$AN$50=0,"",'GrM1'!$AN$50) ->  | L26: =IF('GrM1'!$AO$50=0,"",'GrM1'!$AO$50) ->  | M26: =IF('GrM1'!$AF$50=0,"",'GrM1'!$AF$50) ->  | N26: =IF('GrM1'!$AK$50=0,"",'GrM1'!$AK$50) ->  | O26: =IF('GrM1'!$AD$2=0,"",'GrM1'!$AD$2) -> Paco | P26: =IF('GrM1'!$AD$3=0,"",'GrM1'!$AD$3) -> Grammar | Q26: =IF('GrM1'!$AD$6=0,"",'GrM1'!$AD$6) -> 09:00:00 | R26: =IF('GrM1'!$AD$7=0,"",'GrM1'!$AD$7) -> M-TH | S26: =IF('GrM1'!$AD$8=0,"",'GrM1'!$AD$8) -> 5 | T26: =IF('GrM1'!$AD$50=0,"",'GrM1'!$AD$50) ->  | U26: =IF('GrM1'!$AE$50=0,"",'GrM1'!$AE$50) ->  | V26: =IF('GrM1'!$AH$50=0,"",'GrM1'!$AH$50) -> 
A27: =IF('GrM1'!$AD$5=0,"",'GrM1'!$AD$5) -> 1 | B27: =IF('GrM1'!$AA$39=0,"",'GrM1'!$AA$39) ->  | C27: =IF('GrM1'!$AB$39=0,"",'GrM1'!$AB$39) ->  | D27: =IF('GrM1'!$B$51=0,"",'GrM1'!$B$51) ->  | E27: =IF('GrM1'!$C$51=0,"",'GrM1'!$C$51) ->  | F27: =IF('GrM1'!$D$51=0,"",'GrM1'!$D$51) ->  | G27: =IF('GrM1'!$AI$51=0,"",'GrM1'!$AI$51) ->  | H27: =IF('GrM1'!$AJ$51=0,"",'GrM1'!$AJ$51) ->  | I27: =IF('GrM1'!$AL$51=0,"",'GrM1'!$AL$51) ->  | J27: =IF('GrM1'!$AM$51=0,"",'GrM1'!$AM$51) ->  | K27: =IF('GrM1'!$AN$51=0,"",'GrM1'!$AN$51) ->  | L27: =IF('GrM1'!$AO$51=0,"",'GrM1'!$AO$51) ->  | M27: =IF('GrM1'!$AF$51=0,"",'GrM1'!$AF$51) ->  | N27: =IF('GrM1'!$AK$51=0,"",'GrM1'!$AK$51) ->  | O27: =IF('GrM1'!$AD$2=0,"",'GrM1'!$AD$2) -> Paco | P27: =IF('GrM1'!$AD$3=0,"",'GrM1'!$AD$3) -> Grammar | Q27: =IF('GrM1'!$AD$6=0,"",'GrM1'!$AD$6) -> 09:00:00 | R27: =IF('GrM1'!$AD$7=0,"",'GrM1'!$AD$7) -> M-TH | S27: =IF('GrM1'!$AD$8=0,"",'GrM1'!$AD$8) -> 5 | T27: =IF('GrM1'!$AD$51=0,"",'GrM1'!$AD$51) ->  | U27: =IF('GrM1'!$AE$51=0,"",'GrM1'!$AE$51) ->  | V27: =IF('GrM1'!$AH$51=0,"",'GrM1'!$AH$51) -> 
A28: =IF('GrM1'!$AD$5=0,"",'GrM1'!$AD$5) -> 1 | B28: =IF('GrM1'!$AA$40=0,"",'GrM1'!$AA$40) ->  | C28: =IF('GrM1'!$AB$40=0,"",'GrM1'!$AB$40) ->  | D28: =IF('GrM1'!$B$52=0,"",'GrM1'!$B$52) ->  | E28: =IF('GrM1'!$C$52=0,"",'GrM1'!$C$52) ->  | F28: =IF('GrM1'!$D$52=0,"",'GrM1'!$D$52) ->  | G28: =IF('GrM1'!$AI$52=0,"",'GrM1'!$AI$52) ->  | H28: =IF('GrM1'!$AJ$52=0,"",'GrM1'!$AJ$52) ->  | I28: =IF('GrM1'!$AL$52=0,"",'GrM1'!$AL$52) ->  | J28: =IF('GrM1'!$AM$52=0,"",'GrM1'!$AM$52) ->  | K28: =IF('GrM1'!$AN$52=0,"",'GrM1'!$AN$52) ->  | L28: =IF('GrM1'!$AO$52=0,"",'GrM1'!$AO$52) ->  | M28: =IF('GrM1'!$AF$52=0,"",'GrM1'!$AF$52) ->  | N28: =IF('GrM1'!$AK$52=0,"",'GrM1'!$AK$52) ->  | O28: =IF('GrM1'!$AD$2=0,"",'GrM1'!$AD$2) -> Paco | P28: =IF('GrM1'!$AD$3=0,"",'GrM1'!$AD$3) -> Grammar | Q28: =IF('GrM1'!$AD$6=0,"",'GrM1'!$AD$6) -> 09:00:00 | R28: =IF('GrM1'!$AD$7=0,"",'GrM1'!$AD$7) -> M-TH | S28: =IF('GrM1'!$AD$8=0,"",'GrM1'!$AD$8) -> 5 | T28: =IF('GrM1'!$AD$52=0,"",'GrM1'!$AD$52) ->  | U28: =IF('GrM1'!$AE$52=0,"",'GrM1'!$AE$52) ->  | V28: =IF('GrM1'!$AH$52=0,"",'GrM1'!$AH$52) -> 
A29: =IF('GrM1'!$AD$5=0,"",'GrM1'!$AD$5) -> 1 | B29: =IF('GrM1'!$AA$41=0,"",'GrM1'!$AA$41) ->  | C29: =IF('GrM1'!$AB$41=0,"",'GrM1'!$AB$41) ->  | D29: =IF('GrM2'!$B$27=0,"",'GrM2'!$B$27) -> 2008-06-24 | E29: =IF('GrM2'!$C$27=0,"",'GrM2'!$C$27) -> 2008-10-17 | F29: =IF('GrM2'!$D$27=0,"",'GrM2'!$D$27) -> 2008-10-17 | G29: =IF('GrM2'!$AI$27=0,"",'GrM2'!$AI$27) -> Lara | H29: =IF('GrM2'!$AJ$27=0,"",'GrM2'!$AJ$27) -> Jose Fernando | I29: =IF('GrM2'!$AL$27=0,"",'GrM2'!$AL$27) -> All | J29: =IF('GrM2'!$AM$27=0,"",'GrM2'!$AM$27) -> S5 | K29: =IF('GrM2'!$AN$27=0,"",'GrM2'!$AN$27) -> F4 | L29: =IF('GrM2'!$AO$27=0,"",'GrM2'!$AO$27) -> F4 | M29: =IF('GrM2'!$AF$27=0,"",'GrM2'!$AF$27) -> El Salvador | N29: =IF('GrM2'!$AK$27=0,"",'GrM2'!$AK$27) -> 491-7107 | O29: =IF('GrM2'!$AD$2=0,"",'GrM2'!$AD$2) -> Phyllis | P29: =IF('GrM2'!$AD$3=0,"",'GrM2'!$AD$3) -> Grammar | Q29: =IF('GrM2'!$AD$6=0,"",'GrM2'!$AD$6) -> 09:00:00 | R29: =IF('GrM2'!$AD$7=0,"",'GrM2'!$AD$7) -> M-Th | S29: =IF('GrM2'!$AD$8=0,"",'GrM2'!$AD$8) -> 2 | T29: =IF('GrM2'!$AD$27=0,"",'GrM2'!$AD$27) ->  | U29: =IF('GrM2'!$AE$27=0,"",'GrM2'!$AE$27) ->  | V29: =IF('GrM2'!$AH$27=0,"",'GrM2'!$AH$27) -> 2008-04-13
A30: =IF('GrM1'!$AD$5=0,"",'GrM1'!$AD$5) -> 1 | B30: =IF('GrM1'!$AA$42=0,"",'GrM1'!$AA$42) ->  | C30: =IF('GrM1'!$AB$42=0,"",'GrM1'!$AB$42) ->  | D30: =IF('GrM2'!$B$36=0,"",'GrM2'!$B$36) ->  | E30: =IF('GrM2'!$C$36=0,"",'GrM2'!$C$36) ->  | F30: =IF('GrM2'!$D$36=0,"",'GrM2'!$D$36) ->  | G30: =IF('GrM2'!$AI$36=0,"",'GrM2'!$AI$36) ->  | H30: =IF('GrM2'!$AJ$36=0,"",'GrM2'!$AJ$36) ->  | I30: =IF('GrM2'!$AL$36=0,"",'GrM2'!$AL$36) ->  | J30: =IF('GrM2'!$AM$36=0,"",'GrM2'!$AM$36) ->  | K30: =IF('GrM2'!$AN$36=0,"",'GrM2'!$AN$36) ->  | L30: =IF('GrM2'!$AO$36=0,"",'GrM2'!$AO$36) ->  | M30: =IF('GrM2'!$AF$36=0,"",'GrM2'!$AF$36) ->  | N30: =IF('GrM2'!$AK$36=0,"",'GrM2'!$AK$36) ->  | O30: =IF('GrM2'!$AD$2=0,"",'GrM2'!$AD$2) -> Phyllis | P30: =IF('GrM2'!$AD$3=0,"",'GrM2'!$AD$3) -> Grammar | Q30: =IF('GrM2'!$AD$6=0,"",'GrM2'!$AD$6) -> 09:00:00 | R30: =IF('GrM2'!$AD$7=0,"",'GrM2'!$AD$7) -> M-Th | S30: =IF('GrM2'!$AD$8=0,"",'GrM2'!$AD$8) -> 2 | T30: =IF('GrM2'!$AD$36=0,"",'GrM2'!$AD$36) ->  | U30: =IF('GrM2'!$AE$36=0,"",'GrM2'!$AE$36) ->  | V30: =IF('GrM2'!$AH$36=0,"",'GrM2'!$AH$36) -> 
A31: =IF('GrM1'!$AD$5=0,"",'GrM1'!$AD$5) -> 1 | B31: =IF('GrM1'!$AA$47=0,"",'GrM1'!$AA$47) ->  | C31: =IF('GrM1'!$AB$47=0,"",'GrM1'!$AB$47) ->  | D31: =IF('GrM2'!$B$37=0,"",'GrM2'!$B$37) ->  | E31: =IF('GrM2'!$C$37=0,"",'GrM2'!$C$37) ->  | F31: =IF('GrM2'!$D$37=0,"",'GrM2'!$D$37) ->  | G31: =IF('GrM2'!$AI$37=0,"",'GrM2'!$AI$37) ->  | H31: =IF('GrM2'!$AJ$37=0,"",'GrM2'!$AJ$37) ->  | I31: =IF('GrM2'!$AL$37=0,"",'GrM2'!$AL$37) ->  | J31: =IF('GrM2'!$AM$37=0,"",'GrM2'!$AM$37) ->  | K31: =IF('GrM2'!$AN$37=0,"",'GrM2'!$AN$37) ->  | L31: =IF('GrM2'!$AO$37=0,"",'GrM2'!$AO$37) ->  | M31: =IF('GrM2'!$AF$37=0,"",'GrM2'!$AF$37) ->  | N31: =IF('GrM2'!$AK$37=0,"",'GrM2'!$AK$37) ->  | O31: =IF('GrM2'!$AD$2=0,"",'GrM2'!$AD$2) -> Phyllis | P31: =IF('GrM2'!$AD$3=0,"",'GrM2'!$AD$3) -> Grammar | Q31: =IF('GrM2'!$AD$6=0,"",'GrM2'!$AD$6) -> 09:00:00 | R31: =IF('GrM2'!$AD$7=0,"",'GrM2'!$AD$7) -> M-Th | S31: =IF('GrM2'!$AD$8=0,"",'GrM2'!$AD$8) -> 2 | T31: =IF('GrM2'!$AD$37=0,"",'GrM2'!$AD$37) ->  | U31: =IF('GrM2'!$AE$37=0,"",'GrM2'!$AE$37) ->  | V31: =IF('GrM2'!$AH$37=0,"",'GrM2'!$AH$37) -> 
A32: =IF('GrM1'!$AD$5=0,"",'GrM1'!$AD$5) -> 1 | B32: =IF('GrM1'!$AA$48=0,"",'GrM1'!$AA$48) ->  | C32: =IF('GrM1'!$AB$48=0,"",'GrM1'!$AB$48) ->  | D32: =IF('GrM2'!$B$38=0,"",'GrM2'!$B$38) ->  | E32: =IF('GrM2'!$C$38=0,"",'GrM2'!$C$38) ->  | F32: =IF('GrM2'!$D$38=0,"",'GrM2'!$D$38) ->  | G32: =IF('GrM2'!$AI$38=0,"",'GrM2'!$AI$38) ->  | H32: =IF('GrM2'!$AJ$38=0,"",'GrM2'!$AJ$38) ->  | I32: =IF('GrM2'!$AL$38=0,"",'GrM2'!$AL$38) ->  | J32: =IF('GrM2'!$AM$38=0,"",'GrM2'!$AM$38) ->  | K32: =IF('GrM2'!$AN$38=0,"",'GrM2'!$AN$38) ->  | L32: =IF('GrM2'!$AO$38=0,"",'GrM2'!$AO$38) ->  | M32: =IF('GrM2'!$AF$38=0,"",'GrM2'!$AF$38) ->  | N32: =IF('GrM2'!$AK$38=0,"",'GrM2'!$AK$38) ->  | O32: =IF('GrM2'!$AD$2=0,"",'GrM2'!$AD$2) -> Phyllis | P32: =IF('GrM2'!$AD$3=0,"",'GrM2'!$AD$3) -> Grammar | Q32: =IF('GrM2'!$AD$6=0,"",'GrM2'!$AD$6) -> 09:00:00 | R32: =IF('GrM2'!$AD$7=0,"",'GrM2'!$AD$7) -> M-Th | S32: =IF('GrM2'!$AD$8=0,"",'GrM2'!$AD$8) -> 2 | T32: =IF('GrM2'!$AD$38=0,"",'GrM2'!$AD$38) ->  | U32: =IF('GrM2'!$AE$38=0,"",'GrM2'!$AE$38) ->  | V32: =IF('GrM2'!$AH$38=0,"",'GrM2'!$AH$38) -> 
A33: =IF('GrM1'!$AD$5=0,"",'GrM1'!$AD$5) -> 1 | B33: =IF('GrM1'!$AA$49=0,"",'GrM1'!$AA$49) ->  | C33: =IF('GrM1'!$AB$49=0,"",'GrM1'!$AB$49) ->  | D33: =IF('GrM2'!$B$39=0,"",'GrM2'!$B$39) ->  | E33: =IF('GrM2'!$C$39=0,"",'GrM2'!$C$39) ->  | F33: =IF('GrM2'!$D$39=0,"",'GrM2'!$D$39) ->  | G33: =IF('GrM2'!$AI$39=0,"",'GrM2'!$AI$39) ->  | H33: =IF('GrM2'!$AJ$39=0,"",'GrM2'!$AJ$39) ->  | I33: =IF('GrM2'!$AL$39=0,"",'GrM2'!$AL$39) ->  | J33: =IF('GrM2'!$AM$39=0,"",'GrM2'!$AM$39) ->  | K33: =IF('GrM2'!$AN$39=0,"",'GrM2'!$AN$39) ->  | L33: =IF('GrM2'!$AO$39=0,"",'GrM2'!$AO$39) ->  | M33: =IF('GrM2'!$AF$39=0,"",'GrM2'!$AF$39) ->  | N33: =IF('GrM2'!$AK$39=0,"",'GrM2'!$AK$39) ->  | O33: =IF('GrM2'!$AD$2=0,"",'GrM2'!$AD$2) -> Phyllis | P33: =IF('GrM2'!$AD$3=0,"",'GrM2'!$AD$3) -> Grammar | Q33: =IF('GrM2'!$AD$6=0,"",'GrM2'!$AD$6) -> 09:00:00 | R33: =IF('GrM2'!$AD$7=0,"",'GrM2'!$AD$7) -> M-Th | S33: =IF('GrM2'!$AD$8=0,"",'GrM2'!$AD$8) -> 2 | T33: =IF('GrM2'!$AD$39=0,"",'GrM2'!$AD$39) ->  | U33: =IF('GrM2'!$AE$39=0,"",'GrM2'!$AE$39) ->  | V33: =IF('GrM2'!$AH$39=0,"",'GrM2'!$AH$39) -> 
A34: =IF('GrM1'!$AD$5=0,"",'GrM1'!$AD$5) -> 1 | B34: =IF('GrM1'!$AA$50=0,"",'GrM1'!$AA$50) ->  | C34: =IF('GrM1'!$AB$50=0,"",'GrM1'!$AB$50) ->  | D34: =IF('GrM2'!$B$40=0,"",'GrM2'!$B$40) ->  | E34: =IF('GrM2'!$C$40=0,"",'GrM2'!$C$40) ->  | F34: =IF('GrM2'!$D$40=0,"",'GrM2'!$D$40) ->  | G34: =IF('GrM2'!$AI$40=0,"",'GrM2'!$AI$40) ->  | H34: =IF('GrM2'!$AJ$40=0,"",'GrM2'!$AJ$40) ->  | I34: =IF('GrM2'!$AL$40=0,"",'GrM2'!$AL$40) ->  | J34: =IF('GrM2'!$AM$40=0,"",'GrM2'!$AM$40) ->  | K34: =IF('GrM2'!$AN$40=0,"",'GrM2'!$AN$40) ->  | L34: =IF('GrM2'!$AO$40=0,"",'GrM2'!$AO$40) ->  | M34: =IF('GrM2'!$AF$40=0,"",'GrM2'!$AF$40) ->  | N34: =IF('GrM2'!$AK$40=0,"",'GrM2'!$AK$40) ->  | O34: =IF('GrM2'!$AD$2=0,"",'GrM2'!$AD$2) -> Phyllis | P34: =IF('GrM2'!$AD$3=0,"",'GrM2'!$AD$3) -> Grammar | Q34: =IF('GrM2'!$AD$6=0,"",'GrM2'!$AD$6) -> 09:00:00 | R34: =IF('GrM2'!$AD$7=0,"",'GrM2'!$AD$7) -> M-Th | S34: =IF('GrM2'!$AD$8=0,"",'GrM2'!$AD$8) -> 2 | T34: =IF('GrM2'!$AD$40=0,"",'GrM2'!$AD$40) ->  | U34: =IF('GrM2'!$AE$40=0,"",'GrM2'!$AE$40) ->  | V34: =IF('GrM2'!$AH$40=0,"",'GrM2'!$AH$40) -> 
A35: =IF('GrM1'!$AD$5=0,"",'GrM1'!$AD$5) -> 1 | B35: =IF('GrM1'!$AA$51=0,"",'GrM1'!$AA$51) ->  | C35: =IF('GrM1'!$AB$51=0,"",'GrM1'!$AB$51) ->  | D35: =IF('GrM2'!$B$41=0,"",'GrM2'!$B$41) ->  | E35: =IF('GrM2'!$C$41=0,"",'GrM2'!$C$41) ->  | F35: =IF('GrM2'!$D$41=0,"",'GrM2'!$D$41) ->  | G35: =IF('GrM2'!$AI$41=0,"",'GrM2'!$AI$41) ->  | H35: =IF('GrM2'!$AJ$41=0,"",'GrM2'!$AJ$41) ->  | I35: =IF('GrM2'!$AL$41=0,"",'GrM2'!$AL$41) ->  | J35: =IF('GrM2'!$AM$41=0,"",'GrM2'!$AM$41) ->  | K35: =IF('GrM2'!$AN$41=0,"",'GrM2'!$AN$41) ->  | L35: =IF('GrM2'!$AO$41=0,"",'GrM2'!$AO$41) ->  | M35: =IF('GrM2'!$AF$41=0,"",'GrM2'!$AF$41) ->  | N35: =IF('GrM2'!$AK$41=0,"",'GrM2'!$AK$41) ->  | O35: =IF('GrM2'!$AD$2=0,"",'GrM2'!$AD$2) -> Phyllis | P35: =IF('GrM2'!$AD$3=0,"",'GrM2'!$AD$3) -> Grammar | Q35: =IF('GrM2'!$AD$6=0,"",'GrM2'!$AD$6) -> 09:00:00 | R35: =IF('GrM2'!$AD$7=0,"",'GrM2'!$AD$7) -> M-Th | S35: =IF('GrM2'!$AD$8=0,"",'GrM2'!$AD$8) -> 2 | T35: =IF('GrM2'!$AD$41=0,"",'GrM2'!$AD$41) ->  | U35: =IF('GrM2'!$AE$41=0,"",'GrM2'!$AE$41) ->  | V35: =IF('GrM2'!$AH$41=0,"",'GrM2'!$AH$41) -> 
A36: =IF('GrM1'!$AD$5=0,"",'GrM1'!$AD$5) -> 1 | B36: =IF('GrM1'!$AA$52=0,"",'GrM1'!$AA$52) ->  | C36: =IF('GrM1'!$AB$52=0,"",'GrM1'!$AB$52) ->  | D36: =IF('GrM2'!$B$46=0,"",'GrM2'!$B$46) ->  | E36: =IF('GrM2'!$C$46=0,"",'GrM2'!$C$46) ->  | F36: =IF('GrM2'!$D$46=0,"",'GrM2'!$D$46) ->  | G36: =IF('GrM2'!$AI$46=0,"",'GrM2'!$AI$46) ->  | H36: =IF('GrM2'!$AJ$46=0,"",'GrM2'!$AJ$46) ->  | I36: =IF('GrM2'!$AL$46=0,"",'GrM2'!$AL$46) ->  | J36: =IF('GrM2'!$AM$46=0,"",'GrM2'!$AM$46) ->  | K36: =IF('GrM2'!$AN$46=0,"",'GrM2'!$AN$46) ->  | L36: =IF('GrM2'!$AO$46=0,"",'GrM2'!$AO$46) ->  | M36: =IF('GrM2'!$AF$46=0,"",'GrM2'!$AF$46) ->  | N36: =IF('GrM2'!$AK$46=0,"",'GrM2'!$AK$46) ->  | O36: =IF('GrM2'!$AD$2=0,"",'GrM2'!$AD$2) -> Phyllis | P36: =IF('GrM2'!$AD$3=0,"",'GrM2'!$AD$3) -> Grammar | Q36: =IF('GrM2'!$AD$6=0,"",'GrM2'!$AD$6) -> 09:00:00 | R36: =IF('GrM2'!$AD$7=0,"",'GrM2'!$AD$7) -> M-Th | S36: =IF('GrM2'!$AD$8=0,"",'GrM2'!$AD$8) -> 2 | T36: =IF('GrM2'!$AD$46=0,"",'GrM2'!$AD$46) ->  | U36: =IF('GrM2'!$AE$46=0,"",'GrM2'!$AE$46) ->  | V36: =IF('GrM2'!$AH$46=0,"",'GrM2'!$AH$46) -> 
A37: =IF('GrM2'!$AD$5=0,"",'GrM2'!$AD$5) -> 2 | B37: =IF('GrM2'!$AA$23=0,"",'GrM2'!$AA$23) -> New | C37: =IF('GrM2'!$AB$23=0,"",'GrM2'!$AB$23) ->  | D37: =IF('GrM2'!$B$47=0,"",'GrM2'!$B$47) ->  | E37: =IF('GrM2'!$C$47=0,"",'GrM2'!$C$47) ->  | F37: =IF('GrM2'!$D$47=0,"",'GrM2'!$D$47) ->  | G37: =IF('GrM2'!$AI$47=0,"",'GrM2'!$AI$47) ->  | H37: =IF('GrM2'!$AJ$47=0,"",'GrM2'!$AJ$47) ->  | I37: =IF('GrM2'!$AL$47=0,"",'GrM2'!$AL$47) ->  | J37: =IF('GrM2'!$AM$47=0,"",'GrM2'!$AM$47) ->  | K37: =IF('GrM2'!$AN$47=0,"",'GrM2'!$AN$47) ->  | L37: =IF('GrM2'!$AO$47=0,"",'GrM2'!$AO$47) ->  | M37: =IF('GrM2'!$AF$47=0,"",'GrM2'!$AF$47) ->  | N37: =IF('GrM2'!$AK$47=0,"",'GrM2'!$AK$47) ->  | O37: =IF('GrM2'!$AD$2=0,"",'GrM2'!$AD$2) -> Phyllis | P37: =IF('GrM2'!$AD$3=0,"",'GrM2'!$AD$3) -> Grammar | Q37: =IF('GrM2'!$AD$6=0,"",'GrM2'!$AD$6) -> 09:00:00 | R37: =IF('GrM2'!$AD$7=0,"",'GrM2'!$AD$7) -> M-Th | S37: =IF('GrM2'!$AD$8=0,"",'GrM2'!$AD$8) -> 2 | T37: =IF('GrM2'!$AD$47=0,"",'GrM2'!$AD$47) ->  | U37: =IF('GrM2'!$AE$47=0,"",'GrM2'!$AE$47) ->  | V37: =IF('GrM2'!$AH$47=0,"",'GrM2'!$AH$47) -> 
A38: =IF('GrM2'!$AD$5=0,"",'GrM2'!$AD$5) -> 2 | B38: =IF('GrM2'!$AA$24=0,"",'GrM2'!$AA$24) -> New | C38: =IF('GrM2'!$AB$24=0,"",'GrM2'!$AB$24) ->  | D38: =IF('GrM2'!$B$48=0,"",'GrM2'!$B$48) ->  | E38: =IF('GrM2'!$C$48=0,"",'GrM2'!$C$48) ->  | F38: =IF('GrM2'!$D$48=0,"",'GrM2'!$D$48) ->  | G38: =IF('GrM2'!$AI$48=0,"",'GrM2'!$AI$48) ->  | H38: =IF('GrM2'!$AJ$48=0,"",'GrM2'!$AJ$48) ->  | I38: =IF('GrM2'!$AL$48=0,"",'GrM2'!$AL$48) ->  | J38: =IF('GrM2'!$AM$48=0,"",'GrM2'!$AM$48) ->  | K38: =IF('GrM2'!$AN$48=0,"",'GrM2'!$AN$48) ->  | L38: =IF('GrM2'!$AO$48=0,"",'GrM2'!$AO$48) ->  | M38: =IF('GrM2'!$AF$48=0,"",'GrM2'!$AF$48) ->  | N38: =IF('GrM2'!$AK$48=0,"",'GrM2'!$AK$48) ->  | O38: =IF('GrM2'!$AD$2=0,"",'GrM2'!$AD$2) -> Phyllis | P38: =IF('GrM2'!$AD$3=0,"",'GrM2'!$AD$3) -> Grammar | Q38: =IF('GrM2'!$AD$6=0,"",'GrM2'!$AD$6) -> 09:00:00 | R38: =IF('GrM2'!$AD$7=0,"",'GrM2'!$AD$7) -> M-Th | S38: =IF('GrM2'!$AD$8=0,"",'GrM2'!$AD$8) -> 2 | T38: =IF('GrM2'!$AD$48=0,"",'GrM2'!$AD$48) ->  | U38: =IF('GrM2'!$AE$48=0,"",'GrM2'!$AE$48) ->  | V38: =IF('GrM2'!$AH$48=0,"",'GrM2'!$AH$48) -> 
A39: =IF('GrM2'!$AD$5=0,"",'GrM2'!$AD$5) -> 2 | B39: =IF('GrM2'!$AA$25=0,"",'GrM2'!$AA$25) -> New | C39: =IF('GrM2'!$AB$25=0,"",'GrM2'!$AB$25) ->  | D39: =IF('GrM2'!$B$49=0,"",'GrM2'!$B$49) ->  | E39: =IF('GrM2'!$C$49=0,"",'GrM2'!$C$49) ->  | F39: =IF('GrM2'!$D$49=0,"",'GrM2'!$D$49) ->  | G39: =IF('GrM2'!$AI$49=0,"",'GrM2'!$AI$49) ->  | H39: =IF('GrM2'!$AJ$49=0,"",'GrM2'!$AJ$49) ->  | I39: =IF('GrM2'!$AL$49=0,"",'GrM2'!$AL$49) ->  | J39: =IF('GrM2'!$AM$49=0,"",'GrM2'!$AM$49) ->  | K39: =IF('GrM2'!$AN$49=0,"",'GrM2'!$AN$49) ->  | L39: =IF('GrM2'!$AO$49=0,"",'GrM2'!$AO$49) ->  | M39: =IF('GrM2'!$AF$49=0,"",'GrM2'!$AF$49) ->  | N39: =IF('GrM2'!$AK$49=0,"",'GrM2'!$AK$49) ->  | O39: =IF('GrM2'!$AD$2=0,"",'GrM2'!$AD$2) -> Phyllis | P39: =IF('GrM2'!$AD$3=0,"",'GrM2'!$AD$3) -> Grammar | Q39: =IF('GrM2'!$AD$6=0,"",'GrM2'!$AD$6) -> 09:00:00 | R39: =IF('GrM2'!$AD$7=0,"",'GrM2'!$AD$7) -> M-Th | S39: =IF('GrM2'!$AD$8=0,"",'GrM2'!$AD$8) -> 2 | T39: =IF('GrM2'!$AD$49=0,"",'GrM2'!$AD$49) ->  | U39: =IF('GrM2'!$AE$49=0,"",'GrM2'!$AE$49) ->  | V39: =IF('GrM2'!$AH$49=0,"",'GrM2'!$AH$49) -> 
A40: =IF('GrM2'!$AD$5=0,"",'GrM2'!$AD$5) -> 2 | B40: =IF('GrM2'!$AA$26=0,"",'GrM2'!$AA$26) -> New | C40: =IF('GrM2'!$AB$26=0,"",'GrM2'!$AB$26) ->  | D40: =IF('GrM2'!$B$50=0,"",'GrM2'!$B$50) ->  | E40: =IF('GrM2'!$C$50=0,"",'GrM2'!$C$50) ->  | F40: =IF('GrM2'!$D$50=0,"",'GrM2'!$D$50) ->  | G40: =IF('GrM2'!$AI$50=0,"",'GrM2'!$AI$50) ->  | H40: =IF('GrM2'!$AJ$50=0,"",'GrM2'!$AJ$50) ->  | I40: =IF('GrM2'!$AL$50=0,"",'GrM2'!$AL$50) ->  | J40: =IF('GrM2'!$AM$50=0,"",'GrM2'!$AM$50) ->  | K40: =IF('GrM2'!$AN$50=0,"",'GrM2'!$AN$50) ->  | L40: =IF('GrM2'!$AO$50=0,"",'GrM2'!$AO$50) ->  | M40: =IF('GrM2'!$AF$50=0,"",'GrM2'!$AF$50) ->  | N40: =IF('GrM2'!$AK$50=0,"",'GrM2'!$AK$50) ->  | O40: =IF('GrM2'!$AD$2=0,"",'GrM2'!$AD$2) -> Phyllis | P40: =IF('GrM2'!$AD$3=0,"",'GrM2'!$AD$3) -> Grammar | Q40: =IF('GrM2'!$AD$6=0,"",'GrM2'!$AD$6) -> 09:00:00 | R40: =IF('GrM2'!$AD$7=0,"",'GrM2'!$AD$7) -> M-Th | S40: =IF('GrM2'!$AD$8=0,"",'GrM2'!$AD$8) -> 2 | T40: =IF('GrM2'!$AD$50=0,"",'GrM2'!$AD$50) ->  | U40: =IF('GrM2'!$AE$50=0,"",'GrM2'!$AE$50) ->  | V40: =IF('GrM2'!$AH$50=0,"",'GrM2'!$AH$50) -> 
A41: =IF('GrM2'!$AD$5=0,"",'GrM2'!$AD$5) -> 2 | B41: =IF('GrM2'!$AA$27=0,"",'GrM2'!$AA$27) -> New | C41: =IF('GrM2'!$AB$27=0,"",'GrM2'!$AB$27) ->  | D41: =IF('GrM2'!$B$51=0,"",'GrM2'!$B$51) ->  | E41: =IF('GrM2'!$C$51=0,"",'GrM2'!$C$51) ->  | F41: =IF('GrM2'!$D$51=0,"",'GrM2'!$D$51) ->  | G41: =IF('GrM2'!$AI$51=0,"",'GrM2'!$AI$51) ->  | H41: =IF('GrM2'!$AJ$51=0,"",'GrM2'!$AJ$51) ->  | I41: =IF('GrM2'!$AL$51=0,"",'GrM2'!$AL$51) ->  | J41: =IF('GrM2'!$AM$51=0,"",'GrM2'!$AM$51) ->  | K41: =IF('GrM2'!$AN$51=0,"",'GrM2'!$AN$51) ->  | L41: =IF('GrM2'!$AO$51=0,"",'GrM2'!$AO$51) ->  | M41: =IF('GrM2'!$AF$51=0,"",'GrM2'!$AF$51) ->  | N41: =IF('GrM2'!$AK$51=0,"",'GrM2'!$AK$51) ->  | O41: =IF('GrM2'!$AD$2=0,"",'GrM2'!$AD$2) -> Phyllis | P41: =IF('GrM2'!$AD$3=0,"",'GrM2'!$AD$3) -> Grammar | Q41: =IF('GrM2'!$AD$6=0,"",'GrM2'!$AD$6) -> 09:00:00 | R41: =IF('GrM2'!$AD$7=0,"",'GrM2'!$AD$7) -> M-Th | S41: =IF('GrM2'!$AD$8=0,"",'GrM2'!$AD$8) -> 2 | T41: =IF('GrM2'!$AD$51=0,"",'GrM2'!$AD$51) ->  | U41: =IF('GrM2'!$AE$51=0,"",'GrM2'!$AE$51) ->  | V41: =IF('GrM2'!$AH$51=0,"",'GrM2'!$AH$51) -> 
A42: =IF('GrM2'!$AD$5=0,"",'GrM2'!$AD$5) -> 2 | B42: =IF('GrM2'!$AA$28=0,"",'GrM2'!$AA$28) -> New | C42: =IF('GrM2'!$AB$28=0,"",'GrM2'!$AB$28) ->  | D42: =IF('GrM2'!$B$52=0,"",'GrM2'!$B$52) ->  | E42: =IF('GrM2'!$C$52=0,"",'GrM2'!$C$52) ->  | F42: =IF('GrM2'!$D$52=0,"",'GrM2'!$D$52) ->  | G42: =IF('GrM2'!$AI$52=0,"",'GrM2'!$AI$52) ->  | H42: =IF('GrM2'!$AJ$52=0,"",'GrM2'!$AJ$52) ->  | I42: =IF('GrM2'!$AL$52=0,"",'GrM2'!$AL$52) ->  | J42: =IF('GrM2'!$AM$52=0,"",'GrM2'!$AM$52) ->  | K42: =IF('GrM2'!$AN$52=0,"",'GrM2'!$AN$52) ->  | L42: =IF('GrM2'!$AO$52=0,"",'GrM2'!$AO$52) ->  | M42: =IF('GrM2'!$AF$52=0,"",'GrM2'!$AF$52) ->  | N42: =IF('GrM2'!$AK$52=0,"",'GrM2'!$AK$52) ->  | O42: =IF('GrM2'!$AD$2=0,"",'GrM2'!$AD$2) -> Phyllis | P42: =IF('GrM2'!$AD$3=0,"",'GrM2'!$AD$3) -> Grammar | Q42: =IF('GrM2'!$AD$6=0,"",'GrM2'!$AD$6) -> 09:00:00 | R42: =IF('GrM2'!$AD$7=0,"",'GrM2'!$AD$7) -> M-Th | S42: =IF('GrM2'!$AD$8=0,"",'GrM2'!$AD$8) -> 2 | T42: =IF('GrM2'!$AD$52=0,"",'GrM2'!$AD$52) ->  | U42: =IF('GrM2'!$AE$52=0,"",'GrM2'!$AE$52) ->  | V42: =IF('GrM2'!$AH$52=0,"",'GrM2'!$AH$52) -> 
A43: =IF('GrM2'!$AD$5=0,"",'GrM2'!$AD$5) -> 2 | B43: =IF('GrM2'!$AA$29=0,"",'GrM2'!$AA$29) -> New | C43: =IF('GrM2'!$AB$29=0,"",'GrM2'!$AB$29) ->  | D43: =IF('GrM3'!$B38=0,"",'GrM3'!$B38) -> 2008-08-12 | E43: =IF('GrM3'!$C38=0,"",'GrM3'!$C38) -> 2008-12-05 | F43: =IF('GrM3'!$D$38=0,"",'GrM3'!$D$38) -> 2008-12-05 | G43: =IF('GrM3'!$AI$38=0,"",'GrM3'!$AI$38) -> Valdes | H43: =IF('GrM3'!$AJ$38=0,"",'GrM3'!$AJ$38) -> Beatriz | I43: =IF('GrM3'!$AL$38=0,"",'GrM3'!$AL$38) -> All | J43: =IF('GrM3'!$AM$38=0,"",'GrM3'!$AM$38) -> S8 | K43: =IF('GrM3'!$AN$38=0,"",'GrM3'!$AN$38) -> F7 | L43: =IF('GrM3'!$AO$38=0,"",'GrM3'!$AO$38) -> F7 | M43: =IF('GrM3'!$AF$38=0,"",'GrM3'!$AF$38) -> Mexico | N43: =IF('GrM3'!$AK$38=0,"",'GrM3'!$AK$38) -> 687-8255 | O43: =IF('GrM3'!$AD$2=0,"",'GrM3'!$AD$2) -> FALSE | P43: =IF('GrM3'!$AD$3=0,"",'GrM3'!$AD$3) -> Grammar | Q43: =IF('GrM3'!$AD$6=0,"",'GrM3'!$AD$6) -> 09:00:00 | R43: =IF('GrM3'!$AD$7=0,"",'GrM3'!$AD$7) -> M-Th | S43: =IF('GrM3'!$AD$8=0,"",'GrM3'!$AD$8) -> 1 | T43: =IF('GrM3'!$AD$38=0,"",'GrM3'!$AD$38) ->  | U43: =IF('GrM3'!$AE$38=0,"",'GrM3'!$AE$38) ->  | V43: =IF('GrM3'!$AH$38=0,"",'GrM3'!$AH$38) -> 2008-08-22
A44: =IF('GrM2'!$AD$5=0,"",'GrM2'!$AD$5) -> 2 | B44: =IF('GrM2'!$AA$30=0,"",'GrM2'!$AA$30) -> New | C44: =IF('GrM2'!$AB$30=0,"",'GrM2'!$AB$30) ->  | D44: =IF('GrM3'!$B39=0,"",'GrM3'!$B39) -> 2008-08-25 | E44: =IF('GrM3'!$C39=0,"",'GrM3'!$C39) -> 2008-12-19 | F44: =IF('GrM3'!$D$39=0,"",'GrM3'!$D$39) -> 2008-12-19 | G44: =IF('GrM3'!$AI$39=0,"",'GrM3'!$AI$39) -> Campos | H44: =IF('GrM3'!$AJ$39=0,"",'GrM3'!$AJ$39) -> Denise | I44: =IF('GrM3'!$AL$39=0,"",'GrM3'!$AL$39) -> Gate | J44: =IF('GrM3'!$AM$39=0,"",'GrM3'!$AM$39) -> F1 | K44: =IF('GrM3'!$AN$39=0,"",'GrM3'!$AN$39) -> F8 | L44: =IF('GrM3'!$AO$39=0,"",'GrM3'!$AO$39) -> F8 | M44: =IF('GrM3'!$AF$39=0,"",'GrM3'!$AF$39) -> Brazil | N44: =IF('GrM3'!$AK$39=0,"",'GrM3'!$AK$39) -> 5181513003 | O44: =IF('GrM3'!$AD$2=0,"",'GrM3'!$AD$2) -> FALSE | P44: =IF('GrM3'!$AD$3=0,"",'GrM3'!$AD$3) -> Grammar | Q44: =IF('GrM3'!$AD$6=0,"",'GrM3'!$AD$6) -> 09:00:00 | R44: =IF('GrM3'!$AD$7=0,"",'GrM3'!$AD$7) -> M-Th | S44: =IF('GrM3'!$AD$8=0,"",'GrM3'!$AD$8) -> 1 | T44: =IF('GrM3'!$AD$39=0,"",'GrM3'!$AD$39) -> 2009-01-17 | U44: =IF('GrM3'!$AE$39=0,"",'GrM3'!$AE$39) ->  | V44: =IF('GrM3'!$AH$39=0,"",'GrM3'!$AH$39) -> 2008-08-08
A45: =IF('GrM2'!$AD$5=0,"",'GrM2'!$AD$5) -> 2 | B45: =IF('GrM2'!$AA$31=0,"",'GrM2'!$AA$31) -> New | C45: =IF('GrM2'!$AB$31=0,"",'GrM2'!$AB$31) ->  | D45: =IF('GrM3'!$B40=0,"",'GrM3'!$B40) ->  | E45: =IF('GrM3'!$C40=0,"",'GrM3'!$C40) ->  | F45: =IF('GrM3'!$D$40=0,"",'GrM3'!$D$40) ->  | G45: =IF('GrM3'!$AI$40=0,"",'GrM3'!$AI$40) ->  | H45: =IF('GrM3'!$AJ$40=0,"",'GrM3'!$AJ$40) ->  | I45: =IF('GrM3'!$AL$40=0,"",'GrM3'!$AL$40) ->  | J45: =IF('GrM3'!$AM$40=0,"",'GrM3'!$AM$40) ->  | K45: =IF('GrM3'!$AN$40=0,"",'GrM3'!$AN$40) ->  | L45: =IF('GrM3'!$AO$40=0,"",'GrM3'!$AO$40) ->  | M45: =IF('GrM3'!$AF$40=0,"",'GrM3'!$AF$40) ->  | N45: =IF('GrM3'!$AK$40=0,"",'GrM3'!$AK$40) ->  | O45: =IF('GrM3'!$AD$2=0,"",'GrM3'!$AD$2) -> FALSE | P45: =IF('GrM3'!$AD$3=0,"",'GrM3'!$AD$3) -> Grammar | Q45: =IF('GrM3'!$AD$6=0,"",'GrM3'!$AD$6) -> 09:00:00 | R45: =IF('GrM3'!$AD$7=0,"",'GrM3'!$AD$7) -> M-Th | S45: =IF('GrM3'!$AD$8=0,"",'GrM3'!$AD$8) -> 1 | T45: =IF('GrM3'!$AD$40=0,"",'GrM3'!$AD$40) ->  | U45: =IF('GrM3'!$AE$40=0,"",'GrM3'!$AE$40) ->  | V45: =IF('GrM3'!$AH$40=0,"",'GrM3'!$AH$40) -> 
A46: =IF('GrM2'!$AD$5=0,"",'GrM2'!$AD$5) -> 2 | B46: =IF('GrM2'!$AA$32=0,"",'GrM2'!$AA$32) -> New | C46: =IF('GrM2'!$AB$32=0,"",'GrM2'!$AB$32) ->  | D46: =IF('GrM3'!$B41=0,"",'GrM3'!$B41) ->  | E46: =IF('GrM3'!$C41=0,"",'GrM3'!$C41) ->  | F46: =IF('GrM3'!$D$41=0,"",'GrM3'!$D$41) ->  | G46: =IF('GrM3'!$AI$41=0,"",'GrM3'!$AI$41) ->  | H46: =IF('GrM3'!$AJ$41=0,"",'GrM3'!$AJ$41) ->  | I46: =IF('GrM3'!$AL$41=0,"",'GrM3'!$AL$41) ->  | J46: =IF('GrM3'!$AM$41=0,"",'GrM3'!$AM$41) ->  | K46: =IF('GrM3'!$AN$41=0,"",'GrM3'!$AN$41) ->  | L46: =IF('GrM3'!$AO$41=0,"",'GrM3'!$AO$41) ->  | M46: =IF('GrM3'!$AF$41=0,"",'GrM3'!$AF$41) ->  | N46: =IF('GrM3'!$AK$41=0,"",'GrM3'!$AK$41) ->  | O46: =IF('GrM3'!$AD$2=0,"",'GrM3'!$AD$2) -> FALSE | P46: =IF('GrM3'!$AD$3=0,"",'GrM3'!$AD$3) -> Grammar | Q46: =IF('GrM3'!$AD$6=0,"",'GrM3'!$AD$6) -> 09:00:00 | R46: =IF('GrM3'!$AD$7=0,"",'GrM3'!$AD$7) -> M-Th | S46: =IF('GrM3'!$AD$8=0,"",'GrM3'!$AD$8) -> 1 | T46: =IF('GrM3'!$AD$41=0,"",'GrM3'!$AD$41) ->  | U46: =IF('GrM3'!$AE$41=0,"",'GrM3'!$AE$41) ->  | V46: =IF('GrM3'!$AH$41=0,"",'GrM3'!$AH$41) -> 
A47: =IF('GrM2'!$AD$5=0,"",'GrM2'!$AD$5) -> 2 | B47: =IF('GrM2'!$AA$33=0,"",'GrM2'!$AA$33) -> New | C47: =IF('GrM2'!$AB$33=0,"",'GrM2'!$AB$33) ->  | D47: =IF('GrM3'!$B42=0,"",'GrM3'!$B42) ->  | E47: =IF('GrM3'!$C42=0,"",'GrM3'!$C42) ->  | F47: =IF('GrM3'!$D$42=0,"",'GrM3'!$D$42) ->  | G47: =IF('GrM3'!$AI$42=0,"",'GrM3'!$AI$42) ->  | H47: =IF('GrM3'!$AJ$42=0,"",'GrM3'!$AJ$42) ->  | I47: =IF('GrM3'!$AL$42=0,"",'GrM3'!$AL$42) ->  | J47: =IF('GrM3'!$AM$42=0,"",'GrM3'!$AM$42) ->  | K47: =IF('GrM3'!$AN$42=0,"",'GrM3'!$AN$42) ->  | L47: =IF('GrM3'!$AO$42=0,"",'GrM3'!$AO$42) ->  | M47: =IF('GrM3'!$AF$42=0,"",'GrM3'!$AF$42) ->  | N47: =IF('GrM3'!$AK$42=0,"",'GrM3'!$AK$42) ->  | O47: =IF('GrM3'!$AD$2=0,"",'GrM3'!$AD$2) -> FALSE | P47: =IF('GrM3'!$AD$3=0,"",'GrM3'!$AD$3) -> Grammar | Q47: =IF('GrM3'!$AD$6=0,"",'GrM3'!$AD$6) -> 09:00:00 | R47: =IF('GrM3'!$AD$7=0,"",'GrM3'!$AD$7) -> M-Th | S47: =IF('GrM3'!$AD$8=0,"",'GrM3'!$AD$8) -> 1 | T47: =IF('GrM3'!$AD$42=0,"",'GrM3'!$AD$42) ->  | U47: =IF('GrM3'!$AE$42=0,"",'GrM3'!$AE$42) ->  | V47: =IF('GrM3'!$AH$42=0,"",'GrM3'!$AH$42) -> 
A48: =IF('GrM2'!$AD$5=0,"",'GrM2'!$AD$5) -> 2 | B48: =IF('GrM2'!$AA$34=0,"",'GrM2'!$AA$34) ->  | C48: =IF('GrM2'!$AB$34=0,"",'GrM2'!$AB$34) ->  | D48: =IF('GrM3'!$B43=0,"",'GrM3'!$B43) ->  | E48: =IF('GrM3'!$C43=0,"",'GrM3'!$C43) ->  | F48: =IF('GrM3'!$D$43=0,"",'GrM3'!$D$43) ->  | G48: =IF('GrM3'!$AI$43=0,"",'GrM3'!$AI$43) ->  | H48: =IF('GrM3'!$AJ$43=0,"",'GrM3'!$AJ$43) ->  | I48: =IF('GrM3'!$AL$43=0,"",'GrM3'!$AL$43) ->  | J48: =IF('GrM3'!$AM$43=0,"",'GrM3'!$AM$43) ->  | K48: =IF('GrM3'!$AN$43=0,"",'GrM3'!$AN$43) ->  | L48: =IF('GrM3'!$AO$43=0,"",'GrM3'!$AO$43) ->  | M48: =IF('GrM3'!$AF$43=0,"",'GrM3'!$AF$43) ->  | N48: =IF('GrM3'!$AK$43=0,"",'GrM3'!$AK$43) ->  | O48: =IF('GrM3'!$AD$2=0,"",'GrM3'!$AD$2) -> FALSE | P48: =IF('GrM3'!$AD$3=0,"",'GrM3'!$AD$3) -> Grammar | Q48: =IF('GrM3'!$AD$6=0,"",'GrM3'!$AD$6) -> 09:00:00 | R48: =IF('GrM3'!$AD$7=0,"",'GrM3'!$AD$7) -> M-Th | S48: =IF('GrM3'!$AD$8=0,"",'GrM3'!$AD$8) -> 1 | T48: =IF('GrM3'!$AD$43=0,"",'GrM3'!$AD$43) ->  | U48: =IF('GrM3'!$AE$43=0,"",'GrM3'!$AE$43) ->  | V48: =IF('GrM3'!$AH$43=0,"",'GrM3'!$AH$43) -> 
A49: =IF('GrM2'!$AD$5=0,"",'GrM2'!$AD$5) -> 2 | B49: =IF('GrM2'!$AA$35=0,"",'GrM2'!$AA$35) ->  | C49: =IF('GrM2'!$AB$35=0,"",'GrM2'!$AB$35) ->  | D49: =IF('GrM3'!$B47=0,"",'GrM3'!$B47) ->  | E49: =IF('GrM3'!$C47=0,"",'GrM3'!$C47) ->  | F49: =IF('GrM3'!$D$47=0,"",'GrM3'!$D$47) ->  | G49: =IF('GrM3'!$AI$47=0,"",'GrM3'!$AI$47) ->  | H49: =IF('GrM3'!$AJ$47=0,"",'GrM3'!$AJ$47) ->  | I49: =IF('GrM3'!$AL$47=0,"",'GrM3'!$AL$47) ->  | J49: =IF('GrM3'!$AM$47=0,"",'GrM3'!$AM$47) ->  | K49: =IF('GrM3'!$AN$47=0,"",'GrM3'!$AN$47) ->  | L49: =IF('GrM3'!$AO$47=0,"",'GrM3'!$AO$47) ->  | M49: =IF('GrM3'!$AF$47=0,"",'GrM3'!$AF$47) ->  | N49: =IF('GrM3'!$AK$47=0,"",'GrM3'!$AK$47) ->  | O49: =IF('GrM3'!$AD$2=0,"",'GrM3'!$AD$2) -> FALSE | P49: =IF('GrM3'!$AD$3=0,"",'GrM3'!$AD$3) -> Grammar | Q49: =IF('GrM3'!$AD$6=0,"",'GrM3'!$AD$6) -> 09:00:00 | R49: =IF('GrM3'!$AD$7=0,"",'GrM3'!$AD$7) -> M-Th | S49: =IF('GrM3'!$AD$8=0,"",'GrM3'!$AD$8) -> 1 | T49: =IF('GrM3'!$AD$47=0,"",'GrM3'!$AD$47) ->  | U49: =IF('GrM3'!$AE$47=0,"",'GrM3'!$AE$47) ->  | V49: =IF('GrM3'!$AH$47=0,"",'GrM3'!$AH$47) -> 
A50: =IF('GrM2'!$AD$5=0,"",'GrM2'!$AD$5) -> 2 | B50: =IF('GrM2'!$AA$36=0,"",'GrM2'!$AA$36) ->  | C50: =IF('GrM2'!$AB$36=0,"",'GrM2'!$AB$36) ->  | D50: =IF('GrM3'!$B49=0,"",'GrM3'!$B49) ->  | E50: =IF('GrM3'!$C49=0,"",'GrM3'!$C49) ->  | F50: =IF('GrM3'!$D$49=0,"",'GrM3'!$D$49) ->  | G50: =IF('GrM3'!$AI$49=0,"",'GrM3'!$AI$49) ->  | H50: =IF('GrM3'!$AJ$49=0,"",'GrM3'!$AJ$49) ->  | I50: =IF('GrM3'!$AL$49=0,"",'GrM3'!$AL$49) ->  | J50: =IF('GrM3'!$AM$49=0,"",'GrM3'!$AM$49) ->  | K50: =IF('GrM3'!$AN$49=0,"",'GrM3'!$AN$49) ->  | L50: =IF('GrM3'!$AO$49=0,"",'GrM3'!$AO$49) ->  | M50: =IF('GrM3'!$AF$49=0,"",'GrM3'!$AF$49) ->  | N50: =IF('GrM3'!$AK$49=0,"",'GrM3'!$AK$49) ->  | O50: =IF('GrM3'!$AD$2=0,"",'GrM3'!$AD$2) -> FALSE | P50: =IF('GrM3'!$AD$3=0,"",'GrM3'!$AD$3) -> Grammar | Q50: =IF('GrM3'!$AD$6=0,"",'GrM3'!$AD$6) -> 09:00:00 | R50: =IF('GrM3'!$AD$7=0,"",'GrM3'!$AD$7) -> M-Th | S50: =IF('GrM3'!$AD$8=0,"",'GrM3'!$AD$8) -> 1 | T50: =IF('GrM3'!$AD$49=0,"",'GrM3'!$AD$49) ->  | U50: =IF('GrM3'!$AE$49=0,"",'GrM3'!$AE$49) ->  | V50: =IF('GrM3'!$AH$49=0,"",'GrM3'!$AH$49) -> 
A51: =IF('GrM2'!$AD$5=0,"",'GrM2'!$AD$5) -> 2 | B51: =IF('GrM2'!$AA$37=0,"",'GrM2'!$AA$37) ->  | C51: =IF('GrM2'!$AB$37=0,"",'GrM2'!$AB$37) ->  | D51: =IF('GrM3'!$B50=0,"",'GrM3'!$B50) ->  | E51: =IF('GrM3'!$C50=0,"",'GrM3'!$C50) ->  | F51: =IF('GrM3'!$D$50=0,"",'GrM3'!$D$50) ->  | G51: =IF('GrM3'!$AI$50=0,"",'GrM3'!$AI$50) ->  | H51: =IF('GrM3'!$AJ$50=0,"",'GrM3'!$AJ$50) ->  | I51: =IF('GrM3'!$AL$50=0,"",'GrM3'!$AL$50) ->  | J51: =IF('GrM3'!$AM$50=0,"",'GrM3'!$AM$50) ->  | K51: =IF('GrM3'!$AN$50=0,"",'GrM3'!$AN$50) ->  | L51: =IF('GrM3'!$AO$50=0,"",'GrM3'!$AO$50) ->  | M51: =IF('GrM3'!$AF$50=0,"",'GrM3'!$AF$50) ->  | N51: =IF('GrM3'!$AK$50=0,"",'GrM3'!$AK$50) ->  | O51: =IF('GrM3'!$AD$2=0,"",'GrM3'!$AD$2) -> FALSE | P51: =IF('GrM3'!$AD$3=0,"",'GrM3'!$AD$3) -> Grammar | Q51: =IF('GrM3'!$AD$6=0,"",'GrM3'!$AD$6) -> 09:00:00 | R51: =IF('GrM3'!$AD$7=0,"",'GrM3'!$AD$7) -> M-Th | S51: =IF('GrM3'!$AD$8=0,"",'GrM3'!$AD$8) -> 1 | T51: =IF('GrM3'!$AD$50=0,"",'GrM3'!$AD$50) ->  | U51: =IF('GrM3'!$AE$50=0,"",'GrM3'!$AE$50) ->  | V51: =IF('GrM3'!$AH$50=0,"",'GrM3'!$AH$50) -> 
A52: =IF('GrM2'!$AD$5=0,"",'GrM2'!$AD$5) -> 2 | B52: =IF('GrM2'!$AA$38=0,"",'GrM2'!$AA$38) ->  | C52: =IF('GrM2'!$AB$38=0,"",'GrM2'!$AB$38) ->  | D52: =IF('GrM3'!$B51=0,"",'GrM3'!$B51) ->  | E52: =IF('GrM3'!$C51=0,"",'GrM3'!$C51) ->  | F52: =IF('GrM3'!$D$51=0,"",'GrM3'!$D$51) ->  | G52: =IF('GrM3'!$AI$51=0,"",'GrM3'!$AI$51) ->  | H52: =IF('GrM3'!$AJ$51=0,"",'GrM3'!$AJ$51) ->  | I52: =IF('GrM3'!$AL$51=0,"",'GrM3'!$AL$51) ->  | J52: =IF('GrM3'!$AM$51=0,"",'GrM3'!$AM$51) ->  | K52: =IF('GrM3'!$AN$51=0,"",'GrM3'!$AN$51) ->  | L52: =IF('GrM3'!$AO$51=0,"",'GrM3'!$AO$51) ->  | M52: =IF('GrM3'!$AF$51=0,"",'GrM3'!$AF$51) ->  | N52: =IF('GrM3'!$AK$51=0,"",'GrM3'!$AK$51) ->  | O52: =IF('GrM3'!$AD$2=0,"",'GrM3'!$AD$2) -> FALSE | P52: =IF('GrM3'!$AD$3=0,"",'GrM3'!$AD$3) -> Grammar | Q52: =IF('GrM3'!$AD$6=0,"",'GrM3'!$AD$6) -> 09:00:00 | R52: =IF('GrM3'!$AD$7=0,"",'GrM3'!$AD$7) -> M-Th | S52: =IF('GrM3'!$AD$8=0,"",'GrM3'!$AD$8) -> 1 | T52: =IF('GrM3'!$AD$51=0,"",'GrM3'!$AD$51) ->  | U52: =IF('GrM3'!$AE$51=0,"",'GrM3'!$AE$51) ->  | V52: =IF('GrM3'!$AH$51=0,"",'GrM3'!$AH$51) -> 
A53: =IF('GrM2'!$AD$5=0,"",'GrM2'!$AD$5) -> 2 | B53: =IF('GrM2'!$AA$39=0,"",'GrM2'!$AA$39) ->  | C53: =IF('GrM2'!$AB$39=0,"",'GrM2'!$AB$39) ->  | D53: =IF('GrM3'!$B52=0,"",'GrM3'!$B52) ->  | E53: =IF('GrM3'!$C52=0,"",'GrM3'!$C52) ->  | F53: =IF('GrM3'!$D$52=0,"",'GrM3'!$D$52) ->  | G53: =IF('GrM3'!$AI$52=0,"",'GrM3'!$AI$52) ->  | H53: =IF('GrM3'!$AJ$52=0,"",'GrM3'!$AJ$52) ->  | I53: =IF('GrM3'!$AL$52=0,"",'GrM3'!$AL$52) ->  | J53: =IF('GrM3'!$AM$52=0,"",'GrM3'!$AM$52) ->  | K53: =IF('GrM3'!$AN$52=0,"",'GrM3'!$AN$52) ->  | L53: =IF('GrM3'!$AO$52=0,"",'GrM3'!$AO$52) ->  | M53: =IF('GrM3'!$AF$52=0,"",'GrM3'!$AF$52) ->  | N53: =IF('GrM3'!$AK$52=0,"",'GrM3'!$AK$52) ->  | O53: =IF('GrM3'!$AD$2=0,"",'GrM3'!$AD$2) -> FALSE | P53: =IF('GrM3'!$AD$3=0,"",'GrM3'!$AD$3) -> Grammar | Q53: =IF('GrM3'!$AD$6=0,"",'GrM3'!$AD$6) -> 09:00:00 | R53: =IF('GrM3'!$AD$7=0,"",'GrM3'!$AD$7) -> M-Th | S53: =IF('GrM3'!$AD$8=0,"",'GrM3'!$AD$8) -> 1 | T53: =IF('GrM3'!$AD$52=0,"",'GrM3'!$AD$52) ->  | U53: =IF('GrM3'!$AE$52=0,"",'GrM3'!$AE$52) ->  | V53: =IF('GrM3'!$AH$52=0,"",'GrM3'!$AH$52) -> 
A54: =IF('GrM2'!$AD$5=0,"",'GrM2'!$AD$5) -> 2 | B54: =IF('GrM2'!$AA$40=0,"",'GrM2'!$AA$40) ->  | C54: =IF('GrM2'!$AB$40=0,"",'GrM2'!$AB$40) ->  | D54: =IF(GrM5A!$B$32=0,"",GrM5A!$B$32) ->  | E54: =IF(GrM5A!$C$32=0,"",GrM5A!$C$32) ->  | F54: =IF(GrM5A!$D$32=0,"",GrM5A!$D$32) ->  | G54: =IF(GrM5A!$AI$32=0,"",GrM5A!$AI$32) ->  | H54: =IF(GrM5A!$AJ$32=0,"",GrM5A!$AJ$32) ->  | I54: =IF(GrM5A!$AL$32=0,"",GrM5A!$AL$32) ->  | J54: =IF(GrM5A!$AM$32=0,"",GrM5A!$AM$32) ->  | K54: =IF(GrM5A!$AN$32=0,"",GrM5A!$AN$32) ->  | L54: =IF(GrM5A!$AO$32=0,"",GrM5A!$AO$32) ->  | M54: =IF(GrM5A!$AF$32=0,"",GrM5A!$AF$32) ->  | N54: =IF(GrM5A!$AK$32=0,"",GrM5A!$AK$32) ->  | O54: =IF(GrM5A!$AD$2=0,"",GrM5A!$AD$2) -> FALSE | P54: =IF(GrM5A!$AD$3=0,"",GrM5A!$AD$3) -> Grammar | Q54: =IF(GrM5A!$AD$6=0,"",GrM5A!$AD$6) -> 09:00:00 | R54: =IF(GrM5A!$AD$7=0,"",GrM5A!$AD$7) -> M-Th | S54: =IF(GrM5A!$AD$8=0,"",GrM5A!$AD$8) -> 4 | T54: =IF(GrM5A!$AD$32=0,"",GrM5A!$AD$32) ->  | U54: =IF(GrM5A!$AE$32=0,"",GrM5A!$AE$32) ->  | V54: =IF(GrM5A!$AH$32=0,"",GrM5A!$AH$32) -> 
A55: =IF('GrM2'!$AD$5=0,"",'GrM2'!$AD$5) -> 2 | B55: =IF('GrM2'!$AA$41=0,"",'GrM2'!$AA$41) ->  | C55: =IF('GrM2'!$AB$41=0,"",'GrM2'!$AB$41) ->  | D55: =IF(GrM5A!$B$33=0,"",GrM5A!$B$33) ->  | E55: =IF(GrM5A!$C$33=0,"",GrM5A!$C$33) ->  | F55: =IF(GrM5A!$D$33=0,"",GrM5A!$D$33) ->  | G55: =IF(GrM5A!$AI$33=0,"",GrM5A!$AI$33) ->  | H55: =IF(GrM5A!$AJ$33=0,"",GrM5A!$AJ$33) ->  | I55: =IF(GrM5A!$AL$33=0,"",GrM5A!$AL$33) ->  | J55: =IF(GrM5A!$AM$33=0,"",GrM5A!$AM$33) ->  | K55: =IF(GrM5A!$AN$33=0,"",GrM5A!$AN$33) ->  | L55: =IF(GrM5A!$AO$33=0,"",GrM5A!$AO$33) ->  | M55: =IF(GrM5A!$AF$33=0,"",GrM5A!$AF$33) ->  | N55: =IF(GrM5A!$AK$33=0,"",GrM5A!$AK$33) ->  | O55: =IF(GrM5A!$AD$2=0,"",GrM5A!$AD$2) -> FALSE | P55: =IF(GrM5A!$AD$3=0,"",GrM5A!$AD$3) -> Grammar | Q55: =IF(GrM5A!$AD$6=0,"",GrM5A!$AD$6) -> 09:00:00 | R55: =IF(GrM5A!$AD$7=0,"",GrM5A!$AD$7) -> M-Th | S55: =IF(GrM5A!$AD$8=0,"",GrM5A!$AD$8) -> 4 | T55: =IF(GrM5A!$AD$33=0,"",GrM5A!$AD$33) ->  | U55: =IF(GrM5A!$AE$33=0,"",GrM5A!$AE$33) ->  | V55: =IF(GrM5A!$AH$33=0,"",GrM5A!$AH$33) -> 
A56: =IF('GrM2'!$AD$5=0,"",'GrM2'!$AD$5) -> 2 | B56: =IF('GrM2'!$AA$46=0,"",'GrM2'!$AA$46) ->  | C56: =IF('GrM2'!$AB$46=0,"",'GrM2'!$AB$46) ->  | D56: =IF(GrM5A!$B$34=0,"",GrM5A!$B$34) ->  | E56: =IF(GrM5A!$C$34=0,"",GrM5A!$C$34) ->  | F56: =IF(GrM5A!$D$34=0,"",GrM5A!$D$34) ->  | G56: =IF(GrM5A!$AI$34=0,"",GrM5A!$AI$34) ->  | H56: =IF(GrM5A!$AJ$34=0,"",GrM5A!$AJ$34) ->  | I56: =IF(GrM5A!$AL$34=0,"",GrM5A!$AL$34) ->  | J56: =IF(GrM5A!$AM$34=0,"",GrM5A!$AM$34) ->  | K56: =IF(GrM5A!$AN$34=0,"",GrM5A!$AN$34) ->  | L56: =IF(GrM5A!$AO$34=0,"",GrM5A!$AO$34) ->  | M56: =IF(GrM5A!$AF$34=0,"",GrM5A!$AF$34) ->  | N56: =IF(GrM5A!$AK$34=0,"",GrM5A!$AK$34) ->  | O56: =IF(GrM5A!$AD$2=0,"",GrM5A!$AD$2) -> FALSE | P56: =IF(GrM5A!$AD$3=0,"",GrM5A!$AD$3) -> Grammar | Q56: =IF(GrM5A!$AD$6=0,"",GrM5A!$AD$6) -> 09:00:00 | R56: =IF(GrM5A!$AD$7=0,"",GrM5A!$AD$7) -> M-Th | S56: =IF(GrM5A!$AD$8=0,"",GrM5A!$AD$8) -> 4 | T56: =IF(GrM5A!$AD$34=0,"",GrM5A!$AD$34) ->  | U56: =IF(GrM5A!$AE$34=0,"",GrM5A!$AE$34) ->  | V56: =IF(GrM5A!$AH$34=0,"",GrM5A!$AH$34) -> 
A57: =IF('GrM2'!$AD$5=0,"",'GrM2'!$AD$5) -> 2 | B57: =IF('GrM2'!$AA$47=0,"",'GrM2'!$AA$47) ->  | C57: =IF('GrM2'!$AB$47=0,"",'GrM2'!$AB$47) ->  | D57: =IF(GrM5A!$B$35=0,"",GrM5A!$B$35) ->  | E57: =IF(GrM5A!$C$35=0,"",GrM5A!$C$35) ->  | F57: =IF(GrM5A!$D$35=0,"",GrM5A!$D$35) ->  | G57: =IF(GrM5A!$AI$35=0,"",GrM5A!$AI$35) ->  | H57: =IF(GrM5A!$AJ$35=0,"",GrM5A!$AJ$35) ->  | I57: =IF(GrM5A!$AL$35=0,"",GrM5A!$AL$35) ->  | J57: =IF(GrM5A!$AM$35=0,"",GrM5A!$AM$35) ->  | K57: =IF(GrM5A!$AN$35=0,"",GrM5A!$AN$35) ->  | L57: =IF(GrM5A!$AO$35=0,"",GrM5A!$AO$35) ->  | M57: =IF(GrM5A!$AF$35=0,"",GrM5A!$AF$35) ->  | N57: =IF(GrM5A!$AK$35=0,"",GrM5A!$AK$35) ->  | O57: =IF(GrM5A!$AD$2=0,"",GrM5A!$AD$2) -> FALSE | P57: =IF(GrM5A!$AD$3=0,"",GrM5A!$AD$3) -> Grammar | Q57: =IF(GrM5A!$AD$6=0,"",GrM5A!$AD$6) -> 09:00:00 | R57: =IF(GrM5A!$AD$7=0,"",GrM5A!$AD$7) -> M-Th | S57: =IF(GrM5A!$AD$8=0,"",GrM5A!$AD$8) -> 4 | T57: =IF(GrM5A!$AD$35=0,"",GrM5A!$AD$35) ->  | U57: =IF(GrM5A!$AE$35=0,"",GrM5A!$AE$35) ->  | V57: =IF(GrM5A!$AH$35=0,"",GrM5A!$AH$35) -> 
A58: =IF('GrM2'!$AD$5=0,"",'GrM2'!$AD$5) -> 2 | B58: =IF('GrM2'!$AA$48=0,"",'GrM2'!$AA$48) ->  | C58: =IF('GrM2'!$AB$48=0,"",'GrM2'!$AB$48) ->  | D58: =IF(GrM5A!$B$36=0,"",GrM5A!$B$36) ->  | E58: =IF(GrM5A!$C$36=0,"",GrM5A!$C$36) ->  | F58: =IF(GrM5A!$D$36=0,"",GrM5A!$D$36) ->  | G58: =IF(GrM5A!$AI$36=0,"",GrM5A!$AI$36) ->  | H58: =IF(GrM5A!$AJ$36=0,"",GrM5A!$AJ$36) ->  | I58: =IF(GrM5A!$AL$36=0,"",GrM5A!$AL$36) ->  | J58: =IF(GrM5A!$AM$36=0,"",GrM5A!$AM$36) ->  | K58: =IF(GrM5A!$AN$36=0,"",GrM5A!$AN$36) ->  | L58: =IF(GrM5A!$AO$36=0,"",GrM5A!$AO$36) ->  | M58: =IF(GrM5A!$AF$36=0,"",GrM5A!$AF$36) ->  | N58: =IF(GrM5A!$AK$36=0,"",GrM5A!$AK$36) ->  | O58: =IF(GrM5A!$AD$2=0,"",GrM5A!$AD$2) -> FALSE | P58: =IF(GrM5A!$AD$3=0,"",GrM5A!$AD$3) -> Grammar | Q58: =IF(GrM5A!$AD$6=0,"",GrM5A!$AD$6) -> 09:00:00 | R58: =IF(GrM5A!$AD$7=0,"",GrM5A!$AD$7) -> M-Th | S58: =IF(GrM5A!$AD$8=0,"",GrM5A!$AD$8) -> 4 | T58: =IF(GrM5A!$AD$36=0,"",GrM5A!$AD$36) ->  | U58: =IF(GrM5A!$AE$36=0,"",GrM5A!$AE$36) ->  | V58: =IF(GrM5A!$AH$36=0,"",GrM5A!$AH$36) -> 
A59: =IF('GrM2'!$AD$5=0,"",'GrM2'!$AD$5) -> 2 | B59: =IF('GrM2'!$AA$49=0,"",'GrM2'!$AA$49) ->  | C59: =IF('GrM2'!$AB$49=0,"",'GrM2'!$AB$49) ->  | D59: =IF(GrM5A!$B$37=0,"",GrM5A!$B$37) ->  | E59: =IF(GrM5A!$C$37=0,"",GrM5A!$C$37) ->  | F59: =IF(GrM5A!$D$37=0,"",GrM5A!$D$37) ->  | G59: =IF(GrM5A!$AI$37=0,"",GrM5A!$AI$37) ->  | H59: =IF(GrM5A!$AJ$37=0,"",GrM5A!$AJ$37) ->  | I59: =IF(GrM5A!$AL$37=0,"",GrM5A!$AL$37) ->  | J59: =IF(GrM5A!$AM$37=0,"",GrM5A!$AM$37) ->  | K59: =IF(GrM5A!$AN$37=0,"",GrM5A!$AN$37) ->  | L59: =IF(GrM5A!$AO$37=0,"",GrM5A!$AO$37) ->  | M59: =IF(GrM5A!$AF$37=0,"",GrM5A!$AF$37) ->  | N59: =IF(GrM5A!$AK$37=0,"",GrM5A!$AK$37) ->  | O59: =IF(GrM5A!$AD$2=0,"",GrM5A!$AD$2) -> FALSE | P59: =IF(GrM5A!$AD$3=0,"",GrM5A!$AD$3) -> Grammar | Q59: =IF(GrM5A!$AD$6=0,"",GrM5A!$AD$6) -> 09:00:00 | R59: =IF(GrM5A!$AD$7=0,"",GrM5A!$AD$7) -> M-Th | S59: =IF(GrM5A!$AD$8=0,"",GrM5A!$AD$8) -> 4 | T59: =IF(GrM5A!$AD$37=0,"",GrM5A!$AD$37) ->  | U59: =IF(GrM5A!$AE$37=0,"",GrM5A!$AE$37) ->  | V59: =IF(GrM5A!$AH$37=0,"",GrM5A!$AH$37) -> 
A60: =IF('GrM2'!$AD$5=0,"",'GrM2'!$AD$5) -> 2 | B60: =IF('GrM2'!$AA$50=0,"",'GrM2'!$AA$50) ->  | C60: =IF('GrM2'!$AB$50=0,"",'GrM2'!$AB$50) ->  | D60: =IF(GrM5A!$B$38=0,"",GrM5A!$B$38) ->  | E60: =IF(GrM5A!$C$38=0,"",GrM5A!$C$38) ->  | F60: =IF(GrM5A!$D$38=0,"",GrM5A!$D$38) ->  | G60: =IF(GrM5A!$AI$38=0,"",GrM5A!$AI$38) ->  | H60: =IF(GrM5A!$AJ$38=0,"",GrM5A!$AJ$38) ->  | I60: =IF(GrM5A!$AL$38=0,"",GrM5A!$AL$38) ->  | J60: =IF(GrM5A!$AM$38=0,"",GrM5A!$AM$38) ->  | K60: =IF(GrM5A!$AN$38=0,"",GrM5A!$AN$38) ->  | L60: =IF(GrM5A!$AO$38=0,"",GrM5A!$AO$38) ->  | M60: =IF(GrM5A!$AF$38=0,"",GrM5A!$AF$38) ->  | N60: =IF(GrM5A!$AK$38=0,"",GrM5A!$AK$38) ->  | O60: =IF(GrM5A!$AD$2=0,"",GrM5A!$AD$2) -> FALSE | P60: =IF(GrM5A!$AD$3=0,"",GrM5A!$AD$3) -> Grammar | Q60: =IF(GrM5A!$AD$6=0,"",GrM5A!$AD$6) -> 09:00:00 | R60: =IF(GrM5A!$AD$7=0,"",GrM5A!$AD$7) -> M-Th | S60: =IF(GrM5A!$AD$8=0,"",GrM5A!$AD$8) -> 4 | T60: =IF(GrM5A!$AD$38=0,"",GrM5A!$AD$38) ->  | U60: =IF(GrM5A!$AE$38=0,"",GrM5A!$AE$38) ->  | V60: =IF(GrM5A!$AH$38=0,"",GrM5A!$AH$38) -> 
A61: =IF('GrM2'!$AD$5=0,"",'GrM2'!$AD$5) -> 2 | B61: =IF('GrM2'!$AA$51=0,"",'GrM2'!$AA$51) ->  | C61: =IF('GrM2'!$AB$51=0,"",'GrM2'!$AB$51) ->  | D61: =IF(GrM5A!$B$39=0,"",GrM5A!$B$39) ->  | E61: =IF(GrM5A!$C$39=0,"",GrM5A!$C$39) ->  | F61: =IF(GrM5A!$D$39=0,"",GrM5A!$D$39) ->  | G61: =IF(GrM5A!$AI$39=0,"",GrM5A!$AI$39) ->  | H61: =IF(GrM5A!$AJ$39=0,"",GrM5A!$AJ$39) ->  | I61: =IF(GrM5A!$AL$39=0,"",GrM5A!$AL$39) ->  | J61: =IF(GrM5A!$AM$39=0,"",GrM5A!$AM$39) ->  | K61: =IF(GrM5A!$AN$39=0,"",GrM5A!$AN$39) ->  | L61: =IF(GrM5A!$AO$39=0,"",GrM5A!$AO$39) ->  | M61: =IF(GrM5A!$AF$39=0,"",GrM5A!$AF$39) ->  | N61: =IF(GrM5A!$AK$39=0,"",GrM5A!$AK$39) ->  | O61: =IF(GrM5A!$AD$2=0,"",GrM5A!$AD$2) -> FALSE | P61: =IF(GrM5A!$AD$3=0,"",GrM5A!$AD$3) -> Grammar | Q61: =IF(GrM5A!$AD$6=0,"",GrM5A!$AD$6) -> 09:00:00 | R61: =IF(GrM5A!$AD$7=0,"",GrM5A!$AD$7) -> M-Th | S61: =IF(GrM5A!$AD$8=0,"",GrM5A!$AD$8) -> 4 | T61: =IF(GrM5A!$AD$39=0,"",GrM5A!$AD$39) ->  | U61: =IF(GrM5A!$AE$39=0,"",GrM5A!$AE$39) ->  | V61: =IF(GrM5A!$AH$39=0,"",GrM5A!$AH$39) -> 
A62: =IF('GrM2'!$AD$5=0,"",'GrM2'!$AD$5) -> 2 | B62: =IF('GrM2'!$AA$52=0,"",'GrM2'!$AA$52) ->  | C62: =IF('GrM2'!$AB$52=0,"",'GrM2'!$AB$52) ->  | D62: =IF(GrM5A!$B$40=0,"",GrM5A!$B$40) ->  | E62: =IF(GrM5A!$C$40=0,"",GrM5A!$C$40) ->  | F62: =IF(GrM5A!$D$40=0,"",GrM5A!$D$40) ->  | G62: =IF(GrM5A!$AI$40=0,"",GrM5A!$AI$40) ->  | H62: =IF(GrM5A!$AJ$40=0,"",GrM5A!$AJ$40) ->  | I62: =IF(GrM5A!$AL$40=0,"",GrM5A!$AL$40) ->  | J62: =IF(GrM5A!$AM$40=0,"",GrM5A!$AM$40) ->  | K62: =IF(GrM5A!$AN$40=0,"",GrM5A!$AN$40) ->  | L62: =IF(GrM5A!$AO$40=0,"",GrM5A!$AO$40) ->  | M62: =IF(GrM5A!$AF$40=0,"",GrM5A!$AF$40) ->  | N62: =IF(GrM5A!$AK$40=0,"",GrM5A!$AK$40) ->  | O62: =IF(GrM5A!$AD$2=0,"",GrM5A!$AD$2) -> FALSE | P62: =IF(GrM5A!$AD$3=0,"",GrM5A!$AD$3) -> Grammar | Q62: =IF(GrM5A!$AD$6=0,"",GrM5A!$AD$6) -> 09:00:00 | R62: =IF(GrM5A!$AD$7=0,"",GrM5A!$AD$7) -> M-Th | S62: =IF(GrM5A!$AD$8=0,"",GrM5A!$AD$8) -> 4 | T62: =IF(GrM5A!$AD$40=0,"",GrM5A!$AD$40) ->  | U62: =IF(GrM5A!$AE$40=0,"",GrM5A!$AE$40) ->  | V62: =IF(GrM5A!$AH$40=0,"",GrM5A!$AH$40) -> 
A63: =IF('GrM3'!$AD$5=0,"",'GrM3'!$AD$5) -> 3 | B63: =IF('GrM3'!$AA$23=0,"",'GrM3'!$AA$23) -> New | C63: =IF('GrM3'!$AB$23=0,"",'GrM3'!$AB$23) ->  | D63: =IF(GrM5A!$B$45=0,"",GrM5A!$B$45) ->  | E63: =IF(GrM5A!$C$45=0,"",GrM5A!$C$45) ->  | F63: =IF(GrM5A!$D$45=0,"",GrM5A!$D$45) ->  | G63: =IF(GrM5A!$AI$45=0,"",GrM5A!$AI$45) ->  | H63: =IF(GrM5A!$AJ$45=0,"",GrM5A!$AJ$45) ->  | I63: =IF(GrM5A!$AL$45=0,"",GrM5A!$AL$45) ->  | J63: =IF(GrM5A!$AM$45=0,"",GrM5A!$AM$45) ->  | K63: =IF(GrM5A!$AN$45=0,"",GrM5A!$AN$45) ->  | L63: =IF(GrM5A!$AO$45=0,"",GrM5A!$AO$45) ->  | M63: =IF(GrM5A!$AF$45=0,"",GrM5A!$AF$45) ->  | N63: =IF(GrM5A!$AK$45=0,"",GrM5A!$AK$45) ->  | O63: =IF(GrM5A!$AD$2=0,"",GrM5A!$AD$2) -> FALSE | P63: =IF(GrM5A!$AD$3=0,"",GrM5A!$AD$3) -> Grammar | Q63: =IF(GrM5A!$AD$6=0,"",GrM5A!$AD$6) -> 09:00:00 | R63: =IF(GrM5A!$AD$7=0,"",GrM5A!$AD$7) -> M-Th | S63: =IF(GrM5A!$AD$8=0,"",GrM5A!$AD$8) -> 4 | T63: =IF(GrM5A!$AD$45=0,"",GrM5A!$AD$45) ->  | U63: =IF(GrM5A!$AE$45=0,"",GrM5A!$AE$45) ->  | V63: =IF(GrM5A!$AH$45=0,"",GrM5A!$AH$45) -> 
A64: =IF('GrM3'!$AD$5=0,"",'GrM3'!$AD$5) -> 3 | B64: =IF('GrM3'!$AA$24=0,"",'GrM3'!$AA$24) -> New | C64: =IF('GrM3'!$AB$24=0,"",'GrM3'!$AB$24) ->  | D64: =IF(GrM5A!$B$46=0,"",GrM5A!$B$46) ->  | E64: =IF(GrM5A!$C$46=0,"",GrM5A!$C$46) ->  | F64: =IF(GrM5A!$D$46=0,"",GrM5A!$D$46) ->  | G64: =IF(GrM5A!$AI$46=0,"",GrM5A!$AI$46) ->  | H64: =IF(GrM5A!$AJ$46=0,"",GrM5A!$AJ$46) ->  | I64: =IF(GrM5A!$AL$46=0,"",GrM5A!$AL$46) ->  | J64: =IF(GrM5A!$AM$46=0,"",GrM5A!$AM$46) ->  | K64: =IF(GrM5A!$AN$46=0,"",GrM5A!$AN$46) ->  | L64: =IF(GrM5A!$AO$46=0,"",GrM5A!$AO$46) ->  | M64: =IF(GrM5A!$AF$46=0,"",GrM5A!$AF$46) ->  | N64: =IF(GrM5A!$AK$46=0,"",GrM5A!$AK$46) ->  | O64: =IF(GrM5A!$AD$2=0,"",GrM5A!$AD$2) -> FALSE | P64: =IF(GrM5A!$AD$3=0,"",GrM5A!$AD$3) -> Grammar | Q64: =IF(GrM5A!$AD$6=0,"",GrM5A!$AD$6) -> 09:00:00 | R64: =IF(GrM5A!$AD$7=0,"",GrM5A!$AD$7) -> M-Th | S64: =IF(GrM5A!$AD$8=0,"",GrM5A!$AD$8) -> 4 | T64: =IF(GrM5A!$AD$46=0,"",GrM5A!$AD$46) ->  | U64: =IF(GrM5A!$AE$46=0,"",GrM5A!$AE$46) ->  | V64: =IF(GrM5A!$AH$46=0,"",GrM5A!$AH$46) -> 
A65: =IF('GrM3'!$AD$5=0,"",'GrM3'!$AD$5) -> 3 | B65: =IF('GrM3'!$AA$25=0,"",'GrM3'!$AA$25) -> New | C65: =IF('GrM3'!$AB$25=0,"",'GrM3'!$AB$25) ->  | D65: =IF(GrM5A!$B$47=0,"",GrM5A!$B$47) ->  | E65: =IF(GrM5A!$C$47=0,"",GrM5A!$C$47) ->  | F65: =IF(GrM5A!$D$47=0,"",GrM5A!$D$47) ->  | G65: =IF(GrM5A!$AI$47=0,"",GrM5A!$AI$47) ->  | H65: =IF(GrM5A!$AJ$47=0,"",GrM5A!$AJ$47) ->  | I65: =IF(GrM5A!$AL$47=0,"",GrM5A!$AL$47) ->  | J65: =IF(GrM5A!$AM$47=0,"",GrM5A!$AM$47) ->  | K65: =IF(GrM5A!$AN$47=0,"",GrM5A!$AN$47) ->  | L65: =IF(GrM5A!$AO$47=0,"",GrM5A!$AO$47) ->  | M65: =IF(GrM5A!$AF$47=0,"",GrM5A!$AF$47) ->  | N65: =IF(GrM5A!$AK$47=0,"",GrM5A!$AK$47) ->  | O65: =IF(GrM5A!$AD$2=0,"",GrM5A!$AD$2) -> FALSE | P65: =IF(GrM5A!$AD$3=0,"",GrM5A!$AD$3) -> Grammar | Q65: =IF(GrM5A!$AD$6=0,"",GrM5A!$AD$6) -> 09:00:00 | R65: =IF(GrM5A!$AD$7=0,"",GrM5A!$AD$7) -> M-Th | S65: =IF(GrM5A!$AD$8=0,"",GrM5A!$AD$8) -> 4 | T65: =IF(GrM5A!$AD$47=0,"",GrM5A!$AD$47) ->  | U65: =IF(GrM5A!$AE$47=0,"",GrM5A!$AE$47) ->  | V65: =IF(GrM5A!$AH$47=0,"",GrM5A!$AH$47) -> 
A66: =IF('GrM3'!$AD$5=0,"",'GrM3'!$AD$5) -> 3 | B66: =IF('GrM3'!$AA$26=0,"",'GrM3'!$AA$26) -> New | C66: =IF('GrM3'!$AB$26=0,"",'GrM3'!$AB$26) ->  | D66: =IF(GrM5A!$B$48=0,"",GrM5A!$B$48) ->  | E66: =IF(GrM5A!$C$48=0,"",GrM5A!$C$48) ->  | F66: =IF(GrM5A!$D$48=0,"",GrM5A!$D$48) ->  | G66: =IF(GrM5A!$AI$48=0,"",GrM5A!$AI$48) ->  | H66: =IF(GrM5A!$AJ$48=0,"",GrM5A!$AJ$48) ->  | I66: =IF(GrM5A!$AL$48=0,"",GrM5A!$AL$48) ->  | J66: =IF(GrM5A!$AM$48=0,"",GrM5A!$AM$48) ->  | K66: =IF(GrM5A!$AN$48=0,"",GrM5A!$AN$48) ->  | L66: =IF(GrM5A!$AO$48=0,"",GrM5A!$AO$48) ->  | M66: =IF(GrM5A!$AF$48=0,"",GrM5A!$AF$48) ->  | N66: =IF(GrM5A!$AK$48=0,"",GrM5A!$AK$48) ->  | O66: =IF(GrM5A!$AD$2=0,"",GrM5A!$AD$2) -> FALSE | P66: =IF(GrM5A!$AD$3=0,"",GrM5A!$AD$3) -> Grammar | Q66: =IF(GrM5A!$AD$6=0,"",GrM5A!$AD$6) -> 09:00:00 | R66: =IF(GrM5A!$AD$7=0,"",GrM5A!$AD$7) -> M-Th | S66: =IF(GrM5A!$AD$8=0,"",GrM5A!$AD$8) -> 4 | T66: =IF(GrM5A!$AD$48=0,"",GrM5A!$AD$48) ->  | U66: =IF(GrM5A!$AE$48=0,"",GrM5A!$AE$48) ->  | V66: =IF(GrM5A!$AH$48=0,"",GrM5A!$AH$48) -> 
A67: =IF('GrM3'!$AD$5=0,"",'GrM3'!$AD$5) -> 3 | B67: =IF('GrM3'!$AA$27=0,"",'GrM3'!$AA$27) -> New | C67: =IF('GrM3'!$AB$27=0,"",'GrM3'!$AB$27) ->  | D67: =IF(GrM5A!$B$49=0,"",GrM5A!$B$49) ->  | E67: =IF(GrM5A!$C$49=0,"",GrM5A!$C$49) ->  | F67: =IF(GrM5A!$D$49=0,"",GrM5A!$D$49) ->  | G67: =IF(GrM5A!$AI$49=0,"",GrM5A!$AI$49) ->  | H67: =IF(GrM5A!$AJ$49=0,"",GrM5A!$AJ$49) ->  | I67: =IF(GrM5A!$AL$49=0,"",GrM5A!$AL$49) ->  | J67: =IF(GrM5A!$AM$49=0,"",GrM5A!$AM$49) ->  | K67: =IF(GrM5A!$AN$49=0,"",GrM5A!$AN$49) ->  | L67: =IF(GrM5A!$AO$49=0,"",GrM5A!$AO$49) ->  | M67: =IF(GrM5A!$AF$49=0,"",GrM5A!$AF$49) ->  | N67: =IF(GrM5A!$AK$49=0,"",GrM5A!$AK$49) ->  | O67: =IF(GrM5A!$AD$2=0,"",GrM5A!$AD$2) -> FALSE | P67: =IF(GrM5A!$AD$3=0,"",GrM5A!$AD$3) -> Grammar | Q67: =IF(GrM5A!$AD$6=0,"",GrM5A!$AD$6) -> 09:00:00 | R67: =IF(GrM5A!$AD$7=0,"",GrM5A!$AD$7) -> M-Th | S67: =IF(GrM5A!$AD$8=0,"",GrM5A!$AD$8) -> 4 | T67: =IF(GrM5A!$AD$49=0,"",GrM5A!$AD$49) ->  | U67: =IF(GrM5A!$AE$49=0,"",GrM5A!$AE$49) ->  | V67: =IF(GrM5A!$AH$49=0,"",GrM5A!$AH$49) -> 
A68: =IF('GrM3'!$AD$5=0,"",'GrM3'!$AD$5) -> 3 | B68: =IF('GrM3'!$AA$28=0,"",'GrM3'!$AA$28) -> New | C68: =IF('GrM3'!$AB$28=0,"",'GrM3'!$AB$28) ->  | D68: =IF(GrM5A!$B$50=0,"",GrM5A!$B$50) ->  | E68: =IF(GrM5A!$C$50=0,"",GrM5A!$C$50) ->  | F68: =IF(GrM5A!$D$50=0,"",GrM5A!$D$50) ->  | G68: =IF(GrM5A!$AI$50=0,"",GrM5A!$AI$50) ->  | H68: =IF(GrM5A!$AJ$50=0,"",GrM5A!$AJ$50) ->  | I68: =IF(GrM5A!$AL$50=0,"",GrM5A!$AL$50) ->  | J68: =IF(GrM5A!$AM$50=0,"",GrM5A!$AM$50) ->  | K68: =IF(GrM5A!$AN$50=0,"",GrM5A!$AN$50) ->  | L68: =IF(GrM5A!$AO$50=0,"",GrM5A!$AO$50) ->  | M68: =IF(GrM5A!$AF$50=0,"",GrM5A!$AF$50) ->  | N68: =IF(GrM5A!$AK$50=0,"",GrM5A!$AK$50) ->  | O68: =IF(GrM5A!$AD$2=0,"",GrM5A!$AD$2) -> FALSE | P68: =IF(GrM5A!$AD$3=0,"",GrM5A!$AD$3) -> Grammar | Q68: =IF(GrM5A!$AD$6=0,"",GrM5A!$AD$6) -> 09:00:00 | R68: =IF(GrM5A!$AD$7=0,"",GrM5A!$AD$7) -> M-Th | S68: =IF(GrM5A!$AD$8=0,"",GrM5A!$AD$8) -> 4 | T68: =IF(GrM5A!$AD$50=0,"",GrM5A!$AD$50) ->  | U68: =IF(GrM5A!$AE$50=0,"",GrM5A!$AE$50) ->  | V68: =IF(GrM5A!$AH$50=0,"",GrM5A!$AH$50) -> 
A69: =IF('GrM3'!$AD$5=0,"",'GrM3'!$AD$5) -> 3 | B69: =IF('GrM3'!$AA$29=0,"",'GrM3'!$AA$29) -> New | C69: =IF('GrM3'!$AB$29=0,"",'GrM3'!$AB$29) ->  | D69: =IF(GrM5A!$B$51=0,"",GrM5A!$B$51) ->  | E69: =IF(GrM5A!$C$51=0,"",GrM5A!$C$51) ->  | F69: =IF(GrM5A!$D$51=0,"",GrM5A!$D$51) ->  | G69: =IF(GrM5A!$AI$51=0,"",GrM5A!$AI$51) ->  | H69: =IF(GrM5A!$AJ$51=0,"",GrM5A!$AJ$51) ->  | I69: =IF(GrM5A!$AL$51=0,"",GrM5A!$AL$51) ->  | J69: =IF(GrM5A!$AM$51=0,"",GrM5A!$AM$51) ->  | K69: =IF(GrM5A!$AN$51=0,"",GrM5A!$AN$51) ->  | L69: =IF(GrM5A!$AO$51=0,"",GrM5A!$AO$51) ->  | M69: =IF(GrM5A!$AF$51=0,"",GrM5A!$AF$51) ->  | N69: =IF(GrM5A!$AK$51=0,"",GrM5A!$AK$51) ->  | O69: =IF(GrM5A!$AD$2=0,"",GrM5A!$AD$2) -> FALSE | P69: =IF(GrM5A!$AD$3=0,"",GrM5A!$AD$3) -> Grammar | Q69: =IF(GrM5A!$AD$6=0,"",GrM5A!$AD$6) -> 09:00:00 | R69: =IF(GrM5A!$AD$7=0,"",GrM5A!$AD$7) -> M-Th | S69: =IF(GrM5A!$AD$8=0,"",GrM5A!$AD$8) -> 4 | T69: =IF(GrM5A!$AD$51=0,"",GrM5A!$AD$51) ->  | U69: =IF(GrM5A!$AE$51=0,"",GrM5A!$AE$51) ->  | V69: =IF(GrM5A!$AH$51=0,"",GrM5A!$AH$51) -> 
A70: =IF('GrM3'!$AD$5=0,"",'GrM3'!$AD$5) -> 3 | B70: =IF('GrM3'!$AA$30=0,"",'GrM3'!$AA$30) -> New | C70: =IF('GrM3'!$AB$30=0,"",'GrM3'!$AB$30) ->  | D70: =IF(GrM5B!$B$33=0,"",GrM5B!$B$33) ->  | E70: =IF(GrM5B!$C$33=0,"",GrM5B!$C$33) ->  | F70: =IF(GrM5B!$D$33=0,"",GrM5B!$D$33) ->  | G70: =IF(GrM5B!$AI$33=0,"",GrM5B!$AI$33) ->  | H70: =IF(GrM5B!$AJ$33=0,"",GrM5B!$AJ$33) ->  | I70: =IF(GrM5B!$AL$33=0,"",GrM5B!$AL$33) ->  | J70: =IF(GrM5B!$AM$33=0,"",GrM5B!$AM$33) ->  | K70: =IF(GrM5B!$AN$33=0,"",GrM5B!$AN$33) ->  | L70: =IF(GrM5B!$AO$33=0,"",GrM5B!$AO$33) ->  | M70: =IF(GrM5B!$AF$33=0,"",GrM5B!$AF$33) ->  | N70: =IF(GrM5B!$AK$33=0,"",GrM5B!$AK$33) ->  | O70: =IF(GrM5B!$AD$2=0,"",GrM5B!$AD$2) -> FALSE | P70: =IF(GrM5B!$AD$3=0,"",GrM5B!$AD$3) -> Grammar | Q70: =IF(GrM5B!$AD$6=0,"",GrM5B!$AD$6) -> 09:00:00 | R70: =IF(GrM5B!$AD$7=0,"",GrM5B!$AD$7) -> M-Th | S70: =IF(GrM5B!$AD$8=0,"",GrM5B!$AD$8) -> Conf. | T70: =IF(GrM5B!$AD$33=0,"",GrM5B!$AD$33) ->  | U70: yes | V70: =IF(GrM5B!$AH$33=0,"",GrM5B!$AH$33) -> 
A71: =IF('GrM3'!$AD$5=0,"",'GrM3'!$AD$5) -> 3 | B71: =IF('GrM3'!$AA$31=0,"",'GrM3'!$AA$31) -> New | C71: =IF('GrM3'!$AB$31=0,"",'GrM3'!$AB$31) ->  | D71: =IF(GrM5B!$B$34=0,"",GrM5B!$B$34) ->  | E71: =IF(GrM5B!$C$34=0,"",GrM5B!$C$34) ->  | F71: =IF(GrM5B!$D$34=0,"",GrM5B!$D$34) ->  | G71: =IF(GrM5B!$AI$34=0,"",GrM5B!$AI$34) ->  | H71: =IF(GrM5B!$AJ$34=0,"",GrM5B!$AJ$34) ->  | I71: =IF(GrM5B!$AL$34=0,"",GrM5B!$AL$34) ->  | J71: =IF(GrM5B!$AM$34=0,"",GrM5B!$AM$34) ->  | K71: =IF(GrM5B!$AN$34=0,"",GrM5B!$AN$34) ->  | L71: =IF(GrM5B!$AO$34=0,"",GrM5B!$AO$34) ->  | M71: =IF(GrM5B!$AF$34=0,"",GrM5B!$AF$34) ->  | N71: =IF(GrM5B!$AK$34=0,"",GrM5B!$AK$34) ->  | O71: =IF(GrM5B!$AD$2=0,"",GrM5B!$AD$2) -> FALSE | P71: =IF(GrM5B!$AD$3=0,"",GrM5B!$AD$3) -> Grammar | Q71: =IF(GrM5B!$AD$6=0,"",GrM5B!$AD$6) -> 09:00:00 | R71: =IF(GrM5B!$AD$7=0,"",GrM5B!$AD$7) -> M-Th | S71: =IF(GrM5B!$AD$8=0,"",GrM5B!$AD$8) -> Conf. | T71: =IF(GrM5B!$AD$34=0,"",GrM5B!$AD$34) ->  | U71: =IF(GrM5B!$AE$34=0,"",GrM5B!$AE$34) ->  | V71: =IF(GrM5B!$AH$34=0,"",GrM5B!$AH$34) -> 
A72: =IF('GrM3'!$AD$5=0,"",'GrM3'!$AD$5) -> 3 | B72: =IF('GrM3'!$AA$32=0,"",'GrM3'!$AA$32) -> New | C72: =IF('GrM3'!$AB$32=0,"",'GrM3'!$AB$32) ->  | D72: =IF(GrM5B!$B$35=0,"",GrM5B!$B$35) ->  | E72: =IF(GrM5B!$C$35=0,"",GrM5B!$C$35) ->  | F72: =IF(GrM5B!$D$35=0,"",GrM5B!$D$35) ->  | G72: =IF(GrM5B!$AI$35=0,"",GrM5B!$AI$35) ->  | H72: =IF(GrM5B!$AJ$35=0,"",GrM5B!$AJ$35) ->  | I72: =IF(GrM5B!$AL$35=0,"",GrM5B!$AL$35) ->  | J72: =IF(GrM5B!$AM$35=0,"",GrM5B!$AM$35) ->  | K72: =IF(GrM5B!$AN$35=0,"",GrM5B!$AN$35) ->  | L72: =IF(GrM5B!$AO$35=0,"",GrM5B!$AO$35) ->  | M72: =IF(GrM5B!$AF$35=0,"",GrM5B!$AF$35) ->  | N72: =IF(GrM5B!$AK$35=0,"",GrM5B!$AK$35) ->  | O72: =IF(GrM5B!$AD$2=0,"",GrM5B!$AD$2) -> FALSE | P72: =IF(GrM5B!$AD$3=0,"",GrM5B!$AD$3) -> Grammar | Q72: =IF(GrM5B!$AD$6=0,"",GrM5B!$AD$6) -> 09:00:00 | R72: =IF(GrM5B!$AD$7=0,"",GrM5B!$AD$7) -> M-Th | S72: =IF(GrM5B!$AD$8=0,"",GrM5B!$AD$8) -> Conf. | T72: =IF(GrM5B!$AD$35=0,"",GrM5B!$AD$35) ->  | U72: =IF(GrM5B!$AE$35=0,"",GrM5B!$AE$35) ->  | V72: =IF(GrM5B!$AH$35=0,"",GrM5B!$AH$35) -> 
A73: =IF('GrM3'!$AD$5=0,"",'GrM3'!$AD$5) -> 3 | B73: =IF('GrM3'!$AA$33=0,"",'GrM3'!$AA$33) -> New | C73: =IF('GrM3'!$AB$33=0,"",'GrM3'!$AB$33) ->  | D73: =IF(GrM5B!$B$36=0,"",GrM5B!$B$36) ->  | E73: =IF(GrM5B!$C$36=0,"",GrM5B!$C$36) ->  | F73: =IF(GrM5B!$D$36=0,"",GrM5B!$D$36) ->  | G73: =IF(GrM5B!$AI$36=0,"",GrM5B!$AI$36) ->  | H73: =IF(GrM5B!$AJ$36=0,"",GrM5B!$AJ$36) ->  | I73: =IF(GrM5B!$AL$36=0,"",GrM5B!$AL$36) ->  | J73: =IF(GrM5B!$AM$36=0,"",GrM5B!$AM$36) ->  | K73: =IF(GrM5B!$AN$36=0,"",GrM5B!$AN$36) ->  | L73: =IF(GrM5B!$AO$36=0,"",GrM5B!$AO$36) ->  | M73: =IF(GrM5B!$AF$36=0,"",GrM5B!$AF$36) ->  | N73: =IF(GrM5B!$AK$36=0,"",GrM5B!$AK$36) ->  | O73: =IF(GrM5B!$AD$2=0,"",GrM5B!$AD$2) -> FALSE | P73: =IF(GrM5B!$AD$3=0,"",GrM5B!$AD$3) -> Grammar | Q73: =IF(GrM5B!$AD$6=0,"",GrM5B!$AD$6) -> 09:00:00 | R73: =IF(GrM5B!$AD$7=0,"",GrM5B!$AD$7) -> M-Th | S73: =IF(GrM5B!$AD$8=0,"",GrM5B!$AD$8) -> Conf. | T73: =IF(GrM5B!$AD$36=0,"",GrM5B!$AD$36) ->  | U73: =IF(GrM5B!$AE$36=0,"",GrM5B!$AE$36) ->  | V73: =IF(GrM5B!$AH$36=0,"",GrM5B!$AH$36) -> 
A74: =IF('GrM3'!$AD$5=0,"",'GrM3'!$AD$5) -> 3 | B74: =IF('GrM3'!$AA$34=0,"",'GrM3'!$AA$34) -> Continuing | C74: =IF('GrM3'!$AB$34=0,"",'GrM3'!$AB$34) ->  | D74: =IF(GrM5B!$B$37=0,"",GrM5B!$B$37) ->  | E74: =IF(GrM5B!$C$37=0,"",GrM5B!$C$37) ->  | F74: =IF(GrM5B!$D$37=0,"",GrM5B!$D$37) ->  | G74: =IF(GrM5B!$AI$37=0,"",GrM5B!$AI$37) ->  | H74: =IF(GrM5B!$AJ$37=0,"",GrM5B!$AJ$37) ->  | I74: =IF(GrM5B!$AL$37=0,"",GrM5B!$AL$37) ->  | J74: =IF(GrM5B!$AM$37=0,"",GrM5B!$AM$37) ->  | K74: =IF(GrM5B!$AN$37=0,"",GrM5B!$AN$37) ->  | L74: =IF(GrM5B!$AO$37=0,"",GrM5B!$AO$37) ->  | M74: =IF(GrM5B!$AF$37=0,"",GrM5B!$AF$37) ->  | N74: =IF(GrM5B!$AK$37=0,"",GrM5B!$AK$37) ->  | O74: =IF(GrM5B!$AD$2=0,"",GrM5B!$AD$2) -> FALSE | P74: =IF(GrM5B!$AD$3=0,"",GrM5B!$AD$3) -> Grammar | Q74: =IF(GrM5B!$AD$6=0,"",GrM5B!$AD$6) -> 09:00:00 | R74: =IF(GrM5B!$AD$7=0,"",GrM5B!$AD$7) -> M-Th | S74: =IF(GrM5B!$AD$8=0,"",GrM5B!$AD$8) -> Conf. | T74: =IF(GrM5B!$AD$37=0,"",GrM5B!$AD$37) ->  | U74: =IF(GrM5B!$AE$37=0,"",GrM5B!$AE$37) ->  | V74: =IF(GrM5B!$AH$37=0,"",GrM5B!$AH$37) -> 
A75: =IF('GrM3'!$AD$5=0,"",'GrM3'!$AD$5) -> 3 | B75: =IF('GrM3'!$AA$35=0,"",'GrM3'!$AA$35) -> New | C75: =IF('GrM3'!$AB$35=0,"",'GrM3'!$AB$35) ->  | D75: =IF(GrM5B!$B$38=0,"",GrM5B!$B$38) ->  | E75: =IF(GrM5B!$C$38=0,"",GrM5B!$C$38) ->  | F75: =IF(GrM5B!$D$38=0,"",GrM5B!$D$38) ->  | G75: =IF(GrM5B!$AI$38=0,"",GrM5B!$AI$38) ->  | H75: =IF(GrM5B!$AJ$38=0,"",GrM5B!$AJ$38) ->  | I75: =IF(GrM5B!$AL$38=0,"",GrM5B!$AL$38) ->  | J75: =IF(GrM5B!$AM$38=0,"",GrM5B!$AM$38) ->  | K75: =IF(GrM5B!$AN$38=0,"",GrM5B!$AN$38) ->  | L75: =IF(GrM5B!$AO$38=0,"",GrM5B!$AO$38) ->  | M75: =IF(GrM5B!$AF$38=0,"",GrM5B!$AF$38) ->  | N75: =IF(GrM5B!$AK$38=0,"",GrM5B!$AK$38) ->  | O75: =IF(GrM5B!$AD$2=0,"",GrM5B!$AD$2) -> FALSE | P75: =IF(GrM5B!$AD$3=0,"",GrM5B!$AD$3) -> Grammar | Q75: =IF(GrM5B!$AD$6=0,"",GrM5B!$AD$6) -> 09:00:00 | R75: =IF(GrM5B!$AD$7=0,"",GrM5B!$AD$7) -> M-Th | S75: =IF(GrM5B!$AD$8=0,"",GrM5B!$AD$8) -> Conf. | T75: =IF(GrM5B!$AD$38=0,"",GrM5B!$AD$38) ->  | U75: =IF(GrM5B!$AE$38=0,"",GrM5B!$AE$38) ->  | V75: =IF(GrM5B!$AH$38=0,"",GrM5B!$AH$38) -> 
A76: =IF('GrM3'!$AD$5=0,"",'GrM3'!$AD$5) -> 3 | B76: =IF('GrM3'!$AA$36=0,"",'GrM3'!$AA$36) -> Re-Enrolling | C76: =IF('GrM3'!$AB$36=0,"",'GrM3'!$AB$36) ->  | D76: =IF(GrM5B!$B$43=0,"",GrM5B!$B$43) ->  | E76: =IF(GrM5B!$C$43=0,"",GrM5B!$C$43) ->  | F76: =IF(GrM5B!$D$43=0,"",GrM5B!$D$43) ->  | G76: =IF(GrM5B!$AI$43=0,"",GrM5B!$AI$43) ->  | H76: =IF(GrM5B!$AJ$43=0,"",GrM5B!$AJ$43) ->  | I76: =IF(GrM5B!$AL$43=0,"",GrM5B!$AL$43) ->  | J76: =IF(GrM5B!$AM$43=0,"",GrM5B!$AM$43) ->  | K76: =IF(GrM5B!$AN$43=0,"",GrM5B!$AN$43) ->  | L76: =IF(GrM5B!$AO$43=0,"",GrM5B!$AO$43) ->  | M76: =IF(GrM5B!$AF$43=0,"",GrM5B!$AF$43) ->  | N76: =IF(GrM5B!$AK$43=0,"",GrM5B!$AK$43) ->  | O76: =IF(GrM5B!$AD$2=0,"",GrM5B!$AD$2) -> FALSE | P76: =IF(GrM5B!$AD$3=0,"",GrM5B!$AD$3) -> Grammar | Q76: =IF(GrM5B!$AD$6=0,"",GrM5B!$AD$6) -> 09:00:00 | R76: =IF(GrM5B!$AD$7=0,"",GrM5B!$AD$7) -> M-Th | S76: =IF(GrM5B!$AD$8=0,"",GrM5B!$AD$8) -> Conf. | T76: =IF(GrM5B!$AD$43=0,"",GrM5B!$AD$43) ->  | U76: =IF(GrM5B!$AE$43=0,"",GrM5B!$AE$43) ->  | V76: =IF(GrM5B!$AH$43=0,"",GrM5B!$AH$43) -> 
A77: =IF('GrM3'!$AD$5=0,"",'GrM3'!$AD$5) -> 3 | B77: =IF('GrM3'!$AA$37=0,"",'GrM3'!$AA$37) -> New | C77: =IF('GrM3'!$AB$37=0,"",'GrM3'!$AB$37) ->  | D77: =IF(GrM5B!$B$44=0,"",GrM5B!$B$44) ->  | E77: =IF(GrM5B!$C$44=0,"",GrM5B!$C$44) ->  | F77: =IF(GrM5B!$D$44=0,"",GrM5B!$D$44) ->  | G77: =IF(GrM5B!$AI$44=0,"",GrM5B!$AI$44) ->  | H77: =IF(GrM5B!$AJ$44=0,"",GrM5B!$AJ$44) ->  | I77: =IF(GrM5B!$AL$44=0,"",GrM5B!$AL$44) ->  | J77: =IF(GrM5B!$AM$44=0,"",GrM5B!$AM$44) ->  | K77: =IF(GrM5B!$AN$44=0,"",GrM5B!$AN$44) ->  | L77: =IF(GrM5B!$AO$44=0,"",GrM5B!$AO$44) ->  | M77: =IF(GrM5B!$AF$44=0,"",GrM5B!$AF$44) ->  | N77: =IF(GrM5B!$AK$44=0,"",GrM5B!$AK$44) ->  | O77: =IF(GrM5B!$AD$2=0,"",GrM5B!$AD$2) -> FALSE | P77: =IF(GrM5B!$AD$3=0,"",GrM5B!$AD$3) -> Grammar | Q77: =IF(GrM5B!$AD$6=0,"",GrM5B!$AD$6) -> 09:00:00 | R77: =IF(GrM5B!$AD$7=0,"",GrM5B!$AD$7) -> M-Th | S77: =IF(GrM5B!$AD$8=0,"",GrM5B!$AD$8) -> Conf. | T77: =IF(GrM5B!$AD$44=0,"",GrM5B!$AD$44) ->  | U77: =IF(GrM5B!$AE$44=0,"",GrM5B!$AE$44) ->  | V77: =IF(GrM5B!$AH$44=0,"",GrM5B!$AH$44) -> 
A78: =IF('GrM3'!$AD$5=0,"",'GrM3'!$AD$5) -> 3 | B78: =IF('GrM3'!$AA$38=0,"",'GrM3'!$AA$38) -> New | C78: =IF('GrM3'!$AB$38=0,"",'GrM3'!$AB$38) ->  | D78: =IF(GrM5B!$B$45=0,"",GrM5B!$B$45) ->  | E78: =IF(GrM5B!$C$45=0,"",GrM5B!$C$45) ->  | F78: =IF(GrM5B!$D$45=0,"",GrM5B!$D$45) ->  | G78: =IF(GrM5B!$AI$45=0,"",GrM5B!$AI$45) ->  | H78: =IF(GrM5B!$AJ$45=0,"",GrM5B!$AJ$45) ->  | I78: =IF(GrM5B!$AL$45=0,"",GrM5B!$AL$45) ->  | J78: =IF(GrM5B!$AM$45=0,"",GrM5B!$AM$45) ->  | K78: =IF(GrM5B!$AN$45=0,"",GrM5B!$AN$45) ->  | L78: =IF(GrM5B!$AO$45=0,"",GrM5B!$AO$45) ->  | M78: =IF(GrM5B!$AF$45=0,"",GrM5B!$AF$45) ->  | N78: =IF(GrM5B!$AK$45=0,"",GrM5B!$AK$45) ->  | O78: =IF(GrM5B!$AD$2=0,"",GrM5B!$AD$2) -> FALSE | P78: =IF(GrM5B!$AD$3=0,"",GrM5B!$AD$3) -> Grammar | Q78: =IF(GrM5B!$AD$6=0,"",GrM5B!$AD$6) -> 09:00:00 | R78: =IF(GrM5B!$AD$7=0,"",GrM5B!$AD$7) -> M-Th | S78: =IF(GrM5B!$AD$8=0,"",GrM5B!$AD$8) -> Conf. | T78: =IF(GrM5B!$AD$45=0,"",GrM5B!$AD$45) ->  | U78: =IF(GrM5B!$AE$45=0,"",GrM5B!$AE$45) ->  | V78: =IF(GrM5B!$AH$45=0,"",GrM5B!$AH$45) -> 
A79: =IF('GrM3'!$AD$5=0,"",'GrM3'!$AD$5) -> 3 | B79: =IF('GrM3'!$AA$39=0,"",'GrM3'!$AA$39) -> New | C79: =IF('GrM3'!$AB$39=0,"",'GrM3'!$AB$39) ->  | D79: =IF(GrM5B!$B$46=0,"",GrM5B!$B$46) ->  | E79: =IF(GrM5B!$C$46=0,"",GrM5B!$C$46) ->  | F79: =IF(GrM5B!$D$46=0,"",GrM5B!$D$46) ->  | G79: =IF(GrM5B!$AI$46=0,"",GrM5B!$AI$46) ->  | H79: =IF(GrM5B!$AJ$46=0,"",GrM5B!$AJ$46) ->  | I79: =IF(GrM5B!$AL$46=0,"",GrM5B!$AL$46) ->  | J79: =IF(GrM5B!$AM$46=0,"",GrM5B!$AM$46) ->  | K79: =IF(GrM5B!$AN$46=0,"",GrM5B!$AN$46) ->  | L79: =IF(GrM5B!$AO$46=0,"",GrM5B!$AO$46) ->  | M79: =IF(GrM5B!$AF$46=0,"",GrM5B!$AF$46) ->  | N79: =IF(GrM5B!$AK$46=0,"",GrM5B!$AK$46) ->  | O79: =IF(GrM5B!$AD$2=0,"",GrM5B!$AD$2) -> FALSE | P79: =IF(GrM5B!$AD$3=0,"",GrM5B!$AD$3) -> Grammar | Q79: =IF(GrM5B!$AD$6=0,"",GrM5B!$AD$6) -> 09:00:00 | R79: =IF(GrM5B!$AD$7=0,"",GrM5B!$AD$7) -> M-Th | S79: =IF(GrM5B!$AD$8=0,"",GrM5B!$AD$8) -> Conf. | T79: =IF(GrM5B!$AD$46=0,"",GrM5B!$AD$46) ->  | U79: =IF(GrM5B!$AE$46=0,"",GrM5B!$AE$46) ->  | V79: =IF(GrM5B!$AH$46=0,"",GrM5B!$AH$46) -> 
A80: =IF('GrM3'!$AD$5=0,"",'GrM3'!$AD$5) -> 3 | B80: =IF('GrM3'!$AA$40=0,"",'GrM3'!$AA$40) ->  | C80: =IF('GrM3'!$AB$40=0,"",'GrM3'!$AB$40) ->  | D80: =IF(GrM5B!$B$47=0,"",GrM5B!$B$47) ->  | E80: =IF(GrM5B!$C$47=0,"",GrM5B!$C$47) ->  | F80: =IF(GrM5B!$D$47=0,"",GrM5B!$D$47) ->  | G80: =IF(GrM5B!$AI$47=0,"",GrM5B!$AI$47) ->  | H80: =IF(GrM5B!$AJ$47=0,"",GrM5B!$AJ$47) ->  | I80: =IF(GrM5B!$AL$47=0,"",GrM5B!$AL$47) ->  | J80: =IF(GrM5B!$AM$47=0,"",GrM5B!$AM$47) ->  | K80: =IF(GrM5B!$AN$47=0,"",GrM5B!$AN$47) ->  | L80: =IF(GrM5B!$AO$47=0,"",GrM5B!$AO$47) ->  | M80: =IF(GrM5B!$AF$47=0,"",GrM5B!$AF$47) ->  | N80: =IF(GrM5B!$AK$47=0,"",GrM5B!$AK$47) ->  | O80: =IF(GrM5B!$AD$2=0,"",GrM5B!$AD$2) -> FALSE | P80: =IF(GrM5B!$AD$3=0,"",GrM5B!$AD$3) -> Grammar | Q80: =IF(GrM5B!$AD$6=0,"",GrM5B!$AD$6) -> 09:00:00 | R80: =IF(GrM5B!$AD$7=0,"",GrM5B!$AD$7) -> M-Th | S80: =IF(GrM5B!$AD$8=0,"",GrM5B!$AD$8) -> Conf. | T80: =IF(GrM5B!$AD$47=0,"",GrM5B!$AD$47) ->  | U80: =IF(GrM5B!$AE$47=0,"",GrM5B!$AE$47) ->  | V80: =IF(GrM5B!$AH$47=0,"",GrM5B!$AH$47) -> 
A81: =IF('GrM3'!$AD$5=0,"",'GrM3'!$AD$5) -> 3 | B81: =IF('GrM3'!$AA$41=0,"",'GrM3'!$AA$41) ->  | C81: =IF('GrM3'!$AB$41=0,"",'GrM3'!$AB$41) ->  | D81: =IF(GrM5B!$B$48=0,"",GrM5B!$B$48) ->  | E81: =IF(GrM5B!$C$48=0,"",GrM5B!$C$48) ->  | F81: =IF(GrM5B!$D$48=0,"",GrM5B!$D$48) ->  | G81: =IF(GrM5B!$AI$48=0,"",GrM5B!$AI$48) ->  | H81: =IF(GrM5B!$AJ$48=0,"",GrM5B!$AJ$48) ->  | I81: =IF(GrM5B!$AL$48=0,"",GrM5B!$AL$48) ->  | J81: =IF(GrM5B!$AM$48=0,"",GrM5B!$AM$48) ->  | K81: =IF(GrM5B!$AN$48=0,"",GrM5B!$AN$48) ->  | L81: =IF(GrM5B!$AO$48=0,"",GrM5B!$AO$48) ->  | M81: =IF(GrM5B!$AF$48=0,"",GrM5B!$AF$48) ->  | N81: =IF(GrM5B!$AK$48=0,"",GrM5B!$AK$48) ->  | O81: =IF(GrM5B!$AD$2=0,"",GrM5B!$AD$2) -> FALSE | P81: =IF(GrM5B!$AD$3=0,"",GrM5B!$AD$3) -> Grammar | Q81: =IF(GrM5B!$AD$6=0,"",GrM5B!$AD$6) -> 09:00:00 | R81: =IF(GrM5B!$AD$7=0,"",GrM5B!$AD$7) -> M-Th | S81: =IF(GrM5B!$AD$8=0,"",GrM5B!$AD$8) -> Conf. | T81: =IF(GrM5B!$AD$48=0,"",GrM5B!$AD$48) ->  | U81: =IF(GrM5B!$AE$48=0,"",GrM5B!$AE$48) ->  | V81: =IF(GrM5B!$AH$48=0,"",GrM5B!$AH$48) -> 
A82: =IF('GrM3'!$AD$5=0,"",'GrM3'!$AD$5) -> 3 | B82: =IF('GrM3'!$AA$42=0,"",'GrM3'!$AA$42) ->  | C82: =IF('GrM3'!$AB$42=0,"",'GrM3'!$AB$42) ->  | D82: =IF(GrM5B!$B$49=0,"",GrM5B!$B$49) ->  | E82: =IF(GrM5B!$C$49=0,"",GrM5B!$C$49) ->  | F82: =IF(GrM5B!$D$49=0,"",GrM5B!$D$49) ->  | G82: =IF(GrM5B!$AI$49=0,"",GrM5B!$AI$49) ->  | H82: =IF(GrM5B!$AJ$49=0,"",GrM5B!$AJ$49) ->  | I82: =IF(GrM5B!$AL$49=0,"",GrM5B!$AL$49) ->  | J82: =IF(GrM5B!$AM$49=0,"",GrM5B!$AM$49) ->  | K82: =IF(GrM5B!$AN$49=0,"",GrM5B!$AN$49) ->  | L82: =IF(GrM5B!$AO$49=0,"",GrM5B!$AO$49) ->  | M82: =IF(GrM5B!$AF$49=0,"",GrM5B!$AF$49) ->  | N82: =IF(GrM5B!$AK$49=0,"",GrM5B!$AK$49) ->  | O82: =IF(GrM5B!$AD$2=0,"",GrM5B!$AD$2) -> FALSE | P82: =IF(GrM5B!$AD$3=0,"",GrM5B!$AD$3) -> Grammar | Q82: =IF(GrM5B!$AD$6=0,"",GrM5B!$AD$6) -> 09:00:00 | R82: =IF(GrM5B!$AD$7=0,"",GrM5B!$AD$7) -> M-Th | S82: =IF(GrM5B!$AD$8=0,"",GrM5B!$AD$8) -> Conf. | T82: =IF(GrM5B!$AD$49=0,"",GrM5B!$AD$49) ->  | U82: =IF(GrM5B!$AE$49=0,"",GrM5B!$AE$49) ->  | V82: =IF(GrM5B!$AH$49=0,"",GrM5B!$AH$49) -> 
A83: =IF('GrM3'!$AD$5=0,"",'GrM3'!$AD$5) -> 3 | B83: =IF('GrM3'!$AA$43=0,"",'GrM3'!$AA$43) ->  | C83: =IF('GrM3'!$AB$43=0,"",'GrM3'!$AB$43) ->  | D83: =IF(GrM5B!$B$50=0,"",GrM5B!$B$50) ->  | E83: =IF(GrM5B!$C$50=0,"",GrM5B!$C$50) ->  | F83: =IF(GrM5B!$D$50=0,"",GrM5B!$D$50) ->  | G83: =IF(GrM5B!$AI$50=0,"",GrM5B!$AI$50) ->  | H83: =IF(GrM5B!$AJ$50=0,"",GrM5B!$AJ$50) ->  | I83: =IF(GrM5B!$AL$50=0,"",GrM5B!$AL$50) ->  | J83: =IF(GrM5B!$AM$50=0,"",GrM5B!$AM$50) ->  | K83: =IF(GrM5B!$AN$50=0,"",GrM5B!$AN$50) ->  | L83: =IF(GrM5B!$AO$50=0,"",GrM5B!$AO$50) ->  | M83: =IF(GrM5B!$AF$50=0,"",GrM5B!$AF$50) ->  | N83: =IF(GrM5B!$AK$50=0,"",GrM5B!$AK$50) ->  | O83: =IF(GrM5B!$AD$2=0,"",GrM5B!$AD$2) -> FALSE | P83: =IF(GrM5B!$AD$3=0,"",GrM5B!$AD$3) -> Grammar | Q83: =IF(GrM5B!$AD$6=0,"",GrM5B!$AD$6) -> 09:00:00 | R83: =IF(GrM5B!$AD$7=0,"",GrM5B!$AD$7) -> M-Th | S83: =IF(GrM5B!$AD$8=0,"",GrM5B!$AD$8) -> Conf. | T83: =IF(GrM5B!$AD$50=0,"",GrM5B!$AD$50) ->  | U83: =IF(GrM5B!$AE$50=0,"",GrM5B!$AE$50) ->  | V83: =IF(GrM5B!$AH$50=0,"",GrM5B!$AH$50) -> 
A84: =IF('GrM3'!$AD$5=0,"",'GrM3'!$AD$5) -> 3 | B84: =IF('GrM3'!$AA$47=0,"",'GrM3'!$AA$47) ->  | C84: =IF('GrM3'!$AB$47=0,"",'GrM3'!$AB$47) ->  | D84: =IF(GrM5B!$B$51=0,"",GrM5B!$B$51) ->  | E84: =IF(GrM5B!$C$51=0,"",GrM5B!$C$51) ->  | F84: =IF(GrM5B!$D$51=0,"",GrM5B!$D$51) ->  | G84: =IF(GrM5B!$AI$51=0,"",GrM5B!$AI$51) ->  | H84: =IF(GrM5B!$AJ$51=0,"",GrM5B!$AJ$51) ->  | I84: =IF(GrM5B!$AL$51=0,"",GrM5B!$AL$51) ->  | J84: =IF(GrM5B!$AM$51=0,"",GrM5B!$AM$51) ->  | K84: =IF(GrM5B!$AN$51=0,"",GrM5B!$AN$51) ->  | L84: =IF(GrM5B!$AO$51=0,"",GrM5B!$AO$51) ->  | M84: =IF(GrM5B!$AF$51=0,"",GrM5B!$AF$51) ->  | N84: =IF(GrM5B!$AK$51=0,"",GrM5B!$AK$51) ->  | O84: =IF(GrM5B!$AD$2=0,"",GrM5B!$AD$2) -> FALSE | P84: =IF(GrM5B!$AD$3=0,"",GrM5B!$AD$3) -> Grammar | Q84: =IF(GrM5B!$AD$6=0,"",GrM5B!$AD$6) -> 09:00:00 | R84: =IF(GrM5B!$AD$7=0,"",GrM5B!$AD$7) -> M-Th | S84: =IF(GrM5B!$AD$8=0,"",GrM5B!$AD$8) -> Conf. | T84: =IF(GrM5B!$AD$51=0,"",GrM5B!$AD$51) ->  | U84: =IF(GrM5B!$AE$51=0,"",GrM5B!$AE$51) ->  | V84: =IF(GrM5B!$AH$51=0,"",GrM5B!$AH$51) -> 
A85: =IF('GrM3'!$AD$5=0,"",'GrM3'!$AD$5) -> 3 | B85: =IF('GrM3'!$AA$49=0,"",'GrM3'!$AA$49) ->  | C85: =IF('GrM3'!$AB$49=0,"",'GrM3'!$AB$49) ->  | D85: =IF(GrM5B!$B$52=0,"",GrM5B!$B$52) ->  | E85: =IF(GrM5B!$C$52=0,"",GrM5B!$C$52) ->  | F85: =IF(GrM5B!$D$52=0,"",GrM5B!$D$52) ->  | G85: =IF(GrM5B!$AI$52=0,"",GrM5B!$AI$52) ->  | H85: =IF(GrM5B!$AJ$52=0,"",GrM5B!$AJ$52) ->  | I85: =IF(GrM5B!$AL$52=0,"",GrM5B!$AL$52) ->  | J85: =IF(GrM5B!$AM$52=0,"",GrM5B!$AM$52) ->  | K85: =IF(GrM5B!$AN$52=0,"",GrM5B!$AN$52) ->  | L85: =IF(GrM5B!$AO$52=0,"",GrM5B!$AO$52) ->  | M85: =IF(GrM5B!$AF$52=0,"",GrM5B!$AF$52) ->  | N85: =IF(GrM5B!$AK$52=0,"",GrM5B!$AK$52) ->  | O85: =IF(GrM5B!$AD$2=0,"",GrM5B!$AD$2) -> FALSE | P85: =IF(GrM5B!$AD$3=0,"",GrM5B!$AD$3) -> Grammar | Q85: =IF(GrM5B!$AD$6=0,"",GrM5B!$AD$6) -> 09:00:00 | R85: =IF(GrM5B!$AD$7=0,"",GrM5B!$AD$7) -> M-Th | S85: =IF(GrM5B!$AD$8=0,"",GrM5B!$AD$8) -> Conf. | T85: =IF(GrM5B!$AD$52=0,"",GrM5B!$AD$52) ->  | U85: =IF(GrM5B!$AE$52=0,"",GrM5B!$AE$52) ->  | V85: =IF(GrM5B!$AH$52=0,"",GrM5B!$AH$52) -> 
A86: =IF('GrM3'!$AD$5=0,"",'GrM3'!$AD$5) -> 3 | B86: =IF('GrM3'!$AA$50=0,"",'GrM3'!$AA$50) ->  | C86: =IF('GrM3'!$AB$50=0,"",'GrM3'!$AB$50) ->  | D86: =IF(GrMT!$B$26=0,"",GrMT!$B$26) -> 2008-05-12 | E86: =IF(GrMT!$C$26=0,"",GrMT!$C$26) -> 2008-08-28 | F86: =IF(GrMT!$D$26=0,"",GrMT!$D$26) -> 2008-08-28 | G86: =IF(GrMT!$AI$26=0,"",GrMT!$AI$26) -> Pazos | H86: =IF(GrMT!$AJ$26=0,"",GrMT!$AJ$26) -> Jorge | I86: =IF(GrMT!$AL$26=0,"",GrMT!$AL$26) -> Gate | J86: =IF(GrMT!$AM$26=0,"",GrMT!$AM$26) -> S2 | K86: =IF(GrMT!$AN$26=0,"",GrMT!$AN$26) -> F1 | L86: =IF(GrMT!$AO$26=0,"",GrMT!$AO$26) -> F1 | M86: =IF(GrMT!$AF$26=0,"",GrMT!$AF$26) -> Peru | N86: 801 362-3455 | O86: =IF(GrMT!$AD$2=0,"",GrMT!$AD$2) -> SusAnn | P86: =IF(GrMT!$AD$3=0,"",GrMT!$AD$3) -> Grammar | Q86: =IF(GrMT!$AD$6=0,"",GrMT!$AD$6) -> 09:00:00 | R86: =IF(GrMT!$AD$7=0,"",GrMT!$AD$7) -> M-Th | S86: =IF(GrMT!$AD$8=0,"",GrMT!$AD$8) -> 7 | T86: 2007-10-11 | U86: yes | V86: =IF(GrMT!$AH$26=0,"",GrMT!$AH$26) -> 2007-06-21
A87: =IF('GrM3'!$AD$5=0,"",'GrM3'!$AD$5) -> 3 | B87: =IF('GrM3'!$AA$51=0,"",'GrM3'!$AA$51) ->  | C87: =IF('GrM3'!$AB$51=0,"",'GrM3'!$AB$51) ->  | D87: =IF(GrMT!$B$27=0,"",GrMT!$B$27) ->  | E87: =IF(GrMT!$C$27=0,"",GrMT!$C$27) ->  | F87: =IF(GrMT!$D$27=0,"",GrMT!$D$27) ->  | G87: =IF(GrMT!$AI$27=0,"",GrMT!$AI$27) ->  | H87: =IF(GrMT!$AJ$27=0,"",GrMT!$AJ$27) ->  | I87: =IF(GrMT!$AL$27=0,"",GrMT!$AL$27) ->  | J87: =IF(GrMT!$AM$27=0,"",GrMT!$AM$27) ->  | K87: =IF(GrMT!$AN$27=0,"",GrMT!$AN$27) ->  | L87: =IF(GrMT!$AO$27=0,"",GrMT!$AO$27) ->  | M87: =IF(GrMT!$AF$27=0,"",GrMT!$AF$27) ->  | N87: 801-759-8101 | O87: =IF(GrMT!$AD$2=0,"",GrMT!$AD$2) -> SusAnn | P87: =IF(GrMT!$AD$3=0,"",GrMT!$AD$3) -> Grammar | Q87: =IF(GrMT!$AD$6=0,"",GrMT!$AD$6) -> 09:00:00 | R87: =IF(GrMT!$AD$7=0,"",GrMT!$AD$7) -> M-Th | S87: =IF(GrMT!$AD$8=0,"",GrMT!$AD$8) -> 7 | T87: =IF(GrMT!$AD$27=0,"",GrMT!$AD$27) ->  | U87: =IF(GrMT!$AE$27=0,"",GrMT!$AE$27) ->  | V87: =IF(GrMT!$AH$27=0,"",GrMT!$AH$27) -> 
A88: =IF('GrM3'!$AD$5=0,"",'GrM3'!$AD$5) -> 3 | B88: =IF('GrM3'!$AA$52=0,"",'GrM3'!$AA$52) ->  | C88: =IF('GrM3'!$AB$52=0,"",'GrM3'!$AB$52) ->  | D88: =IF(GrMT!$B$28=0,"",GrMT!$B$28) ->  | E88: =IF(GrMT!$C$28=0,"",GrMT!$C$28) ->  | F88: =IF(GrMT!$D$28=0,"",GrMT!$D$28) ->  | G88: =IF(GrMT!$AI$28=0,"",GrMT!$AI$28) ->  | H88: =IF(GrMT!$AJ$28=0,"",GrMT!$AJ$28) ->  | I88: =IF(GrMT!$AL$28=0,"",GrMT!$AL$28) ->  | J88: =IF(GrMT!$AM$28=0,"",GrMT!$AM$28) ->  | K88: =IF(GrMT!$AN$28=0,"",GrMT!$AN$28) ->  | L88: =IF(GrMT!$AO$28=0,"",GrMT!$AO$28) ->  | M88: =IF(GrMT!$AF$28=0,"",GrMT!$AF$28) ->  | N88: =IF(GrMT!$AK$28=0,"",GrMT!$AK$28) ->  | O88: =IF(GrMT!$AD$2=0,"",GrMT!$AD$2) -> SusAnn | P88: =IF(GrMT!$AD$3=0,"",GrMT!$AD$3) -> Grammar | Q88: =IF(GrMT!$AD$6=0,"",GrMT!$AD$6) -> 09:00:00 | R88: =IF(GrMT!$AD$7=0,"",GrMT!$AD$7) -> M-Th | S88: =IF(GrMT!$AD$8=0,"",GrMT!$AD$8) -> 7 | T88: =IF(GrMT!$AD$28=0,"",GrMT!$AD$28) ->  | U88: =IF(GrMT!$AE$28=0,"",GrMT!$AE$28) ->  | V88: =IF(GrMT!$AH$28=0,"",GrMT!$AH$28) -> 
A89: =IF(#REF!=0,"",#REF!) ->  | B89: =IF(#REF!=0,"",#REF!) ->  | C89: =IF(#REF!=0,"",#REF!) ->  | D89: =IF(GrMT!$B$29=0,"",GrMT!$B$29) ->  | E89: =IF(GrMT!$C$29=0,"",GrMT!$C$29) ->  | F89: =IF(GrMT!$D$29=0,"",GrMT!$D$29) ->  | G89: =IF(GrMT!$AI$29=0,"",GrMT!$AI$29) ->  | H89: =IF(GrMT!$AJ$29=0,"",GrMT!$AJ$29) ->  | I89: =IF(GrMT!$AL$29=0,"",GrMT!$AL$29) ->  | J89: =IF(GrMT!$AM$29=0,"",GrMT!$AM$29) ->  | K89: =IF(GrMT!$AN$29=0,"",GrMT!$AN$29) ->  | L89: =IF(GrMT!$AO$29=0,"",GrMT!$AO$29) ->  | M89: =IF(GrMT!$AF$29=0,"",GrMT!$AF$29) ->  | N89: =IF(GrMT!$AK$29=0,"",GrMT!$AK$29) ->  | O89: =IF(GrMT!$AD$2=0,"",GrMT!$AD$2) -> SusAnn | P89: =IF(GrMT!$AD$3=0,"",GrMT!$AD$3) -> Grammar | Q89: =IF(GrMT!$AD$6=0,"",GrMT!$AD$6) -> 09:00:00 | R89: =IF(GrMT!$AD$7=0,"",GrMT!$AD$7) -> M-Th | S89: =IF(GrMT!$AD$8=0,"",GrMT!$AD$8) -> 7 | T89: =IF(GrMT!$AD$29=0,"",GrMT!$AD$29) ->  | U89: yes | V89: =IF(GrMT!$AH$29=0,"",GrMT!$AH$29) -> 
A90: =IF(#REF!=0,"",#REF!) ->  | B90: =IF(#REF!=0,"",#REF!) ->  | C90: =IF(#REF!=0,"",#REF!) ->  | D90: =IF(GrMT!$B$30=0,"",GrMT!$B$30) ->  | E90: =IF(GrMT!$C$30=0,"",GrMT!$C$30) ->  | F90: =IF(GrMT!$D$30=0,"",GrMT!$D$30) ->  | G90: =IF(GrMT!$AI$30=0,"",GrMT!$AI$30) ->  | H90: =IF(GrMT!$AJ$30=0,"",GrMT!$AJ$30) ->  | I90: =IF(GrMT!$AL$30=0,"",GrMT!$AL$30) ->  | J90: =IF(GrMT!$AM$30=0,"",GrMT!$AM$30) ->  | K90: =IF(GrMT!$AN$30=0,"",GrMT!$AN$30) ->  | L90: =IF(GrMT!$AO$30=0,"",GrMT!$AO$30) ->  | M90: =IF(GrMT!$AF$30=0,"",GrMT!$AF$30) ->  | N90: =IF(GrMT!$AK$30=0,"",GrMT!$AK$30) ->  | O90: =IF(GrMT!$AD$2=0,"",GrMT!$AD$2) -> SusAnn | P90: =IF(GrMT!$AD$3=0,"",GrMT!$AD$3) -> Grammar | Q90: =IF(GrMT!$AD$6=0,"",GrMT!$AD$6) -> 09:00:00 | R90: =IF(GrMT!$AD$7=0,"",GrMT!$AD$7) -> M-Th | S90: =IF(GrMT!$AD$8=0,"",GrMT!$AD$8) -> 7 | T90: =IF(GrMT!$AD$30=0,"",GrMT!$AD$30) ->  | U90: =IF(GrMT!$AE$30=0,"",GrMT!$AE$30) ->  | V90: =IF(GrMT!$AH$30=0,"",GrMT!$AH$30) -> 
A91: =IF(#REF!=0,"",#REF!) ->  | B91: =IF(#REF!=0,"",#REF!) ->  | C91: =IF(#REF!=0,"",#REF!) ->  | D91: =IF(GrMT!$B31=0,"",GrMT!$B31) ->  | E91: =IF(GrMT!$C31=0,"",GrMT!$C31) ->  | F91: =IF(GrMT!$D$31=0,"",GrMT!$D$31) ->  | G91: =IF(GrMT!$AI$31=0,"",GrMT!$AI$31) ->  | H91: =IF(GrMT!$AJ$31=0,"",GrMT!$AJ$31) ->  | I91: =IF(GrMT!$AL$31=0,"",GrMT!$AL$31) ->  | J91: =IF(GrMT!$AM$31=0,"",GrMT!$AM$31) ->  | K91: =IF(GrMT!$AN$31=0,"",GrMT!$AN$31) ->  | L91: =IF(GrMT!$AO$31=0,"",GrMT!$AO$31) ->  | M91: =IF(GrMT!$AF$31=0,"",GrMT!$AF$31) ->  | N91: =IF(GrMT!$AK$31=0,"",GrMT!$AK$31) ->  | O91: =IF(GrMT!$AD$2=0,"",GrMT!$AD$2) -> SusAnn | P91: =IF(GrMT!$AD$3=0,"",GrMT!$AD$3) -> Grammar | Q91: =IF(GrMT!$AD$6=0,"",GrMT!$AD$6) -> 09:00:00 | R91: =IF(GrMT!$AD$7=0,"",GrMT!$AD$7) -> M-Th | S91: =IF(GrMT!$AD$8=0,"",GrMT!$AD$8) -> 7 | T91: =IF(GrMT!$AD$31=0,"",GrMT!$AD$31) ->  | U91: =IF(GrMT!$AE$31=0,"",GrMT!$AE$31) ->  | V91: =IF(GrMT!$AH$31=0,"",GrMT!$AH$31) -> 
A92: =IF(#REF!=0,"",#REF!) ->  | B92: =IF(#REF!=0,"",#REF!) ->  | C92: =IF(#REF!=0,"",#REF!) ->  | D92: =IF(GrMT!$B$32=0,"",GrMT!$B$32) ->  | E92: =IF(GrMT!$C$32=0,"",GrMT!$C$32) ->  | F92: =IF(GrMT!$D$32=0,"",GrMT!$D$32) ->  | G92: =IF(GrMT!$AI$32=0,"",GrMT!$AI$32) ->  | H92: =IF(GrMT!$AJ$32=0,"",GrMT!$AJ$32) ->  | I92: =IF(GrMT!$AL$32=0,"",GrMT!$AL$32) ->  | J92: =IF(GrMT!$AM$32=0,"",GrMT!$AM$32) ->  | K92: =IF(GrMT!$AN$32=0,"",GrMT!$AN$32) ->  | L92: =IF(GrMT!$AO$32=0,"",GrMT!$AO$32) ->  | M92: =IF(GrMT!$AF$32=0,"",GrMT!$AF$32) ->  | N92: =IF(GrMT!$AK$32=0,"",GrMT!$AK$32) ->  | O92: =IF(GrMT!$AD$2=0,"",GrMT!$AD$2) -> SusAnn | P92: =IF(GrMT!$AD$3=0,"",GrMT!$AD$3) -> Grammar | Q92: =IF(GrMT!$AD$6=0,"",GrMT!$AD$6) -> 09:00:00 | R92: =IF(GrMT!$AD$7=0,"",GrMT!$AD$7) -> M-Th | S92: =IF(GrMT!$AD$8=0,"",GrMT!$AD$8) -> 7 | T92: =IF(GrMT!$AD$32=0,"",GrMT!$AD$32) ->  | U92: =IF(GrMT!$AE$32=0,"",GrMT!$AE$32) ->  | V92: =IF(GrMT!$AH$32=0,"",GrMT!$AH$32) -> 
A93: =IF(#REF!=0,"",#REF!) ->  | B93: =IF(#REF!=0,"",#REF!) ->  | C93: =IF(#REF!=0,"",#REF!) ->  | D93: =IF(GrMT!$B$33=0,"",GrMT!$B$33) ->  | E93: =IF(GrMT!$C$33=0,"",GrMT!$C$33) ->  | F93: =IF(GrMT!$D$33=0,"",GrMT!$D$33) ->  | G93: =IF(GrMT!$AI$33=0,"",GrMT!$AI$33) ->  | H93: =IF(GrMT!$AJ$33=0,"",GrMT!$AJ$33) ->  | I93: =IF(GrMT!$AL$33=0,"",GrMT!$AL$33) ->  | J93: =IF(GrMT!$AM$33=0,"",GrMT!$AM$33) ->  | K93: =IF(GrMT!$AN$33=0,"",GrMT!$AN$33) ->  | L93: =IF(GrMT!$AO$33=0,"",GrMT!$AO$33) ->  | M93: =IF(GrMT!$AF$33=0,"",GrMT!$AF$33) ->  | N93: =IF(GrMT!$AK$33=0,"",GrMT!$AK$33) ->  | O93: =IF(GrMT!$AD$2=0,"",GrMT!$AD$2) -> SusAnn | P93: =IF(GrMT!$AD$3=0,"",GrMT!$AD$3) -> Grammar | Q93: =IF(GrMT!$AD$6=0,"",GrMT!$AD$6) -> 09:00:00 | R93: =IF(GrMT!$AD$7=0,"",GrMT!$AD$7) -> M-Th | S93: =IF(GrMT!$AD$8=0,"",GrMT!$AD$8) -> 7 | T93: =IF(GrMT!$AD$33=0,"",GrMT!$AD$33) ->  | U93: =IF(GrMT!$AE$33=0,"",GrMT!$AE$33) ->  | V93: =IF(GrMT!$AH$33=0,"",GrMT!$AH$33) -> 
A94: =IF(#REF!=0,"",#REF!) ->  | B94: =IF(#REF!=0,"",#REF!) ->  | C94: =IF(#REF!=0,"",#REF!) ->  | D94: =IF(GrMT!$B$34=0,"",GrMT!$B$34) ->  | E94: =IF(GrMT!$C$34=0,"",GrMT!$C$34) ->  | F94: =IF(GrMT!$D$34=0,"",GrMT!$D$34) ->  | G94: =IF(GrMT!$AI$34=0,"",GrMT!$AI$34) ->  | H94: =IF(GrMT!$AJ$34=0,"",GrMT!$AJ$34) ->  | I94: =IF(GrMT!$AL$34=0,"",GrMT!$AL$34) ->  | J94: =IF(GrMT!$AM$34=0,"",GrMT!$AM$34) ->  | K94: =IF(GrMT!$AN$34=0,"",GrMT!$AN$34) ->  | L94: =IF(GrMT!$AO$34=0,"",GrMT!$AO$34) ->  | M94: =IF(GrMT!$AF$34=0,"",GrMT!$AF$34) ->  | N94: =IF(GrMT!$AK$34=0,"",GrMT!$AK$34) ->  | O94: =IF(GrMT!$AD$2=0,"",GrMT!$AD$2) -> SusAnn | P94: =IF(GrMT!$AD$3=0,"",GrMT!$AD$3) -> Grammar | Q94: =IF(GrMT!$AD$6=0,"",GrMT!$AD$6) -> 09:00:00 | R94: =IF(GrMT!$AD$7=0,"",GrMT!$AD$7) -> M-Th | S94: =IF(GrMT!$AD$8=0,"",GrMT!$AD$8) -> 7 | T94: =IF(GrMT!$AD$34=0,"",GrMT!$AD$34) ->  | U94: =IF(GrMT!$AE$34=0,"",GrMT!$AE$34) ->  | V94: =IF(GrMT!$AH$34=0,"",GrMT!$AH$34) -> 
A95: =IF(#REF!=0,"",#REF!) ->  | B95: =IF(#REF!=0,"",#REF!) ->  | C95: =IF(#REF!=0,"",#REF!) ->  | D95: =IF(GrMT!$B$35=0,"",GrMT!$B$35) ->  | E95: =IF(GrMT!$C$35=0,"",GrMT!$C$35) ->  | F95: =IF(GrMT!$D$35=0,"",GrMT!$D$35) ->  | G95: =IF(GrMT!$AI$35=0,"",GrMT!$AI$35) ->  | H95: =IF(GrMT!$AJ$35=0,"",GrMT!$AJ$35) ->  | I95: =IF(GrMT!$AL$35=0,"",GrMT!$AL$35) ->  | J95: =IF(GrMT!$AM$35=0,"",GrMT!$AM$35) ->  | K95: =IF(GrMT!$AN$35=0,"",GrMT!$AN$35) ->  | L95: =IF(GrMT!$AO$35=0,"",GrMT!$AO$35) ->  | M95: =IF(GrMT!$AF$35=0,"",GrMT!$AF$35) ->  | N95: =IF(GrMT!$AK$35=0,"",GrMT!$AK$35) ->  | O95: =IF(GrMT!$AD$2=0,"",GrMT!$AD$2) -> SusAnn | P95: =IF(GrMT!$AD$3=0,"",GrMT!$AD$3) -> Grammar | Q95: =IF(GrMT!$AD$6=0,"",GrMT!$AD$6) -> 09:00:00 | R95: =IF(GrMT!$AD$7=0,"",GrMT!$AD$7) -> M-Th | S95: =IF(GrMT!$AD$8=0,"",GrMT!$AD$8) -> 7 | T95: =IF(GrMT!$AD$35=0,"",GrMT!$AD$35) ->  | U95: =IF(GrMT!$AE$35=0,"",GrMT!$AE$35) ->  | V95: =IF(GrMT!$AH$35=0,"",GrMT!$AH$35) -> 
A96: =IF(#REF!=0,"",#REF!) ->  | B96: =IF(#REF!=0,"",#REF!) ->  | C96: =IF(#REF!=0,"",#REF!) ->  | D96: =IF(GrMT!$B$36=0,"",GrMT!$B$36) ->  | E96: =IF(GrMT!$C$36=0,"",GrMT!$C$36) ->  | F96: =IF(GrMT!$D$36=0,"",GrMT!$D$36) ->  | G96: =IF(GrMT!$AI$36=0,"",GrMT!$AI$36) ->  | H96: =IF(GrMT!$AJ$36=0,"",GrMT!$AJ$36) ->  | I96: =IF(GrMT!$AL$36=0,"",GrMT!$AL$36) ->  | J96: =IF(GrMT!$AM$36=0,"",GrMT!$AM$36) ->  | K96: =IF(GrMT!$AN$36=0,"",GrMT!$AN$36) ->  | L96: =IF(GrMT!$AO$36=0,"",GrMT!$AO$36) ->  | M96: =IF(GrMT!$AF$36=0,"",GrMT!$AF$36) ->  | N96: =IF(GrMT!$AK$36=0,"",GrMT!$AK$36) ->  | O96: =IF(GrMT!$AD$2=0,"",GrMT!$AD$2) -> SusAnn | P96: =IF(GrMT!$AD$3=0,"",GrMT!$AD$3) -> Grammar | Q96: =IF(GrMT!$AD$6=0,"",GrMT!$AD$6) -> 09:00:00 | R96: =IF(GrMT!$AD$7=0,"",GrMT!$AD$7) -> M-Th | S96: =IF(GrMT!$AD$8=0,"",GrMT!$AD$8) -> 7 | T96: =IF(GrMT!$AD$36=0,"",GrMT!$AD$36) ->  | U96: =IF(GrMT!$AE$36=0,"",GrMT!$AE$36) ->  | V96: =IF(GrMT!$AH$36=0,"",GrMT!$AH$36) -> 
A97: =IF(#REF!=0,"",#REF!) ->  | B97: =IF(#REF!=0,"",#REF!) ->  | C97: =IF(#REF!=0,"",#REF!) ->  | D97: =IF(GrMT!$B$37=0,"",GrMT!$B$37) ->  | E97: =IF(GrMT!$C$37=0,"",GrMT!$C$37) ->  | F97: =IF(GrMT!$D$37=0,"",GrMT!$D$37) ->  | G97: =IF(GrMT!$AI$37=0,"",GrMT!$AI$37) ->  | H97: =IF(GrMT!$AJ$37=0,"",GrMT!$AJ$37) ->  | I97: =IF(GrMT!$AL$37=0,"",GrMT!$AL$37) ->  | J97: =IF(GrMT!$AM$37=0,"",GrMT!$AM$37) ->  | K97: =IF(GrMT!$AN$37=0,"",GrMT!$AN$37) ->  | L97: =IF(GrMT!$AO$37=0,"",GrMT!$AO$37) ->  | M97: =IF(GrMT!$AF$37=0,"",GrMT!$AF$37) ->  | N97: =IF(GrMT!$AK$37=0,"",GrMT!$AK$37) ->  | O97: =IF(GrMT!$AD$2=0,"",GrMT!$AD$2) -> SusAnn | P97: =IF(GrMT!$AD$3=0,"",GrMT!$AD$3) -> Grammar | Q97: =IF(GrMT!$AD$6=0,"",GrMT!$AD$6) -> 09:00:00 | R97: =IF(GrMT!$AD$7=0,"",GrMT!$AD$7) -> M-Th | S97: =IF(GrMT!$AD$8=0,"",GrMT!$AD$8) -> 7 | T97: =IF(GrMT!$AD$37=0,"",GrMT!$AD$37) ->  | U97: =IF(GrMT!$AE$37=0,"",GrMT!$AE$37) ->  | V97: =IF(GrMT!$AH$37=0,"",GrMT!$AH$37) -> 
A98: =IF(#REF!=0,"",#REF!) ->  | B98: =IF(#REF!=0,"",#REF!) ->  | C98: =IF(#REF!=0,"",#REF!) ->  | D98: =IF(GrMT!$B$38=0,"",GrMT!$B$38) ->  | E98: =IF(GrMT!$C$38=0,"",GrMT!$C$38) ->  | F98: =IF(GrMT!$D$38=0,"",GrMT!$D$38) ->  | G98: =IF(GrMT!$AI$38=0,"",GrMT!$AI$38) ->  | H98: =IF(GrMT!$AJ$38=0,"",GrMT!$AJ$38) ->  | I98: =IF(GrMT!$AL$38=0,"",GrMT!$AL$38) ->  | J98: =IF(GrMT!$AM$38=0,"",GrMT!$AM$38) ->  | K98: =IF(GrMT!$AN$38=0,"",GrMT!$AN$38) ->  | L98: =IF(GrMT!$AO$38=0,"",GrMT!$AO$38) ->  | M98: =IF(GrMT!$AF$38=0,"",GrMT!$AF$38) ->  | N98: =IF(GrMT!$AK$38=0,"",GrMT!$AK$38) ->  | O98: =IF(GrMT!$AD$2=0,"",GrMT!$AD$2) -> SusAnn | P98: =IF(GrMT!$AD$3=0,"",GrMT!$AD$3) -> Grammar | Q98: =IF(GrMT!$AD$6=0,"",GrMT!$AD$6) -> 09:00:00 | R98: =IF(GrMT!$AD$7=0,"",GrMT!$AD$7) -> M-Th | S98: =IF(GrMT!$AD$8=0,"",GrMT!$AD$8) -> 7 | T98: =IF(GrMT!$AD$38=0,"",GrMT!$AD$38) ->  | U98: =IF(GrMT!$AE$38=0,"",GrMT!$AE$38) ->  | V98: =IF(GrMT!$AH$38=0,"",GrMT!$AH$38) -> 
A99: =IF(#REF!=0,"",#REF!) ->  | B99: =IF(#REF!=0,"",#REF!) ->  | C99: =IF(#REF!=0,"",#REF!) ->  | D99: =IF(GrMT!$B$39=0,"",GrMT!$B$39) ->  | E99: =IF(GrMT!$C$39=0,"",GrMT!$C$39) ->  | F99: =IF(GrMT!$D$39=0,"",GrMT!$D$39) ->  | G99: =IF(GrMT!$AI$39=0,"",GrMT!$AI$39) ->  | H99: =IF(GrMT!$AJ$39=0,"",GrMT!$AJ$39) ->  | I99: =IF(GrMT!$AL$39=0,"",GrMT!$AL$39) ->  | J99: =IF(GrMT!$AM$39=0,"",GrMT!$AM$39) ->  | K99: =IF(GrMT!$AN$39=0,"",GrMT!$AN$39) ->  | L99: =IF(GrMT!$AO$39=0,"",GrMT!$AO$39) ->  | M99: =IF(GrMT!$AF$39=0,"",GrMT!$AF$39) ->  | N99: =IF(GrMT!$AK$39=0,"",GrMT!$AK$39) ->  | O99: =IF(GrMT!$AD$2=0,"",GrMT!$AD$2) -> SusAnn | P99: =IF(GrMT!$AD$3=0,"",GrMT!$AD$3) -> Grammar | Q99: =IF(GrMT!$AD$6=0,"",GrMT!$AD$6) -> 09:00:00 | R99: =IF(GrMT!$AD$7=0,"",GrMT!$AD$7) -> M-Th | S99: =IF(GrMT!$AD$8=0,"",GrMT!$AD$8) -> 7 | T99: =IF(GrMT!$AD$39=0,"",GrMT!$AD$39) ->  | U99: =IF(GrMT!$AE$39=0,"",GrMT!$AE$39) ->  | V99: =IF(GrMT!$AH$39=0,"",GrMT!$AH$39) -> 
A100: =IF(#REF!=0,"",#REF!) ->  | B100: =IF(#REF!=0,"",#REF!) ->  | C100: =IF(#REF!=0,"",#REF!) ->  | D100: =IF(GrMT!$B$44=0,"",GrMT!$B$44) ->  | E100: =IF(GrMT!$C$44=0,"",GrMT!$C$44) ->  | F100: =IF(GrMT!$D$44=0,"",GrMT!$D$44) ->  | G100: =IF(GrMT!$AI$44=0,"",GrMT!$AI$44) ->  | H100: =IF(GrMT!$AJ$44=0,"",GrMT!$AJ$44) ->  | I100: =IF(GrMT!$AL$44=0,"",GrMT!$AL$44) ->  | J100: =IF(GrMT!$AM$44=0,"",GrMT!$AM$44) ->  | K100: =IF(GrMT!$AN$44=0,"",GrMT!$AN$44) ->  | L100: =IF(GrMT!$AO$44=0,"",GrMT!$AO$44) ->  | M100: =IF(GrMT!$AF$44=0,"",GrMT!$AF$44) ->  | N100: =IF(GrMT!$AK$44=0,"",GrMT!$AK$44) ->  | O100: =IF(GrMT!$AD$2=0,"",GrMT!$AD$2) -> SusAnn | P100: =IF(GrMT!$AD$3=0,"",GrMT!$AD$3) -> Grammar | Q100: =IF(GrMT!$AD$6=0,"",GrMT!$AD$6) -> 09:00:00 | R100: =IF(GrMT!$AD$7=0,"",GrMT!$AD$7) -> M-Th | S100: =IF(GrMT!$AD$8=0,"",GrMT!$AD$8) -> 7 | T100: =IF(GrMT!$AD$44=0,"",GrMT!$AD$44) ->  | U100: =IF(GrMT!$AE$44=0,"",GrMT!$AE$44) ->  | V100: =IF(GrMT!$AH$44=0,"",GrMT!$AH$44) -> 
A101: =IF(#REF!=0,"",#REF!) ->  | B101: =IF(#REF!=0,"",#REF!) ->  | C101: =IF(#REF!=0,"",#REF!) ->  | D101: =IF(GrMT!$B$45=0,"",GrMT!$B$45) ->  | E101: =IF(GrMT!$C$45=0,"",GrMT!$C$45) ->  | F101: =IF(GrMT!$D$45=0,"",GrMT!$D$45) ->  | G101: =IF(GrMT!$AI$45=0,"",GrMT!$AI$45) ->  | H101: =IF(GrMT!$AJ$45=0,"",GrMT!$AJ$45) ->  | I101: =IF(GrMT!$AL$45=0,"",GrMT!$AL$45) ->  | J101: =IF(GrMT!$AM$45=0,"",GrMT!$AM$45) ->  | K101: =IF(GrMT!$AN$45=0,"",GrMT!$AN$45) ->  | L101: =IF(GrMT!$AO$45=0,"",GrMT!$AO$45) ->  | M101: =IF(GrMT!$AF$45=0,"",GrMT!$AF$45) ->  | N101: =IF(GrMT!$AK$45=0,"",GrMT!$AK$45) ->  | O101: =IF(GrMT!$AD$2=0,"",GrMT!$AD$2) -> SusAnn | P101: =IF(GrMT!$AD$3=0,"",GrMT!$AD$3) -> Grammar | Q101: =IF(GrMT!$AD$6=0,"",GrMT!$AD$6) -> 09:00:00 | R101: =IF(GrMT!$AD$7=0,"",GrMT!$AD$7) -> M-Th | S101: =IF(GrMT!$AD$8=0,"",GrMT!$AD$8) -> 7 | T101: =IF(GrMT!$AD$45=0,"",GrMT!$AD$45) ->  | U101: =IF(GrMT!$AE$45=0,"",GrMT!$AE$45) ->  | V101: =IF(GrMT!$AH$45=0,"",GrMT!$AH$45) -> 
A102: =IF(#REF!=0,"",#REF!) ->  | B102: =IF(#REF!=0,"",#REF!) ->  | C102: =IF(#REF!=0,"",#REF!) ->  | D102: =IF(GrMT!$B$46=0,"",GrMT!$B$46) ->  | E102: =IF(GrMT!$C$46=0,"",GrMT!$C$46) ->  | F102: =IF(GrMT!$D$46=0,"",GrMT!$D$46) ->  | G102: =IF(GrMT!$AI$46=0,"",GrMT!$AI$46) ->  | H102: =IF(GrMT!$AJ$46=0,"",GrMT!$AJ$46) ->  | I102: =IF(GrMT!$AL$46=0,"",GrMT!$AL$46) ->  | J102: =IF(GrMT!$AM$46=0,"",GrMT!$AM$46) ->  | K102: =IF(GrMT!$AN$46=0,"",GrMT!$AN$46) ->  | L102: =IF(GrMT!$AO$46=0,"",GrMT!$AO$46) ->  | M102: =IF(GrMT!$AF$46=0,"",GrMT!$AF$46) ->  | N102: =IF(GrMT!$AK$46=0,"",GrMT!$AK$46) ->  | O102: =IF(GrMT!$AD$2=0,"",GrMT!$AD$2) -> SusAnn | P102: =IF(GrMT!$AD$3=0,"",GrMT!$AD$3) -> Grammar | Q102: =IF(GrMT!$AD$6=0,"",GrMT!$AD$6) -> 09:00:00 | R102: =IF(GrMT!$AD$7=0,"",GrMT!$AD$7) -> M-Th | S102: =IF(GrMT!$AD$8=0,"",GrMT!$AD$8) -> 7 | T102: =IF(GrMT!$AD$46=0,"",GrMT!$AD$46) ->  | U102: =IF(GrMT!$AE$46=0,"",GrMT!$AE$46) ->  | V102: =IF(GrMT!$AH$46=0,"",GrMT!$AH$46) -> 
A103: =IF(#REF!=0,"",#REF!) ->  | B103: =IF(#REF!=0,"",#REF!) ->  | C103: =IF(#REF!=0,"",#REF!) ->  | D103: =IF(GrMT!$B$47=0,"",GrMT!$B$47) ->  | E103: =IF(GrMT!$C$47=0,"",GrMT!$C$47) ->  | F103: =IF(GrMT!$D$47=0,"",GrMT!$D$47) ->  | G103: =IF(GrMT!$AI$47=0,"",GrMT!$AI$47) ->  | H103: =IF(GrMT!$AJ$47=0,"",GrMT!$AJ$47) ->  | I103: =IF(GrMT!$AL$47=0,"",GrMT!$AL$47) ->  | J103: =IF(GrMT!$AM$47=0,"",GrMT!$AM$47) ->  | K103: =IF(GrMT!$AN$47=0,"",GrMT!$AN$47) ->  | L103: =IF(GrMT!$AO$47=0,"",GrMT!$AO$47) ->  | M103: =IF(GrMT!$AF$47=0,"",GrMT!$AF$47) ->  | N103: =IF(GrMT!$AK$47=0,"",GrMT!$AK$47) ->  | O103: =IF(GrMT!$AD$2=0,"",GrMT!$AD$2) -> SusAnn | P103: =IF(GrMT!$AD$3=0,"",GrMT!$AD$3) -> Grammar | Q103: =IF(GrMT!$AD$6=0,"",GrMT!$AD$6) -> 09:00:00 | R103: =IF(GrMT!$AD$7=0,"",GrMT!$AD$7) -> M-Th | S103: =IF(GrMT!$AD$8=0,"",GrMT!$AD$8) -> 7 | T103: =IF(GrMT!$AD$47=0,"",GrMT!$AD$47) ->  | U103: =IF(GrMT!$AE$47=0,"",GrMT!$AE$47) ->  | V103: =IF(GrMT!$AH$47=0,"",GrMT!$AH$47) -> 
A104: =IF(#REF!=0,"",#REF!) ->  | B104: =IF(#REF!=0,"",#REF!) ->  | C104: =IF(#REF!=0,"",#REF!) ->  | D104: =IF(GrMT!$B$48=0,"",GrMT!$B$48) ->  | E104: =IF(GrMT!$C$48=0,"",GrMT!$C$48) ->  | F104: =IF(GrMT!$D$48=0,"",GrMT!$D$48) ->  | G104: =IF(GrMT!$AI$48=0,"",GrMT!$AI$48) ->  | H104: =IF(GrMT!$AJ$48=0,"",GrMT!$AJ$48) ->  | I104: =IF(GrMT!$AL$48=0,"",GrMT!$AL$48) ->  | J104: =IF(GrMT!$AM$48=0,"",GrMT!$AM$48) ->  | K104: =IF(GrMT!$AN$48=0,"",GrMT!$AN$48) ->  | L104: =IF(GrMT!$AO$48=0,"",GrMT!$AO$48) ->  | M104: =IF(GrMT!$AF$48=0,"",GrMT!$AF$48) ->  | N104: =IF(GrMT!$AK$48=0,"",GrMT!$AK$48) ->  | O104: =IF(GrMT!$AD$2=0,"",GrMT!$AD$2) -> SusAnn | P104: =IF(GrMT!$AD$3=0,"",GrMT!$AD$3) -> Grammar | Q104: =IF(GrMT!$AD$6=0,"",GrMT!$AD$6) -> 09:00:00 | R104: =IF(GrMT!$AD$7=0,"",GrMT!$AD$7) -> M-Th | S104: =IF(GrMT!$AD$8=0,"",GrMT!$AD$8) -> 7 | T104: =IF(GrMT!$AD$48=0,"",GrMT!$AD$48) ->  | U104: =IF(GrMT!$AE$48=0,"",GrMT!$AE$48) ->  | V104: =IF(GrMT!$AH$48=0,"",GrMT!$AH$48) -> 
A105: =IF(#REF!=0,"",#REF!) ->  | B105: =IF(#REF!=0,"",#REF!) ->  | C105: =IF(#REF!=0,"",#REF!) ->  | D105: =IF(GrMT!$B$49=0,"",GrMT!$B$49) ->  | E105: =IF(GrMT!$C$49=0,"",GrMT!$C$49) ->  | F105: =IF(GrMT!$D$49=0,"",GrMT!$D$49) ->  | G105: =IF(GrMT!$AI$49=0,"",GrMT!$AI$49) ->  | H105: =IF(GrMT!$AJ$49=0,"",GrMT!$AJ$49) ->  | I105: =IF(GrMT!$AL$49=0,"",GrMT!$AL$49) ->  | J105: =IF(GrMT!$AM$49=0,"",GrMT!$AM$49) ->  | K105: =IF(GrMT!$AN$49=0,"",GrMT!$AN$49) ->  | L105: =IF(GrMT!$AO$49=0,"",GrMT!$AO$49) ->  | M105: =IF(GrMT!$AF$49=0,"",GrMT!$AF$49) ->  | N105: =IF(GrMT!$AK$49=0,"",GrMT!$AK$49) ->  | O105: =IF(GrMT!$AD$2=0,"",GrMT!$AD$2) -> SusAnn | P105: =IF(GrMT!$AD$3=0,"",GrMT!$AD$3) -> Grammar | Q105: =IF(GrMT!$AD$6=0,"",GrMT!$AD$6) -> 09:00:00 | R105: =IF(GrMT!$AD$7=0,"",GrMT!$AD$7) -> M-Th | S105: =IF(GrMT!$AD$8=0,"",GrMT!$AD$8) -> 7 | T105: =IF(GrMT!$AD$49=0,"",GrMT!$AD$49) ->  | U105: =IF(GrMT!$AE$49=0,"",GrMT!$AE$49) ->  | V105: =IF(GrMT!$AH$49=0,"",GrMT!$AH$49) -> 
A106: =IF(#REF!=0,"",#REF!) ->  | B106: =IF(#REF!=0,"",#REF!) ->  | C106: =IF(#REF!=0,"",#REF!) ->  | D106: =IF(GrMT!$B$50=0,"",GrMT!$B$50) ->  | E106: =IF(GrMT!$C$50=0,"",GrMT!$C$50) ->  | F106: =IF(GrMT!$D$50=0,"",GrMT!$D$50) ->  | G106: =IF(GrMT!$AI$50=0,"",GrMT!$AI$50) ->  | H106: =IF(GrMT!$AJ$50=0,"",GrMT!$AJ$50) ->  | I106: =IF(GrMT!$AL$50=0,"",GrMT!$AL$50) ->  | J106: =IF(GrMT!$AM$50=0,"",GrMT!$AM$50) ->  | K106: =IF(GrMT!$AN$50=0,"",GrMT!$AN$50) ->  | L106: =IF(GrMT!$AO$50=0,"",GrMT!$AO$50) ->  | M106: =IF(GrMT!$AF$50=0,"",GrMT!$AF$50) ->  | N106: =IF(GrMT!$AK$50=0,"",GrMT!$AK$50) ->  | O106: =IF(GrMT!$AD$2=0,"",GrMT!$AD$2) -> SusAnn | P106: =IF(GrMT!$AD$3=0,"",GrMT!$AD$3) -> Grammar | Q106: =IF(GrMT!$AD$6=0,"",GrMT!$AD$6) -> 09:00:00 | R106: =IF(GrMT!$AD$7=0,"",GrMT!$AD$7) -> M-Th | S106: =IF(GrMT!$AD$8=0,"",GrMT!$AD$8) -> 7 | T106: =IF(GrMT!$AD$50=0,"",GrMT!$AD$50) ->  | U106: =IF(GrMT!$AE$50=0,"",GrMT!$AE$50) ->  | V106: =IF(GrMT!$AH$50=0,"",GrMT!$AH$50) -> 
A107: =IF(#REF!=0,"",#REF!) ->  | B107: =IF(#REF!=0,"",#REF!) ->  | C107: =IF(#REF!=0,"",#REF!) ->  | D107: =IF(GrMT!$B$51=0,"",GrMT!$B$51) ->  | E107: =IF(GrMT!$C$51=0,"",GrMT!$C$51) ->  | F107: =IF(GrMT!$D$51=0,"",GrMT!$D$51) ->  | G107: =IF(GrMT!$AI$51=0,"",GrMT!$AI$51) ->  | H107: =IF(GrMT!$AJ$51=0,"",GrMT!$AJ$51) ->  | I107: =IF(GrMT!$AL$51=0,"",GrMT!$AL$51) ->  | J107: =IF(GrMT!$AM$51=0,"",GrMT!$AM$51) ->  | K107: =IF(GrMT!$AN$51=0,"",GrMT!$AN$51) ->  | L107: =IF(GrMT!$AO$51=0,"",GrMT!$AO$51) ->  | M107: =IF(GrMT!$AF$51=0,"",GrMT!$AF$51) ->  | N107: =IF(GrMT!$AK$51=0,"",GrMT!$AK$51) ->  | O107: =IF(GrMT!$AD$2=0,"",GrMT!$AD$2) -> SusAnn | P107: =IF(GrMT!$AD$3=0,"",GrMT!$AD$3) -> Grammar | Q107: =IF(GrMT!$AD$6=0,"",GrMT!$AD$6) -> 09:00:00 | R107: =IF(GrMT!$AD$7=0,"",GrMT!$AD$7) -> M-Th | S107: =IF(GrMT!$AD$8=0,"",GrMT!$AD$8) -> 7 | T107: =IF(GrMT!$AD$51=0,"",GrMT!$AD$51) ->  | U107: =IF(GrMT!$AE$51=0,"",GrMT!$AE$51) ->  | V107: =IF(GrMT!$AH$51=0,"",GrMT!$AH$51) -> 
A108: =IF(#REF!=0,"",#REF!) ->  | B108: =IF(#REF!=0,"",#REF!) ->  | C108: =IF(#REF!=0,"",#REF!) ->  | D108: =IF(GrMT!$B$52=0,"",GrMT!$B$52) ->  | E108: =IF(GrMT!$C$52=0,"",GrMT!$C$52) ->  | F108: =IF(GrMT!$D$52=0,"",GrMT!$D$52) ->  | G108: =IF(GrMT!$AI$52=0,"",GrMT!$AI$52) ->  | H108: =IF(GrMT!$AJ$52=0,"",GrMT!$AJ$52) ->  | I108: =IF(GrMT!$AL$52=0,"",GrMT!$AL$52) ->  | J108: =IF(GrMT!$AM$52=0,"",GrMT!$AM$52) ->  | K108: =IF(GrMT!$AN$52=0,"",GrMT!$AN$52) ->  | L108: =IF(GrMT!$AO$52=0,"",GrMT!$AO$52) ->  | M108: =IF(GrMT!$AF$52=0,"",GrMT!$AF$52) ->  | N108: =IF(GrMT!$AK$52=0,"",GrMT!$AK$52) ->  | O108: =IF(GrMT!$AD$2=0,"",GrMT!$AD$2) -> SusAnn | P108: =IF(GrMT!$AD$3=0,"",GrMT!$AD$3) -> Grammar | Q108: =IF(GrMT!$AD$6=0,"",GrMT!$AD$6) -> 09:00:00 | R108: =IF(GrMT!$AD$7=0,"",GrMT!$AD$7) -> M-Th | S108: =IF(GrMT!$AD$8=0,"",GrMT!$AD$8) -> 7 | T108: =IF(GrMT!$AD$52=0,"",GrMT!$AD$52) ->  | U108: =IF(GrMT!$AE$52=0,"",GrMT!$AE$52) ->  | V108: =IF(GrMT!$AH$52=0,"",GrMT!$AH$52) -> 
A109: =IF(#REF!=0,"",#REF!) ->  | B109: =IF(#REF!=0,"",#REF!) ->  | C109: =IF(#REF!=0,"",#REF!) ->  | D109: =IF(GrCP!$B31=0,"",GrCP!$B31) ->  | E109: =IF(GrCP!$C31=0,"",GrCP!$C31) ->  | F109: =IF(GrCP!$D$31=0,"",GrCP!$D$31) ->  | G109: =IF(GrCP!$AI$31=0,"",GrCP!$AI$31) ->  | H109: =IF(GrCP!$AJ$31=0,"",GrCP!$AJ$31) ->  | I109: =IF(GrCP!$AK$31=0,"",GrCP!$AK$31) ->  | J109: =IF(GrCP!$AM$31=0,"",GrCP!$AM$31) ->  | K109: =IF(GrCP!$AN$31=0,"",GrCP!$AN$31) ->  | L109: =IF(GrCP!$AO$31=0,"",GrCP!$AO$31) ->  | M109: Japan | N109: 801-376-9164 | O109: =IF(GrCP!$AD$2=0,"",GrCP!$AD$2) -> Jason R. | P109: =IF(GrCP!$AD$3=0,"",GrCP!$AD$3) -> Grammar | Q109: =IF(GrCP!$AD$6=0,"",GrCP!$AD$6) -> 09:00:00 | R109: =IF(GrCP!$AD$7=0,"",GrCP!$AD$7) -> M-Th | S109: =IF(GrCP!$AD$8=0,"",GrCP!$AD$8) -> 3 | T109: =IF(GrCP!$AD$31=0,"",GrCP!$AD$31) ->  | U109: =IF(GrCP!$AE$31=0,"",GrCP!$AE$31) ->  | V109: =IF(GrCP!$AH$31=0,"",GrCP!$AH$31) -> 
A110: =IF(#REF!=0,"",#REF!) ->  | B110: =IF(#REF!=0,"",#REF!) ->  | C110: =IF(#REF!=0,"",#REF!) ->  | D110: =IF(GrCP!$B$32=0,"",GrCP!$B$32) ->  | E110: =IF(GrCP!$C$32=0,"",GrCP!$C$32) ->  | F110: =IF(GrCP!$D$32=0,"",GrCP!$D$32) ->  | G110: =IF(GrCP!$AI$32=0,"",GrCP!$AI$32) ->  | H110: =IF(GrCP!$AJ$32=0,"",GrCP!$AJ$32) ->  | I110: =IF(GrCP!$AK$32=0,"",GrCP!$AK$32) ->  | J110: =IF(GrCP!$AM$32=0,"",GrCP!$AM$32) ->  | K110: =IF(GrCP!$AN$32=0,"",GrCP!$AN$32) ->  | L110: =IF(GrCP!$AO$32=0,"",GrCP!$AO$32) ->  | M110: Japan | N110: 801-615-1092 | O110: =IF(GrCP!$AD$2=0,"",GrCP!$AD$2) -> Jason R. | P110: =IF(GrCP!$AD$3=0,"",GrCP!$AD$3) -> Grammar | Q110: =IF(GrCP!$AD$6=0,"",GrCP!$AD$6) -> 09:00:00 | R110: =IF(GrCP!$AD$7=0,"",GrCP!$AD$7) -> M-Th | S110: =IF(GrCP!$AD$8=0,"",GrCP!$AD$8) -> 3 | T110: =IF(GrCP!$AD$32=0,"",GrCP!$AD$32) ->  | U110: =IF(GrCP!$AE$32=0,"",GrCP!$AE$32) ->  | V110: =IF(GrCP!$AH$32=0,"",GrCP!$AH$32) -> 
A111: =IF(#REF!=0,"",#REF!) ->  | B111: =IF(#REF!=0,"",#REF!) ->  | C111: =IF(#REF!=0,"",#REF!) ->  | D111: =IF(GrCP!$B$33=0,"",GrCP!$B$33) ->  | E111: =IF(GrCP!$C$33=0,"",GrCP!$C$33) ->  | F111: =IF(GrCP!$D$33=0,"",GrCP!$D$33) ->  | G111: =IF(GrCP!$AI$33=0,"",GrCP!$AI$33) ->  | H111: =IF(GrCP!$AJ$33=0,"",GrCP!$AJ$33) ->  | I111: =IF(GrCP!$AK$33=0,"",GrCP!$AK$33) ->  | J111: =IF(GrCP!$AM$33=0,"",GrCP!$AM$33) ->  | K111: =IF(GrCP!$AN$33=0,"",GrCP!$AN$33) ->  | L111: =IF(GrCP!$AO$33=0,"",GrCP!$AO$33) ->  | M111: Peru | N111: 775-378-4979 | O111: =IF(GrCP!$AD$2=0,"",GrCP!$AD$2) -> Jason R. | P111: =IF(GrCP!$AD$3=0,"",GrCP!$AD$3) -> Grammar | Q111: =IF(GrCP!$AD$6=0,"",GrCP!$AD$6) -> 09:00:00 | R111: =IF(GrCP!$AD$7=0,"",GrCP!$AD$7) -> M-Th | S111: =IF(GrCP!$AD$8=0,"",GrCP!$AD$8) -> 3 | T111: =IF(GrCP!$AD$33=0,"",GrCP!$AD$33) ->  | U111: =IF(GrCP!$AE$33=0,"",GrCP!$AE$33) ->  | V111: =IF(GrCP!$AH$33=0,"",GrCP!$AH$33) -> 
A112: =IF(#REF!=0,"",#REF!) ->  | B112: =IF(#REF!=0,"",#REF!) ->  | C112: =IF(#REF!=0,"",#REF!) ->  | D112: =IF(GrCP!$B$34=0,"",GrCP!$B$34) ->  | E112: =IF(GrCP!$C$34=0,"",GrCP!$C$34) ->  | F112: =IF(GrCP!$D$34=0,"",GrCP!$D$34) ->  | G112: =IF(GrCP!$AI$34=0,"",GrCP!$AI$34) ->  | H112: =IF(GrCP!$AJ$34=0,"",GrCP!$AJ$34) ->  | I112: =IF(GrCP!$AL$34=0,"",GrCP!$AL$34) ->  | J112: =IF(GrCP!$AM$34=0,"",GrCP!$AM$34) ->  | K112: =IF(GrCP!$AN$34=0,"",GrCP!$AN$34) ->  | L112: =IF(GrCP!$AO$34=0,"",GrCP!$AO$34) ->  | M112: =IF(GrCP!$AF$34=0,"",GrCP!$AF$34) ->  | N112: =IF(GrCP!$AK$34=0,"",GrCP!$AK$34) ->  | O112: =IF(GrCP!$AD$2=0,"",GrCP!$AD$2) -> Jason R. | P112: =IF(GrCP!$AD$3=0,"",GrCP!$AD$3) -> Grammar | Q112: =IF(GrCP!$AD$6=0,"",GrCP!$AD$6) -> 09:00:00 | R112: =IF(GrCP!$AD$7=0,"",GrCP!$AD$7) -> M-Th | S112: =IF(GrCP!$AD$8=0,"",GrCP!$AD$8) -> 3 | T112: =IF(GrCP!$AD$34=0,"",GrCP!$AD$34) ->  | U112: =IF(GrCP!$AE$34=0,"",GrCP!$AE$34) ->  | V112: =IF(GrCP!$AH$34=0,"",GrCP!$AH$34) -> 
A113: =IF(#REF!=0,"",#REF!) ->  | B113: =IF(#REF!=0,"",#REF!) ->  | C113: =IF(#REF!=0,"",#REF!) ->  | D113: =IF(GrCP!$B$35=0,"",GrCP!$B$35) ->  | E113: =IF(GrCP!$C$35=0,"",GrCP!$C$35) ->  | F113: =IF(GrCP!$D$35=0,"",GrCP!$D$35) ->  | G113: =IF(GrCP!$AI$35=0,"",GrCP!$AI$35) ->  | H113: =IF(GrCP!$AJ$35=0,"",GrCP!$AJ$35) ->  | I113: =IF(GrCP!$AL$35=0,"",GrCP!$AL$35) ->  | J113: =IF(GrCP!$AM$35=0,"",GrCP!$AM$35) ->  | K113: =IF(GrCP!$AN$35=0,"",GrCP!$AN$35) ->  | L113: =IF(GrCP!$AO$35=0,"",GrCP!$AO$35) ->  | M113: =IF(GrCP!$AF$35=0,"",GrCP!$AF$35) ->  | N113: =IF(GrCP!$AK$35=0,"",GrCP!$AK$35) ->  | O113: =IF(GrCP!$AD$2=0,"",GrCP!$AD$2) -> Jason R. | P113: =IF(GrCP!$AD$3=0,"",GrCP!$AD$3) -> Grammar | Q113: =IF(GrCP!$AD$6=0,"",GrCP!$AD$6) -> 09:00:00 | R113: =IF(GrCP!$AD$7=0,"",GrCP!$AD$7) -> M-Th | S113: =IF(GrCP!$AD$8=0,"",GrCP!$AD$8) -> 3 | T113: =IF(GrCP!$AD$35=0,"",GrCP!$AD$35) ->  | U113: =IF(GrCP!$AE$35=0,"",GrCP!$AE$35) ->  | V113: =IF(GrCP!$AH$35=0,"",GrCP!$AH$35) -> 
A114: =IF(GrM5A!$AD$5=0,"",GrM5A!$AD$5) -> 5A | B114: =IF(GrM5A!$AA$23=0,"",GrM5A!$AA$23) ->  | C114: =IF(GrM5A!$AB$23=0,"",GrM5A!$AB$23) ->  | D114: =IF(GrCP!$B$36=0,"",GrCP!$B$36) ->  | E114: =IF(GrCP!$C$36=0,"",GrCP!$C$36) ->  | F114: =IF(GrCP!$D$36=0,"",GrCP!$D$36) ->  | G114: =IF(GrCP!$AI$36=0,"",GrCP!$AI$36) ->  | H114: =IF(GrCP!$AJ$36=0,"",GrCP!$AJ$36) ->  | I114: =IF(GrCP!$AL$36=0,"",GrCP!$AL$36) ->  | J114: =IF(GrCP!$AM$36=0,"",GrCP!$AM$36) ->  | K114: =IF(GrCP!$AN$36=0,"",GrCP!$AN$36) ->  | L114: =IF(GrCP!$AO$36=0,"",GrCP!$AO$36) ->  | M114: =IF(GrCP!$AF$36=0,"",GrCP!$AF$36) ->  | N114: =IF(GrCP!$AK$36=0,"",GrCP!$AK$36) ->  | O114: =IF(GrCP!$AD$2=0,"",GrCP!$AD$2) -> Jason R. | P114: =IF(GrCP!$AD$3=0,"",GrCP!$AD$3) -> Grammar | Q114: =IF(GrCP!$AD$6=0,"",GrCP!$AD$6) -> 09:00:00 | R114: =IF(GrCP!$AD$7=0,"",GrCP!$AD$7) -> M-Th | S114: =IF(GrCP!$AD$8=0,"",GrCP!$AD$8) -> 3 | T114: =IF(GrCP!$AD$36=0,"",GrCP!$AD$36) ->  | U114: =IF(GrCP!$AE$36=0,"",GrCP!$AE$36) ->  | V114: =IF(GrCP!$AH$36=0,"",GrCP!$AH$36) -> 
A115: =IF(GrM5A!$AD$5=0,"",GrM5A!$AD$5) -> 5A | B115: =IF(GrM5A!$AA$24=0,"",GrM5A!$AA$24) ->  | C115: =IF(GrM5A!$AB$24=0,"",GrM5A!$AB$24) ->  | D115: =IF(GrCP!$B$37=0,"",GrCP!$B$37) ->  | E115: =IF(GrCP!$C$37=0,"",GrCP!$C$37) ->  | F115: =IF(GrCP!$D$37=0,"",GrCP!$D$37) ->  | G115: =IF(GrCP!$AI$37=0,"",GrCP!$AI$37) ->  | H115: =IF(GrCP!$AJ$37=0,"",GrCP!$AJ$37) ->  | I115: =IF(GrCP!$AL$37=0,"",GrCP!$AL$37) ->  | J115: =IF(GrCP!$AM$37=0,"",GrCP!$AM$37) ->  | K115: =IF(GrCP!$AN$37=0,"",GrCP!$AN$37) ->  | L115: =IF(GrCP!$AO$37=0,"",GrCP!$AO$37) ->  | M115: =IF(GrCP!$AF$37=0,"",GrCP!$AF$37) ->  | N115: =IF(GrCP!$AK$37=0,"",GrCP!$AK$37) ->  | O115: =IF(GrCP!$AD$2=0,"",GrCP!$AD$2) -> Jason R. | P115: =IF(GrCP!$AD$3=0,"",GrCP!$AD$3) -> Grammar | Q115: =IF(GrCP!$AD$6=0,"",GrCP!$AD$6) -> 09:00:00 | R115: =IF(GrCP!$AD$7=0,"",GrCP!$AD$7) -> M-Th | S115: =IF(GrCP!$AD$8=0,"",GrCP!$AD$8) -> 3 | T115: =IF(GrCP!$AD$37=0,"",GrCP!$AD$37) ->  | U115: =IF(GrCP!$AE$37=0,"",GrCP!$AE$37) ->  | V115: =IF(GrCP!$AH$37=0,"",GrCP!$AH$37) -> 
A116: =IF(GrM5A!$AD$5=0,"",GrM5A!$AD$5) -> 5A | B116: =IF(GrM5A!$AA$25=0,"",GrM5A!$AA$25) ->  | C116: =IF(GrM5A!$AB$25=0,"",GrM5A!$AB$25) ->  | D116: =IF(GrCP!$B$42=0,"",GrCP!$B$42) ->  | E116: =IF(GrCP!$C$42=0,"",GrCP!$C$42) ->  | F116: =IF(GrCP!$D$42=0,"",GrCP!$D$42) ->  | G116: =IF(GrCP!$AI$42=0,"",GrCP!$AI$42) ->  | H116: =IF(GrCP!$AJ$42=0,"",GrCP!$AJ$42) ->  | I116: =IF(GrCP!$AL$42=0,"",GrCP!$AL$42) ->  | J116: =IF(GrCP!$AM$42=0,"",GrCP!$AM$42) ->  | K116: =IF(GrCP!$AN$42=0,"",GrCP!$AN$42) ->  | L116: =IF(GrCP!$AO$42=0,"",GrCP!$AO$42) ->  | M116: =IF(GrCP!$AF$42=0,"",GrCP!$AF$42) ->  | N116: =IF(GrCP!$AK$42=0,"",GrCP!$AK$42) ->  | O116: =IF(GrCP!$AD$2=0,"",GrCP!$AD$2) -> Jason R. | P116: =IF(GrCP!$AD$3=0,"",GrCP!$AD$3) -> Grammar | Q116: =IF(GrCP!$AD$6=0,"",GrCP!$AD$6) -> 09:00:00 | R116: =IF(GrCP!$AD$7=0,"",GrCP!$AD$7) -> M-Th | S116: =IF(GrCP!$AD$8=0,"",GrCP!$AD$8) -> 3 | T116: =IF(GrCP!$AD$42=0,"",GrCP!$AD$42) ->  | U116: =IF(GrCP!$AE$42=0,"",GrCP!$AE$42) ->  | V116: =IF(GrCP!$AH$42=0,"",GrCP!$AH$42) -> 
A117: =IF(GrM5A!$AD$5=0,"",GrM5A!$AD$5) -> 5A | B117: =IF(GrM5A!$AA$26=0,"",GrM5A!$AA$26) ->  | C117: =IF(GrM5A!$AB$26=0,"",GrM5A!$AB$26) ->  | D117: =IF(GrCP!$B$43=0,"",GrCP!$B$43) ->  | E117: =IF(GrCP!$C$43=0,"",GrCP!$C$43) ->  | F117: =IF(GrCP!$D$43=0,"",GrCP!$D$43) ->  | G117: =IF(GrCP!$AI$43=0,"",GrCP!$AI$43) ->  | H117: =IF(GrCP!$AJ$43=0,"",GrCP!$AJ$43) ->  | I117: =IF(GrCP!$AL$43=0,"",GrCP!$AL$43) ->  | J117: =IF(GrCP!$AM$43=0,"",GrCP!$AM$43) ->  | K117: =IF(GrCP!$AN$43=0,"",GrCP!$AN$43) ->  | L117: =IF(GrCP!$AO$43=0,"",GrCP!$AO$43) ->  | M117: =IF(GrCP!$AF$43=0,"",GrCP!$AF$43) ->  | N117: =IF(GrCP!$AK$43=0,"",GrCP!$AK$43) ->  | O117: =IF(GrCP!$AD$2=0,"",GrCP!$AD$2) -> Jason R. | P117: =IF(GrCP!$AD$3=0,"",GrCP!$AD$3) -> Grammar | Q117: =IF(GrCP!$AD$6=0,"",GrCP!$AD$6) -> 09:00:00 | R117: =IF(GrCP!$AD$7=0,"",GrCP!$AD$7) -> M-Th | S117: =IF(GrCP!$AD$8=0,"",GrCP!$AD$8) -> 3 | T117: =IF(GrCP!$AD$43=0,"",GrCP!$AD$43) ->  | U117: =IF(GrCP!$AE$43=0,"",GrCP!$AE$43) ->  | V117: =IF(GrCP!$AH$43=0,"",GrCP!$AH$43) -> 
A118: =IF(GrM5A!$AD$5=0,"",GrM5A!$AD$5) -> 5A | B118: =IF(GrM5A!$AA$27=0,"",GrM5A!$AA$27) ->  | C118: =IF(GrM5A!$AB$27=0,"",GrM5A!$AB$27) ->  | D118: =IF(GrCP!$B$44=0,"",GrCP!$B$44) ->  | E118: =IF(GrCP!$C$44=0,"",GrCP!$C$44) ->  | F118: =IF(GrCP!$D$44=0,"",GrCP!$D$44) ->  | G118: =IF(GrCP!$AI$44=0,"",GrCP!$AI$44) ->  | H118: =IF(GrCP!$AJ$44=0,"",GrCP!$AJ$44) ->  | I118: =IF(GrCP!$AL$44=0,"",GrCP!$AL$44) ->  | J118: =IF(GrCP!$AM$44=0,"",GrCP!$AM$44) ->  | K118: =IF(GrCP!$AN$44=0,"",GrCP!$AN$44) ->  | L118: =IF(GrCP!$AO$44=0,"",GrCP!$AO$44) ->  | M118: =IF(GrCP!$AF$44=0,"",GrCP!$AF$44) ->  | N118: =IF(GrCP!$AK$44=0,"",GrCP!$AK$44) ->  | O118: =IF(GrCP!$AD$2=0,"",GrCP!$AD$2) -> Jason R. | P118: =IF(GrCP!$AD$3=0,"",GrCP!$AD$3) -> Grammar | Q118: =IF(GrCP!$AD$6=0,"",GrCP!$AD$6) -> 09:00:00 | R118: =IF(GrCP!$AD$7=0,"",GrCP!$AD$7) -> M-Th | S118: =IF(GrCP!$AD$8=0,"",GrCP!$AD$8) -> 3 | T118: =IF(GrCP!$AD$44=0,"",GrCP!$AD$44) ->  | U118: =IF(GrCP!$AE$44=0,"",GrCP!$AE$44) ->  | V118: =IF(GrCP!$AH$44=0,"",GrCP!$AH$44) -> 
A119: =IF(GrM5A!$AD$5=0,"",GrM5A!$AD$5) -> 5A | B119: =IF(GrM5A!#REF!=0,"",GrM5A!#REF!) ->  | C119: =IF(GrM5A!#REF!=0,"",GrM5A!#REF!) ->  | D119: =IF(GrCP!$B$45=0,"",GrCP!$B$45) ->  | E119: =IF(GrCP!$C$45=0,"",GrCP!$C$45) ->  | F119: =IF(GrCP!$D$45=0,"",GrCP!$D$45) ->  | G119: =IF(GrCP!$AI$45=0,"",GrCP!$AI$45) ->  | H119: =IF(GrCP!$AJ$45=0,"",GrCP!$AJ$45) ->  | I119: =IF(GrCP!$AL$45=0,"",GrCP!$AL$45) ->  | J119: =IF(GrCP!$AM$45=0,"",GrCP!$AM$45) ->  | K119: =IF(GrCP!$AN$45=0,"",GrCP!$AN$45) ->  | L119: =IF(GrCP!$AO$45=0,"",GrCP!$AO$45) ->  | M119: =IF(GrCP!$AF$45=0,"",GrCP!$AF$45) ->  | N119: =IF(GrCP!$AK$45=0,"",GrCP!$AK$45) ->  | O119: =IF(GrCP!$AD$2=0,"",GrCP!$AD$2) -> Jason R. | P119: =IF(GrCP!$AD$3=0,"",GrCP!$AD$3) -> Grammar | Q119: =IF(GrCP!$AD$6=0,"",GrCP!$AD$6) -> 09:00:00 | R119: =IF(GrCP!$AD$7=0,"",GrCP!$AD$7) -> M-Th | S119: =IF(GrCP!$AD$8=0,"",GrCP!$AD$8) -> 3 | T119: =IF(GrCP!$AD$45=0,"",GrCP!$AD$45) ->  | U119: =IF(GrCP!$AE$45=0,"",GrCP!$AE$45) ->  | V119: =IF(GrCP!$AH$45=0,"",GrCP!$AH$45) -> 
A120: =IF(GrM5A!$AD$5=0,"",GrM5A!$AD$5) -> 5A | B120: =IF(GrM5A!$AA$28=0,"",GrM5A!$AA$28) ->  | C120: =IF(GrM5A!$AB$28=0,"",GrM5A!$AB$28) ->  | D120: =IF(GrCP!$B$46=0,"",GrCP!$B$46) ->  | E120: =IF(GrCP!$C$46=0,"",GrCP!$C$46) ->  | F120: =IF(GrCP!$D$46=0,"",GrCP!$D$46) ->  | G120: =IF(GrCP!$AI$46=0,"",GrCP!$AI$46) ->  | H120: =IF(GrCP!$AJ$46=0,"",GrCP!$AJ$46) ->  | I120: =IF(GrCP!$AL$46=0,"",GrCP!$AL$46) ->  | J120: =IF(GrCP!$AM$46=0,"",GrCP!$AM$46) ->  | K120: =IF(GrCP!$AN$46=0,"",GrCP!$AN$46) ->  | L120: =IF(GrCP!$AO$46=0,"",GrCP!$AO$46) ->  | M120: =IF(GrCP!$AF$46=0,"",GrCP!$AF$46) ->  | N120: =IF(GrCP!$AK$46=0,"",GrCP!$AK$46) ->  | O120: =IF(GrCP!$AD$2=0,"",GrCP!$AD$2) -> Jason R. | P120: =IF(GrCP!$AD$3=0,"",GrCP!$AD$3) -> Grammar | Q120: =IF(GrCP!$AD$6=0,"",GrCP!$AD$6) -> 09:00:00 | R120: =IF(GrCP!$AD$7=0,"",GrCP!$AD$7) -> M-Th | S120: =IF(GrCP!$AD$8=0,"",GrCP!$AD$8) -> 3 | T120: =IF(GrCP!$AD$46=0,"",GrCP!$AD$46) ->  | U120: =IF(GrCP!$AE$46=0,"",GrCP!$AE$46) ->  | V120: =IF(GrCP!$AH$46=0,"",GrCP!$AH$46) -> 
A121: =IF(GrM5A!$AD$5=0,"",GrM5A!$AD$5) -> 5A | B121: =IF(GrM5A!$AA$29=0,"",GrM5A!$AA$29) ->  | C121: =IF(GrM5A!$AB$29=0,"",GrM5A!$AB$29) ->  | D121: =IF(GrCP!$B$47=0,"",GrCP!$B$47) ->  | E121: =IF(GrCP!$C$47=0,"",GrCP!$C$47) ->  | F121: =IF(GrCP!$D$47=0,"",GrCP!$D$47) ->  | G121: =IF(GrCP!$AI$47=0,"",GrCP!$AI$47) ->  | H121: =IF(GrCP!$AJ$47=0,"",GrCP!$AJ$47) ->  | I121: =IF(GrCP!$AL$47=0,"",GrCP!$AL$47) ->  | J121: =IF(GrCP!$AM$47=0,"",GrCP!$AM$47) ->  | K121: =IF(GrCP!$AN$47=0,"",GrCP!$AN$47) ->  | L121: =IF(GrCP!$AO$47=0,"",GrCP!$AO$47) ->  | M121: =IF(GrCP!$AF$47=0,"",GrCP!$AF$47) ->  | N121: =IF(GrCP!$AK$47=0,"",GrCP!$AK$47) ->  | O121: =IF(GrCP!$AD$2=0,"",GrCP!$AD$2) -> Jason R. | P121: =IF(GrCP!$AD$3=0,"",GrCP!$AD$3) -> Grammar | Q121: =IF(GrCP!$AD$6=0,"",GrCP!$AD$6) -> 09:00:00 | R121: =IF(GrCP!$AD$7=0,"",GrCP!$AD$7) -> M-Th | S121: =IF(GrCP!$AD$8=0,"",GrCP!$AD$8) -> 3 | T121: =IF(GrCP!$AD$47=0,"",GrCP!$AD$47) ->  | U121: =IF(GrCP!$AE$47=0,"",GrCP!$AE$47) ->  | V121: =IF(GrCP!$AH$47=0,"",GrCP!$AH$47) -> 
A122: =IF(GrM5A!$AD$5=0,"",GrM5A!$AD$5) -> 5A | B122: =IF(GrM5A!$AA$30=0,"",GrM5A!$AA$30) ->  | C122: =IF(GrM5A!$AB$30=0,"",GrM5A!$AB$30) ->  | D122: =IF(GrCP!$B$48=0,"",GrCP!$B$48) ->  | E122: =IF(GrCP!$C$48=0,"",GrCP!$C$48) ->  | F122: =IF(GrCP!$D$48=0,"",GrCP!$D$48) ->  | G122: =IF(GrCP!$AI$48=0,"",GrCP!$AI$48) ->  | H122: =IF(GrCP!$AJ$48=0,"",GrCP!$AJ$48) ->  | I122: =IF(GrCP!$AL$48=0,"",GrCP!$AL$48) ->  | J122: =IF(GrCP!$AM$48=0,"",GrCP!$AM$48) ->  | K122: =IF(GrCP!$AN$48=0,"",GrCP!$AN$48) ->  | L122: =IF(GrCP!$AO$48=0,"",GrCP!$AO$48) ->  | M122: =IF(GrCP!$AF$48=0,"",GrCP!$AF$48) ->  | N122: =IF(GrCP!$AK$48=0,"",GrCP!$AK$48) ->  | O122: =IF(GrCP!$AD$2=0,"",GrCP!$AD$2) -> Jason R. | P122: =IF(GrCP!$AD$3=0,"",GrCP!$AD$3) -> Grammar | Q122: =IF(GrCP!$AD$6=0,"",GrCP!$AD$6) -> 09:00:00 | R122: =IF(GrCP!$AD$7=0,"",GrCP!$AD$7) -> M-Th | S122: =IF(GrCP!$AD$8=0,"",GrCP!$AD$8) -> 3 | T122: =IF(GrCP!$AD$48=0,"",GrCP!$AD$48) ->  | U122: =IF(GrCP!$AE$48=0,"",GrCP!$AE$48) ->  | V122: =IF(GrCP!$AH$48=0,"",GrCP!$AH$48) -> 
A123: =IF(GrM5A!$AD$5=0,"",GrM5A!$AD$5) -> 5A | B123: =IF(GrM5A!$AA$31=0,"",GrM5A!$AA$31) ->  | C123: =IF(GrM5A!$AB$31=0,"",GrM5A!$AB$31) ->  | D123: =IF(GrCP!$B$49=0,"",GrCP!$B$49) ->  | E123: =IF(GrCP!$C$49=0,"",GrCP!$C$49) ->  | F123: =IF(GrCP!$D$49=0,"",GrCP!$D$49) ->  | G123: =IF(GrCP!$AI$49=0,"",GrCP!$AI$49) ->  | H123: =IF(GrCP!$AJ$49=0,"",GrCP!$AJ$49) ->  | I123: =IF(GrCP!$AL$49=0,"",GrCP!$AL$49) ->  | J123: =IF(GrCP!$AM$49=0,"",GrCP!$AM$49) ->  | K123: =IF(GrCP!$AN$49=0,"",GrCP!$AN$49) ->  | L123: =IF(GrCP!$AO$49=0,"",GrCP!$AO$49) ->  | M123: =IF(GrCP!$AF$49=0,"",GrCP!$AF$49) ->  | N123: =IF(GrCP!$AK$49=0,"",GrCP!$AK$49) ->  | O123: =IF(GrCP!$AD$2=0,"",GrCP!$AD$2) -> Jason R. | P123: =IF(GrCP!$AD$3=0,"",GrCP!$AD$3) -> Grammar | Q123: =IF(GrCP!$AD$6=0,"",GrCP!$AD$6) -> 09:00:00 | R123: =IF(GrCP!$AD$7=0,"",GrCP!$AD$7) -> M-Th | S123: =IF(GrCP!$AD$8=0,"",GrCP!$AD$8) -> 3 | T123: =IF(GrCP!$AD$49=0,"",GrCP!$AD$49) ->  | U123: =IF(GrCP!$AE$49=0,"",GrCP!$AE$49) ->  | V123: =IF(GrCP!$AH$49=0,"",GrCP!$AH$49) -> 
A124: =IF(GrM5A!$AD$5=0,"",GrM5A!$AD$5) -> 5A | B124: =IF(GrM5A!$AA$32=0,"",GrM5A!$AA$32) ->  | C124: =IF(GrM5A!$AB$32=0,"",GrM5A!$AB$32) ->  | D124: =IF(GrCP!$B$50=0,"",GrCP!$B$50) ->  | E124: =IF(GrCP!$C$50=0,"",GrCP!$C$50) ->  | F124: =IF(GrCP!$D$50=0,"",GrCP!$D$50) ->  | G124: =IF(GrCP!$AI$50=0,"",GrCP!$AI$50) ->  | H124: =IF(GrCP!$AJ$50=0,"",GrCP!$AJ$50) ->  | I124: =IF(GrCP!$AL$50=0,"",GrCP!$AL$50) ->  | J124: =IF(GrCP!$AM$50=0,"",GrCP!$AM$50) ->  | K124: =IF(GrCP!$AN$50=0,"",GrCP!$AN$50) ->  | L124: =IF(GrCP!$AO$50=0,"",GrCP!$AO$50) ->  | M124: =IF(GrCP!$AF$50=0,"",GrCP!$AF$50) ->  | N124: =IF(GrCP!$AK$50=0,"",GrCP!$AK$50) ->  | O124: =IF(GrCP!$AD$2=0,"",GrCP!$AD$2) -> Jason R. | P124: =IF(GrCP!$AD$3=0,"",GrCP!$AD$3) -> Grammar | Q124: =IF(GrCP!$AD$6=0,"",GrCP!$AD$6) -> 09:00:00 | R124: =IF(GrCP!$AD$7=0,"",GrCP!$AD$7) -> M-Th | S124: =IF(GrCP!$AD$8=0,"",GrCP!$AD$8) -> 3 | T124: =IF(GrCP!$AD$50=0,"",GrCP!$AD$50) ->  | U124: =IF(GrCP!$AE$50=0,"",GrCP!$AE$50) ->  | V124: =IF(GrCP!$AH$50=0,"",GrCP!$AH$50) -> 
A125: =IF(GrM5A!$AD$5=0,"",GrM5A!$AD$5) -> 5A | B125: =IF(GrM5A!$AA$33=0,"",GrM5A!$AA$33) ->  | C125: =IF(GrM5A!$AB$33=0,"",GrM5A!$AB$33) ->  | D125: =IF(GrCP!$B$51=0,"",GrCP!$B$51) ->  | E125: =IF(GrCP!$C$51=0,"",GrCP!$C$51) ->  | F125: =IF(GrCP!$D$51=0,"",GrCP!$D$51) ->  | G125: =IF(GrCP!$AI$51=0,"",GrCP!$AI$51) ->  | H125: =IF(GrCP!$AJ$51=0,"",GrCP!$AJ$51) ->  | I125: =IF(GrCP!$AL$51=0,"",GrCP!$AL$51) ->  | J125: =IF(GrCP!$AM$51=0,"",GrCP!$AM$51) ->  | K125: =IF(GrCP!$AN$51=0,"",GrCP!$AN$51) ->  | L125: =IF(GrCP!$AO$51=0,"",GrCP!$AO$51) ->  | M125: =IF(GrCP!$AF$51=0,"",GrCP!$AF$51) ->  | N125: =IF(GrCP!$AK$51=0,"",GrCP!$AK$51) ->  | O125: =IF(GrCP!$AD$2=0,"",GrCP!$AD$2) -> Jason R. | P125: =IF(GrCP!$AD$3=0,"",GrCP!$AD$3) -> Grammar | Q125: =IF(GrCP!$AD$6=0,"",GrCP!$AD$6) -> 09:00:00 | R125: =IF(GrCP!$AD$7=0,"",GrCP!$AD$7) -> M-Th | S125: =IF(GrCP!$AD$8=0,"",GrCP!$AD$8) -> 3 | T125: =IF(GrCP!$AD$51=0,"",GrCP!$AD$51) ->  | U125: =IF(GrCP!$AE$51=0,"",GrCP!$AE$51) ->  | V125: =IF(GrCP!$AH$51=0,"",GrCP!$AH$51) -> 
A126: =IF(GrM5A!$AD$5=0,"",GrM5A!$AD$5) -> 5A | B126: =IF(GrM5A!$AA$34=0,"",GrM5A!$AA$34) ->  | C126: =IF(GrM5A!$AB$34=0,"",GrM5A!$AB$34) ->  | D126: =IF(GrCP!$B$52=0,"",GrCP!$B$52) ->  | E126: =IF(GrCP!$C$52=0,"",GrCP!$C$52) ->  | F126: =IF(GrCP!$D$52=0,"",GrCP!$D$52) ->  | G126: =IF(GrCP!$AI$52=0,"",GrCP!$AI$52) ->  | H126: =IF(GrCP!$AJ$52=0,"",GrCP!$AJ$52) ->  | I126: =IF(GrCP!$AL$52=0,"",GrCP!$AL$52) ->  | J126: =IF(GrCP!$AM$52=0,"",GrCP!$AM$52) ->  | K126: =IF(GrCP!$AN$52=0,"",GrCP!$AN$52) ->  | L126: =IF(GrCP!$AO$52=0,"",GrCP!$AO$52) ->  | M126: =IF(GrCP!$AF$52=0,"",GrCP!$AF$52) ->  | N126: =IF(GrCP!$AK$52=0,"",GrCP!$AK$52) ->  | O126: =IF(GrCP!$AD$2=0,"",GrCP!$AD$2) -> Jason R. | P126: =IF(GrCP!$AD$3=0,"",GrCP!$AD$3) -> Grammar | Q126: =IF(GrCP!$AD$6=0,"",GrCP!$AD$6) -> 09:00:00 | R126: =IF(GrCP!$AD$7=0,"",GrCP!$AD$7) -> M-Th | S126: =IF(GrCP!$AD$8=0,"",GrCP!$AD$8) -> 3 | T126: =IF(GrCP!$AD$52=0,"",GrCP!$AD$52) ->  | U126: =IF(GrCP!$AE$52=0,"",GrCP!$AE$52) ->  | V126: =IF(GrCP!$AH$52=0,"",GrCP!$AH$52) -> 
A127: =IF(GrM5A!$AD$5=0,"",GrM5A!$AD$5) -> 5A | B127: =IF(GrM5A!$AA$35=0,"",GrM5A!$AA$35) ->  | C127: =IF(GrM5A!$AB$35=0,"",GrM5A!$AB$35) ->  | D127: =IF('IsM1'!$B32=0,"",'IsM1'!$B32) -> 2008-07-14 | E127: =IF('IsM1'!$C32=0,"",'IsM1'!$C32) -> 2008-10-30 | F127: =IF('IsM1'!$D32=0,"",'IsM1'!$D32) -> 2008-10-30 | G127: =IF('IsM1'!$AI32=0,"",'IsM1'!$AI32) -> Melo | H127: =IF('IsM1'!$AJ32=0,"",'IsM1'!$AJ32) -> Mellothi | I127: =IF('IsM1'!$AL32=0,"",'IsM1'!$AL32) -> Gate | J127: =IF('IsM1'!$AM32=0,"",'IsM1'!$AM32) -> S6 | K127: =IF('IsM1'!$AN32=0,"",'IsM1'!$AN32) -> F5 | L127: =IF('IsM1'!$AO32=0,"",'IsM1'!$AO32) -> F5 | M127: =IF('IsM1'!$AF32=0,"",'IsM1'!$AF32) -> Brazil | N127: =IF('IsM1'!$AK32=0,"",'IsM1'!$AK32) -> 590-3750 | O127: =IF('IsM1'!$AD$2=0,"",'IsM1'!$AD$2) -> Tiffany | P127: =IF('IsM1'!$AD$3=0,"",'IsM1'!$AD$3) -> Integrated Skills | Q127: =IF('IsM1'!$AD$6=0,"",'IsM1'!$AD$6) -> 10:30:00 | R127: =IF('IsM1'!$AD$7=0,"",'IsM1'!$AD$7) -> M-Th | S127: =IF('IsM1'!$AD$8=0,"",'IsM1'!$AD$8) -> 3 | T127: =IF('IsM1'!$AD32=0,"",'IsM1'!$AD32) -> 2008-10-24 | U127: =IF('IsM1'!$AE32=0,"",'IsM1'!$AE32) ->  | V127: =IF('IsM1'!$AH32=0,"",'IsM1'!$AH32) -> 2008-07-07
A128: =IF(GrM5A!$AD$5=0,"",GrM5A!$AD$5) -> 5A | B128: =IF(GrM5A!$AA$36=0,"",GrM5A!$AA$36) ->  | C128: =IF(GrM5A!$AB$36=0,"",GrM5A!$AB$36) ->  | D128: =IF('IsM1'!$B33=0,"",'IsM1'!$B33) ->  | E128: =IF('IsM1'!$C33=0,"",'IsM1'!$C33) ->  | F128: =IF('IsM1'!$D33=0,"",'IsM1'!$D33) ->  | G128: =IF('IsM1'!$AI33=0,"",'IsM1'!$AI33) ->  | H128: =IF('IsM1'!$AJ33=0,"",'IsM1'!$AJ33) ->  | I128: =IF('IsM1'!$AL33=0,"",'IsM1'!$AL33) ->  | J128: =IF('IsM1'!$AM33=0,"",'IsM1'!$AM33) ->  | K128: =IF('IsM1'!$AN33=0,"",'IsM1'!$AN33) ->  | L128: =IF('IsM1'!$AO33=0,"",'IsM1'!$AO33) ->  | M128: =IF('IsM1'!$AF33=0,"",'IsM1'!$AF33) ->  | N128: =IF('IsM1'!$AK33=0,"",'IsM1'!$AK33) ->  | O128: =IF('IsM1'!$AD$2=0,"",'IsM1'!$AD$2) -> Tiffany | P128: =IF('IsM1'!$AD$3=0,"",'IsM1'!$AD$3) -> Integrated Skills | Q128: =IF('IsM1'!$AD$6=0,"",'IsM1'!$AD$6) -> 10:30:00 | R128: =IF('IsM1'!$AD$7=0,"",'IsM1'!$AD$7) -> M-Th | S128: =IF('IsM1'!$AD$8=0,"",'IsM1'!$AD$8) -> 3 | T128: =IF('IsM1'!$AD33=0,"",'IsM1'!$AD33) ->  | U128: =IF('IsM1'!$AE33=0,"",'IsM1'!$AE33) ->  | V128: =IF('IsM1'!$AH33=0,"",'IsM1'!$AH33) -> 
A129: =IF(GrM5A!$AD$5=0,"",GrM5A!$AD$5) -> 5A | B129: =IF(GrM5A!$AA$37=0,"",GrM5A!$AA$37) ->  | C129: =IF(GrM5A!$AB$37=0,"",GrM5A!$AB$37) ->  | D129: =IF('IsM1'!$B34=0,"",'IsM1'!$B34) ->  | E129: =IF('IsM1'!$C34=0,"",'IsM1'!$C34) ->  | F129: =IF('IsM1'!$D34=0,"",'IsM1'!$D34) ->  | G129: =IF('IsM1'!$AI34=0,"",'IsM1'!$AI34) ->  | H129: =IF('IsM1'!$AJ34=0,"",'IsM1'!$AJ34) ->  | I129: =IF('IsM1'!$AL34=0,"",'IsM1'!$AL34) ->  | J129: =IF('IsM1'!$AM34=0,"",'IsM1'!$AM34) ->  | K129: =IF('IsM1'!$AN34=0,"",'IsM1'!$AN34) ->  | L129: =IF('IsM1'!$AO34=0,"",'IsM1'!$AO34) ->  | M129: =IF('IsM1'!$AF34=0,"",'IsM1'!$AF34) ->  | N129: =IF('IsM1'!$AK34=0,"",'IsM1'!$AK34) ->  | O129: =IF('IsM1'!$AD$2=0,"",'IsM1'!$AD$2) -> Tiffany | P129: =IF('IsM1'!$AD$3=0,"",'IsM1'!$AD$3) -> Integrated Skills | Q129: =IF('IsM1'!$AD$6=0,"",'IsM1'!$AD$6) -> 10:30:00 | R129: =IF('IsM1'!$AD$7=0,"",'IsM1'!$AD$7) -> M-Th | S129: =IF('IsM1'!$AD$8=0,"",'IsM1'!$AD$8) -> 3 | T129: =IF('IsM1'!$AD34=0,"",'IsM1'!$AD34) ->  | U129: =IF('IsM1'!$AE34=0,"",'IsM1'!$AE34) ->  | V129: =IF('IsM1'!$AH34=0,"",'IsM1'!$AH34) -> 
A130: =IF(GrM5A!$AD$5=0,"",GrM5A!$AD$5) -> 5A | B130: =IF(GrM5A!$AA$38=0,"",GrM5A!$AA$38) ->  | C130: =IF(GrM5A!$AB$38=0,"",GrM5A!$AB$38) ->  | D130: =IF('IsM1'!$B35=0,"",'IsM1'!$B35) ->  | E130: =IF('IsM1'!$C35=0,"",'IsM1'!$C35) ->  | F130: =IF('IsM1'!$D35=0,"",'IsM1'!$D35) ->  | G130: =IF('IsM1'!$AI35=0,"",'IsM1'!$AI35) ->  | H130: =IF('IsM1'!$AJ35=0,"",'IsM1'!$AJ35) ->  | I130: =IF('IsM1'!$AL35=0,"",'IsM1'!$AL35) ->  | J130: =IF('IsM1'!$AM35=0,"",'IsM1'!$AM35) ->  | K130: =IF('IsM1'!$AN35=0,"",'IsM1'!$AN35) ->  | L130: =IF('IsM1'!$AO35=0,"",'IsM1'!$AO35) ->  | M130: =IF('IsM1'!$AF35=0,"",'IsM1'!$AF35) ->  | N130: =IF('IsM1'!$AK35=0,"",'IsM1'!$AK35) ->  | O130: =IF('IsM1'!$AD$2=0,"",'IsM1'!$AD$2) -> Tiffany | P130: =IF('IsM1'!$AD$3=0,"",'IsM1'!$AD$3) -> Integrated Skills | Q130: =IF('IsM1'!$AD$6=0,"",'IsM1'!$AD$6) -> 10:30:00 | R130: =IF('IsM1'!$AD$7=0,"",'IsM1'!$AD$7) -> M-Th | S130: =IF('IsM1'!$AD$8=0,"",'IsM1'!$AD$8) -> 3 | T130: =IF('IsM1'!$AD35=0,"",'IsM1'!$AD35) ->  | U130: =IF('IsM1'!$AE35=0,"",'IsM1'!$AE35) ->  | V130: =IF('IsM1'!$AH35=0,"",'IsM1'!$AH35) -> 
A131: =IF(GrM5A!$AD$5=0,"",GrM5A!$AD$5) -> 5A | B131: =IF(GrM5A!$AA$39=0,"",GrM5A!$AA$39) ->  | C131: =IF(GrM5A!$AB$39=0,"",GrM5A!$AB$39) ->  | D131: =IF('IsM1'!$B36=0,"",'IsM1'!$B36) ->  | E131: =IF('IsM1'!$C36=0,"",'IsM1'!$C36) ->  | F131: =IF('IsM1'!$D36=0,"",'IsM1'!$D36) ->  | G131: =IF('IsM1'!$AI36=0,"",'IsM1'!$AI36) ->  | H131: =IF('IsM1'!$AJ36=0,"",'IsM1'!$AJ36) ->  | I131: =IF('IsM1'!$AL36=0,"",'IsM1'!$AL36) ->  | J131: =IF('IsM1'!$AM36=0,"",'IsM1'!$AM36) ->  | K131: =IF('IsM1'!$AN36=0,"",'IsM1'!$AN36) ->  | L131: =IF('IsM1'!$AO36=0,"",'IsM1'!$AO36) ->  | M131: =IF('IsM1'!$AF36=0,"",'IsM1'!$AF36) ->  | N131: =IF('IsM1'!$AK36=0,"",'IsM1'!$AK36) ->  | O131: =IF('IsM1'!$AD$2=0,"",'IsM1'!$AD$2) -> Tiffany | P131: =IF('IsM1'!$AD$3=0,"",'IsM1'!$AD$3) -> Integrated Skills | Q131: =IF('IsM1'!$AD$6=0,"",'IsM1'!$AD$6) -> 10:30:00 | R131: =IF('IsM1'!$AD$7=0,"",'IsM1'!$AD$7) -> M-Th | S131: =IF('IsM1'!$AD$8=0,"",'IsM1'!$AD$8) -> 3 | T131: =IF('IsM1'!$AD36=0,"",'IsM1'!$AD36) ->  | U131: =IF('IsM1'!$AE36=0,"",'IsM1'!$AE36) ->  | V131: =IF('IsM1'!$AH36=0,"",'IsM1'!$AH36) -> 
A132: =IF(GrM5A!$AD$5=0,"",GrM5A!$AD$5) -> 5A | B132: =IF(GrM5A!$AA$40=0,"",GrM5A!$AA$40) ->  | C132: =IF(GrM5A!$AB$40=0,"",GrM5A!$AB$40) ->  | D132: =IF('IsM1'!$B37=0,"",'IsM1'!$B37) ->  | E132: =IF('IsM1'!$C37=0,"",'IsM1'!$C37) ->  | F132: =IF('IsM1'!$D37=0,"",'IsM1'!$D37) ->  | G132: =IF('IsM1'!$AI37=0,"",'IsM1'!$AI37) ->  | H132: =IF('IsM1'!$AJ37=0,"",'IsM1'!$AJ37) ->  | I132: =IF('IsM1'!$AL37=0,"",'IsM1'!$AL37) ->  | J132: =IF('IsM1'!$AM37=0,"",'IsM1'!$AM37) ->  | K132: =IF('IsM1'!$AN37=0,"",'IsM1'!$AN37) ->  | L132: =IF('IsM1'!$AO37=0,"",'IsM1'!$AO37) ->  | M132: =IF('IsM1'!$AF37=0,"",'IsM1'!$AF37) ->  | N132: =IF('IsM1'!$AK37=0,"",'IsM1'!$AK37) ->  | O132: =IF('IsM1'!$AD$2=0,"",'IsM1'!$AD$2) -> Tiffany | P132: =IF('IsM1'!$AD$3=0,"",'IsM1'!$AD$3) -> Integrated Skills | Q132: =IF('IsM1'!$AD$6=0,"",'IsM1'!$AD$6) -> 10:30:00 | R132: =IF('IsM1'!$AD$7=0,"",'IsM1'!$AD$7) -> M-Th | S132: =IF('IsM1'!$AD$8=0,"",'IsM1'!$AD$8) -> 3 | T132: =IF('IsM1'!$AD37=0,"",'IsM1'!$AD37) ->  | U132: =IF('IsM1'!$AE37=0,"",'IsM1'!$AE37) ->  | V132: =IF('IsM1'!$AH37=0,"",'IsM1'!$AH37) -> 
A133: =IF(GrM5A!$AD$5=0,"",GrM5A!$AD$5) -> 5A | B133: =IF(GrM5A!$AA$45=0,"",GrM5A!$AA$45) ->  | C133: =IF(GrM5A!$AB$45=0,"",GrM5A!$AB$45) ->  | D133: =IF('IsM1'!$B38=0,"",'IsM1'!$B38) ->  | E133: =IF('IsM1'!$C38=0,"",'IsM1'!$C38) ->  | F133: =IF('IsM1'!$D38=0,"",'IsM1'!$D38) ->  | G133: =IF('IsM1'!$AI38=0,"",'IsM1'!$AI38) ->  | H133: =IF('IsM1'!$AJ38=0,"",'IsM1'!$AJ38) ->  | I133: =IF('IsM1'!$AL38=0,"",'IsM1'!$AL38) ->  | J133: =IF('IsM1'!$AM38=0,"",'IsM1'!$AM38) ->  | K133: =IF('IsM1'!$AN38=0,"",'IsM1'!$AN38) ->  | L133: =IF('IsM1'!$AO38=0,"",'IsM1'!$AO38) ->  | M133: =IF('IsM1'!$AF38=0,"",'IsM1'!$AF38) ->  | N133: =IF('IsM1'!$AK38=0,"",'IsM1'!$AK38) ->  | O133: =IF('IsM1'!$AD$2=0,"",'IsM1'!$AD$2) -> Tiffany | P133: =IF('IsM1'!$AD$3=0,"",'IsM1'!$AD$3) -> Integrated Skills | Q133: =IF('IsM1'!$AD$6=0,"",'IsM1'!$AD$6) -> 10:30:00 | R133: =IF('IsM1'!$AD$7=0,"",'IsM1'!$AD$7) -> M-Th | S133: =IF('IsM1'!$AD$8=0,"",'IsM1'!$AD$8) -> 3 | T133: =IF('IsM1'!$AD38=0,"",'IsM1'!$AD38) ->  | U133: =IF('IsM1'!$AE38=0,"",'IsM1'!$AE38) ->  | V133: =IF('IsM1'!$AH38=0,"",'IsM1'!$AH38) -> 
A134: =IF(GrM5A!$AD$5=0,"",GrM5A!$AD$5) -> 5A | B134: =IF(GrM5A!$AA$46=0,"",GrM5A!$AA$46) ->  | C134: =IF(GrM5A!$AB$46=0,"",GrM5A!$AB$46) ->  | D134: =IF('IsM1'!$B39=0,"",'IsM1'!$B39) ->  | E134: =IF('IsM1'!$C39=0,"",'IsM1'!$C39) ->  | F134: =IF('IsM1'!$D39=0,"",'IsM1'!$D39) ->  | G134: =IF('IsM1'!$AI39=0,"",'IsM1'!$AI39) ->  | H134: =IF('IsM1'!$AJ39=0,"",'IsM1'!$AJ39) ->  | I134: =IF('IsM1'!$AL39=0,"",'IsM1'!$AL39) ->  | J134: =IF('IsM1'!$AM39=0,"",'IsM1'!$AM39) ->  | K134: =IF('IsM1'!$AN39=0,"",'IsM1'!$AN39) ->  | L134: =IF('IsM1'!$AO39=0,"",'IsM1'!$AO39) ->  | M134: =IF('IsM1'!$AF39=0,"",'IsM1'!$AF39) ->  | N134: =IF('IsM1'!$AK39=0,"",'IsM1'!$AK39) ->  | O134: =IF('IsM1'!$AD$2=0,"",'IsM1'!$AD$2) -> Tiffany | P134: =IF('IsM1'!$AD$3=0,"",'IsM1'!$AD$3) -> Integrated Skills | Q134: =IF('IsM1'!$AD$6=0,"",'IsM1'!$AD$6) -> 10:30:00 | R134: =IF('IsM1'!$AD$7=0,"",'IsM1'!$AD$7) -> M-Th | S134: =IF('IsM1'!$AD$8=0,"",'IsM1'!$AD$8) -> 3 | T134: =IF('IsM1'!$AD39=0,"",'IsM1'!$AD39) ->  | U134: =IF('IsM1'!$AE39=0,"",'IsM1'!$AE39) ->  | V134: =IF('IsM1'!$AH39=0,"",'IsM1'!$AH39) -> 
A135: =IF(GrM5A!$AD$5=0,"",GrM5A!$AD$5) -> 5A | B135: =IF(GrM5A!$AA$47=0,"",GrM5A!$AA$47) ->  | C135: =IF(GrM5A!$AB$47=0,"",GrM5A!$AB$47) ->  | D135: =IF('IsM1'!$B40=0,"",'IsM1'!$B40) ->  | E135: =IF('IsM1'!$C40=0,"",'IsM1'!$C40) ->  | F135: =IF('IsM1'!$D40=0,"",'IsM1'!$D40) ->  | G135: =IF('IsM1'!$AI40=0,"",'IsM1'!$AI40) ->  | H135: =IF('IsM1'!$AJ40=0,"",'IsM1'!$AJ40) ->  | I135: =IF('IsM1'!$AL40=0,"",'IsM1'!$AL40) ->  | J135: =IF('IsM1'!$AM40=0,"",'IsM1'!$AM40) ->  | K135: =IF('IsM1'!$AN40=0,"",'IsM1'!$AN40) ->  | L135: =IF('IsM1'!$AO40=0,"",'IsM1'!$AO40) ->  | M135: =IF('IsM1'!$AF40=0,"",'IsM1'!$AF40) ->  | N135: =IF('IsM1'!$AK40=0,"",'IsM1'!$AK40) ->  | O135: =IF('IsM1'!$AD$2=0,"",'IsM1'!$AD$2) -> Tiffany | P135: =IF('IsM1'!$AD$3=0,"",'IsM1'!$AD$3) -> Integrated Skills | Q135: =IF('IsM1'!$AD$6=0,"",'IsM1'!$AD$6) -> 10:30:00 | R135: =IF('IsM1'!$AD$7=0,"",'IsM1'!$AD$7) -> M-Th | S135: =IF('IsM1'!$AD$8=0,"",'IsM1'!$AD$8) -> 3 | T135: =IF('IsM1'!$AD40=0,"",'IsM1'!$AD40) ->  | U135: =IF('IsM1'!$AE40=0,"",'IsM1'!$AE40) ->  | V135: =IF('IsM1'!$AH40=0,"",'IsM1'!$AH40) -> 
A136: =IF(GrM5A!$AD$5=0,"",GrM5A!$AD$5) -> 5A | B136: =IF(GrM5A!$AA$48=0,"",GrM5A!$AA$48) ->  | C136: =IF(GrM5A!$AB$48=0,"",GrM5A!$AB$48) ->  | D136: =IF('IsM1'!$B41=0,"",'IsM1'!$B41) ->  | E136: =IF('IsM1'!$C41=0,"",'IsM1'!$C41) ->  | F136: =IF('IsM1'!$D41=0,"",'IsM1'!$D41) ->  | G136: =IF('IsM1'!$AI41=0,"",'IsM1'!$AI41) ->  | H136: =IF('IsM1'!$AJ41=0,"",'IsM1'!$AJ41) ->  | I136: =IF('IsM1'!$AL41=0,"",'IsM1'!$AL41) ->  | J136: =IF('IsM1'!$AM41=0,"",'IsM1'!$AM41) ->  | K136: =IF('IsM1'!$AN41=0,"",'IsM1'!$AN41) ->  | L136: =IF('IsM1'!$AO41=0,"",'IsM1'!$AO41) ->  | M136: =IF('IsM1'!$AF41=0,"",'IsM1'!$AF41) ->  | N136: =IF('IsM1'!$AK41=0,"",'IsM1'!$AK41) ->  | O136: =IF('IsM1'!$AD$2=0,"",'IsM1'!$AD$2) -> Tiffany | P136: =IF('IsM1'!$AD$3=0,"",'IsM1'!$AD$3) -> Integrated Skills | Q136: =IF('IsM1'!$AD$6=0,"",'IsM1'!$AD$6) -> 10:30:00 | R136: =IF('IsM1'!$AD$7=0,"",'IsM1'!$AD$7) -> M-Th | S136: =IF('IsM1'!$AD$8=0,"",'IsM1'!$AD$8) -> 3 | T136: =IF('IsM1'!$AD41=0,"",'IsM1'!$AD41) ->  | U136: =IF('IsM1'!$AE41=0,"",'IsM1'!$AE41) ->  | V136: =IF('IsM1'!$AH41=0,"",'IsM1'!$AH41) -> 
A137: =IF(GrM5A!$AD$5=0,"",GrM5A!$AD$5) -> 5A | B137: =IF(GrM5A!$AA$49=0,"",GrM5A!$AA$49) ->  | C137: =IF(GrM5A!$AB$49=0,"",GrM5A!$AB$49) ->  | D137: =IF('IsM1'!$B42=0,"",'IsM1'!$B42) ->  | E137: =IF('IsM1'!$C42=0,"",'IsM1'!$C42) ->  | F137: =IF('IsM1'!$D42=0,"",'IsM1'!$D42) ->  | G137: =IF('IsM1'!$AI42=0,"",'IsM1'!$AI42) ->  | H137: =IF('IsM1'!$AJ42=0,"",'IsM1'!$AJ42) ->  | I137: =IF('IsM1'!$AL42=0,"",'IsM1'!$AL42) ->  | J137: =IF('IsM1'!$AM42=0,"",'IsM1'!$AM42) ->  | K137: =IF('IsM1'!$AN42=0,"",'IsM1'!$AN42) ->  | L137: =IF('IsM1'!$AO42=0,"",'IsM1'!$AO42) ->  | M137: =IF('IsM1'!$AF42=0,"",'IsM1'!$AF42) ->  | N137: =IF('IsM1'!$AK42=0,"",'IsM1'!$AK42) ->  | O137: =IF('IsM1'!$AD$2=0,"",'IsM1'!$AD$2) -> Tiffany | P137: =IF('IsM1'!$AD$3=0,"",'IsM1'!$AD$3) -> Integrated Skills | Q137: =IF('IsM1'!$AD$6=0,"",'IsM1'!$AD$6) -> 10:30:00 | R137: =IF('IsM1'!$AD$7=0,"",'IsM1'!$AD$7) -> M-Th | S137: =IF('IsM1'!$AD$8=0,"",'IsM1'!$AD$8) -> 3 | T137: =IF('IsM1'!$AD42=0,"",'IsM1'!$AD42) ->  | U137: =IF('IsM1'!$AE42=0,"",'IsM1'!$AE42) ->  | V137: =IF('IsM1'!$AH42=0,"",'IsM1'!$AH42) -> 
A138: =IF(GrM5A!$AD$5=0,"",GrM5A!$AD$5) -> 5A | B138: =IF(GrM5A!$AA$50=0,"",GrM5A!$AA$50) ->  | C138: =IF(GrM5A!$AB$50=0,"",GrM5A!$AB$50) ->  | D138: =IF('IsM1'!$B47=0,"",'IsM1'!$B47) ->  | E138: =IF('IsM1'!$C47=0,"",'IsM1'!$C47) ->  | F138: =IF('IsM1'!$D47=0,"",'IsM1'!$D47) ->  | G138: =IF('IsM1'!$AI47=0,"",'IsM1'!$AI47) ->  | H138: =IF('IsM1'!$AJ47=0,"",'IsM1'!$AJ47) ->  | I138: =IF('IsM1'!$AL47=0,"",'IsM1'!$AL47) ->  | J138: =IF('IsM1'!$AM47=0,"",'IsM1'!$AM47) ->  | K138: =IF('IsM1'!$AN47=0,"",'IsM1'!$AN47) ->  | L138: =IF('IsM1'!$AO47=0,"",'IsM1'!$AO47) ->  | M138: =IF('IsM1'!$AF47=0,"",'IsM1'!$AF47) ->  | N138: =IF('IsM1'!$AK47=0,"",'IsM1'!$AK47) ->  | O138: =IF('IsM1'!$AD$2=0,"",'IsM1'!$AD$2) -> Tiffany | P138: =IF('IsM1'!$AD$3=0,"",'IsM1'!$AD$3) -> Integrated Skills | Q138: =IF('IsM1'!$AD$6=0,"",'IsM1'!$AD$6) -> 10:30:00 | R138: =IF('IsM1'!$AD$7=0,"",'IsM1'!$AD$7) -> M-Th | S138: =IF('IsM1'!$AD$8=0,"",'IsM1'!$AD$8) -> 3 | T138: =IF('IsM1'!$AD47=0,"",'IsM1'!$AD47) ->  | U138: =IF('IsM1'!$AE47=0,"",'IsM1'!$AE47) ->  | V138: =IF('IsM1'!$AH47=0,"",'IsM1'!$AH47) -> 
A139: =IF(GrM5A!$AD$5=0,"",GrM5A!$AD$5) -> 5A | B139: =IF(GrM5A!$AA$51=0,"",GrM5A!$AA$51) ->  | C139: =IF(GrM5A!$AB$51=0,"",GrM5A!$AB$51) ->  | D139: =IF('IsM1'!$B48=0,"",'IsM1'!$B48) ->  | E139: =IF('IsM1'!$C48=0,"",'IsM1'!$C48) ->  | F139: =IF('IsM1'!$D48=0,"",'IsM1'!$D48) ->  | G139: =IF('IsM1'!$AI48=0,"",'IsM1'!$AI48) ->  | H139: =IF('IsM1'!$AJ48=0,"",'IsM1'!$AJ48) ->  | I139: =IF('IsM1'!$AL48=0,"",'IsM1'!$AL48) ->  | J139: =IF('IsM1'!$AM48=0,"",'IsM1'!$AM48) ->  | K139: =IF('IsM1'!$AN48=0,"",'IsM1'!$AN48) ->  | L139: =IF('IsM1'!$AO48=0,"",'IsM1'!$AO48) ->  | M139: =IF('IsM1'!$AF48=0,"",'IsM1'!$AF48) ->  | N139: =IF('IsM1'!$AK48=0,"",'IsM1'!$AK48) ->  | O139: =IF('IsM1'!$AD$2=0,"",'IsM1'!$AD$2) -> Tiffany | P139: =IF('IsM1'!$AD$3=0,"",'IsM1'!$AD$3) -> Integrated Skills | Q139: =IF('IsM1'!$AD$6=0,"",'IsM1'!$AD$6) -> 10:30:00 | R139: =IF('IsM1'!$AD$7=0,"",'IsM1'!$AD$7) -> M-Th | S139: =IF('IsM1'!$AD$8=0,"",'IsM1'!$AD$8) -> 3 | T139: =IF('IsM1'!$AD48=0,"",'IsM1'!$AD48) ->  | U139: =IF('IsM1'!$AE48=0,"",'IsM1'!$AE48) ->  | V139: =IF('IsM1'!$AH48=0,"",'IsM1'!$AH48) -> 
A140: =IF(GrM5B!$AD$5=0,"",GrM5B!$AD$5) -> 5B | B140: =IF(GrM5B!$AA$23=0,"",GrM5B!$AA$23) ->  | C140: =IF(GrM5B!$AB$23=0,"",GrM5B!$AB$23) ->  | D140: =IF('IsM1'!$B49=0,"",'IsM1'!$B49) ->  | E140: =IF('IsM1'!$C49=0,"",'IsM1'!$C49) ->  | F140: =IF('IsM1'!$D49=0,"",'IsM1'!$D49) ->  | G140: =IF('IsM1'!$AI49=0,"",'IsM1'!$AI49) ->  | H140: =IF('IsM1'!$AJ49=0,"",'IsM1'!$AJ49) ->  | I140: =IF('IsM1'!$AL49=0,"",'IsM1'!$AL49) ->  | J140: =IF('IsM1'!$AM49=0,"",'IsM1'!$AM49) ->  | K140: =IF('IsM1'!$AN49=0,"",'IsM1'!$AN49) ->  | L140: =IF('IsM1'!$AO49=0,"",'IsM1'!$AO49) ->  | M140: =IF('IsM1'!$AF49=0,"",'IsM1'!$AF49) ->  | N140: =IF('IsM1'!$AK49=0,"",'IsM1'!$AK49) ->  | O140: =IF('IsM1'!$AD$2=0,"",'IsM1'!$AD$2) -> Tiffany | P140: =IF('IsM1'!$AD$3=0,"",'IsM1'!$AD$3) -> Integrated Skills | Q140: =IF('IsM1'!$AD$6=0,"",'IsM1'!$AD$6) -> 10:30:00 | R140: =IF('IsM1'!$AD$7=0,"",'IsM1'!$AD$7) -> M-Th | S140: =IF('IsM1'!$AD$8=0,"",'IsM1'!$AD$8) -> 3 | T140: =IF('IsM1'!$AD49=0,"",'IsM1'!$AD49) ->  | U140: =IF('IsM1'!$AE49=0,"",'IsM1'!$AE49) ->  | V140: =IF('IsM1'!$AH49=0,"",'IsM1'!$AH49) -> 
A141: =IF(GrM5B!$AD$5=0,"",GrM5B!$AD$5) -> 5B | B141: =IF(GrM5B!$AA$24=0,"",GrM5B!$AA$24) ->  | C141: =IF(GrM5B!$AB$24=0,"",GrM5B!$AB$24) ->  | D141: =IF('IsM1'!$B50=0,"",'IsM1'!$B50) ->  | E141: =IF('IsM1'!$C50=0,"",'IsM1'!$C50) ->  | F141: =IF('IsM1'!$D50=0,"",'IsM1'!$D50) ->  | G141: =IF('IsM1'!$AI50=0,"",'IsM1'!$AI50) ->  | H141: =IF('IsM1'!$AJ50=0,"",'IsM1'!$AJ50) ->  | I141: =IF('IsM1'!$AL50=0,"",'IsM1'!$AL50) ->  | J141: =IF('IsM1'!$AM50=0,"",'IsM1'!$AM50) ->  | K141: =IF('IsM1'!$AN50=0,"",'IsM1'!$AN50) ->  | L141: =IF('IsM1'!$AO50=0,"",'IsM1'!$AO50) ->  | M141: =IF('IsM1'!$AF50=0,"",'IsM1'!$AF50) ->  | N141: =IF('IsM1'!$AK50=0,"",'IsM1'!$AK50) ->  | O141: =IF('IsM1'!$AD$2=0,"",'IsM1'!$AD$2) -> Tiffany | P141: =IF('IsM1'!$AD$3=0,"",'IsM1'!$AD$3) -> Integrated Skills | Q141: =IF('IsM1'!$AD$6=0,"",'IsM1'!$AD$6) -> 10:30:00 | R141: =IF('IsM1'!$AD$7=0,"",'IsM1'!$AD$7) -> M-Th | S141: =IF('IsM1'!$AD$8=0,"",'IsM1'!$AD$8) -> 3 | T141: =IF('IsM1'!$AD50=0,"",'IsM1'!$AD50) ->  | U141: =IF('IsM1'!$AE50=0,"",'IsM1'!$AE50) ->  | V141: =IF('IsM1'!$AH50=0,"",'IsM1'!$AH50) -> 
A142: =IF(GrM5B!$AD$5=0,"",GrM5B!$AD$5) -> 5B | B142: =IF(GrM5B!$AA$25=0,"",GrM5B!$AA$25) ->  | C142: =IF(GrM5B!$AB$25=0,"",GrM5B!$AB$25) ->  | D142: =IF('IsM1'!$B51=0,"",'IsM1'!$B51) ->  | E142: =IF('IsM1'!$C51=0,"",'IsM1'!$C51) ->  | F142: =IF('IsM1'!$D51=0,"",'IsM1'!$D51) ->  | G142: =IF('IsM1'!$AI51=0,"",'IsM1'!$AI51) ->  | H142: =IF('IsM1'!$AJ51=0,"",'IsM1'!$AJ51) ->  | I142: =IF('IsM1'!$AL51=0,"",'IsM1'!$AL51) ->  | J142: =IF('IsM1'!$AM51=0,"",'IsM1'!$AM51) ->  | K142: =IF('IsM1'!$AN51=0,"",'IsM1'!$AN51) ->  | L142: =IF('IsM1'!$AO51=0,"",'IsM1'!$AO51) ->  | M142: =IF('IsM1'!$AF51=0,"",'IsM1'!$AF51) ->  | N142: =IF('IsM1'!$AK51=0,"",'IsM1'!$AK51) ->  | O142: =IF('IsM1'!$AD$2=0,"",'IsM1'!$AD$2) -> Tiffany | P142: =IF('IsM1'!$AD$3=0,"",'IsM1'!$AD$3) -> Integrated Skills | Q142: =IF('IsM1'!$AD$6=0,"",'IsM1'!$AD$6) -> 10:30:00 | R142: =IF('IsM1'!$AD$7=0,"",'IsM1'!$AD$7) -> M-Th | S142: =IF('IsM1'!$AD$8=0,"",'IsM1'!$AD$8) -> 3 | T142: =IF('IsM1'!$AD51=0,"",'IsM1'!$AD51) ->  | U142: =IF('IsM1'!$AE51=0,"",'IsM1'!$AE51) ->  | V142: =IF('IsM1'!$AH51=0,"",'IsM1'!$AH51) -> 
A143: =IF(GrM5B!$AD$5=0,"",GrM5B!$AD$5) -> 5B | B143: =IF(GrM5B!$AA$26=0,"",GrM5B!$AA$26) ->  | C143: =IF(GrM5B!$AB$26=0,"",GrM5B!$AB$26) ->  | D143: =IF('IsM2'!$B27=0,"",'IsM2'!$B27) -> 2008-06-24 | E143: =IF('IsM2'!$C27=0,"",'IsM2'!$C27) -> 2008-10-17 | F143: =IF('IsM2'!$D27=0,"",'IsM2'!$D27) -> 2008-10-17 | G143: =IF('IsM2'!$AI27=0,"",'IsM2'!$AI27) -> Lara | H143: =IF('IsM2'!$AJ27=0,"",'IsM2'!$AJ27) -> Jose Fernando | I143: =IF('IsM2'!$AL27=0,"",'IsM2'!$AL27) -> All | J143: =IF('IsM2'!$AM27=0,"",'IsM2'!$AM27) -> S5 | K143: =IF('IsM2'!$AN27=0,"",'IsM2'!$AN27) -> F4 | L143: =IF('IsM2'!$AO27=0,"",'IsM2'!$AO27) -> F4 | M143: =IF('IsM2'!$AF27=0,"",'IsM2'!$AF27) -> El Salvador | N143: =IF('IsM2'!$AK27=0,"",'IsM2'!$AK27) -> 491-7107 | O143: =IF('IsM2'!$AD$2=0,"",'IsM2'!$AD$2) -> Valai | P143: =IF('IsM2'!$AD$3=0,"",'IsM2'!$AD$3) -> Integrated Skills | Q143: =IF('IsM2'!$AD$6=0,"",'IsM2'!$AD$6) -> 10:30:00 | R143: =IF('IsM2'!$AD$7=0,"",'IsM2'!$AD$7) -> M-Th | S143: =IF('IsM2'!$AD$8=0,"",'IsM2'!$AD$8) -> 1 | T143: =IF('IsM2'!$AD27=0,"",'IsM2'!$AD27) ->  | U143: =IF('IsM2'!$AE27=0,"",'IsM2'!$AE27) ->  | V143: =IF('IsM2'!$AH27=0,"",'IsM2'!$AH27) -> 2008-04-13
A144: =IF(GrM5B!$AD$5=0,"",GrM5B!$AD$5) -> 5B | B144: =IF(GrM5B!$AA$27=0,"",GrM5B!$AA$27) ->  | C144: =IF(GrM5B!$AB$27=0,"",GrM5B!$AB$27) ->  | D144: =IF('IsM2'!$B36=0,"",'IsM2'!$B36) ->  | E144: =IF('IsM2'!$C36=0,"",'IsM2'!$C36) ->  | F144: =IF('IsM2'!$D36=0,"",'IsM2'!$D36) ->  | G144: =IF('IsM2'!$AI36=0,"",'IsM2'!$AI36) ->  | H144: =IF('IsM2'!$AJ36=0,"",'IsM2'!$AJ36) ->  | I144: =IF('IsM2'!$AL36=0,"",'IsM2'!$AL36) ->  | J144: =IF('IsM2'!$AM36=0,"",'IsM2'!$AM36) ->  | K144: =IF('IsM2'!$AN36=0,"",'IsM2'!$AN36) ->  | L144: =IF('IsM2'!$AO36=0,"",'IsM2'!$AO36) ->  | M144: =IF('IsM2'!$AF36=0,"",'IsM2'!$AF36) ->  | N144: =IF('IsM2'!$AK36=0,"",'IsM2'!$AK36) ->  | O144: =IF('IsM2'!$AD$2=0,"",'IsM2'!$AD$2) -> Valai | P144: =IF('IsM2'!$AD$3=0,"",'IsM2'!$AD$3) -> Integrated Skills | Q144: =IF('IsM2'!$AD$6=0,"",'IsM2'!$AD$6) -> 10:30:00 | R144: =IF('IsM2'!$AD$7=0,"",'IsM2'!$AD$7) -> M-Th | S144: =IF('IsM2'!$AD$8=0,"",'IsM2'!$AD$8) -> 1 | T144: =IF('IsM2'!$AD36=0,"",'IsM2'!$AD36) ->  | U144: =IF('IsM2'!$AE36=0,"",'IsM2'!$AE36) ->  | V144: =IF('IsM2'!$AH36=0,"",'IsM2'!$AH36) -> 
A145: =IF(GrM5B!$AD$5=0,"",GrM5B!$AD$5) -> 5B | B145: =IF(GrM5B!$AA$28=0,"",GrM5B!$AA$28) ->  | C145: =IF(GrM5B!$AB$28=0,"",GrM5B!$AB$28) ->  | D145: =IF('IsM2'!$B37=0,"",'IsM2'!$B37) ->  | E145: =IF('IsM2'!$C37=0,"",'IsM2'!$C37) ->  | F145: =IF('IsM2'!$D37=0,"",'IsM2'!$D37) ->  | G145: =IF('IsM2'!$AI37=0,"",'IsM2'!$AI37) ->  | H145: =IF('IsM2'!$AJ37=0,"",'IsM2'!$AJ37) ->  | I145: =IF('IsM2'!$AL37=0,"",'IsM2'!$AL37) ->  | J145: =IF('IsM2'!$AM37=0,"",'IsM2'!$AM37) ->  | K145: =IF('IsM2'!$AN37=0,"",'IsM2'!$AN37) ->  | L145: =IF('IsM2'!$AO37=0,"",'IsM2'!$AO37) ->  | M145: =IF('IsM2'!$AF37=0,"",'IsM2'!$AF37) ->  | N145: =IF('IsM2'!$AK37=0,"",'IsM2'!$AK37) ->  | O145: =IF('IsM2'!$AD$2=0,"",'IsM2'!$AD$2) -> Valai | P145: =IF('IsM2'!$AD$3=0,"",'IsM2'!$AD$3) -> Integrated Skills | Q145: =IF('IsM2'!$AD$6=0,"",'IsM2'!$AD$6) -> 10:30:00 | R145: =IF('IsM2'!$AD$7=0,"",'IsM2'!$AD$7) -> M-Th | S145: =IF('IsM2'!$AD$8=0,"",'IsM2'!$AD$8) -> 1 | T145: =IF('IsM2'!$AD37=0,"",'IsM2'!$AD37) ->  | U145: =IF('IsM2'!$AE37=0,"",'IsM2'!$AE37) ->  | V145: =IF('IsM2'!$AH37=0,"",'IsM2'!$AH37) -> 
A146: =IF(GrM5B!$AD$5=0,"",GrM5B!$AD$5) -> 5B | B146: =IF(GrM5B!$AA$29=0,"",GrM5B!$AA$29) ->  | C146: =IF(GrM5B!$AB$29=0,"",GrM5B!$AB$29) ->  | D146: =IF('IsM2'!$B38=0,"",'IsM2'!$B38) ->  | E146: =IF('IsM2'!$C38=0,"",'IsM2'!$C38) ->  | F146: =IF('IsM2'!$D38=0,"",'IsM2'!$D38) ->  | G146: =IF('IsM2'!$AI38=0,"",'IsM2'!$AI38) ->  | H146: =IF('IsM2'!$AJ38=0,"",'IsM2'!$AJ38) ->  | I146: =IF('IsM2'!$AL38=0,"",'IsM2'!$AL38) ->  | J146: =IF('IsM2'!$AM38=0,"",'IsM2'!$AM38) ->  | K146: =IF('IsM2'!$AN38=0,"",'IsM2'!$AN38) ->  | L146: =IF('IsM2'!$AO38=0,"",'IsM2'!$AO38) ->  | M146: =IF('IsM2'!$AF38=0,"",'IsM2'!$AF38) ->  | N146: =IF('IsM2'!$AK38=0,"",'IsM2'!$AK38) ->  | O146: =IF('IsM2'!$AD$2=0,"",'IsM2'!$AD$2) -> Valai | P146: =IF('IsM2'!$AD$3=0,"",'IsM2'!$AD$3) -> Integrated Skills | Q146: =IF('IsM2'!$AD$6=0,"",'IsM2'!$AD$6) -> 10:30:00 | R146: =IF('IsM2'!$AD$7=0,"",'IsM2'!$AD$7) -> M-Th | S146: =IF('IsM2'!$AD$8=0,"",'IsM2'!$AD$8) -> 1 | T146: =IF('IsM2'!$AD38=0,"",'IsM2'!$AD38) ->  | U146: =IF('IsM2'!$AE38=0,"",'IsM2'!$AE38) ->  | V146: =IF('IsM2'!$AH38=0,"",'IsM2'!$AH38) -> 
A147: =IF(GrM5B!$AD$5=0,"",GrM5B!$AD$5) -> 5B | B147: =IF(GrM5B!$AA$30=0,"",GrM5B!$AA$30) ->  | C147: =IF(GrM5B!$AB$30=0,"",GrM5B!$AB$30) ->  | D147: =IF('IsM2'!$B39=0,"",'IsM2'!$B39) ->  | E147: =IF('IsM2'!$C39=0,"",'IsM2'!$C39) ->  | F147: =IF('IsM2'!$D39=0,"",'IsM2'!$D39) ->  | G147: =IF('IsM2'!$AI39=0,"",'IsM2'!$AI39) ->  | H147: =IF('IsM2'!$AJ39=0,"",'IsM2'!$AJ39) ->  | I147: =IF('IsM2'!$AL39=0,"",'IsM2'!$AL39) ->  | J147: =IF('IsM2'!$AM39=0,"",'IsM2'!$AM39) ->  | K147: =IF('IsM2'!$AN39=0,"",'IsM2'!$AN39) ->  | L147: =IF('IsM2'!$AO39=0,"",'IsM2'!$AO39) ->  | M147: =IF('IsM2'!$AF39=0,"",'IsM2'!$AF39) ->  | N147: =IF('IsM2'!$AK39=0,"",'IsM2'!$AK39) ->  | O147: =IF('IsM2'!$AD$2=0,"",'IsM2'!$AD$2) -> Valai | P147: =IF('IsM2'!$AD$3=0,"",'IsM2'!$AD$3) -> Integrated Skills | Q147: =IF('IsM2'!$AD$6=0,"",'IsM2'!$AD$6) -> 10:30:00 | R147: =IF('IsM2'!$AD$7=0,"",'IsM2'!$AD$7) -> M-Th | S147: =IF('IsM2'!$AD$8=0,"",'IsM2'!$AD$8) -> 1 | T147: =IF('IsM2'!$AD39=0,"",'IsM2'!$AD39) ->  | U147: =IF('IsM2'!$AE39=0,"",'IsM2'!$AE39) ->  | V147: =IF('IsM2'!$AH39=0,"",'IsM2'!$AH39) -> 
A148: =IF(GrM5B!$AD$5=0,"",GrM5B!$AD$5) -> 5B | B148: =IF(GrM5B!$AA$31=0,"",GrM5B!$AA$31) ->  | C148: =IF(GrM5B!$AB$31=0,"",GrM5B!$AB$31) ->  | D148: =IF('IsM2'!$B40=0,"",'IsM2'!$B40) ->  | E148: =IF('IsM2'!$C40=0,"",'IsM2'!$C40) ->  | F148: =IF('IsM2'!$D40=0,"",'IsM2'!$D40) ->  | G148: =IF('IsM2'!$AI40=0,"",'IsM2'!$AI40) ->  | H148: =IF('IsM2'!$AJ40=0,"",'IsM2'!$AJ40) ->  | I148: =IF('IsM2'!$AL40=0,"",'IsM2'!$AL40) ->  | J148: =IF('IsM2'!$AM40=0,"",'IsM2'!$AM40) ->  | K148: =IF('IsM2'!$AN40=0,"",'IsM2'!$AN40) ->  | L148: =IF('IsM2'!$AO40=0,"",'IsM2'!$AO40) ->  | M148: =IF('IsM2'!$AF40=0,"",'IsM2'!$AF40) ->  | N148: =IF('IsM2'!$AK40=0,"",'IsM2'!$AK40) ->  | O148: =IF('IsM2'!$AD$2=0,"",'IsM2'!$AD$2) -> Valai | P148: =IF('IsM2'!$AD$3=0,"",'IsM2'!$AD$3) -> Integrated Skills | Q148: =IF('IsM2'!$AD$6=0,"",'IsM2'!$AD$6) -> 10:30:00 | R148: =IF('IsM2'!$AD$7=0,"",'IsM2'!$AD$7) -> M-Th | S148: =IF('IsM2'!$AD$8=0,"",'IsM2'!$AD$8) -> 1 | T148: =IF('IsM2'!$AD40=0,"",'IsM2'!$AD40) ->  | U148: =IF('IsM2'!$AE40=0,"",'IsM2'!$AE40) ->  | V148: =IF('IsM2'!$AH40=0,"",'IsM2'!$AH40) -> 
A149: =IF(GrM5B!$AD$5=0,"",GrM5B!$AD$5) -> 5B | B149: =IF(GrM5B!$AA$32=0,"",GrM5B!$AA$32) ->  | C149: =IF(GrM5B!$AB$32=0,"",GrM5B!$AB$32) ->  | D149: =IF('IsM2'!$B45=0,"",'IsM2'!$B45) ->  | E149: =IF('IsM2'!$C45=0,"",'IsM2'!$C45) ->  | F149: =IF('IsM2'!$D45=0,"",'IsM2'!$D45) ->  | G149: =IF('IsM2'!$AI45=0,"",'IsM2'!$AI45) ->  | H149: =IF('IsM2'!$AJ45=0,"",'IsM2'!$AJ45) ->  | I149: =IF('IsM2'!$AL45=0,"",'IsM2'!$AL45) ->  | J149: =IF('IsM2'!$AM45=0,"",'IsM2'!$AM45) ->  | K149: =IF('IsM2'!$AN45=0,"",'IsM2'!$AN45) ->  | L149: =IF('IsM2'!$AO45=0,"",'IsM2'!$AO45) ->  | M149: =IF('IsM2'!$AF45=0,"",'IsM2'!$AF45) ->  | N149: =IF('IsM2'!$AK45=0,"",'IsM2'!$AK45) ->  | O149: =IF('IsM2'!$AD$2=0,"",'IsM2'!$AD$2) -> Valai | P149: =IF('IsM2'!$AD$3=0,"",'IsM2'!$AD$3) -> Integrated Skills | Q149: =IF('IsM2'!$AD$6=0,"",'IsM2'!$AD$6) -> 10:30:00 | R149: =IF('IsM2'!$AD$7=0,"",'IsM2'!$AD$7) -> M-Th | S149: =IF('IsM2'!$AD$8=0,"",'IsM2'!$AD$8) -> 1 | T149: =IF('IsM2'!$AD45=0,"",'IsM2'!$AD45) ->  | U149: =IF('IsM2'!$AE45=0,"",'IsM2'!$AE45) ->  | V149: =IF('IsM2'!$AH45=0,"",'IsM2'!$AH45) -> 
A150: =IF(GrM5B!$AD$5=0,"",GrM5B!$AD$5) -> 5B | B150: =IF(GrM5B!$AA$33=0,"",GrM5B!$AA$33) ->  | C150: =IF(GrM5B!$AB$33=0,"",GrM5B!$AB$33) ->  | D150: =IF('IsM2'!$B46=0,"",'IsM2'!$B46) ->  | E150: =IF('IsM2'!$C46=0,"",'IsM2'!$C46) ->  | F150: =IF('IsM2'!$D46=0,"",'IsM2'!$D46) ->  | G150: =IF('IsM2'!$AI46=0,"",'IsM2'!$AI46) ->  | H150: =IF('IsM2'!$AJ46=0,"",'IsM2'!$AJ46) ->  | I150: =IF('IsM2'!$AL46=0,"",'IsM2'!$AL46) ->  | J150: =IF('IsM2'!$AM46=0,"",'IsM2'!$AM46) ->  | K150: =IF('IsM2'!$AN46=0,"",'IsM2'!$AN46) ->  | L150: =IF('IsM2'!$AO46=0,"",'IsM2'!$AO46) ->  | M150: =IF('IsM2'!$AF46=0,"",'IsM2'!$AF46) ->  | N150: =IF('IsM2'!$AK46=0,"",'IsM2'!$AK46) ->  | O150: =IF('IsM2'!$AD$2=0,"",'IsM2'!$AD$2) -> Valai | P150: =IF('IsM2'!$AD$3=0,"",'IsM2'!$AD$3) -> Integrated Skills | Q150: =IF('IsM2'!$AD$6=0,"",'IsM2'!$AD$6) -> 10:30:00 | R150: =IF('IsM2'!$AD$7=0,"",'IsM2'!$AD$7) -> M-Th | S150: =IF('IsM2'!$AD$8=0,"",'IsM2'!$AD$8) -> 1 | T150: =IF('IsM2'!$AD46=0,"",'IsM2'!$AD46) ->  | U150: =IF('IsM2'!$AE46=0,"",'IsM2'!$AE46) ->  | V150: =IF('IsM2'!$AH46=0,"",'IsM2'!$AH46) -> 
A151: =IF(GrM5B!$AD$5=0,"",GrM5B!$AD$5) -> 5B | B151: =IF(GrM5B!$AA$34=0,"",GrM5B!$AA$34) ->  | C151: =IF(GrM5B!$AB$34=0,"",GrM5B!$AB$34) ->  | D151: =IF('IsM2'!$B47=0,"",'IsM2'!$B47) ->  | E151: =IF('IsM2'!$C47=0,"",'IsM2'!$C47) ->  | F151: =IF('IsM2'!$D47=0,"",'IsM2'!$D47) ->  | G151: =IF('IsM2'!$AI47=0,"",'IsM2'!$AI47) ->  | H151: =IF('IsM2'!$AJ47=0,"",'IsM2'!$AJ47) ->  | I151: =IF('IsM2'!$AL47=0,"",'IsM2'!$AL47) ->  | J151: =IF('IsM2'!$AM47=0,"",'IsM2'!$AM47) ->  | K151: =IF('IsM2'!$AN47=0,"",'IsM2'!$AN47) ->  | L151: =IF('IsM2'!$AO47=0,"",'IsM2'!$AO47) ->  | M151: =IF('IsM2'!$AF47=0,"",'IsM2'!$AF47) ->  | N151: =IF('IsM2'!$AK47=0,"",'IsM2'!$AK47) ->  | O151: =IF('IsM2'!$AD$2=0,"",'IsM2'!$AD$2) -> Valai | P151: =IF('IsM2'!$AD$3=0,"",'IsM2'!$AD$3) -> Integrated Skills | Q151: =IF('IsM2'!$AD$6=0,"",'IsM2'!$AD$6) -> 10:30:00 | R151: =IF('IsM2'!$AD$7=0,"",'IsM2'!$AD$7) -> M-Th | S151: =IF('IsM2'!$AD$8=0,"",'IsM2'!$AD$8) -> 1 | T151: =IF('IsM2'!$AD47=0,"",'IsM2'!$AD47) ->  | U151: =IF('IsM2'!$AE47=0,"",'IsM2'!$AE47) ->  | V151: =IF('IsM2'!$AH47=0,"",'IsM2'!$AH47) -> 
A152: =IF(GrM5B!$AD$5=0,"",GrM5B!$AD$5) -> 5B | B152: =IF(GrM5B!$AA$35=0,"",GrM5B!$AA$35) ->  | C152: =IF(GrM5B!$AB$35=0,"",GrM5B!$AB$35) ->  | D152: =IF('IsM2'!$B48=0,"",'IsM2'!$B48) ->  | E152: =IF('IsM2'!$C48=0,"",'IsM2'!$C48) ->  | F152: =IF('IsM2'!$D48=0,"",'IsM2'!$D48) ->  | G152: =IF('IsM2'!$AI48=0,"",'IsM2'!$AI48) ->  | H152: =IF('IsM2'!$AJ48=0,"",'IsM2'!$AJ48) ->  | I152: =IF('IsM2'!$AL48=0,"",'IsM2'!$AL48) ->  | J152: =IF('IsM2'!$AM48=0,"",'IsM2'!$AM48) ->  | K152: =IF('IsM2'!$AN48=0,"",'IsM2'!$AN48) ->  | L152: =IF('IsM2'!$AO48=0,"",'IsM2'!$AO48) ->  | M152: =IF('IsM2'!$AF48=0,"",'IsM2'!$AF48) ->  | N152: =IF('IsM2'!$AK48=0,"",'IsM2'!$AK48) ->  | O152: =IF('IsM2'!$AD$2=0,"",'IsM2'!$AD$2) -> Valai | P152: =IF('IsM2'!$AD$3=0,"",'IsM2'!$AD$3) -> Integrated Skills | Q152: =IF('IsM2'!$AD$6=0,"",'IsM2'!$AD$6) -> 10:30:00 | R152: =IF('IsM2'!$AD$7=0,"",'IsM2'!$AD$7) -> M-Th | S152: =IF('IsM2'!$AD$8=0,"",'IsM2'!$AD$8) -> 1 | T152: =IF('IsM2'!$AD48=0,"",'IsM2'!$AD48) ->  | U152: =IF('IsM2'!$AE48=0,"",'IsM2'!$AE48) ->  | V152: =IF('IsM2'!$AH48=0,"",'IsM2'!$AH48) -> 
A153: =IF(GrM5B!$AD$5=0,"",GrM5B!$AD$5) -> 5B | B153: =IF(GrM5B!$AA$36=0,"",GrM5B!$AA$36) ->  | C153: =IF(GrM5B!$AB$36=0,"",GrM5B!$AB$36) ->  | D153: =IF('IsM2'!$B49=0,"",'IsM2'!$B49) ->  | E153: =IF('IsM2'!$C49=0,"",'IsM2'!$C49) ->  | F153: =IF('IsM2'!$D49=0,"",'IsM2'!$D49) ->  | G153: =IF('IsM2'!$AI49=0,"",'IsM2'!$AI49) ->  | H153: =IF('IsM2'!$AJ49=0,"",'IsM2'!$AJ49) ->  | I153: =IF('IsM2'!$AL49=0,"",'IsM2'!$AL49) ->  | J153: =IF('IsM2'!$AM49=0,"",'IsM2'!$AM49) ->  | K153: =IF('IsM2'!$AN49=0,"",'IsM2'!$AN49) ->  | L153: =IF('IsM2'!$AO49=0,"",'IsM2'!$AO49) ->  | M153: =IF('IsM2'!$AF49=0,"",'IsM2'!$AF49) ->  | N153: =IF('IsM2'!$AK49=0,"",'IsM2'!$AK49) ->  | O153: =IF('IsM2'!$AD$2=0,"",'IsM2'!$AD$2) -> Valai | P153: =IF('IsM2'!$AD$3=0,"",'IsM2'!$AD$3) -> Integrated Skills | Q153: =IF('IsM2'!$AD$6=0,"",'IsM2'!$AD$6) -> 10:30:00 | R153: =IF('IsM2'!$AD$7=0,"",'IsM2'!$AD$7) -> M-Th | S153: =IF('IsM2'!$AD$8=0,"",'IsM2'!$AD$8) -> 1 | T153: =IF('IsM2'!$AD49=0,"",'IsM2'!$AD49) ->  | U153: =IF('IsM2'!$AE49=0,"",'IsM2'!$AE49) ->  | V153: =IF('IsM2'!$AH49=0,"",'IsM2'!$AH49) -> 
A154: =IF(GrM5B!$AD$5=0,"",GrM5B!$AD$5) -> 5B | B154: =IF(GrM5B!$AA$37=0,"",GrM5B!$AA$37) ->  | C154: =IF(GrM5B!$AB$37=0,"",GrM5B!$AB$37) ->  | D154: =IF('IsM2'!$B50=0,"",'IsM2'!$B50) ->  | E154: =IF('IsM2'!$C50=0,"",'IsM2'!$C50) ->  | F154: =IF('IsM2'!$D50=0,"",'IsM2'!$D50) ->  | G154: =IF('IsM2'!$AI50=0,"",'IsM2'!$AI50) ->  | H154: =IF('IsM2'!$AJ50=0,"",'IsM2'!$AJ50) ->  | I154: =IF('IsM2'!$AL50=0,"",'IsM2'!$AL50) ->  | J154: =IF('IsM2'!$AM50=0,"",'IsM2'!$AM50) ->  | K154: =IF('IsM2'!$AN50=0,"",'IsM2'!$AN50) ->  | L154: =IF('IsM2'!$AO50=0,"",'IsM2'!$AO50) ->  | M154: =IF('IsM2'!$AF50=0,"",'IsM2'!$AF50) ->  | N154: =IF('IsM2'!$AK50=0,"",'IsM2'!$AK50) ->  | O154: =IF('IsM2'!$AD$2=0,"",'IsM2'!$AD$2) -> Valai | P154: =IF('IsM2'!$AD$3=0,"",'IsM2'!$AD$3) -> Integrated Skills | Q154: =IF('IsM2'!$AD$6=0,"",'IsM2'!$AD$6) -> 10:30:00 | R154: =IF('IsM2'!$AD$7=0,"",'IsM2'!$AD$7) -> M-Th | S154: =IF('IsM2'!$AD$8=0,"",'IsM2'!$AD$8) -> 1 | T154: =IF('IsM2'!$AD50=0,"",'IsM2'!$AD50) ->  | U154: =IF('IsM2'!$AE50=0,"",'IsM2'!$AE50) ->  | V154: =IF('IsM2'!$AH50=0,"",'IsM2'!$AH50) -> 
A155: =IF(GrM5B!$AD$5=0,"",GrM5B!$AD$5) -> 5B | B155: =IF(GrM5B!$AA$38=0,"",GrM5B!$AA$38) ->  | C155: =IF(GrM5B!$AB$38=0,"",GrM5B!$AB$38) ->  | D155: =IF('IsM2'!$B51=0,"",'IsM2'!$B51) ->  | E155: =IF('IsM2'!$C51=0,"",'IsM2'!$C51) ->  | F155: =IF('IsM2'!$D51=0,"",'IsM2'!$D51) ->  | G155: =IF('IsM2'!$AI51=0,"",'IsM2'!$AI51) ->  | H155: =IF('IsM2'!$AJ51=0,"",'IsM2'!$AJ51) ->  | I155: =IF('IsM2'!$AL51=0,"",'IsM2'!$AL51) ->  | J155: =IF('IsM2'!$AM51=0,"",'IsM2'!$AM51) ->  | K155: =IF('IsM2'!$AN51=0,"",'IsM2'!$AN51) ->  | L155: =IF('IsM2'!$AO51=0,"",'IsM2'!$AO51) ->  | M155: =IF('IsM2'!$AF51=0,"",'IsM2'!$AF51) ->  | N155: =IF('IsM2'!$AK51=0,"",'IsM2'!$AK51) ->  | O155: =IF('IsM2'!$AD$2=0,"",'IsM2'!$AD$2) -> Valai | P155: =IF('IsM2'!$AD$3=0,"",'IsM2'!$AD$3) -> Integrated Skills | Q155: =IF('IsM2'!$AD$6=0,"",'IsM2'!$AD$6) -> 10:30:00 | R155: =IF('IsM2'!$AD$7=0,"",'IsM2'!$AD$7) -> M-Th | S155: =IF('IsM2'!$AD$8=0,"",'IsM2'!$AD$8) -> 1 | T155: =IF('IsM2'!$AD51=0,"",'IsM2'!$AD51) ->  | U155: =IF('IsM2'!$AE51=0,"",'IsM2'!$AE51) ->  | V155: =IF('IsM2'!$AH51=0,"",'IsM2'!$AH51) -> 
A156: =IF(GrM5B!$AD$5=0,"",GrM5B!$AD$5) -> 5B | B156: =IF(GrM5B!$AA$43=0,"",GrM5B!$AA$43) ->  | C156: =IF(GrM5B!$AB$43=0,"",GrM5B!$AB$43) ->  | D156: =IF('IsM3'!$B38=0,"",'IsM3'!$B38) -> 2008-08-25 | E156: =IF('IsM3'!$C38=0,"",'IsM3'!$C38) -> 2008-12-19 | F156: =IF('IsM3'!$D38=0,"",'IsM3'!$D38) -> 2008-12-19 | G156: =IF('IsM3'!$AI38=0,"",'IsM3'!$AI38) -> Campos | H156: =IF('IsM3'!$AJ38=0,"",'IsM3'!$AJ38) -> Denise | I156: =IF('IsM3'!$AL38=0,"",'IsM3'!$AL38) -> Gate | J156: =IF('IsM3'!$AM38=0,"",'IsM3'!$AM38) -> F1 | K156: =IF('IsM3'!$AN38=0,"",'IsM3'!$AN38) -> F8 | L156: =IF('IsM3'!$AO38=0,"",'IsM3'!$AO38) -> F8 | M156: =IF('IsM3'!$AF38=0,"",'IsM3'!$AF38) -> Brazil | N156: =IF('IsM3'!$AK38=0,"",'IsM3'!$AK38) -> 5181513003 | O156: =IF('IsM3'!$AD$2=0,"",'IsM3'!$AD$2) -> FALSE | P156: =IF('IsM3'!$AD$3=0,"",'IsM3'!$AD$3) -> Integrated Skills | Q156: =IF('IsM3'!$AD$6=0,"",'IsM3'!$AD$6) -> 10:30:00 | R156: =IF('IsM3'!$AD$7=0,"",'IsM3'!$AD$7) -> M-Th | S156: =IF('IsM3'!$AD$8=0,"",'IsM3'!$AD$8) -> 5 | T156: =IF('IsM3'!$AD38=0,"",'IsM3'!$AD38) -> 2009-01-17 | U156: =IF('IsM3'!$AE38=0,"",'IsM3'!$AE38) ->  | V156: =IF('IsM3'!$AH38=0,"",'IsM3'!$AH38) -> 2008-08-08
A157: =IF(GrM5B!$AD$5=0,"",GrM5B!$AD$5) -> 5B | B157: =IF(GrM5B!$AA$44=0,"",GrM5B!$AA$44) ->  | C157: =IF(GrM5B!$AB$44=0,"",GrM5B!$AB$44) ->  | D157: =IF('IsM3'!$B39=0,"",'IsM3'!$B39) -> 2008-09-08 | E157: =IF('IsM3'!$C39=0,"",'IsM3'!$C39) -> 2008-05-08 | F157: =IF('IsM3'!$D39=0,"",'IsM3'!$D39) -> 2008-05-08 | G157: =IF('IsM3'!$AI39=0,"",'IsM3'!$AI39) -> Machado | H157: =IF('IsM3'!$AJ39=0,"",'IsM3'!$AJ39) -> Carolina | I157: =IF('IsM3'!$AL39=0,"",'IsM3'!$AL39) -> Gate | J157: =IF('IsM3'!$AM39=0,"",'IsM3'!$AM39) -> F2 | K157: =IF('IsM3'!$AN39=0,"",'IsM3'!$AN39) -> S1 | L157: =IF('IsM3'!$AO39=0,"",'IsM3'!$AO39) -> S1 | M157: =IF('IsM3'!$AF39=0,"",'IsM3'!$AF39) -> Brazil | N157: =IF('IsM3'!$AK39=0,"",'IsM3'!$AK39) -> (55)3732222254 | O157: =IF('IsM3'!$AD$2=0,"",'IsM3'!$AD$2) -> FALSE | P157: =IF('IsM3'!$AD$3=0,"",'IsM3'!$AD$3) -> Integrated Skills | Q157: =IF('IsM3'!$AD$6=0,"",'IsM3'!$AD$6) -> 10:30:00 | R157: =IF('IsM3'!$AD$7=0,"",'IsM3'!$AD$7) -> M-Th | S157: =IF('IsM3'!$AD$8=0,"",'IsM3'!$AD$8) -> 5 | T157: =IF('IsM3'!$AD39=0,"",'IsM3'!$AD39) -> 2009-01-15 | U157: =IF('IsM3'!$AE39=0,"",'IsM3'!$AE39) -> Yes | V157: =IF('IsM3'!$AH39=0,"",'IsM3'!$AH39) -> 2008-09-27
A158: =IF(GrM5B!$AD$5=0,"",GrM5B!$AD$5) -> 5B | B158: =IF(GrM5B!$AA$45=0,"",GrM5B!$AA$45) ->  | C158: =IF(GrM5B!$AB$45=0,"",GrM5B!$AB$45) ->  | D158: =IF('IsM3'!$B40=0,"",'IsM3'!$B40) ->  | E158: =IF('IsM3'!$C40=0,"",'IsM3'!$C40) ->  | F158: =IF('IsM3'!$D40=0,"",'IsM3'!$D40) ->  | G158: =IF('IsM3'!$AI40=0,"",'IsM3'!$AI40) ->  | H158: =IF('IsM3'!$AJ40=0,"",'IsM3'!$AJ40) ->  | I158: =IF('IsM3'!$AL40=0,"",'IsM3'!$AL40) ->  | J158: =IF('IsM3'!$AM40=0,"",'IsM3'!$AM40) ->  | K158: =IF('IsM3'!$AN40=0,"",'IsM3'!$AN40) ->  | L158: =IF('IsM3'!$AO40=0,"",'IsM3'!$AO40) ->  | M158: =IF('IsM3'!$AF40=0,"",'IsM3'!$AF40) ->  | N158: =IF('IsM3'!$AK40=0,"",'IsM3'!$AK40) ->  | O158: =IF('IsM3'!$AD$2=0,"",'IsM3'!$AD$2) -> FALSE | P158: =IF('IsM3'!$AD$3=0,"",'IsM3'!$AD$3) -> Integrated Skills | Q158: =IF('IsM3'!$AD$6=0,"",'IsM3'!$AD$6) -> 10:30:00 | R158: =IF('IsM3'!$AD$7=0,"",'IsM3'!$AD$7) -> M-Th | S158: =IF('IsM3'!$AD$8=0,"",'IsM3'!$AD$8) -> 5 | T158: =IF('IsM3'!$AD40=0,"",'IsM3'!$AD40) ->  | U158: =IF('IsM3'!$AE40=0,"",'IsM3'!$AE40) ->  | V158: =IF('IsM3'!$AH40=0,"",'IsM3'!$AH40) -> 
A159: =IF(GrM5B!$AD$5=0,"",GrM5B!$AD$5) -> 5B | B159: =IF(GrM5B!$AA$46=0,"",GrM5B!$AA$46) ->  | C159: =IF(GrM5B!$AB$46=0,"",GrM5B!$AB$46) ->  | D159: =IF('IsM3'!$B41=0,"",'IsM3'!$B41) ->  | E159: =IF('IsM3'!$C41=0,"",'IsM3'!$C41) ->  | F159: =IF('IsM3'!$D41=0,"",'IsM3'!$D41) ->  | G159: =IF('IsM3'!$AI41=0,"",'IsM3'!$AI41) ->  | H159: =IF('IsM3'!$AJ41=0,"",'IsM3'!$AJ41) ->  | I159: =IF('IsM3'!$AL41=0,"",'IsM3'!$AL41) ->  | J159: =IF('IsM3'!$AM41=0,"",'IsM3'!$AM41) ->  | K159: =IF('IsM3'!$AN41=0,"",'IsM3'!$AN41) ->  | L159: =IF('IsM3'!$AO41=0,"",'IsM3'!$AO41) ->  | M159: =IF('IsM3'!$AF41=0,"",'IsM3'!$AF41) ->  | N159: =IF('IsM3'!$AK41=0,"",'IsM3'!$AK41) ->  | O159: =IF('IsM3'!$AD$2=0,"",'IsM3'!$AD$2) -> FALSE | P159: =IF('IsM3'!$AD$3=0,"",'IsM3'!$AD$3) -> Integrated Skills | Q159: =IF('IsM3'!$AD$6=0,"",'IsM3'!$AD$6) -> 10:30:00 | R159: =IF('IsM3'!$AD$7=0,"",'IsM3'!$AD$7) -> M-Th | S159: =IF('IsM3'!$AD$8=0,"",'IsM3'!$AD$8) -> 5 | T159: =IF('IsM3'!$AD41=0,"",'IsM3'!$AD41) ->  | U159: =IF('IsM3'!$AE41=0,"",'IsM3'!$AE41) ->  | V159: =IF('IsM3'!$AH41=0,"",'IsM3'!$AH41) -> 
A160: =IF(GrM5B!$AD$5=0,"",GrM5B!$AD$5) -> 5B | B160: =IF(GrM5B!$AA$47=0,"",GrM5B!$AA$47) ->  | C160: =IF(GrM5B!$AB$47=0,"",GrM5B!$AB$47) ->  | D160: =IF('IsM3'!$B42=0,"",'IsM3'!$B42) ->  | E160: =IF('IsM3'!$C42=0,"",'IsM3'!$C42) ->  | F160: =IF('IsM3'!$D42=0,"",'IsM3'!$D42) ->  | G160: =IF('IsM3'!$AI42=0,"",'IsM3'!$AI42) ->  | H160: =IF('IsM3'!$AJ42=0,"",'IsM3'!$AJ42) ->  | I160: =IF('IsM3'!$AL42=0,"",'IsM3'!$AL42) ->  | J160: =IF('IsM3'!$AM42=0,"",'IsM3'!$AM42) ->  | K160: =IF('IsM3'!$AN42=0,"",'IsM3'!$AN42) ->  | L160: =IF('IsM3'!$AO42=0,"",'IsM3'!$AO42) ->  | M160: =IF('IsM3'!$AF42=0,"",'IsM3'!$AF42) ->  | N160: =IF('IsM3'!$AK42=0,"",'IsM3'!$AK42) ->  | O160: =IF('IsM3'!$AD$2=0,"",'IsM3'!$AD$2) -> FALSE | P160: =IF('IsM3'!$AD$3=0,"",'IsM3'!$AD$3) -> Integrated Skills | Q160: =IF('IsM3'!$AD$6=0,"",'IsM3'!$AD$6) -> 10:30:00 | R160: =IF('IsM3'!$AD$7=0,"",'IsM3'!$AD$7) -> M-Th | S160: =IF('IsM3'!$AD$8=0,"",'IsM3'!$AD$8) -> 5 | T160: =IF('IsM3'!$AD42=0,"",'IsM3'!$AD42) ->  | U160: =IF('IsM3'!$AE42=0,"",'IsM3'!$AE42) ->  | V160: =IF('IsM3'!$AH42=0,"",'IsM3'!$AH42) -> 
A161: =IF(GrM5B!$AD$5=0,"",GrM5B!$AD$5) -> 5B | B161: =IF(GrM5B!$AA$48=0,"",GrM5B!$AA$48) ->  | C161: =IF(GrM5B!$AB$48=0,"",GrM5B!$AB$48) ->  | D161: =IF('IsM3'!$B43=0,"",'IsM3'!$B43) ->  | E161: =IF('IsM3'!$C43=0,"",'IsM3'!$C43) ->  | F161: =IF('IsM3'!$D43=0,"",'IsM3'!$D43) ->  | G161: =IF('IsM3'!$AI43=0,"",'IsM3'!$AI43) ->  | H161: =IF('IsM3'!$AJ43=0,"",'IsM3'!$AJ43) ->  | I161: =IF('IsM3'!$AL43=0,"",'IsM3'!$AL43) ->  | J161: =IF('IsM3'!$AM43=0,"",'IsM3'!$AM43) ->  | K161: =IF('IsM3'!$AN43=0,"",'IsM3'!$AN43) ->  | L161: =IF('IsM3'!$AO43=0,"",'IsM3'!$AO43) ->  | M161: =IF('IsM3'!$AF43=0,"",'IsM3'!$AF43) ->  | N161: =IF('IsM3'!$AK43=0,"",'IsM3'!$AK43) ->  | O161: =IF('IsM3'!$AD$2=0,"",'IsM3'!$AD$2) -> FALSE | P161: =IF('IsM3'!$AD$3=0,"",'IsM3'!$AD$3) -> Integrated Skills | Q161: =IF('IsM3'!$AD$6=0,"",'IsM3'!$AD$6) -> 10:30:00 | R161: =IF('IsM3'!$AD$7=0,"",'IsM3'!$AD$7) -> M-Th | S161: =IF('IsM3'!$AD$8=0,"",'IsM3'!$AD$8) -> 5 | T161: =IF('IsM3'!$AD43=0,"",'IsM3'!$AD43) ->  | U161: =IF('IsM3'!$AE43=0,"",'IsM3'!$AE43) ->  | V161: =IF('IsM3'!$AH43=0,"",'IsM3'!$AH43) -> 
A162: =IF(GrM5B!$AD$5=0,"",GrM5B!$AD$5) -> 5B | B162: =IF(GrM5B!$AA$49=0,"",GrM5B!$AA$49) ->  | C162: =IF(GrM5B!$AB$49=0,"",GrM5B!$AB$49) ->  | D162: =IF('IsM3'!$B44=0,"",'IsM3'!$B44) ->  | E162: =IF('IsM3'!$C44=0,"",'IsM3'!$C44) ->  | F162: =IF('IsM3'!$D44=0,"",'IsM3'!$D44) ->  | G162: =IF('IsM3'!$AI44=0,"",'IsM3'!$AI44) ->  | H162: =IF('IsM3'!$AJ44=0,"",'IsM3'!$AJ44) ->  | I162: =IF('IsM3'!$AL44=0,"",'IsM3'!$AL44) ->  | J162: =IF('IsM3'!$AM44=0,"",'IsM3'!$AM44) ->  | K162: =IF('IsM3'!$AN44=0,"",'IsM3'!$AN44) ->  | L162: =IF('IsM3'!$AO44=0,"",'IsM3'!$AO44) ->  | M162: =IF('IsM3'!$AF44=0,"",'IsM3'!$AF44) ->  | N162: =IF('IsM3'!$AK44=0,"",'IsM3'!$AK44) ->  | O162: =IF('IsM3'!$AD$2=0,"",'IsM3'!$AD$2) -> FALSE | P162: =IF('IsM3'!$AD$3=0,"",'IsM3'!$AD$3) -> Integrated Skills | Q162: =IF('IsM3'!$AD$6=0,"",'IsM3'!$AD$6) -> 10:30:00 | R162: =IF('IsM3'!$AD$7=0,"",'IsM3'!$AD$7) -> M-Th | S162: =IF('IsM3'!$AD$8=0,"",'IsM3'!$AD$8) -> 5 | T162: =IF('IsM3'!$AD44=0,"",'IsM3'!$AD44) ->  | U162: =IF('IsM3'!$AE44=0,"",'IsM3'!$AE44) ->  | V162: =IF('IsM3'!$AH44=0,"",'IsM3'!$AH44) -> 
A163: =IF(GrM5B!$AD$5=0,"",GrM5B!$AD$5) -> 5B | B163: =IF(GrM5B!$AA$50=0,"",GrM5B!$AA$50) ->  | C163: =IF(GrM5B!$AB$50=0,"",GrM5B!$AB$50) ->  | D163: =IF('IsM3'!$B45=0,"",'IsM3'!$B45) ->  | E163: =IF('IsM3'!$C45=0,"",'IsM3'!$C45) ->  | F163: =IF('IsM3'!$D45=0,"",'IsM3'!$D45) ->  | G163: =IF('IsM3'!$AI45=0,"",'IsM3'!$AI45) ->  | H163: =IF('IsM3'!$AJ45=0,"",'IsM3'!$AJ45) ->  | I163: =IF('IsM3'!$AL45=0,"",'IsM3'!$AL45) ->  | J163: =IF('IsM3'!$AM45=0,"",'IsM3'!$AM45) ->  | K163: =IF('IsM3'!$AN45=0,"",'IsM3'!$AN45) ->  | L163: =IF('IsM3'!$AO45=0,"",'IsM3'!$AO45) ->  | M163: =IF('IsM3'!$AF45=0,"",'IsM3'!$AF45) ->  | N163: =IF('IsM3'!$AK45=0,"",'IsM3'!$AK45) ->  | O163: =IF('IsM3'!$AD$2=0,"",'IsM3'!$AD$2) -> FALSE | P163: =IF('IsM3'!$AD$3=0,"",'IsM3'!$AD$3) -> Integrated Skills | Q163: =IF('IsM3'!$AD$6=0,"",'IsM3'!$AD$6) -> 10:30:00 | R163: =IF('IsM3'!$AD$7=0,"",'IsM3'!$AD$7) -> M-Th | S163: =IF('IsM3'!$AD$8=0,"",'IsM3'!$AD$8) -> 5 | T163: =IF('IsM3'!$AD45=0,"",'IsM3'!$AD45) ->  | U163: =IF('IsM3'!$AE45=0,"",'IsM3'!$AE45) ->  | V163: =IF('IsM3'!$AH45=0,"",'IsM3'!$AH45) -> 
A164: =IF(GrM5B!$AD$5=0,"",GrM5B!$AD$5) -> 5B | B164: =IF(GrM5B!$AA$51=0,"",GrM5B!$AA$51) ->  | C164: =IF(GrM5B!$AB$51=0,"",GrM5B!$AB$51) ->  | D164: =IF('IsM3'!$B46=0,"",'IsM3'!$B46) ->  | E164: =IF('IsM3'!$C46=0,"",'IsM3'!$C46) ->  | F164: =IF('IsM3'!$D46=0,"",'IsM3'!$D46) ->  | G164: =IF('IsM3'!$AI46=0,"",'IsM3'!$AI46) ->  | H164: =IF('IsM3'!$AJ46=0,"",'IsM3'!$AJ46) ->  | I164: =IF('IsM3'!$AL46=0,"",'IsM3'!$AL46) ->  | J164: =IF('IsM3'!$AM46=0,"",'IsM3'!$AM46) ->  | K164: =IF('IsM3'!$AN46=0,"",'IsM3'!$AN46) ->  | L164: =IF('IsM3'!$AO46=0,"",'IsM3'!$AO46) ->  | M164: =IF('IsM3'!$AF46=0,"",'IsM3'!$AF46) ->  | N164: =IF('IsM3'!$AK46=0,"",'IsM3'!$AK46) ->  | O164: =IF('IsM3'!$AD$2=0,"",'IsM3'!$AD$2) -> FALSE | P164: =IF('IsM3'!$AD$3=0,"",'IsM3'!$AD$3) -> Integrated Skills | Q164: =IF('IsM3'!$AD$6=0,"",'IsM3'!$AD$6) -> 10:30:00 | R164: =IF('IsM3'!$AD$7=0,"",'IsM3'!$AD$7) -> M-Th | S164: =IF('IsM3'!$AD$8=0,"",'IsM3'!$AD$8) -> 5 | T164: =IF('IsM3'!$AD46=0,"",'IsM3'!$AD46) ->  | U164: =IF('IsM3'!$AE46=0,"",'IsM3'!$AE46) ->  | V164: =IF('IsM3'!$AH46=0,"",'IsM3'!$AH46) -> 
A165: =IF(GrM5B!$AD$5=0,"",GrM5B!$AD$5) -> 5B | B165: =IF(GrM5B!$AA$52=0,"",GrM5B!$AA$52) ->  | C165: =IF(GrM5B!$AB$52=0,"",GrM5B!$AB$52) ->  | D165: =IF('IsM3'!$B47=0,"",'IsM3'!$B47) ->  | E165: =IF('IsM3'!$C47=0,"",'IsM3'!$C47) ->  | F165: =IF('IsM3'!$D47=0,"",'IsM3'!$D47) ->  | G165: =IF('IsM3'!$AI47=0,"",'IsM3'!$AI47) ->  | H165: =IF('IsM3'!$AJ47=0,"",'IsM3'!$AJ47) ->  | I165: =IF('IsM3'!$AL47=0,"",'IsM3'!$AL47) ->  | J165: =IF('IsM3'!$AM47=0,"",'IsM3'!$AM47) ->  | K165: =IF('IsM3'!$AN47=0,"",'IsM3'!$AN47) ->  | L165: =IF('IsM3'!$AO47=0,"",'IsM3'!$AO47) ->  | M165: =IF('IsM3'!$AF47=0,"",'IsM3'!$AF47) ->  | N165: =IF('IsM3'!$AK47=0,"",'IsM3'!$AK47) ->  | O165: =IF('IsM3'!$AD$2=0,"",'IsM3'!$AD$2) -> FALSE | P165: =IF('IsM3'!$AD$3=0,"",'IsM3'!$AD$3) -> Integrated Skills | Q165: =IF('IsM3'!$AD$6=0,"",'IsM3'!$AD$6) -> 10:30:00 | R165: =IF('IsM3'!$AD$7=0,"",'IsM3'!$AD$7) -> M-Th | S165: =IF('IsM3'!$AD$8=0,"",'IsM3'!$AD$8) -> 5 | T165: =IF('IsM3'!$AD47=0,"",'IsM3'!$AD47) ->  | U165: =IF('IsM3'!$AE47=0,"",'IsM3'!$AE47) ->  | V165: =IF('IsM3'!$AH47=0,"",'IsM3'!$AH47) -> 
A166: =IF(GrMT!$AD$5=0,"",GrMT!$AD$5) -> TOEFL | B166: =IF(GrMT!$AA$23=0,"",GrMT!$AA$23) -> Continuing | C166: =IF(GrMT!$AB$23=0,"",GrMT!$AB$23) ->  | D166: =IF('IsM4'!$B35=0,"",'IsM4'!$B35) -> 2008-08-25 | E166: =IF('IsM4'!$C35=0,"",'IsM4'!$C35) -> 2008-12-19 | F166: =IF('IsM4'!$D35=0,"",'IsM4'!$D35) -> 2008-12-19 | G166: =IF('IsM4'!$AI35=0,"",'IsM4'!$AI35) -> Song | H166: =IF('IsM4'!$AJ35=0,"",'IsM4'!$AJ35) -> Hyerin | I166: =IF('IsM4'!$AL35=0,"",'IsM4'!$AL35) -> Gate | J166: =IF('IsM4'!$AM35=0,"",'IsM4'!$AM35) -> F1 | K166: =IF('IsM4'!$AN35=0,"",'IsM4'!$AN35) -> F8 | L166: =IF('IsM4'!$AO35=0,"",'IsM4'!$AO35) -> F8 | M166: =IF('IsM4'!$AF35=0,"",'IsM4'!$AF35) -> Korea | N166: =IF('IsM4'!$AK35=0,"",'IsM4'!$AK35) -> 615-3919 | O166: =IF('IsM4'!$AD$2=0,"",'IsM4'!$AD$2) -> Phyllis | P166: =IF('IsM4'!$AD$3=0,"",'IsM4'!$AD$3) -> Integrated Skills | Q166: =IF('IsM4'!$AD$6=0,"",'IsM4'!$AD$6) -> 10:30:00 | R166: =IF('IsM4'!$AD$7=0,"",'IsM4'!$AD$7) -> M-TH | S166: =IF('IsM4'!$AD$8=0,"",'IsM4'!$AD$8) -> 2 | T166: =IF('IsM4'!$AD35=0,"",'IsM4'!$AD35) -> 2008-10-12 | U166: =IF('IsM4'!$AE35=0,"",'IsM4'!$AE35) ->  | V166: =IF('IsM4'!$AH35=0,"",'IsM4'!$AH35) -> 2008-10-01
A167: =IF(GrMT!$AD$5=0,"",GrMT!$AD$5) -> TOEFL | B167: =IF(GrMT!$AA$24=0,"",GrMT!$AA$24) -> New | C167: =IF(GrMT!$AB$24=0,"",GrMT!$AB$24) ->  | D167: =IF('IsM4'!$B36=0,"",'IsM4'!$B36) -> 2008-09-08 | E167: =IF('IsM4'!$C36=0,"",'IsM4'!$C36) -> 2009-01-15 | F167: =IF('IsM4'!$D36=0,"",'IsM4'!$D36) -> 2009-01-15 | G167: =IF('IsM4'!$AI36=0,"",'IsM4'!$AI36) -> Yoshida | H167: =IF('IsM4'!$AJ36=0,"",'IsM4'!$AJ36) -> Mei | I167: =IF('IsM4'!$AL36=0,"",'IsM4'!$AL36) -> Gate | J167: =IF('IsM4'!$AM36=0,"",'IsM4'!$AM36) -> F2 | K167: =IF('IsM4'!$AN36=0,"",'IsM4'!$AN36) -> S1 | L167: =IF('IsM4'!$AO36=0,"",'IsM4'!$AO36) -> S1 | M167: =IF('IsM4'!$AF36=0,"",'IsM4'!$AF36) -> Japan | N167: =IF('IsM4'!$AK36=0,"",'IsM4'!$AK36) -> 045-753-8483 | O167: =IF('IsM4'!$AD$2=0,"",'IsM4'!$AD$2) -> Phyllis | P167: =IF('IsM4'!$AD$3=0,"",'IsM4'!$AD$3) -> Integrated Skills | Q167: =IF('IsM4'!$AD$6=0,"",'IsM4'!$AD$6) -> 10:30:00 | R167: =IF('IsM4'!$AD$7=0,"",'IsM4'!$AD$7) -> M-TH | S167: =IF('IsM4'!$AD$8=0,"",'IsM4'!$AD$8) -> 2 | T167: =IF('IsM4'!$AD36=0,"",'IsM4'!$AD36) -> 2009-01-16 | U167: =IF('IsM4'!$AE36=0,"",'IsM4'!$AE36) ->  | V167: =IF('IsM4'!$AH36=0,"",'IsM4'!$AH36) -> 2008-05-05
